Workbook

Sheet 必ずこのシートから始めてください
D3: 空調年間活動量算定ツール(遠心冷凍機版) | M3: Ver.1.0
C5: 電気式水冷遠心冷凍機の年間電力使用量の算定
D8: 電気式水冷遠心冷凍機を設置する都道府県を選択 | K8: 選択
D10: 選択した都道府県庁所在地等 （埼玉県は熊谷市、滋賀県は彦根市よりデータ取得） | K10: 自動表示 | L10: =IF($L$8="","",VLOOKUP($L$8,都道府県庁所在地等一覧表!$C$3:$D$50,2,FALSE)) -> 
D12: 検証場所セルを押下するとシートが開く
H13: 検証場所
D16: 注意事項 | E16: ● 本ツールは環境省SHIFT事業で年間活動量(電力使用量)を算出するために開発。他の目的に利用することは想定されていません。
E17: ● あらゆる入力に対して正しい計算結果が得られることを保証するものではありません。
E18: 計算結果の取り扱いについては、自己責任でお願いします。

Sheet 検証場所
C2: 遠心冷凍機の設置場所
C3: =IF(必ずこのシートから始めてください!$L$8="","",必ずこのシートから始めてください!$L$8) ->  | F3: 手順1：空調を行う月、時間を下記の指定の色で塗る(指定の色以外で塗ると計算できません。)
C4: =VLOOKUP($C$3,都道府県庁所在地等一覧表!$C$3:$D$50,2,FALSE) ->  | G4: 冷却 | H4: 青 | I4: 【左から5列目、一番薄い色(アクセント1,白＋基本色80％)】
F6: 手順2：各月の運転日数を入力する
F7: 手順3：Ctrl + Alt + F9を同時に押す | R7: ●時刻別平均外気湿球温度表記載の数値は、選択された都道府県の県庁所在地等の月別、時刻別平均外気湿球温度
F8: 手順4：黄色のセルに値を入力する(緑は自動計算) | R8: ●本データは気象庁発表の1992年4月1日から2022年3月31日までの30年の1時間データを整理したもの
C9: 時刻別平均外気湿球温度[℃] | R9: ●2月はうるう日を含みます
D10: 時刻 | AB10: =SUM(AB12:AB23) -> 0 | AC10: =必ずこのシートから始めてください!M3 -> Ver.1.0
C11: 月 | D11: 0 | E11: 1 | F11: 2 | G11: 3 | H11: 4 | I11: 5 | J11: 6 | K11: 7 | L11: 8 | M11: 9 | N11: 10 | O11: 11 | P11: 12 | Q11: 13 | R11: 14 | S11: 15 | T11: 16 | U11: 17 | V11: 18 | W11: 19 | X11: 20 | Y11: 21 | Z11: 22 | AA11: 23 | AB11: 運転日数 | AC11: 月
C12: 4 | D12: =IFERROR(INDIRECT($C$4&"!B5"),"") ->  | E12: =IFERROR(INDIRECT($C$4&"!C5"),"") ->  | F12: =IFERROR(INDIRECT($C$4&"!D5"),"") ->  | G12: =IFERROR(INDIRECT($C$4&"!E5"),"") ->  | H12: =IFERROR(INDIRECT($C$4&"!F5"),"") ->  | I12: =IFERROR(INDIRECT($C$4&"!G5"),"") ->  | J12: =IFERROR(INDIRECT($C$4&"!H5"),"") ->  | K12: =IFERROR(INDIRECT($C$4&"!I5"),"") ->  | L12: =IFERROR(INDIRECT($C$4&"!J5"),"") ->  | M12: =IFERROR(INDIRECT($C$4&"!K5"),"") ->  | N12: =IFERROR(INDIRECT($C$4&"!L5"),"") ->  | O12: =IFERROR(INDIRECT($C$4&"!M5"),"") ->  | P12: =IFERROR(INDIRECT($C$4&"!N5"),"") ->  | Q12: =IFERROR(INDIRECT($C$4&"!O5"),"") ->  | R12: =IFERROR(INDIRECT($C$4&"!P5"),"") ->  | S12: =IFERROR(INDIRECT($C$4&"!Q5"),"") ->  | T12: =IFERROR(INDIRECT($C$4&"!R5"),"") ->  | U12: =IFERROR(INDIRECT($C$4&"!S5"),"") ->  | V12: =IFERROR(INDIRECT($C$4&"!T5"),"") ->  | W12: =IFERROR(INDIRECT($C$4&"!U5"),"") ->  | X12: =IFERROR(INDIRECT($C$4&"!V5"),"") ->  | Y12: =IFERROR(INDIRECT($C$4&"!W5"),"") ->  | Z12: =IFERROR(INDIRECT($C$4&"!X5"),"") ->  | AA12: =IFERROR(INDIRECT($C$4&"!Y5"),"") ->  | AC12: 4
C13: 5 | D13: =IFERROR(INDIRECT($C$4&"!B6"),"") ->  | E13: =IFERROR(INDIRECT($C$4&"!C6"),"") ->  | F13: =IFERROR(INDIRECT($C$4&"!D6"),"") ->  | G13: =IFERROR(INDIRECT($C$4&"!E6"),"") ->  | H13: =IFERROR(INDIRECT($C$4&"!F6"),"") ->  | I13: =IFERROR(INDIRECT($C$4&"!G6"),"") ->  | J13: =IFERROR(INDIRECT($C$4&"!H6"),"") ->  | K13: =IFERROR(INDIRECT($C$4&"!I6"),"") ->  | L13: =IFERROR(INDIRECT($C$4&"!J6"),"") ->  | M13: =IFERROR(INDIRECT($C$4&"!K6"),"") ->  | N13: =IFERROR(INDIRECT($C$4&"!L6"),"") ->  | O13: =IFERROR(INDIRECT($C$4&"!M6"),"") ->  | P13: =IFERROR(INDIRECT($C$4&"!N6"),"") ->  | Q13: =IFERROR(INDIRECT($C$4&"!O6"),"") ->  | R13: =IFERROR(INDIRECT($C$4&"!P6"),"") ->  | S13: =IFERROR(INDIRECT($C$4&"!Q6"),"") ->  | T13: =IFERROR(INDIRECT($C$4&"!R6"),"") ->  | U13: =IFERROR(INDIRECT($C$4&"!S6"),"") ->  | V13: =IFERROR(INDIRECT($C$4&"!T6"),"") ->  | W13: =IFERROR(INDIRECT($C$4&"!U6"),"") ->  | X13: =IFERROR(INDIRECT($C$4&"!V6"),"") ->  | Y13: =IFERROR(INDIRECT($C$4&"!W6"),"") ->  | Z13: =IFERROR(INDIRECT($C$4&"!X6"),"") ->  | AA13: =IFERROR(INDIRECT($C$4&"!Y6"),"") ->  | AC13: 5
C14: 6 | D14: =IFERROR(INDIRECT($C$4&"!B7"),"") ->  | E14: =IFERROR(INDIRECT($C$4&"!C7"),"") ->  | F14: =IFERROR(INDIRECT($C$4&"!D7"),"") ->  | G14: =IFERROR(INDIRECT($C$4&"!E7"),"") ->  | H14: =IFERROR(INDIRECT($C$4&"!F7"),"") ->  | I14: =IFERROR(INDIRECT($C$4&"!G7"),"") ->  | J14: =IFERROR(INDIRECT($C$4&"!H7"),"") ->  | K14: =IFERROR(INDIRECT($C$4&"!I7"),"") ->  | L14: =IFERROR(INDIRECT($C$4&"!J7"),"") ->  | M14: =IFERROR(INDIRECT($C$4&"!K7"),"") ->  | N14: =IFERROR(INDIRECT($C$4&"!L7"),"") ->  | O14: =IFERROR(INDIRECT($C$4&"!M7"),"") ->  | P14: =IFERROR(INDIRECT($C$4&"!N7"),"") ->  | Q14: =IFERROR(INDIRECT($C$4&"!O7"),"") ->  | R14: =IFERROR(INDIRECT($C$4&"!P7"),"") ->  | S14: =IFERROR(INDIRECT($C$4&"!Q7"),"") ->  | T14: =IFERROR(INDIRECT($C$4&"!R7"),"") ->  | U14: =IFERROR(INDIRECT($C$4&"!S7"),"") ->  | V14: =IFERROR(INDIRECT($C$4&"!T7"),"") ->  | W14: =IFERROR(INDIRECT($C$4&"!U7"),"") ->  | X14: =IFERROR(INDIRECT($C$4&"!V7"),"") ->  | Y14: =IFERROR(INDIRECT($C$4&"!W7"),"") ->  | Z14: =IFERROR(INDIRECT($C$4&"!X7"),"") ->  | AA14: =IFERROR(INDIRECT($C$4&"!Y7"),"") ->  | AC14: 6
C15: 7 | D15: =IFERROR(INDIRECT($C$4&"!B8"),"") ->  | E15: =IFERROR(INDIRECT($C$4&"!C8"),"") ->  | F15: =IFERROR(INDIRECT($C$4&"!D8"),"") ->  | G15: =IFERROR(INDIRECT($C$4&"!E8"),"") ->  | H15: =IFERROR(INDIRECT($C$4&"!F8"),"") ->  | I15: =IFERROR(INDIRECT($C$4&"!G8"),"") ->  | J15: =IFERROR(INDIRECT($C$4&"!H8"),"") ->  | K15: =IFERROR(INDIRECT($C$4&"!I8"),"") ->  | L15: =IFERROR(INDIRECT($C$4&"!J8"),"") ->  | M15: =IFERROR(INDIRECT($C$4&"!K8"),"") ->  | N15: =IFERROR(INDIRECT($C$4&"!L8"),"") ->  | O15: =IFERROR(INDIRECT($C$4&"!M8"),"") ->  | P15: =IFERROR(INDIRECT($C$4&"!N8"),"") ->  | Q15: =IFERROR(INDIRECT($C$4&"!O8"),"") ->  | R15: =IFERROR(INDIRECT($C$4&"!P8"),"") ->  | S15: =IFERROR(INDIRECT($C$4&"!Q8"),"") ->  | T15: =IFERROR(INDIRECT($C$4&"!R8"),"") ->  | U15: =IFERROR(INDIRECT($C$4&"!S8"),"") ->  | V15: =IFERROR(INDIRECT($C$4&"!T8"),"") ->  | W15: =IFERROR(INDIRECT($C$4&"!U8"),"") ->  | X15: =IFERROR(INDIRECT($C$4&"!V8"),"") ->  | Y15: =IFERROR(INDIRECT($C$4&"!W8"),"") ->  | Z15: =IFERROR(INDIRECT($C$4&"!X8"),"") ->  | AA15: =IFERROR(INDIRECT($C$4&"!Y8"),"") ->  | AC15: 7
C16: 8 | D16: =IFERROR(INDIRECT($C$4&"!B9"),"") ->  | E16: =IFERROR(INDIRECT($C$4&"!C9"),"") ->  | F16: =IFERROR(INDIRECT($C$4&"!D9"),"") ->  | G16: =IFERROR(INDIRECT($C$4&"!E9"),"") ->  | H16: =IFERROR(INDIRECT($C$4&"!F9"),"") ->  | I16: =IFERROR(INDIRECT($C$4&"!G9"),"") ->  | J16: =IFERROR(INDIRECT($C$4&"!H9"),"") ->  | K16: =IFERROR(INDIRECT($C$4&"!I9"),"") ->  | L16: =IFERROR(INDIRECT($C$4&"!J9"),"") ->  | M16: =IFERROR(INDIRECT($C$4&"!K9"),"") ->  | N16: =IFERROR(INDIRECT($C$4&"!L9"),"") ->  | O16: =IFERROR(INDIRECT($C$4&"!M9"),"") ->  | P16: =IFERROR(INDIRECT($C$4&"!N9"),"") ->  | Q16: =IFERROR(INDIRECT($C$4&"!O9"),"") ->  | R16: =IFERROR(INDIRECT($C$4&"!P9"),"") ->  | S16: =IFERROR(INDIRECT($C$4&"!Q9"),"") ->  | T16: =IFERROR(INDIRECT($C$4&"!R9"),"") ->  | U16: =IFERROR(INDIRECT($C$4&"!S9"),"") ->  | V16: =IFERROR(INDIRECT($C$4&"!T9"),"") ->  | W16: =IFERROR(INDIRECT($C$4&"!U9"),"") ->  | X16: =IFERROR(INDIRECT($C$4&"!V9"),"") ->  | Y16: =IFERROR(INDIRECT($C$4&"!W9"),"") ->  | Z16: =IFERROR(INDIRECT($C$4&"!X9"),"") ->  | AA16: =IFERROR(INDIRECT($C$4&"!Y9"),"") ->  | AC16: 8
C17: 9 | D17: =IFERROR(INDIRECT($C$4&"!B10"),"") ->  | E17: =IFERROR(INDIRECT($C$4&"!C10"),"") ->  | F17: =IFERROR(INDIRECT($C$4&"!D10"),"") ->  | G17: =IFERROR(INDIRECT($C$4&"!E10"),"") ->  | H17: =IFERROR(INDIRECT($C$4&"!F10"),"") ->  | I17: =IFERROR(INDIRECT($C$4&"!G10"),"") ->  | J17: =IFERROR(INDIRECT($C$4&"!H10"),"") ->  | K17: =IFERROR(INDIRECT($C$4&"!I10"),"") ->  | L17: =IFERROR(INDIRECT($C$4&"!J10"),"") ->  | M17: =IFERROR(INDIRECT($C$4&"!K10"),"") ->  | N17: =IFERROR(INDIRECT($C$4&"!L10"),"") ->  | O17: =IFERROR(INDIRECT($C$4&"!M10"),"") ->  | P17: =IFERROR(INDIRECT($C$4&"!N10"),"") ->  | Q17: =IFERROR(INDIRECT($C$4&"!O10"),"") ->  | R17: =IFERROR(INDIRECT($C$4&"!P10"),"") ->  | S17: =IFERROR(INDIRECT($C$4&"!Q10"),"") ->  | T17: =IFERROR(INDIRECT($C$4&"!R10"),"") ->  | U17: =IFERROR(INDIRECT($C$4&"!S10"),"") ->  | V17: =IFERROR(INDIRECT($C$4&"!T10"),"") ->  | W17: =IFERROR(INDIRECT($C$4&"!U10"),"") ->  | X17: =IFERROR(INDIRECT($C$4&"!V10"),"") ->  | Y17: =IFERROR(INDIRECT($C$4&"!W10"),"") ->  | Z17: =IFERROR(INDIRECT($C$4&"!X10"),"") ->  | AA17: =IFERROR(INDIRECT($C$4&"!Y10"),"") ->  | AC17: 9
C18: 10 | D18: =IFERROR(INDIRECT($C$4&"!B11"),"") ->  | E18: =IFERROR(INDIRECT($C$4&"!C11"),"") ->  | F18: =IFERROR(INDIRECT($C$4&"!D11"),"") ->  | G18: =IFERROR(INDIRECT($C$4&"!E11"),"") ->  | H18: =IFERROR(INDIRECT($C$4&"!F11"),"") ->  | I18: =IFERROR(INDIRECT($C$4&"!G11"),"") ->  | J18: =IFERROR(INDIRECT($C$4&"!H11"),"") ->  | K18: =IFERROR(INDIRECT($C$4&"!I11"),"") ->  | L18: =IFERROR(INDIRECT($C$4&"!J11"),"") ->  | M18: =IFERROR(INDIRECT($C$4&"!K11"),"") ->  | N18: =IFERROR(INDIRECT($C$4&"!L11"),"") ->  | O18: =IFERROR(INDIRECT($C$4&"!M11"),"") ->  | P18: =IFERROR(INDIRECT($C$4&"!N11"),"") ->  | Q18: =IFERROR(INDIRECT($C$4&"!O11"),"") ->  | R18: =IFERROR(INDIRECT($C$4&"!P11"),"") ->  | S18: =IFERROR(INDIRECT($C$4&"!Q11"),"") ->  | T18: =IFERROR(INDIRECT($C$4&"!R11"),"") ->  | U18: =IFERROR(INDIRECT($C$4&"!S11"),"") ->  | V18: =IFERROR(INDIRECT($C$4&"!T11"),"") ->  | W18: =IFERROR(INDIRECT($C$4&"!U11"),"") ->  | X18: =IFERROR(INDIRECT($C$4&"!V11"),"") ->  | Y18: =IFERROR(INDIRECT($C$4&"!W11"),"") ->  | Z18: =IFERROR(INDIRECT($C$4&"!X11"),"") ->  | AA18: =IFERROR(INDIRECT($C$4&"!Y11"),"") ->  | AC18: 10
C19: 11 | D19: =IFERROR(INDIRECT($C$4&"!B12"),"") ->  | E19: =IFERROR(INDIRECT($C$4&"!C12"),"") ->  | F19: =IFERROR(INDIRECT($C$4&"!D12"),"") ->  | G19: =IFERROR(INDIRECT($C$4&"!E12"),"") ->  | H19: =IFERROR(INDIRECT($C$4&"!F12"),"") ->  | I19: =IFERROR(INDIRECT($C$4&"!G12"),"") ->  | J19: =IFERROR(INDIRECT($C$4&"!H12"),"") ->  | K19: =IFERROR(INDIRECT($C$4&"!I12"),"") ->  | L19: =IFERROR(INDIRECT($C$4&"!J12"),"") ->  | M19: =IFERROR(INDIRECT($C$4&"!K12"),"") ->  | N19: =IFERROR(INDIRECT($C$4&"!L12"),"") ->  | O19: =IFERROR(INDIRECT($C$4&"!M12"),"") ->  | P19: =IFERROR(INDIRECT($C$4&"!N12"),"") ->  | Q19: =IFERROR(INDIRECT($C$4&"!O12"),"") ->  | R19: =IFERROR(INDIRECT($C$4&"!P12"),"") ->  | S19: =IFERROR(INDIRECT($C$4&"!Q12"),"") ->  | T19: =IFERROR(INDIRECT($C$4&"!R12"),"") ->  | U19: =IFERROR(INDIRECT($C$4&"!S12"),"") ->  | V19: =IFERROR(INDIRECT($C$4&"!T12"),"") ->  | W19: =IFERROR(INDIRECT($C$4&"!U12"),"") ->  | X19: =IFERROR(INDIRECT($C$4&"!V12"),"") ->  | Y19: =IFERROR(INDIRECT($C$4&"!W12"),"") ->  | Z19: =IFERROR(INDIRECT($C$4&"!X12"),"") ->  | AA19: =IFERROR(INDIRECT($C$4&"!Y12"),"") ->  | AC19: 11
C20: 12 | D20: =IFERROR(INDIRECT($C$4&"!B13"),"") ->  | E20: =IFERROR(INDIRECT($C$4&"!C13"),"") ->  | F20: =IFERROR(INDIRECT($C$4&"!D13"),"") ->  | G20: =IFERROR(INDIRECT($C$4&"!E13"),"") ->  | H20: =IFERROR(INDIRECT($C$4&"!F13"),"") ->  | I20: =IFERROR(INDIRECT($C$4&"!G13"),"") ->  | J20: =IFERROR(INDIRECT($C$4&"!H13"),"") ->  | K20: =IFERROR(INDIRECT($C$4&"!I13"),"") ->  | L20: =IFERROR(INDIRECT($C$4&"!J13"),"") ->  | M20: =IFERROR(INDIRECT($C$4&"!K13"),"") ->  | N20: =IFERROR(INDIRECT($C$4&"!L13"),"") ->  | O20: =IFERROR(INDIRECT($C$4&"!M13"),"") ->  | P20: =IFERROR(INDIRECT($C$4&"!N13"),"") ->  | Q20: =IFERROR(INDIRECT($C$4&"!O13"),"") ->  | R20: =IFERROR(INDIRECT($C$4&"!P13"),"") ->  | S20: =IFERROR(INDIRECT($C$4&"!Q13"),"") ->  | T20: =IFERROR(INDIRECT($C$4&"!R13"),"") ->  | U20: =IFERROR(INDIRECT($C$4&"!S13"),"") ->  | V20: =IFERROR(INDIRECT($C$4&"!T13"),"") ->  | W20: =IFERROR(INDIRECT($C$4&"!U13"),"") ->  | X20: =IFERROR(INDIRECT($C$4&"!V13"),"") ->  | Y20: =IFERROR(INDIRECT($C$4&"!W13"),"") ->  | Z20: =IFERROR(INDIRECT($C$4&"!X13"),"") ->  | AA20: =IFERROR(INDIRECT($C$4&"!Y13"),"") ->  | AC20: 12
C21: 1 | D21: =IFERROR(INDIRECT($C$4&"!B14"),"") ->  | E21: =IFERROR(INDIRECT($C$4&"!C14"),"") ->  | F21: =IFERROR(INDIRECT($C$4&"!D14"),"") ->  | G21: =IFERROR(INDIRECT($C$4&"!E14"),"") ->  | H21: =IFERROR(INDIRECT($C$4&"!F14"),"") ->  | I21: =IFERROR(INDIRECT($C$4&"!G14"),"") ->  | J21: =IFERROR(INDIRECT($C$4&"!H14"),"") ->  | K21: =IFERROR(INDIRECT($C$4&"!I14"),"") ->  | L21: =IFERROR(INDIRECT($C$4&"!J14"),"") ->  | M21: =IFERROR(INDIRECT($C$4&"!K14"),"") ->  | N21: =IFERROR(INDIRECT($C$4&"!L14"),"") ->  | O21: =IFERROR(INDIRECT($C$4&"!M14"),"") ->  | P21: =IFERROR(INDIRECT($C$4&"!N14"),"") ->  | Q21: =IFERROR(INDIRECT($C$4&"!O14"),"") ->  | R21: =IFERROR(INDIRECT($C$4&"!P14"),"") ->  | S21: =IFERROR(INDIRECT($C$4&"!Q14"),"") ->  | T21: =IFERROR(INDIRECT($C$4&"!R14"),"") ->  | U21: =IFERROR(INDIRECT($C$4&"!S14"),"") ->  | V21: =IFERROR(INDIRECT($C$4&"!T14"),"") ->  | W21: =IFERROR(INDIRECT($C$4&"!U14"),"") ->  | X21: =IFERROR(INDIRECT($C$4&"!V14"),"") ->  | Y21: =IFERROR(INDIRECT($C$4&"!W14"),"") ->  | Z21: =IFERROR(INDIRECT($C$4&"!X14"),"") ->  | AA21: =IFERROR(INDIRECT($C$4&"!Y14"),"") ->  | AC21: 1
C22: 2 | D22: =IFERROR(INDIRECT($C$4&"!B15"),"") ->  | E22: =IFERROR(INDIRECT($C$4&"!C15"),"") ->  | F22: =IFERROR(INDIRECT($C$4&"!D15"),"") ->  | G22: =IFERROR(INDIRECT($C$4&"!E15"),"") ->  | H22: =IFERROR(INDIRECT($C$4&"!F15"),"") ->  | I22: =IFERROR(INDIRECT($C$4&"!G15"),"") ->  | J22: =IFERROR(INDIRECT($C$4&"!H15"),"") ->  | K22: =IFERROR(INDIRECT($C$4&"!I15"),"") ->  | L22: =IFERROR(INDIRECT($C$4&"!J15"),"") ->  | M22: =IFERROR(INDIRECT($C$4&"!K15"),"") ->  | N22: =IFERROR(INDIRECT($C$4&"!L15"),"") ->  | O22: =IFERROR(INDIRECT($C$4&"!M15"),"") ->  | P22: =IFERROR(INDIRECT($C$4&"!N15"),"") ->  | Q22: =IFERROR(INDIRECT($C$4&"!O15"),"") ->  | R22: =IFERROR(INDIRECT($C$4&"!P15"),"") ->  | S22: =IFERROR(INDIRECT($C$4&"!Q15"),"") ->  | T22: =IFERROR(INDIRECT($C$4&"!R15"),"") ->  | U22: =IFERROR(INDIRECT($C$4&"!S15"),"") ->  | V22: =IFERROR(INDIRECT($C$4&"!T15"),"") ->  | W22: =IFERROR(INDIRECT($C$4&"!U15"),"") ->  | X22: =IFERROR(INDIRECT($C$4&"!V15"),"") ->  | Y22: =IFERROR(INDIRECT($C$4&"!W15"),"") ->  | Z22: =IFERROR(INDIRECT($C$4&"!X15"),"") ->  | AA22: =IFERROR(INDIRECT($C$4&"!Y15"),"") ->  | AC22: 2
C23: 3 | D23: =IFERROR(INDIRECT($C$4&"!B16"),"") ->  | E23: =IFERROR(INDIRECT($C$4&"!C16"),"") ->  | F23: =IFERROR(INDIRECT($C$4&"!D16"),"") ->  | G23: =IFERROR(INDIRECT($C$4&"!E16"),"") ->  | H23: =IFERROR(INDIRECT($C$4&"!F16"),"") ->  | I23: =IFERROR(INDIRECT($C$4&"!G16"),"") ->  | J23: =IFERROR(INDIRECT($C$4&"!H16"),"") ->  | K23: =IFERROR(INDIRECT($C$4&"!I16"),"") ->  | L23: =IFERROR(INDIRECT($C$4&"!J16"),"") ->  | M23: =IFERROR(INDIRECT($C$4&"!K16"),"") ->  | N23: =IFERROR(INDIRECT($C$4&"!L16"),"") ->  | O23: =IFERROR(INDIRECT($C$4&"!M16"),"") ->  | P23: =IFERROR(INDIRECT($C$4&"!N16"),"") ->  | Q23: =IFERROR(INDIRECT($C$4&"!O16"),"") ->  | R23: =IFERROR(INDIRECT($C$4&"!P16"),"") ->  | S23: =IFERROR(INDIRECT($C$4&"!Q16"),"") ->  | T23: =IFERROR(INDIRECT($C$4&"!R16"),"") ->  | U23: =IFERROR(INDIRECT($C$4&"!S16"),"") ->  | V23: =IFERROR(INDIRECT($C$4&"!T16"),"") ->  | W23: =IFERROR(INDIRECT($C$4&"!U16"),"") ->  | X23: =IFERROR(INDIRECT($C$4&"!V16"),"") ->  | Y23: =IFERROR(INDIRECT($C$4&"!W16"),"") ->  | Z23: =IFERROR(INDIRECT($C$4&"!X16"),"") ->  | AA23: =IFERROR(INDIRECT($C$4&"!Y16"),"") ->  | AC23: 3
D25: 定格条件 【冷却】 | F25: 冷却水 | G25: 入口温度 | H25: 32℃ | I25: 冷水 | J25: 入口温度 | K25: 12℃
G26: 出口温度 | H26: 37℃ | J26: 出口温度 | K26: 7℃
D28: 設備導入前 | Q28: 前1 | R28: 前2 | S28: 前3
E29: 定格冷却能力 | I29: 遠心冷凍機の仕様を入力 | P29: Φco | Q29: 1410 | T29: kW
E30: 定格冷却消費電力 | I30: 遠心冷凍機の仕様を入力 | P30: Pco | Q30: 240 | T30: kW
E31: 定格冷却COP | I31: 自動計算 | P31: σco | Q31: =IFERROR(Q29/Q30,"") -> 5.875 | R31: =IFERROR(R29/R30,"") ->  | S31: =IFERROR(S29/S30,"") ->  | T31: σco＝Φco／Pco
E32: 冷却塔ファンモータ定格出力 | I32: 遠心冷凍機の仕様を入力 | P32: Pf | Q32: 22 | T32: kW
E33: 冷却水ポンプモータ定格出力 | I33: 遠心冷凍機の仕様を入力 | P33: Pp1 | Q33: 37 | T33: kW
E34: 冷水ポンプモータ定格出力 | I34: 遠心冷凍機の仕様を入力 | P34: Pp2 | Q34: 37 | T34: kW
E35: 最大冷却負荷 | I35: 設計時の値を入力（不明の際は空白のまま） | P35: Qc | T35: kW
Q36: =IF(Q$35="",0.8,IF(Q$35=0,0.8,IF(Q$29<Q$35,1,Q$35/Q$29))) -> 0.8 | R36: =IF(R$35="",0.8,IF(R$35=0,0.8,IF(R$29<R$35,1,R$35/R$29))) -> 0.8 | S36: =IF(S$35="",0.8,IF(S$35=0,0.8,IF(S$29<S$35,1,S$35/S$29))) -> 0.8
D42: 設備導入後 | Q42: 後1 | R42: 後2 | S42: 後3
E43: 定格冷却能力 | I43: 遠心冷凍機の仕様を入力 | P43: Φco | T43: kW
E44: 定格冷却消費電力 | I44: 遠心冷凍機の仕様を入力 | P44: Pco | T44: kW
E45: 定格冷却COP | I45: 自動計算 | P45: σco | Q45: =IFERROR(Q43/Q44,"") ->  | R45: =IFERROR(R43/R44,"") ->  | S45: =IFERROR(S43/S44,"") ->  | T45: σco＝Φco／Pco
E46: 冷却塔ファンモータ定格出力 | I46: 遠心冷凍機の仕様を入力 | P46: Pf | T46: kW
E47: 冷却水ポンプモータ定格出力 | I47: 遠心冷凍機の仕様を入力 | P47: Pp1 | T47: kW
E48: 冷水ポンプモータ定格出力 | I48: 遠心冷凍機の仕様を入力 | P48: Pp2 | T48: kW
E49: 最大冷却負荷 | I49: 設計時の値を入力（不明の際は空白のまま） | P49: Qc | T49: kW
Q50: =IF(Q$49="",0.8,IF(Q$49=0,0.8,IF(Q$43<Q$49,1,Q$49/Q$43))) -> 0.8 | R50: =IF(R$49="",0.8,IF(R$49=0,0.8,IF(R$43<R$49,1,R$49/R$43))) -> 0.8 | S50: =IF(S$49="",0.8,IF(S$49=0,0.8,IF(S$43<S$49,1,S$49/S$43))) -> 0.8
C56: 設備導入前年間電力使用量[kWh]
D57: 遠心冷凍機(Ecc) | F57: 補機(Eax) | H57: システム(Ec)
D58: =IFERROR($D$74+$G$74+$J$74,"") -> 0 | F58: =IFERROR($E$74+$H$74+$K$74,"") -> 0 | H58: =IFERROR($F$74+$I$74+$L$74,"") -> 0
D60: 前1 | G60: 前2 | J60: 前3
C61: 月 期間 | D61: Ecc | E61: Eax | F61: Ec | G61: Ecc | H61: Eax | I61: Ec | J61: Ecc | K61: Eax | L61: Ec
C62: 4 | D62: =IFERROR($AX133,"") -> 0 | E62: =IFERROR($AY133,"") -> 0 | F62: =IFERROR($AZ133,"") -> 0 | G62: =IFERROR($BA133,"") ->  | H62: =IFERROR($BB133,"") -> 0 | I62: =IFERROR($BC133,"") -> 0 | J62: =IFERROR($BD133,"") ->  | K62: =IFERROR($BE133,"") -> 0 | L62: =IFERROR($BF133,"") -> 0
C63: 5 | D63: 0 | E63: 0 | F63: 0 | G63: =IFERROR($BA134,"") ->  | H63: =IFERROR($BB134,"") -> 0 | I63: =IFERROR($BC134,"") -> 0 | J63: =IFERROR($BD134,"") ->  | K63: =IFERROR($BE134,"") -> 0 | L63: =IFERROR($BF134,"") -> 0
C64: 6 | D64: 0 | E64: 0 | F64: 0 | H64: 0 | I64: 0 | K64: 0 | L64: 0
C65: 7 | D65: 0 | E65: 0 | F65: 0 | H65: 0 | I65: 0 | K65: 0 | L65: 0
C66: 8 | D66: 0 | E66: 0 | F66: 0 | H66: 0 | I66: 0 | K66: 0 | L66: 0
C67: 9 | D67: 0 | E67: 0 | F67: 0 | H67: 0 | I67: 0 | K67: 0 | L67: 0
C68: 10 | D68: 0 | E68: 0 | F68: 0 | H68: 0 | I68: 0 | K68: 0 | L68: 0
C69: 11 | D69: 0 | E69: 0 | F69: 0 | H69: 0 | I69: 0 | K69: 0 | L69: 0
C70: 12 | D70: 0 | E70: 0 | F70: 0 | H70: 0 | I70: 0 | K70: 0 | L70: 0
C71: 1 | D71: 0 | E71: 0 | F71: 0 | H71: 0 | I71: 0 | K71: 0 | L71: 0
C72: 2 | D72: 0 | E72: 0 | F72: 0 | H72: 0 | I72: 0 | K72: 0 | L72: 0
C73: 3 | D73: 0 | E73: 0 | F73: 0 | H73: 0 | I73: 0 | K73: 0 | L73: 0
C74: 合計 | D74: =SUM($D$62:$D$73) -> 0 | E74: =SUM($E$62:$E$73) -> 0 | F74: =SUM($F$62:$F$73) -> 0 | G74: =SUM($G$62:$G$73) -> 0 | H74: =SUM($H$62:$H$73) -> 0 | I74: =SUM($I$62:$I$73) -> 0 | J74: =SUM($J$62:$J$73) -> 0 | K74: =SUM($K$62:$K$73) -> 0 | L74: =SUM($L$62:$L$73) -> 0
C77: 設備導入後年間電力使用量[kWh]
D78: 遠心冷凍機(Ecc) | F78: 補機(Eax) | H78: システム(Ec)
D79: =IFERROR($D$95+$G$95+$J$95,"") -> 0 | F79: =IFERROR($E$95+$H$95+$K$95,"") -> 0 | H79: =IFERROR($F$95+$I$95+$L$95,"") -> 0
D81: 後1 | G81: 後2 | J81: 後3
C82: 月 期間 | D82: Ecc | E82: Eax | F82: Ec | G82: Ecc | H82: Eax | I82: Ec | J82: Ecc | K82: Eax | L82: Ec
C83: 4 | D83: =IFERROR($BH133,"") ->  | E83: =IFERROR($BI133,"") -> 0 | F83: =IFERROR($BJ133,"") -> 0 | G83: =IFERROR($BK133,"") ->  | H83: =IFERROR($BL133,"") -> 0 | I83: =IFERROR($BM133,"") -> 0 | J83: =IFERROR($BN133,"") ->  | K83: =IFERROR($BO133,"") -> 0 | L83: =IFERROR($BP133,"") -> 0
C84: 5 | E84: 0 | F84: =IFERROR($BJ134,"") -> 0 | G84: =IFERROR($BK134,"") ->  | H84: =IFERROR($BL134,"") -> 0 | I84: =IFERROR($BM134,"") -> 0 | J84: =IFERROR($BN134,"") ->  | K84: =IFERROR($BO134,"") -> 0 | L84: =IFERROR($BP134,"") -> 0
C85: 6 | E85: 0 | F85: 0 | H85: 0 | I85: 0 | K85: 0 | L85: 0
C86: 7 | E86: 0 | F86: 0 | H86: 0 | I86: 0 | K86: 0 | L86: 0
C87: 8 | E87: 0 | F87: 0 | H87: 0 | I87: 0 | K87: 0 | L87: 0
C88: 9 | E88: 0 | F88: 0 | H88: 0 | I88: 0 | K88: 0 | L88: 0
C89: 10 | E89: 0 | F89: 0 | H89: 0 | I89: 0 | K89: 0 | L89: 0
C90: 11 | E90: 0 | F90: 0 | H90: 0 | I90: 0 | K90: 0 | L90: 0
C91: 12 | E91: 0 | F91: 0 | H91: 0 | I91: 0 | K91: 0 | L91: 0
C92: 1 | E92: 0 | F92: 0 | H92: 0 | I92: 0 | K92: 0 | L92: 0
C93: 2 | E93: 0 | F93: 0 | H93: 0 | I93: 0 | K93: 0 | L93: 0
C94: 3 | E94: 0 | F94: 0 | H94: 0 | I94: 0 | K94: 0 | L94: 0
C95: 合計 | D95: =SUM($D$83:$D$94) -> 0 | E95: =SUM($E$83:$E$94) -> 0 | F95: =SUM($F$83:$F$94) -> 0 | G95: =SUM($G$83:$G$94) -> 0 | H95: =SUM($H$83:$H$94) -> 0 | I95: =SUM($I$83:$I$94) -> 0 | J95: =SUM($J$83:$J$94) -> 0 | K95: =SUM($K$83:$K$94) -> 0 | L95: =SUM($L$83:$L$94) -> 0
C98: 作業表1(青色のセルを「24」として抽出）
D99: 時刻
C100: 月 | D100: 0 | E100: 1 | F100: 2 | G100: 3 | H100: 4 | I100: 5 | J100: 6 | K100: 7 | L100: 8 | M100: 9 | N100: 10 | O100: 11 | P100: 12 | Q100: 13 | R100: 14 | S100: 15 | T100: 16 | U100: 17 | V100: 18 | W100: 19 | X100: 20 | Y100: 21 | Z100: 22 | AA100: 23 | AB100: 月
C101: 4 | D101: =CELLCOLOR($D$12) -> -4142 | E101: =CELLCOLOR($E$12) -> -4142 | F101: =CELLCOLOR($F$12) -> -4142 | G101: =CELLCOLOR($G$12) -> -4142 | H101: =CELLCOLOR($H$12) -> -4142 | I101: =CELLCOLOR($I$12) -> -4142 | J101: =CELLCOLOR($J$12) -> -4142 | K101: =CELLCOLOR($K$12) -> -4142 | L101: =CELLCOLOR($L$12) -> -4142 | M101: =CELLCOLOR($M$12) -> -4142 | N101: =CELLCOLOR($N$12) -> -4142 | O101: =CELLCOLOR($O$12) -> -4142 | P101: =CELLCOLOR($P$12) -> -4142 | Q101: =CELLCOLOR($Q$12) -> -4142 | R101: =CELLCOLOR($R$12) -> -4142 | S101: =CELLCOLOR($S$12) -> -4142 | T101: =CELLCOLOR($T$12) -> -4142 | U101: =CELLCOLOR($U$12) -> -4142 | V101: =CELLCOLOR($V$12) -> -4142 | W101: =CELLCOLOR($W$12) -> -4142 | X101: =CELLCOLOR($X$12) -> -4142 | Y101: =CELLCOLOR($Y$12) -> -4142 | Z101: =CELLCOLOR($Z$12) -> -4142 | AA101: =CELLCOLOR($AA$12) -> -4142 | AB101: 4
C102: 5 | D102: =CELLCOLOR($D$13) -> -4142 | E102: =CELLCOLOR($E$13) -> -4142 | F102: =CELLCOLOR($F$13) -> -4142 | G102: =CELLCOLOR($G$13) -> -4142 | H102: =CELLCOLOR($H$13) -> -4142 | I102: =CELLCOLOR($I$13) -> -4142 | J102: =CELLCOLOR($J$13) -> -4142 | K102: =CELLCOLOR($K$13) -> -4142 | L102: =CELLCOLOR($L$13) -> -4142 | M102: =CELLCOLOR($M$13) -> -4142 | N102: =CELLCOLOR($N$13) -> -4142 | O102: =CELLCOLOR($O$13) -> -4142 | P102: =CELLCOLOR($P$13) -> -4142 | Q102: =CELLCOLOR($Q$13) -> -4142 | R102: =CELLCOLOR($R$13) -> -4142 | S102: =CELLCOLOR($S$13) -> -4142 | T102: =CELLCOLOR($T$13) -> -4142 | U102: =CELLCOLOR($U$13) -> -4142 | V102: =CELLCOLOR($V$13) -> -4142 | W102: =CELLCOLOR($W$13) -> -4142 | X102: =CELLCOLOR($X$13) -> -4142 | Y102: =CELLCOLOR($Y$13) -> -4142 | Z102: =CELLCOLOR($Z$13) -> -4142 | AA102: =CELLCOLOR($AA$13) -> -4142 | AB102: 5
C103: 6 | D103: =CELLCOLOR($D$14) -> -4142 | E103: =CELLCOLOR($E$14) -> -4142 | F103: =CELLCOLOR($F$14) -> -4142 | G103: =CELLCOLOR($G$14) -> -4142 | H103: =CELLCOLOR($H$14) -> -4142 | I103: =CELLCOLOR($I$14) -> -4142 | J103: =CELLCOLOR($J$14) -> -4142 | K103: =CELLCOLOR($K$14) -> -4142 | L103: =CELLCOLOR($L$14) -> -4142 | M103: =CELLCOLOR($M$14) -> -4142 | N103: =CELLCOLOR($N$14) -> -4142 | O103: =CELLCOLOR($O$14) -> -4142 | P103: =CELLCOLOR($P$14) -> -4142 | Q103: =CELLCOLOR($Q$14) -> -4142 | R103: =CELLCOLOR($R$14) -> -4142 | S103: =CELLCOLOR($S$14) -> -4142 | T103: =CELLCOLOR($T$14) -> -4142 | U103: =CELLCOLOR($U$14) -> -4142 | V103: =CELLCOLOR($V$14) -> -4142 | W103: =CELLCOLOR($W$14) -> -4142 | X103: =CELLCOLOR($X$14) -> -4142 | Y103: =CELLCOLOR($Y$14) -> -4142 | Z103: =CELLCOLOR($Z$14) -> -4142 | AA103: =CELLCOLOR($AA$14) -> -4142 | AB103: 6
C104: 7 | D104: =CELLCOLOR($D$15) -> -4142 | E104: =CELLCOLOR($E$15) -> -4142 | F104: =CELLCOLOR($F$15) -> -4142 | G104: =CELLCOLOR($G$15) -> -4142 | H104: =CELLCOLOR($H$15) -> -4142 | I104: =CELLCOLOR($I$15) -> -4142 | J104: =CELLCOLOR($J$15) -> -4142 | K104: =CELLCOLOR($K$15) -> -4142 | L104: =CELLCOLOR($L$15) -> -4142 | M104: =CELLCOLOR($M$15) -> -4142 | N104: =CELLCOLOR($N$15) -> -4142 | O104: =CELLCOLOR($O$15) -> -4142 | P104: =CELLCOLOR($P$15) -> -4142 | Q104: =CELLCOLOR($Q$15) -> -4142 | R104: =CELLCOLOR($R$15) -> -4142 | S104: =CELLCOLOR($S$15) -> -4142 | T104: =CELLCOLOR($T$15) -> -4142 | U104: =CELLCOLOR($U$15) -> -4142 | V104: =CELLCOLOR($V$15) -> -4142 | W104: =CELLCOLOR($W$15) -> -4142 | X104: =CELLCOLOR($X$15) -> -4142 | Y104: =CELLCOLOR($Y$15) -> -4142 | Z104: =CELLCOLOR($Z$15) -> -4142 | AA104: =CELLCOLOR($AA$15) -> -4142 | AB104: 7
C105: 8 | D105: =CELLCOLOR($D$16) -> -4142 | E105: =CELLCOLOR($E$16) -> -4142 | F105: =CELLCOLOR($F$16) -> -4142 | G105: =CELLCOLOR($G$16) -> -4142 | H105: =CELLCOLOR($H$16) -> -4142 | I105: =CELLCOLOR($I$16) -> -4142 | J105: =CELLCOLOR($J$16) -> -4142 | K105: =CELLCOLOR($K$16) -> -4142 | L105: =CELLCOLOR($L$16) -> -4142 | M105: =CELLCOLOR($M$16) -> -4142 | N105: =CELLCOLOR($N$16) -> -4142 | O105: =CELLCOLOR($O$16) -> -4142 | P105: =CELLCOLOR($P$16) -> -4142 | Q105: =CELLCOLOR($Q$16) -> -4142 | R105: =CELLCOLOR($R$16) -> -4142 | S105: =CELLCOLOR($S$16) -> -4142 | T105: =CELLCOLOR($T$16) -> -4142 | U105: =CELLCOLOR($U$16) -> -4142 | V105: =CELLCOLOR($V$16) -> -4142 | W105: =CELLCOLOR($W$16) -> -4142 | X105: =CELLCOLOR($X$16) -> -4142 | Y105: =CELLCOLOR($Y$16) -> -4142 | Z105: =CELLCOLOR($Z$16) -> -4142 | AA105: =CELLCOLOR($AA$16) -> -4142 | AB105: 8
C106: 9 | D106: =CELLCOLOR($D$17) -> -4142 | E106: =CELLCOLOR($E$17) -> -4142 | F106: =CELLCOLOR($F$17) -> -4142 | G106: =CELLCOLOR($G$17) -> -4142 | H106: =CELLCOLOR($H$17) -> -4142 | I106: =CELLCOLOR($I$17) -> -4142 | J106: =CELLCOLOR($J$17) -> -4142 | K106: =CELLCOLOR($K$17) -> -4142 | L106: =CELLCOLOR($L$17) -> -4142 | M106: =CELLCOLOR($M$17) -> -4142 | N106: =CELLCOLOR($N$17) -> -4142 | O106: =CELLCOLOR($O$17) -> -4142 | P106: =CELLCOLOR($P$17) -> -4142 | Q106: =CELLCOLOR($Q$17) -> -4142 | R106: =CELLCOLOR($R$17) -> -4142 | S106: =CELLCOLOR($S$17) -> -4142 | T106: =CELLCOLOR($T$17) -> -4142 | U106: =CELLCOLOR($U$17) -> -4142 | V106: =CELLCOLOR($V$17) -> -4142 | W106: =CELLCOLOR($W$17) -> -4142 | X106: =CELLCOLOR($X$17) -> -4142 | Y106: =CELLCOLOR($Y$17) -> -4142 | Z106: =CELLCOLOR($Z$17) -> -4142 | AA106: =CELLCOLOR($AA$17) -> -4142 | AB106: 9
C107: 10 | D107: =CELLCOLOR($D$18) -> -4142 | E107: =CELLCOLOR($E$18) -> -4142 | F107: =CELLCOLOR($F$18) -> -4142 | G107: =CELLCOLOR($G$18) -> -4142 | H107: =CELLCOLOR($H$18) -> -4142 | I107: =CELLCOLOR($I$18) -> -4142 | J107: =CELLCOLOR($J$18) -> -4142 | K107: =CELLCOLOR($K$18) -> -4142 | L107: =CELLCOLOR($L$18) -> -4142 | M107: =CELLCOLOR($M$18) -> -4142 | N107: =CELLCOLOR($N$18) -> -4142 | O107: =CELLCOLOR($O$18) -> -4142 | P107: =CELLCOLOR($P$18) -> -4142 | Q107: =CELLCOLOR($Q$18) -> -4142 | R107: =CELLCOLOR($R$18) -> -4142 | S107: =CELLCOLOR($S$18) -> -4142 | T107: =CELLCOLOR($T$18) -> -4142 | U107: =CELLCOLOR($U$18) -> -4142 | V107: =CELLCOLOR($V$18) -> -4142 | W107: =CELLCOLOR($W$18) -> -4142 | X107: =CELLCOLOR($X$18) -> -4142 | Y107: =CELLCOLOR($Y$18) -> -4142 | Z107: =CELLCOLOR($Z$18) -> -4142 | AA107: =CELLCOLOR($AA$18) -> -4142 | AB107: 10
C108: 11 | D108: =CELLCOLOR($D$19) -> -4142 | E108: =CELLCOLOR($E$19) -> -4142 | F108: =CELLCOLOR($F$19) -> -4142 | G108: =CELLCOLOR($G$19) -> -4142 | H108: =CELLCOLOR($H$19) -> -4142 | I108: =CELLCOLOR($I$19) -> -4142 | J108: =CELLCOLOR($J$19) -> -4142 | K108: =CELLCOLOR($K$19) -> -4142 | L108: =CELLCOLOR($L$19) -> -4142 | M108: =CELLCOLOR($M$19) -> -4142 | N108: =CELLCOLOR($N$19) -> -4142 | O108: =CELLCOLOR($O$19) -> -4142 | P108: =CELLCOLOR($P$19) -> -4142 | Q108: =CELLCOLOR($Q$19) -> -4142 | R108: =CELLCOLOR($R$19) -> -4142 | S108: =CELLCOLOR($S$19) -> -4142 | T108: =CELLCOLOR($T$19) -> -4142 | U108: =CELLCOLOR($U$19) -> -4142 | V108: =CELLCOLOR($V$19) -> -4142 | W108: =CELLCOLOR($W$19) -> -4142 | X108: =CELLCOLOR($X$19) -> -4142 | Y108: =CELLCOLOR($Y$19) -> -4142 | Z108: =CELLCOLOR($Z$19) -> -4142 | AA108: =CELLCOLOR($AA$19) -> -4142 | AB108: 11
C109: 12 | D109: =CELLCOLOR($D$20) -> -4142 | E109: =CELLCOLOR($E$20) -> -4142 | F109: =CELLCOLOR($F$20) -> -4142 | G109: =CELLCOLOR($G$20) -> -4142 | H109: =CELLCOLOR($H$20) -> -4142 | I109: =CELLCOLOR($I$20) -> -4142 | J109: =CELLCOLOR($J$20) -> -4142 | K109: =CELLCOLOR($K$20) -> -4142 | L109: =CELLCOLOR($L$20) -> -4142 | M109: =CELLCOLOR($M$20) -> -4142 | N109: =CELLCOLOR($N$20) -> -4142 | O109: =CELLCOLOR($O$20) -> -4142 | P109: =CELLCOLOR($P$20) -> -4142 | Q109: =CELLCOLOR($Q$20) -> -4142 | R109: =CELLCOLOR($R$20) -> -4142 | S109: =CELLCOLOR($S$20) -> -4142 | T109: =CELLCOLOR($T$20) -> -4142 | U109: =CELLCOLOR($U$20) -> -4142 | V109: =CELLCOLOR($V$20) -> -4142 | W109: =CELLCOLOR($W$20) -> -4142 | X109: =CELLCOLOR($X$20) -> -4142 | Y109: =CELLCOLOR($Y$20) -> -4142 | Z109: =CELLCOLOR($Z$20) -> -4142 | AA109: =CELLCOLOR($AA$20) -> -4142 | AB109: 12
C110: 1 | D110: =CELLCOLOR($D$21) -> -4142 | E110: =CELLCOLOR($E$21) -> -4142 | F110: =CELLCOLOR($F$21) -> -4142 | G110: =CELLCOLOR($G$21) -> -4142 | H110: =CELLCOLOR($H$21) -> -4142 | I110: =CELLCOLOR($I$21) -> -4142 | J110: =CELLCOLOR($J$21) -> -4142 | K110: =CELLCOLOR($K$21) -> -4142 | L110: =CELLCOLOR($L$21) -> -4142 | M110: =CELLCOLOR($M$21) -> -4142 | N110: =CELLCOLOR($N$21) -> -4142 | O110: =CELLCOLOR($O$21) -> -4142 | P110: =CELLCOLOR($P$21) -> -4142 | Q110: =CELLCOLOR($Q$21) -> -4142 | R110: =CELLCOLOR($R$21) -> -4142 | S110: =CELLCOLOR($S$21) -> -4142 | T110: =CELLCOLOR($T$21) -> -4142 | U110: =CELLCOLOR($U$21) -> -4142 | V110: =CELLCOLOR($V$21) -> -4142 | W110: =CELLCOLOR($W$21) -> -4142 | X110: =CELLCOLOR($X$21) -> -4142 | Y110: =CELLCOLOR($Y$21) -> -4142 | Z110: =CELLCOLOR($Z$21) -> -4142 | AA110: =CELLCOLOR($AA$21) -> -4142 | AB110: 1
C111: 2 | D111: =CELLCOLOR($D$22) -> -4142 | E111: =CELLCOLOR($E$22) -> -4142 | F111: =CELLCOLOR($F$22) -> -4142 | G111: =CELLCOLOR($G$22) -> -4142 | H111: =CELLCOLOR($H$22) -> -4142 | I111: =CELLCOLOR($I$22) -> -4142 | J111: =CELLCOLOR($J$22) -> -4142 | K111: =CELLCOLOR($K$22) -> -4142 | L111: =CELLCOLOR($L$22) -> -4142 | M111: =CELLCOLOR($M$22) -> -4142 | N111: =CELLCOLOR($N$22) -> -4142 | O111: =CELLCOLOR($O$22) -> -4142 | P111: =CELLCOLOR($P$22) -> -4142 | Q111: =CELLCOLOR($Q$22) -> -4142 | R111: =CELLCOLOR($R$22) -> -4142 | S111: =CELLCOLOR($S$22) -> -4142 | T111: =CELLCOLOR($T$22) -> -4142 | U111: =CELLCOLOR($U$22) -> -4142 | V111: =CELLCOLOR($V$22) -> -4142 | W111: =CELLCOLOR($W$22) -> -4142 | X111: =CELLCOLOR($X$22) -> -4142 | Y111: =CELLCOLOR($Y$22) -> -4142 | Z111: =CELLCOLOR($Z$22) -> -4142 | AA111: =CELLCOLOR($AA$22) -> -4142 | AB111: 2
C112: 3 | D112: =CELLCOLOR($D$23) -> -4142 | E112: =CELLCOLOR($E$23) -> -4142 | F112: =CELLCOLOR($F$23) -> -4142 | G112: =CELLCOLOR($G$23) -> -4142 | H112: =CELLCOLOR($H$23) -> -4142 | I112: =CELLCOLOR($I$23) -> -4142 | J112: =CELLCOLOR($J$23) -> -4142 | K112: =CELLCOLOR($K$23) -> -4142 | L112: =CELLCOLOR($L$23) -> -4142 | M112: =CELLCOLOR($M$23) -> -4142 | N112: =CELLCOLOR($N$23) -> -4142 | O112: =CELLCOLOR($O$23) -> -4142 | P112: =CELLCOLOR($P$23) -> -4142 | Q112: =CELLCOLOR($Q$23) -> -4142 | R112: =CELLCOLOR($R$23) -> -4142 | S112: =CELLCOLOR($S$23) -> -4142 | T112: =CELLCOLOR($T$23) -> -4142 | U112: =CELLCOLOR($U$23) -> -4142 | V112: =CELLCOLOR($V$23) -> -4142 | W112: =CELLCOLOR($W$23) -> -4142 | X112: =CELLCOLOR($X$23) -> -4142 | Y112: =CELLCOLOR($Y$23) -> -4142 | Z112: =CELLCOLOR($Z$23) -> -4142 | AA112: =CELLCOLOR($AA$23) -> -4142 | AB112: 3
C114: 作業表2-1(冷却)●月▲時の平均外気湿球温度(四捨五入で表示）
D115: 時刻
C116: 月 | D116: 0 | E116: 1 | F116: 2 | G116: 3 | H116: 4 | I116: 5 | J116: 6 | K116: 7 | L116: 8 | M116: 9 | N116: 10 | O116: 11 | P116: 12 | Q116: 13 | R116: 14 | S116: 15 | T116: 16 | U116: 17 | V116: 18 | W116: 19 | X116: 20 | Y116: 21 | Z116: 22 | AA116: 23 | AB116: 月
C117: 4 | D117: =IF($D$101=24,ROUND($D$12,0),"")&"" ->  | E117: =IF($E$101=24,ROUND($E$12,0),"")&"" ->  | F117: =IF($F$101=24,ROUND($F$12,0),"")&"" ->  | G117: =IF($G$101=24,ROUND($G$12,0),"")&"" ->  | H117: =IF($H$101=24,ROUND($H$12,0),"")&"" ->  | I117: =IF($I$101=24,ROUND($I$12,0),"")&"" ->  | J117: =IF($J$101=24,ROUND($J$12,0),"")&"" ->  | K117: =IF($K$101=24,ROUND($K$12,0),"")&"" ->  | L117: =IF($L$101=24,ROUND($L$12,0),"")&"" ->  | M117: =IF($M$101=24,ROUND($M$12,0),"")&"" ->  | N117: =IF($N$101=24,ROUND($N$12,0),"")&"" ->  | O117: =IF($O$101=24,ROUND($O$12,0),"")&"" ->  | P117: =IF($P$101=24,ROUND($P$12,0),"")&"" ->  | Q117: =IF($Q$101=24,ROUND($Q$12,0),"")&"" ->  | R117: =IF($R$101=24,ROUND($R$12,0),"")&"" ->  | S117: =IF($S$101=24,ROUND($S$12,0),"")&"" ->  | T117: =IF($T$101=24,ROUND($T$12,0),"")&"" ->  | U117: =IF($U$101=24,ROUND($U$12,0),"")&"" ->  | V117: =IF($V$101=24,ROUND($V$12,0),"")&"" ->  | W117: =IF($W$101=24,ROUND($W$12,0),"")&"" ->  | X117: =IF($X$101=24,ROUND($X$12,0),"")&"" ->  | Y117: =IF($Y$101=24,ROUND($Y$12,0),"")&"" ->  | Z117: =IF($Z$101=24,ROUND($Z$12,0),"")&"" ->  | AA117: =IF($AA$101=24,ROUND($AA$12,0),"")&"" ->  | AB117: 4
C118: 5 | D118: =IF($D$102=24,ROUND($D$13,0),"")&"" ->  | E118: =IF($E$102=24,ROUND($E$13,0),"")&"" ->  | F118: =IF($F$102=24,ROUND($F$13,0),"")&"" ->  | G118: =IF($G$102=24,ROUND($G$13,0),"")&"" ->  | H118: =IF($H$102=24,ROUND($H$13,0),"")&"" ->  | I118: =IF($I$102=24,ROUND($I$13,0),"")&"" ->  | J118: =IF($J$102=24,ROUND($J$13,0),"")&"" ->  | K118: =IF($K$102=24,ROUND($K$13,0),"")&"" ->  | L118: =IF($L$102=24,ROUND($L$13,0),"")&"" ->  | M118: =IF($M$102=24,ROUND($M$13,0),"")&"" ->  | N118: =IF($N$102=24,ROUND($N$13,0),"")&"" ->  | O118: =IF($O$102=24,ROUND($O$13,0),"")&"" ->  | P118: =IF($P$102=24,ROUND($P$13,0),"")&"" ->  | Q118: =IF($Q$102=24,ROUND($Q$13,0),"")&"" ->  | R118: =IF($R$102=24,ROUND($R$13,0),"")&"" ->  | S118: =IF($S$102=24,ROUND($S$13,0),"")&"" ->  | T118: =IF($T$102=24,ROUND($T$13,0),"")&"" ->  | U118: =IF($U$102=24,ROUND($U$13,0),"")&"" ->  | V118: =IF($V$102=24,ROUND($V$13,0),"")&"" ->  | W118: =IF($W$102=24,ROUND($W$13,0),"")&"" ->  | X118: =IF($X$102=24,ROUND($X$13,0),"")&"" ->  | Y118: =IF($Y$102=24,ROUND($Y$13,0),"")&"" ->  | Z118: =IF($Z$102=24,ROUND($Z$13,0),"")&"" ->  | AA118: =IF($AA$102=24,ROUND($AA$13,0),"")&"" ->  | AB118: 5
C119: 6 | D119: =IF($D$103=24,ROUND($D$14,0),"")&"" ->  | E119: =IF($E$103=24,ROUND($E$14,0),"")&"" ->  | F119: =IF($F$103=24,ROUND($F$14,0),"")&"" ->  | G119: =IF($G$103=24,ROUND($G$14,0),"")&"" ->  | H119: =IF($H$103=24,ROUND($H$14,0),"")&"" ->  | I119: =IF($I$103=24,ROUND($I$14,0),"")&"" ->  | J119: =IF($J$103=24,ROUND($J$14,0),"")&"" ->  | K119: =IF($K$103=24,ROUND($K$14,0),"")&"" ->  | L119: =IF($L$103=24,ROUND($L$14,0),"")&"" ->  | M119: =IF($M$103=24,ROUND($M$14,0),"")&"" ->  | N119: =IF($N$103=24,ROUND($N$14,0),"")&"" ->  | O119: =IF($O$103=24,ROUND($O$14,0),"")&"" ->  | P119: =IF($P$103=24,ROUND($P$14,0),"")&"" ->  | Q119: =IF($Q$103=24,ROUND($Q$14,0),"")&"" ->  | R119: =IF($R$103=24,ROUND($R$14,0),"")&"" ->  | S119: =IF($S$103=24,ROUND($S$14,0),"")&"" ->  | T119: =IF($T$103=24,ROUND($T$14,0),"")&"" ->  | U119: =IF($U$103=24,ROUND($U$14,0),"")&"" ->  | V119: =IF($V$103=24,ROUND($V$14,0),"")&"" ->  | W119: =IF($W$103=24,ROUND($W$14,0),"")&"" ->  | X119: =IF($X$103=24,ROUND($X$14,0),"")&"" ->  | Y119: =IF($Y$103=24,ROUND($Y$14,0),"")&"" ->  | Z119: =IF($Z$103=24,ROUND($Z$14,0),"")&"" ->  | AA119: =IF($AA$103=24,ROUND($AA$14,0),"")&"" ->  | AB119: 6
C120: 7 | D120: =IF($D$104=24,ROUND($D$15,0),"")&"" ->  | E120: =IF($E$104=24,ROUND($E$15,0),"")&"" ->  | F120: =IF($F$104=24,ROUND($F$15,0),"")&"" ->  | G120: =IF($G$104=24,ROUND($G$15,0),"")&"" ->  | H120: =IF($H$104=24,ROUND($H$15,0),"")&"" ->  | I120: =IF($I$104=24,ROUND($I$15,0),"")&"" ->  | J120: =IF($J$104=24,ROUND($J$15,0),"")&"" ->  | K120: =IF($K$104=24,ROUND($K$15,0),"")&"" ->  | L120: =IF($L$104=24,ROUND($L$15,0),"")&"" ->  | M120: =IF($M$104=24,ROUND($M$15,0),"")&"" ->  | N120: =IF($N$104=24,ROUND($N$15,0),"")&"" ->  | O120: =IF($O$104=24,ROUND($O$15,0),"")&"" ->  | P120: =IF($P$104=24,ROUND($P$15,0),"")&"" ->  | Q120: =IF($Q$104=24,ROUND($Q$15,0),"")&"" ->  | R120: =IF($R$104=24,ROUND($R$15,0),"")&"" ->  | S120: =IF($S$104=24,ROUND($S$15,0),"")&"" ->  | T120: =IF($T$104=24,ROUND($T$15,0),"")&"" ->  | U120: =IF($U$104=24,ROUND($U$15,0),"")&"" ->  | V120: =IF($V$104=24,ROUND($V$15,0),"")&"" ->  | W120: =IF($W$104=24,ROUND($W$15,0),"")&"" ->  | X120: =IF($X$104=24,ROUND($X$15,0),"")&"" ->  | Y120: =IF($Y$104=24,ROUND($Y$15,0),"")&"" ->  | Z120: =IF($Z$104=24,ROUND($Z$15,0),"")&"" ->  | AA120: =IF($AA$104=24,ROUND($AA$15,0),"")&"" ->  | AB120: 7
C121: 8 | D121: =IF($D$105=24,ROUND($D$16,0),"")&"" ->  | E121: =IF($E$105=24,ROUND($E$16,0),"")&"" ->  | F121: =IF($F$105=24,ROUND($F$16,0),"")&"" ->  | G121: =IF($G$105=24,ROUND($G$16,0),"")&"" ->  | H121: =IF($H$105=24,ROUND($H$16,0),"")&"" ->  | I121: =IF($I$105=24,ROUND($I$16,0),"")&"" ->  | J121: =IF($J$105=24,ROUND($J$16,0),"")&"" ->  | K121: =IF($K$105=24,ROUND($K$16,0),"")&"" ->  | L121: =IF($L$105=24,ROUND($L$16,0),"")&"" ->  | M121: =IF($M$105=24,ROUND($M$16,0),"")&"" ->  | N121: =IF($N$105=24,ROUND($N$16,0),"")&"" ->  | O121: =IF($O$105=24,ROUND($O$16,0),"")&"" ->  | P121: =IF($P$105=24,ROUND($P$16,0),"")&"" ->  | Q121: =IF($Q$105=24,ROUND($Q$16,0),"")&"" ->  | R121: =IF($R$105=24,ROUND($R$16,0),"")&"" ->  | S121: =IF($S$105=24,ROUND($S$16,0),"")&"" ->  | T121: =IF($T$105=24,ROUND($T$16,0),"")&"" ->  | U121: =IF($U$105=24,ROUND($U$16,0),"")&"" ->  | V121: =IF($V$105=24,ROUND($V$16,0),"")&"" ->  | W121: =IF($W$105=24,ROUND($W$16,0),"")&"" ->  | X121: =IF($X$105=24,ROUND($X$16,0),"")&"" ->  | Y121: =IF($Y$105=24,ROUND($Y$16,0),"")&"" ->  | Z121: =IF($Z$105=24,ROUND($Z$16,0),"")&"" ->  | AA121: =IF($AA$105=24,ROUND($AA$16,0),"")&"" ->  | AB121: 8
C122: 9 | D122: =IF($D$106=24,ROUND($D$17,0),"")&"" ->  | E122: =IF($E$106=24,ROUND($E$17,0),"")&"" ->  | F122: =IF($F$106=24,ROUND($F$17,0),"")&"" ->  | G122: =IF($G$106=24,ROUND($G$17,0),"")&"" ->  | H122: =IF($H$106=24,ROUND($H$17,0),"")&"" ->  | I122: =IF($I$106=24,ROUND($I$17,0),"")&"" ->  | J122: =IF($J$106=24,ROUND($J$17,0),"")&"" ->  | K122: =IF($K$106=24,ROUND($K$17,0),"")&"" ->  | L122: =IF($L$106=24,ROUND($L$17,0),"")&"" ->  | M122: =IF($M$106=24,ROUND($M$17,0),"")&"" ->  | N122: =IF($N$106=24,ROUND($N$17,0),"")&"" ->  | O122: =IF($O$106=24,ROUND($O$17,0),"")&"" ->  | P122: =IF($P$106=24,ROUND($P$17,0),"")&"" ->  | Q122: =IF($Q$106=24,ROUND($Q$17,0),"")&"" ->  | R122: =IF($R$106=24,ROUND($R$17,0),"")&"" ->  | S122: =IF($S$106=24,ROUND($S$17,0),"")&"" ->  | T122: =IF($T$106=24,ROUND($T$17,0),"")&"" ->  | U122: =IF($U$106=24,ROUND($U$17,0),"")&"" ->  | V122: =IF($V$106=24,ROUND($V$17,0),"")&"" ->  | W122: =IF($W$106=24,ROUND($W$17,0),"")&"" ->  | X122: =IF($X$106=24,ROUND($X$17,0),"")&"" ->  | Y122: =IF($Y$106=24,ROUND($Y$17,0),"")&"" ->  | Z122: =IF($Z$106=24,ROUND($Z$17,0),"")&"" ->  | AA122: =IF($AA$106=24,ROUND($AA$17,0),"")&"" ->  | AB122: 9
C123: 10 | D123: =IF($D$107=24,ROUND($D$18,0),"")&"" ->  | E123: =IF($E$107=24,ROUND($E$18,0),"")&"" ->  | F123: =IF($F$107=24,ROUND($F$18,0),"")&"" ->  | G123: =IF($G$107=24,ROUND($G$18,0),"")&"" ->  | H123: =IF($H$107=24,ROUND($H$18,0),"")&"" ->  | I123: =IF($I$107=24,ROUND($I$18,0),"")&"" ->  | J123: =IF($J$107=24,ROUND($J$18,0),"")&"" ->  | K123: =IF($K$107=24,ROUND($K$18,0),"")&"" ->  | L123: =IF($L$107=24,ROUND($L$18,0),"")&"" ->  | M123: =IF($M$107=24,ROUND($M$18,0),"")&"" ->  | N123: =IF($N$107=24,ROUND($N$18,0),"")&"" ->  | O123: =IF($O$107=24,ROUND($O$18,0),"")&"" ->  | P123: =IF($P$107=24,ROUND($P$18,0),"")&"" ->  | Q123: =IF($Q$107=24,ROUND($Q$18,0),"")&"" ->  | R123: =IF($R$107=24,ROUND($R$18,0),"")&"" ->  | S123: =IF($S$107=24,ROUND($S$18,0),"")&"" ->  | T123: =IF($T$107=24,ROUND($T$18,0),"")&"" ->  | U123: =IF($U$107=24,ROUND($U$18,0),"")&"" ->  | V123: =IF($V$107=24,ROUND($V$18,0),"")&"" ->  | W123: =IF($W$107=24,ROUND($W$18,0),"")&"" ->  | X123: =IF($X$107=24,ROUND($X$18,0),"")&"" ->  | Y123: =IF($Y$107=24,ROUND($Y$18,0),"")&"" ->  | Z123: =IF($Z$107=24,ROUND($Z$18,0),"")&"" ->  | AA123: =IF($AA$107=24,ROUND($AA$18,0),"")&"" ->  | AB123: 10
C124: 11 | D124: =IF($D$108=24,ROUND($D$19,0),"")&"" ->  | E124: =IF($E$108=24,ROUND($E$19,0),"")&"" ->  | F124: =IF($F$108=24,ROUND($F$19,0),"")&"" ->  | G124: =IF($G$108=24,ROUND($G$19,0),"")&"" ->  | H124: =IF($H$108=24,ROUND($H$19,0),"")&"" ->  | I124: =IF($I$108=24,ROUND($I$19,0),"")&"" ->  | J124: =IF($J$108=24,ROUND($J$19,0),"")&"" ->  | K124: =IF($K$108=24,ROUND($K$19,0),"")&"" ->  | L124: =IF($L$108=24,ROUND($L$19,0),"")&"" ->  | M124: =IF($M$108=24,ROUND($M$19,0),"")&"" ->  | N124: =IF($N$108=24,ROUND($N$19,0),"")&"" ->  | O124: =IF($O$108=24,ROUND($O$19,0),"")&"" ->  | P124: =IF($P$108=24,ROUND($P$19,0),"")&"" ->  | Q124: =IF($Q$108=24,ROUND($Q$19,0),"")&"" ->  | R124: =IF($R$108=24,ROUND($R$19,0),"")&"" ->  | S124: =IF($S$108=24,ROUND($S$19,0),"")&"" ->  | T124: =IF($T$108=24,ROUND($T$19,0),"")&"" ->  | U124: =IF($U$108=24,ROUND($U$19,0),"")&"" ->  | V124: =IF($V$108=24,ROUND($V$19,0),"")&"" ->  | W124: =IF($W$108=24,ROUND($W$19,0),"")&"" ->  | X124: =IF($X$108=24,ROUND($X$19,0),"")&"" ->  | Y124: =IF($Y$108=24,ROUND($Y$19,0),"")&"" ->  | Z124: =IF($Z$108=24,ROUND($Z$19,0),"")&"" ->  | AA124: =IF($AA$108=24,ROUND($AA$19,0),"")&"" ->  | AB124: 11
C125: 12 | D125: =IF($D$109=24,ROUND($D$20,0),"")&"" ->  | E125: =IF($E$109=24,ROUND($E$20,0),"")&"" ->  | F125: =IF($F$109=24,ROUND($F$20,0),"")&"" ->  | G125: =IF($G$109=24,ROUND($G$20,0),"")&"" ->  | H125: =IF($H$109=24,ROUND($H$20,0),"")&"" ->  | I125: =IF($I$109=24,ROUND($I$20,0),"")&"" ->  | J125: =IF($J$109=24,ROUND($J$20,0),"")&"" ->  | K125: =IF($K$109=24,ROUND($K$20,0),"")&"" ->  | L125: =IF($L$109=24,ROUND($L$20,0),"")&"" ->  | M125: =IF($M$109=24,ROUND($M$20,0),"")&"" ->  | N125: =IF($N$109=24,ROUND($N$20,0),"")&"" ->  | O125: =IF($O$109=24,ROUND($O$20,0),"")&"" ->  | P125: =IF($P$109=24,ROUND($P$20,0),"")&"" ->  | Q125: =IF($Q$109=24,ROUND($Q$20,0),"")&"" ->  | R125: =IF($R$109=24,ROUND($R$20,0),"")&"" ->  | S125: =IF($S$109=24,ROUND($S$20,0),"")&"" ->  | T125: =IF($T$109=24,ROUND($T$20,0),"")&"" ->  | U125: =IF($U$109=24,ROUND($U$20,0),"")&"" ->  | V125: =IF($V$109=24,ROUND($V$20,0),"")&"" ->  | W125: =IF($W$109=24,ROUND($W$20,0),"")&"" ->  | X125: =IF($X$109=24,ROUND($X$20,0),"")&"" ->  | Y125: =IF($Y$109=24,ROUND($Y$20,0),"")&"" ->  | Z125: =IF($Z$109=24,ROUND($Z$20,0),"")&"" ->  | AA125: =IF($AA$109=24,ROUND($AA$20,0),"")&"" ->  | AB125: 12
C126: 1 | D126: =IF($D$110=24,ROUND($D$21,0),"")&"" ->  | E126: =IF($E$110=24,ROUND($E$21,0),"")&"" ->  | F126: =IF($F$110=24,ROUND($F$21,0),"")&"" ->  | G126: =IF($G$110=24,ROUND($G$21,0),"")&"" ->  | H126: =IF($H$110=24,ROUND($H$21,0),"")&"" ->  | I126: =IF($I$110=24,ROUND($I$21,0),"")&"" ->  | J126: =IF($J$110=24,ROUND($J$21,0),"")&"" ->  | K126: =IF($K$110=24,ROUND($K$21,0),"")&"" ->  | L126: =IF($L$110=24,ROUND($L$21,0),"")&"" ->  | M126: =IF($M$110=24,ROUND($M$21,0),"")&"" ->  | N126: =IF($N$110=24,ROUND($N$21,0),"")&"" ->  | O126: =IF($O$110=24,ROUND($O$21,0),"")&"" ->  | P126: =IF($P$110=24,ROUND($P$21,0),"")&"" ->  | Q126: =IF($Q$110=24,ROUND($Q$21,0),"")&"" ->  | R126: =IF($R$110=24,ROUND($R$21,0),"")&"" ->  | S126: =IF($S$110=24,ROUND($S$21,0),"")&"" ->  | T126: =IF($T$110=24,ROUND($T$21,0),"")&"" ->  | U126: =IF($U$110=24,ROUND($U$21,0),"")&"" ->  | V126: =IF($V$110=24,ROUND($V$21,0),"")&"" ->  | W126: =IF($W$110=24,ROUND($W$21,0),"")&"" ->  | X126: =IF($X$110=24,ROUND($X$21,0),"")&"" ->  | Y126: =IF($Y$110=24,ROUND($Y$21,0),"")&"" ->  | Z126: =IF($Z$110=24,ROUND($Z$21,0),"")&"" ->  | AA126: =IF($AA$110=24,ROUND($AA$21,0),"")&"" ->  | AB126: 1
C127: 2 | D127: =IF($D$111=24,ROUND($D$22,0),"")&"" ->  | E127: =IF($E$111=24,ROUND($E$22,0),"")&"" ->  | F127: =IF($F$111=24,ROUND($F$22,0),"")&"" ->  | G127: =IF($G$111=24,ROUND($G$22,0),"")&"" ->  | H127: =IF($H$111=24,ROUND($H$22,0),"")&"" ->  | I127: =IF($I$111=24,ROUND($I$22,0),"")&"" ->  | J127: =IF($J$111=24,ROUND($J$22,0),"")&"" ->  | K127: =IF($K$111=24,ROUND($K$22,0),"")&"" ->  | L127: =IF($L$111=24,ROUND($L$22,0),"")&"" ->  | M127: =IF($M$111=24,ROUND($M$22,0),"")&"" ->  | N127: =IF($N$111=24,ROUND($N$22,0),"")&"" ->  | O127: =IF($O$111=24,ROUND($O$22,0),"")&"" ->  | P127: =IF($P$111=24,ROUND($P$22,0),"")&"" ->  | Q127: =IF($Q$111=24,ROUND($Q$22,0),"")&"" ->  | R127: =IF($R$111=24,ROUND($R$22,0),"")&"" ->  | S127: =IF($S$111=24,ROUND($S$22,0),"")&"" ->  | T127: =IF($T$111=24,ROUND($T$22,0),"")&"" ->  | U127: =IF($U$111=24,ROUND($U$22,0),"")&"" ->  | V127: =IF($V$111=24,ROUND($V$22,0),"")&"" ->  | W127: =IF($W$111=24,ROUND($W$22,0),"")&"" ->  | X127: =IF($X$111=24,ROUND($X$22,0),"")&"" ->  | Y127: =IF($Y$111=24,ROUND($Y$22,0),"")&"" ->  | Z127: =IF($Z$111=24,ROUND($Z$22,0),"")&"" ->  | AA127: =IF($AA$111=24,ROUND($AA$22,0),"")&"" ->  | AB127: 2
C128: 3 | D128: =IF($D$112=24,ROUND($D$23,0),"")&"" ->  | E128: =IF($E$112=24,ROUND($E$23,0),"")&"" ->  | F128: =IF($F$112=24,ROUND($F$23,0),"")&"" ->  | G128: =IF($G$112=24,ROUND($G$23,0),"")&"" ->  | H128: =IF($H$112=24,ROUND($H$23,0),"")&"" ->  | I128: =IF($I$112=24,ROUND($I$23,0),"")&"" ->  | J128: =IF($J$112=24,ROUND($J$23,0),"")&"" ->  | K128: =IF($K$112=24,ROUND($K$23,0),"")&"" ->  | L128: =IF($L$112=24,ROUND($L$23,0),"")&"" ->  | M128: =IF($M$112=24,ROUND($M$23,0),"")&"" ->  | N128: =IF($N$112=24,ROUND($N$23,0),"")&"" ->  | O128: =IF($O$112=24,ROUND($O$23,0),"")&"" ->  | P128: =IF($P$112=24,ROUND($P$23,0),"")&"" ->  | Q128: =IF($Q$112=24,ROUND($Q$23,0),"")&"" ->  | R128: =IF($R$112=24,ROUND($R$23,0),"")&"" ->  | S128: =IF($S$112=24,ROUND($S$23,0),"")&"" ->  | T128: =IF($T$112=24,ROUND($T$23,0),"")&"" ->  | U128: =IF($U$112=24,ROUND($U$23,0),"")&"" ->  | V128: =IF($V$112=24,ROUND($V$23,0),"")&"" ->  | W128: =IF($W$112=24,ROUND($W$23,0),"")&"" ->  | X128: =IF($X$112=24,ROUND($X$23,0),"")&"" ->  | Y128: =IF($Y$112=24,ROUND($Y$23,0),"")&"" ->  | Z128: =IF($Z$112=24,ROUND($Z$23,0),"")&"" ->  | AA128: =IF($AA$112=24,ROUND($AA$23,0),"")&"" ->  | AB128: 3
C130: 冷却期間中 外気湿球温度(Tw)が発生する時間[hour]
D131: 外気湿球温度(Tw) | AX131: 前1 | BA131: 前2 | BD131: 前3 | BH131: 後1 | BK131: 後2 | BN131: 後3
C132: 月 | D132: -11 | E132: -10 | F132: -9 | G132: -8 | H132: -7 | I132: -6 | J132: -5 | K132: -4 | L132: -3 | M132: -2 | N132: -1 | O132: 0 | P132: 1 | Q132: 2 | R132: 3 | S132: 4 | T132: 5 | U132: 6 | V132: 7 | W132: 8 | X132: 9 | Y132: 10 | Z132: 11 | AA132: 12 | AB132: 13 | AC132: 14 | AD132: 15 | AE132: 16 | AF132: 17 | AG132: 18 | AH132: 19 | AI132: 20 | AJ132: 21 | AK132: 22 | AL132: 23 | AM132: 24 | AN132: 25 | AO132: 26 | AP132: 27 | AQ132: 28 | AR132: 29 | AS132: 30 | AT132: 月 | AV132: EccのΣ | AW132: EaxのΣ | AX132: Ecc | AY132: Eax | AZ132: Ec | BA132: Ecc | BB132: Eax | BC132: Ec | BD132: Ecc | BE132: Eax | BF132: Ec | BH132: Ecc | BI132: Eax | BJ132: Ec | BK132: Ecc | BL132: Eax | BM132: Ec | BN132: Ecc | BO132: Eax | BP132: Ec
C133: 4 | D133: =COUNTIF($D$117:$AA$117,$D$132)*$AB$12 -> 0 | E133: =COUNTIF($D$117:$AA$117,$E$132)*$AB$12 -> 0 | F133: =COUNTIF($D$117:$AA$117,$F$132)*$AB$12 -> 0 | G133: =COUNTIF($D$117:$AA$117,$G$132)*$AB$12 -> 0 | H133: =COUNTIF($D$117:$AA$117,$H$132)*$AB$12 -> 0 | I133: =COUNTIF($D$117:$AA$117,$I$132)*$AB$12 -> 0 | J133: =COUNTIF($D$117:$AA$117,$J$132)*$AB$12 -> 0 | K133: =COUNTIF($D$117:$AA$117,$K$132)*$AB$12 -> 0 | L133: =COUNTIF($D$117:$AA$117,$L$132)*$AB$12 -> 0 | M133: =COUNTIF($D$117:$AA$117,$M$132)*$AB$12 -> 0 | N133: =COUNTIF($D$117:$AA$117,$N$132)*$AB$12 -> 0 | O133: =COUNTIF($D$117:$AA$117,$O$132)*$AB$12 -> 0 | P133: =COUNTIF($D$117:$AA$117,$P$132)*$AB$12 -> 0 | Q133: =COUNTIF($D$117:$AA$117,$Q$132)*$AB$12 -> 0 | R133: =COUNTIF($D$117:$AA$117,$R$132)*$AB$12 -> 0 | S133: =COUNTIF($D$117:$AA$117,$S$132)*$AB$12 -> 0 | T133: =COUNTIF($D$117:$AA$117,$T$132)*$AB$12 -> 0 | U133: =COUNTIF($D$117:$AA$117,$U$132)*$AB$12 -> 0 | V133: =COUNTIF($D$117:$AA$117,$V$132)*$AB$12 -> 0 | W133: =COUNTIF($D$117:$AA$117,$W$132)*$AB$12 -> 0 | X133: =COUNTIF($D$117:$AA$117,$X$132)*$AB$12 -> 0 | Y133: =COUNTIF($D$117:$AA$117,$Y$132)*$AB$12 -> 0 | Z133: =COUNTIF($D$117:$AA$117,$Z$132)*$AB$12 -> 0 | AA133: =COUNTIF($D$117:$AA$117,$AA$132)*$AB$12 -> 0 | AB133: =COUNTIF($D$117:$AA$117,$AB$132)*$AB$12 -> 0 | AC133: =COUNTIF($D$117:$AA$117,$AC$132)*$AB$12 -> 0 | AD133: =COUNTIF($D$117:$AA$117,$AD$132)*$AB$12 -> 0 | AE133: =COUNTIF($D$117:$AA$117,$AE$132)*$AB$12 -> 0 | AF133: =COUNTIF($D$117:$AA$117,$AF$132)*$AB$12 -> 0 | AG133: =COUNTIF($D$117:$AA$117,$AG$132)*$AB$12 -> 0 | AH133: =COUNTIF($D$117:$AA$117,$AH$132)*$AB$12 -> 0 | AI133: =COUNTIF($D$117:$AA$117,$AI$132)*$AB$12 -> 0 | AJ133: =COUNTIF($D$117:$AA$117,$AJ$132)*$AB$12 -> 0 | AK133: =COUNTIF($D$117:$AA$117,$AK$132)*$AB$12 -> 0 | AL133: =COUNTIF($D$117:$AA$117,$AL$132)*$AB$12 -> 0 | AM133: =COUNTIF($D$117:$AA$117,$AM$132)*$AB$12 -> 0 | AN133: =COUNTIF($D$117:$AA$117,$AN$132)*$AB$12 -> 0 | AO133: =COUNTIF($D$117:$AA$117,$AO$132)*$AB$12 -> 0 | AP133: =COUNTIF($D$117:$AA$117,$AP$132)*$AB$12 -> 0 | AQ133: =COUNTIF($D$117:$AA$117,$AQ$132)*$AB$12 -> 0 | AR133: =COUNTIF($D$117:$AA$117,$AR$132)*$AB$12 -> 0 | AS133: =COUNTIF($D$117:$AA$117,$AS$132)*$AB$12 -> 0 | AT133: 4 | AV133: =SUMPRODUCT(D133:AS133,$D$146:$AS$146) -> 0 | AW133: =SUMPRODUCT(D133:AS133,$D$152:$AS$152) -> 0 | AX133: =IFERROR($Q$29/$Q$31*$AV133*$Q$36,"") -> 0 | AY133: =IFERROR(($Q$32+$Q$33+$Q$34)*$AW133,"") -> 0 | AZ133: =IFERROR(SUM(AX133:AY133),"") -> 0 | BA133: =IFERROR($R$29/$R$31*$AV133*$R$36,"") ->  | BB133: =IFERROR(($R$32+$R$33+$R$34)*$AW133,"") -> 0 | BC133: =IFERROR(SUM(BA133:BB133),"") -> 0 | BD133: =IFERROR($S$29/$S$31*$AV133*$S$36,"") ->  | BE133: =IFERROR(($S$32+$S$33+$S$34)*$AW133,"") -> 0 | BF133: =IFERROR(SUM(BD133:BE133),"") -> 0 | BH133: =IFERROR($Q$43/$Q$45*$AV133*$Q$50,"") ->  | BI133: =IFERROR(($Q$46+$Q$47+$Q$48)*$AW133,"") -> 0 | BJ133: =IFERROR(SUM(BH133:BI133),"") -> 0 | BK133: =IFERROR($R$43/$R$45*$AV133*$R$50,"") ->  | BL133: =IFERROR(($R$46+$R$47+$R$48)*$AW133,"") -> 0 | BM133: =IFERROR(SUM(BK133:BL133),"") -> 0 | BN133: =IFERROR($S$43/$S$45*$AV133*$S$50,"") ->  | BO133: =IFERROR(($S$46+$S$47+$S$48)*$AW133,"") -> 0 | BP133: =IFERROR(SUM(BN133:BO133),"") -> 0
C134: 5 | D134: =COUNTIF($D$118:$AA$118,$D$132)*$AB$13 -> 0 | E134: =COUNTIF($D$118:$AA$118,$E$132)*$AB$13 -> 0 | F134: =COUNTIF($D$118:$AA$118,$F$132)*$AB$13 -> 0 | G134: =COUNTIF($D$118:$AA$118,$G$132)*$AB$13 -> 0 | H134: =COUNTIF($D$118:$AA$118,$H$132)*$AB$13 -> 0 | I134: =COUNTIF($D$118:$AA$118,$I$132)*$AB$13 -> 0 | J134: =COUNTIF($D$118:$AA$118,$J$132)*$AB$13 -> 0 | K134: =COUNTIF($D$118:$AA$118,$K$132)*$AB$13 -> 0 | L134: =COUNTIF($D$118:$AA$118,$L$132)*$AB$13 -> 0 | M134: =COUNTIF($D$118:$AA$118,$M$132)*$AB$13 -> 0 | N134: =COUNTIF($D$118:$AA$118,$N$132)*$AB$13 -> 0 | O134: =COUNTIF($D$118:$AA$118,$O$132)*$AB$13 -> 0 | P134: =COUNTIF($D$118:$AA$118,$P$132)*$AB$13 -> 0 | Q134: =COUNTIF($D$118:$AA$118,$Q$132)*$AB$13 -> 0 | R134: =COUNTIF($D$118:$AA$118,$R$132)*$AB$13 -> 0 | S134: =COUNTIF($D$118:$AA$118,$S$132)*$AB$13 -> 0 | T134: =COUNTIF($D$118:$AA$118,$T$132)*$AB$13 -> 0 | U134: =COUNTIF($D$118:$AA$118,$U$132)*$AB$13 -> 0 | V134: =COUNTIF($D$118:$AA$118,$V$132)*$AB$13 -> 0 | W134: =COUNTIF($D$118:$AA$118,$W$132)*$AB$13 -> 0 | X134: =COUNTIF($D$118:$AA$118,$X$132)*$AB$13 -> 0 | Y134: =COUNTIF($D$118:$AA$118,$Y$132)*$AB$13 -> 0 | Z134: =COUNTIF($D$118:$AA$118,$Z$132)*$AB$13 -> 0 | AA134: =COUNTIF($D$118:$AA$118,$AA$132)*$AB$13 -> 0 | AB134: =COUNTIF($D$118:$AA$118,$AB$132)*$AB$13 -> 0 | AC134: =COUNTIF($D$118:$AA$118,$AC$132)*$AB$13 -> 0 | AD134: =COUNTIF($D$118:$AA$118,$AD$132)*$AB$13 -> 0 | AE134: =COUNTIF($D$118:$AA$118,$AE$132)*$AB$13 -> 0 | AF134: =COUNTIF($D$118:$AA$118,$AF$132)*$AB$13 -> 0 | AG134: =COUNTIF($D$118:$AA$118,$AG$132)*$AB$13 -> 0 | AH134: =COUNTIF($D$118:$AA$118,$AH$132)*$AB$13 -> 0 | AI134: =COUNTIF($D$118:$AA$118,$AI$132)*$AB$13 -> 0 | AJ134: =COUNTIF($D$118:$AA$118,$AJ$132)*$AB$13 -> 0 | AK134: =COUNTIF($D$118:$AA$118,$AK$132)*$AB$13 -> 0 | AL134: =COUNTIF($D$118:$AA$118,$AL$132)*$AB$13 -> 0 | AM134: =COUNTIF($D$118:$AA$118,$AM$132)*$AB$13 -> 0 | AN134: =COUNTIF($D$118:$AA$118,$AN$132)*$AB$13 -> 0 | AO134: =COUNTIF($D$118:$AA$118,$AO$132)*$AB$13 -> 0 | AP134: =COUNTIF($D$118:$AA$118,$AP$132)*$AB$13 -> 0 | AQ134: =COUNTIF($D$118:$AA$118,$AQ$132)*$AB$13 -> 0 | AR134: =COUNTIF($D$118:$AA$118,$AR$132)*$AB$13 -> 0 | AS134: =COUNTIF($D$118:$AA$118,$AS$132)*$AH$13 -> 0 | AT134: 5 | AV134: =SUMPRODUCT(D134:AS134,$D$146:$AS$146) -> 0 | AW134: =SUMPRODUCT(D134:AS134,$D$152:$AS$152) -> 0 | AX134: =IFERROR($Q$29/$Q$31*$AV134*$Q$36,"") -> 0 | AY134: =IFERROR(($Q$32+$Q$33+$Q$34)*$AW134,"") -> 0 | AZ134: =IFERROR(SUM(AX134:AY134),"") -> 0 | BA134: =IFERROR($R$29/$R$31*$AV134*$R$36,"") ->  | BB134: =IFERROR(($R$32+$R$33+$R$34)*$AW134,"") -> 0 | BC134: =IFERROR(SUM(BA134:BB134),"") -> 0 | BD134: =IFERROR($S$29/$S$31*$AV134*$S$36,"") ->  | BE134: =IFERROR(($S$32+$S$33+$S$34)*$AW134,"") -> 0 | BF134: =IFERROR(SUM(BD134:BE134),"") -> 0 | BH134: =IFERROR($Q$43/$Q$45*$AV134*$Q$50,"") ->  | BI134: =IFERROR(($Q$46+$Q$47+$Q$48)*$AW134,"") -> 0 | BJ134: =IFERROR(SUM(BH134:BI134),"") -> 0 | BK134: =IFERROR($R$43/$R$45*$AV134*$R$50,"") ->  | BL134: =IFERROR(($R$46+$R$47+$R$48)*$AW134,"") -> 0 | BM134: =IFERROR(SUM(BK134:BL134),"") -> 0 | BN134: =IFERROR($S$43/$S$45*$AV134*$S$50,"") ->  | BO134: =IFERROR(($S$46+$S$47+$S$48)*$AW134,"") -> 0 | BP134: =IFERROR(SUM(BN134:BO134),"") -> 0
C135: 6 | D135: =COUNTIF($D$119:$AA$119,$D$132)*$AB$14 -> 0 | E135: =COUNTIF($D$119:$AA$119,$E$132)*$AB$14 -> 0 | F135: =COUNTIF($D$119:$AA$119,$F$132)*$AB$14 -> 0 | G135: =COUNTIF($D$119:$AA$119,$G$132)*$AB$14 -> 0 | H135: =COUNTIF($D$119:$AA$119,$H$132)*$AB$14 -> 0 | I135: =COUNTIF($D$119:$AA$119,$I$132)*$AB$14 -> 0 | J135: =COUNTIF($D$119:$AA$119,$J$132)*$AB$14 -> 0 | K135: =COUNTIF($D$119:$AA$119,$K$132)*$AB$14 -> 0 | L135: =COUNTIF($D$119:$AA$119,$L$132)*$AB$14 -> 0 | M135: =COUNTIF($D$119:$AA$119,$M$132)*$AB$14 -> 0 | N135: =COUNTIF($D$119:$AA$119,$N$132)*$AB$14 -> 0 | O135: =COUNTIF($D$119:$AA$119,$O$132)*$AB$14 -> 0 | P135: =COUNTIF($D$119:$AA$119,$P$132)*$AB$14 -> 0 | Q135: =COUNTIF($D$119:$AA$119,$Q$132)*$AB$14 -> 0 | R135: =COUNTIF($D$119:$AA$119,$R$132)*$AB$14 -> 0 | S135: =COUNTIF($D$119:$AA$119,$S$132)*$AB$14 -> 0 | T135: =COUNTIF($D$119:$AA$119,$T$132)*$AB$14 -> 0 | U135: =COUNTIF($D$119:$AA$119,$U$132)*$AB$14 -> 0 | V135: =COUNTIF($D$119:$AA$119,$V$132)*$AB$14 -> 0 | W135: =COUNTIF($D$119:$AA$119,$W$132)*$AB$14 -> 0 | X135: =COUNTIF($D$119:$AA$119,$X$132)*$AB$14 -> 0 | Y135: =COUNTIF($D$119:$AA$119,$Y$132)*$AB$14 -> 0 | Z135: =COUNTIF($D$119:$AA$119,$Z$132)*$AB$14 -> 0 | AA135: =COUNTIF($D$119:$AA$119,$AA$132)*$AB$14 -> 0 | AB135: =COUNTIF($D$119:$AA$119,$AB$132)*$AB$14 -> 0 | AC135: =COUNTIF($D$119:$AA$119,$AC$132)*$AB$14 -> 0 | AD135: =COUNTIF($D$119:$AA$119,$AD$132)*$AB$14 -> 0 | AE135: =COUNTIF($D$119:$AA$119,$AE$132)*$AB$14 -> 0 | AF135: =COUNTIF($D$119:$AA$119,$AF$132)*$AB$14 -> 0 | AG135: =COUNTIF($D$119:$AA$119,$AG$132)*$AB$14 -> 0 | AH135: =COUNTIF($D$119:$AA$119,$AH$132)*$AB$14 -> 0 | AI135: =COUNTIF($D$119:$AA$119,$AI$132)*$AB$14 -> 0 | AJ135: =COUNTIF($D$119:$AA$119,$AJ$132)*$AB$14 -> 0 | AK135: =COUNTIF($D$119:$AA$119,$AK$132)*$AB$14 -> 0 | AL135: =COUNTIF($D$119:$AA$119,$AL$132)*$AB$14 -> 0 | AM135: =COUNTIF($D$119:$AA$119,$AM$132)*$AB$14 -> 0 | AN135: =COUNTIF($D$119:$AA$119,$AN$132)*$AB$14 -> 0 | AO135: =COUNTIF($D$119:$AA$119,$AO$132)*$AB$14 -> 0 | AP135: =COUNTIF($D$119:$AA$119,$AP$132)*$AB$14 -> 0 | AQ135: =COUNTIF($D$119:$AA$119,$AQ$132)*$AB$14 -> 0 | AR135: =COUNTIF($D$119:$AA$119,$AR$132)*$AB$14 -> 0 | AS135: =COUNTIF($D$119:$AA$119,$AS$132)*$AB$14 -> 0 | AT135: 6 | AV135: =SUMPRODUCT(D135:AS135,$D$146:$AS$146) -> 0 | AW135: 0 | AX135: 0 | AY135: 0 | AZ135: 0 | BB135: 0 | BC135: 0 | BE135: 0 | BF135: 0 | BI135: 0 | BJ135: 0 | BL135: 0 | BM135: 0 | BO135: 0 | BP135: 0
C136: 7 | D136: =COUNTIF($D$120:$AA$120,$D$132)*$AB$15 -> 0 | E136: =COUNTIF($D$120:$AA$120,$E$132)*$AB$15 -> 0 | F136: =COUNTIF($D$120:$AA$120,$F$132)*$AB$15 -> 0 | G136: =COUNTIF($D$120:$AA$120,$G$132)*$AB$15 -> 0 | H136: =COUNTIF($D$120:$AA$120,$H$132)*$AB$15 -> 0 | I136: =COUNTIF($D$120:$AA$120,$I$132)*$AB$15 -> 0 | J136: =COUNTIF($D$120:$AA$120,$J$132)*$AB$15 -> 0 | K136: =COUNTIF($D$120:$AA$120,$K$132)*$AB$15 -> 0 | L136: =COUNTIF($D$120:$AA$120,$L$132)*$AB$15 -> 0 | M136: =COUNTIF($D$120:$AA$120,$M$132)*$AB$15 -> 0 | N136: =COUNTIF($D$120:$AA$120,$N$132)*$AB$15 -> 0 | O136: =COUNTIF($D$120:$AA$120,$O$132)*$AB$15 -> 0 | P136: =COUNTIF($D$120:$AA$120,$P$132)*$AB$15 -> 0 | Q136: =COUNTIF($D$120:$AA$120,$Q$132)*$AB$15 -> 0 | R136: =COUNTIF($D$120:$AA$120,$R$132)*$AB$15 -> 0 | S136: =COUNTIF($D$120:$AA$120,$S$132)*$AB$15 -> 0 | T136: =COUNTIF($D$120:$AA$120,$T$132)*$AB$15 -> 0 | U136: =COUNTIF($D$120:$AA$120,$U$132)*$AB$15 -> 0 | V136: =COUNTIF($D$120:$AA$120,$V$132)*$AB$15 -> 0 | W136: =COUNTIF($D$120:$AA$120,$W$132)*$AB$15 -> 0 | X136: =COUNTIF($D$120:$AA$120,$X$132)*$AB$15 -> 0 | Y136: =COUNTIF($D$120:$AA$120,$Y$132)*$AB$15 -> 0 | Z136: =COUNTIF($D$120:$AA$120,$Z$132)*$AB$15 -> 0 | AA136: =COUNTIF($D$120:$AA$120,$AA$132)*$AB$15 -> 0 | AB136: =COUNTIF($D$120:$AA$120,$AB$132)*$AB$15 -> 0 | AC136: =COUNTIF($D$120:$AA$120,$AC$132)*$AB$15 -> 0 | AD136: =COUNTIF($D$120:$AA$120,$AD$132)*$AB$15 -> 0 | AE136: =COUNTIF($D$120:$AA$120,$AE$132)*$AB$15 -> 0 | AF136: =COUNTIF($D$120:$AA$120,$AF$132)*$AB$15 -> 0 | AG136: =COUNTIF($D$120:$AA$120,$AG$132)*$AB$15 -> 0 | AH136: =COUNTIF($D$120:$AA$120,$AH$132)*$AB$15 -> 0 | AI136: =COUNTIF($D$120:$AA$120,$AI$132)*$AB$15 -> 0 | AJ136: =COUNTIF($D$120:$AA$120,$AJ$132)*$AB$15 -> 0 | AK136: =COUNTIF($D$120:$AA$120,$AK$132)*$AB$15 -> 0 | AL136: =COUNTIF($D$120:$AA$120,$AL$132)*$AB$15 -> 0 | AM136: =COUNTIF($D$120:$AA$120,$AM$132)*$AB$15 -> 0 | AN136: =COUNTIF($D$120:$AA$120,$AN$132)*$AB$15 -> 0 | AO136: =COUNTIF($D$120:$AA$120,$AO$132)*$AB$15 -> 0 | AP136: =COUNTIF($D$120:$AA$120,$AP$132)*$AB$15 -> 0 | AQ136: =COUNTIF($D$120:$AA$120,$AQ$132)*$AB$15 -> 0 | AR136: =COUNTIF($D$120:$AA$120,$AR$132)*$AB$15 -> 0 | AS136: =COUNTIF($D$120:$AA$120,$AS$132)*$AB$15 -> 0 | AT136: 7 | AV136: 0 | AW136: 0 | AX136: 0 | AY136: 0 | AZ136: 0 | BB136: 0 | BC136: 0 | BE136: 0 | BF136: 0 | BI136: 0 | BJ136: 0 | BL136: 0 | BM136: 0 | BO136: 0 | BP136: 0
C137: 8 | D137: =COUNTIF($D$121:$AA$121,$D$132)*$AB$16 -> 0 | E137: =COUNTIF($D$121:$AA$121,$E$132)*$AB$16 -> 0 | F137: =COUNTIF($D$121:$AA$121,$F$132)*$AB$16 -> 0 | G137: =COUNTIF($D$121:$AA$121,$G$132)*$AB$16 -> 0 | H137: =COUNTIF($D$121:$AA$121,$H$132)*$AB$16 -> 0 | I137: =COUNTIF($D$121:$AA$121,$I$132)*$AB$16 -> 0 | J137: =COUNTIF($D$121:$AA$121,$J$132)*$AB$16 -> 0 | K137: =COUNTIF($D$121:$AA$121,$K$132)*$AB$16 -> 0 | L137: =COUNTIF($D$121:$AA$121,$L$132)*$AB$16 -> 0 | M137: =COUNTIF($D$121:$AA$121,$M$132)*$AB$16 -> 0 | N137: =COUNTIF($D$121:$AA$121,$N$132)*$AB$16 -> 0 | O137: =COUNTIF($D$121:$AA$121,$O$132)*$AB$16 -> 0 | P137: =COUNTIF($D$121:$AA$121,$P$132)*$AB$16 -> 0 | Q137: =COUNTIF($D$121:$AA$121,$Q$132)*$AB$16 -> 0 | R137: =COUNTIF($D$121:$AA$121,$R$132)*$AB$16 -> 0 | S137: =COUNTIF($D$121:$AA$121,$S$132)*$AB$16 -> 0 | T137: =COUNTIF($D$121:$AA$121,$T$132)*$AB$16 -> 0 | U137: =COUNTIF($D$121:$AA$121,$U$132)*$AB$16 -> 0 | V137: =COUNTIF($D$121:$AA$121,$V$132)*$AB$16 -> 0 | W137: =COUNTIF($D$121:$AA$121,$W$132)*$AB$16 -> 0 | X137: =COUNTIF($D$121:$AA$121,$X$132)*$AB$16 -> 0 | Y137: =COUNTIF($D$121:$AA$121,$Y$132)*$AB$16 -> 0 | Z137: =COUNTIF($D$121:$AA$121,$Z$132)*$AB$16 -> 0 | AA137: =COUNTIF($D$121:$AA$121,$AA$132)*$AB$16 -> 0 | AB137: =COUNTIF($D$121:$AA$121,$AB$132)*$AB$16 -> 0 | AC137: =COUNTIF($D$121:$AA$121,$AC$132)*$AB$16 -> 0 | AD137: =COUNTIF($D$121:$AA$121,$AD$132)*$AB$16 -> 0 | AE137: =COUNTIF($D$121:$AA$121,$AE$132)*$AB$16 -> 0 | AF137: =COUNTIF($D$121:$AA$121,$AF$132)*$AB$16 -> 0 | AG137: =COUNTIF($D$121:$AA$121,$AG$132)*$AB$16 -> 0 | AH137: =COUNTIF($D$121:$AA$121,$AH$132)*$AB$16 -> 0 | AI137: =COUNTIF($D$121:$AA$121,$AI$132)*$AB$16 -> 0 | AJ137: =COUNTIF($D$121:$AA$121,$AJ$132)*$AB$16 -> 0 | AK137: =COUNTIF($D$121:$AA$121,$AK$132)*$AB$16 -> 0 | AL137: =COUNTIF($D$121:$AA$121,$AL$132)*$AB$16 -> 0 | AM137: =COUNTIF($D$121:$AA$121,$AM$132)*$AB$16 -> 0 | AN137: =COUNTIF($D$121:$AA$121,$AN$132)*$AB$16 -> 0 | AO137: =COUNTIF($D$121:$AA$121,$AO$132)*$AB$16 -> 0 | AP137: =COUNTIF($D$121:$AA$121,$AP$132)*$AB$16 -> 0 | AQ137: =COUNTIF($D$121:$AA$121,$AQ$132)*$AB$16 -> 0 | AR137: =COUNTIF($D$121:$AA$121,$AR$132)*$AB$16 -> 0 | AS137: =COUNTIF($D$121:$AA$121,$AS$132)*$AB$16 -> 0 | AT137: 8 | AV137: 0 | AW137: 0 | AX137: 0 | AY137: 0 | AZ137: 0 | BB137: 0 | BC137: 0 | BE137: 0 | BF137: 0 | BI137: 0 | BJ137: 0 | BL137: 0 | BM137: 0 | BO137: 0 | BP137: 0
C138: 9 | D138: =COUNTIF($D$122:$AA$122,$D$132)*$AB$17 -> 0 | E138: =COUNTIF($D$122:$AA$122,$E$132)*$AB$17 -> 0 | F138: =COUNTIF($D$122:$AA$122,$F$132)*$AB$17 -> 0 | G138: =COUNTIF($D$122:$AA$122,$G$132)*$AB$17 -> 0 | H138: =COUNTIF($D$122:$AA$122,$H$132)*$AB$17 -> 0 | I138: =COUNTIF($D$122:$AA$122,$I$132)*$AB$17 -> 0 | J138: =COUNTIF($D$122:$AA$122,$J$132)*$AB$17 -> 0 | K138: =COUNTIF($D$122:$AA$122,$K$132)*$AB$17 -> 0 | L138: =COUNTIF($D$122:$AA$122,$L$132)*$AB$17 -> 0 | M138: =COUNTIF($D$122:$AA$122,$M$132)*$AB$17 -> 0 | N138: =COUNTIF($D$122:$AA$122,$N$132)*$AB$17 -> 0 | O138: =COUNTIF($D$122:$AA$122,$O$132)*$AB$17 -> 0 | P138: =COUNTIF($D$122:$AA$122,$P$132)*$AB$17 -> 0 | Q138: =COUNTIF($D$122:$AA$122,$Q$132)*$AB$17 -> 0 | R138: =COUNTIF($D$122:$AA$122,$R$132)*$AB$17 -> 0 | S138: =COUNTIF($D$122:$AA$122,$S$132)*$AB$17 -> 0 | T138: =COUNTIF($D$122:$AA$122,$T$132)*$AB$17 -> 0 | U138: =COUNTIF($D$122:$AA$122,$U$132)*$AB$17 -> 0 | V138: =COUNTIF($D$122:$AA$122,$V$132)*$AB$17 -> 0 | W138: =COUNTIF($D$122:$AA$122,$W$132)*$AB$17 -> 0 | X138: =COUNTIF($D$122:$AA$122,$X$132)*$AB$17 -> 0 | Y138: =COUNTIF($D$122:$AA$122,$Y$132)*$AB$17 -> 0 | Z138: =COUNTIF($D$122:$AA$122,$Z$132)*$AB$17 -> 0 | AA138: =COUNTIF($D$122:$AA$122,$AA$132)*$AB$17 -> 0 | AB138: =COUNTIF($D$122:$AA$122,$AB$132)*$AB$17 -> 0 | AC138: =COUNTIF($D$122:$AA$122,$AC$132)*$AB$17 -> 0 | AD138: =COUNTIF($D$122:$AA$122,$AD$132)*$AB$17 -> 0 | AE138: =COUNTIF($D$122:$AA$122,$AE$132)*$AB$17 -> 0 | AF138: =COUNTIF($D$122:$AA$122,$AF$132)*$AB$17 -> 0 | AG138: =COUNTIF($D$122:$AA$122,$AG$132)*$AB$17 -> 0 | AH138: =COUNTIF($D$122:$AA$122,$AH$132)*$AB$17 -> 0 | AI138: =COUNTIF($D$122:$AA$122,$AI$132)*$AB$17 -> 0 | AJ138: =COUNTIF($D$122:$AA$122,$AJ$132)*$AB$17 -> 0 | AK138: =COUNTIF($D$122:$AA$122,$AK$132)*$AB$17 -> 0 | AL138: =COUNTIF($D$122:$AA$122,$AL$132)*$AB$17 -> 0 | AM138: =COUNTIF($D$122:$AA$122,$AM$132)*$AB$17 -> 0 | AN138: =COUNTIF($D$122:$AA$122,$AN$132)*$AB$17 -> 0 | AO138: =COUNTIF($D$122:$AA$122,$AO$132)*$AB$17 -> 0 | AP138: =COUNTIF($D$122:$AA$122,$AP$132)*$AB$17 -> 0 | AQ138: =COUNTIF($D$122:$AA$122,$AQ$132)*$AB$17 -> 0 | AR138: =COUNTIF($D$122:$AA$122,$AR$132)*$AB$17 -> 0 | AS138: =COUNTIF($D$122:$AA$122,$AS$132)*$AB$17 -> 0 | AT138: 9 | AV138: 0 | AW138: 0 | AX138: 0 | AY138: 0 | AZ138: 0 | BB138: 0 | BC138: 0 | BE138: 0 | BF138: 0 | BI138: 0 | BJ138: 0 | BL138: 0 | BM138: 0 | BO138: 0 | BP138: 0
C139: 10 | D139: =COUNTIF($D$123:$AA$123,$D$132)*$AB$18 -> 0 | E139: =COUNTIF($D$123:$AA$123,$E$132)*$AB$18 -> 0 | F139: =COUNTIF($D$123:$AA$123,$F$132)*$AB$18 -> 0 | G139: =COUNTIF($D$123:$AA$123,$G$132)*$AB$18 -> 0 | H139: =COUNTIF($D$123:$AA$123,$H$132)*$AB$18 -> 0 | I139: =COUNTIF($D$123:$AA$123,$I$132)*$AB$18 -> 0 | J139: =COUNTIF($D$123:$AA$123,$J$132)*$AB$18 -> 0 | K139: =COUNTIF($D$123:$AA$123,$K$132)*$AB$18 -> 0 | L139: =COUNTIF($D$123:$AA$123,$L$132)*$AB$18 -> 0 | M139: =COUNTIF($D$123:$AA$123,$M$132)*$AB$18 -> 0 | N139: =COUNTIF($D$123:$AA$123,$N$132)*$AB$18 -> 0 | O139: =COUNTIF($D$123:$AA$123,$O$132)*$AB$18 -> 0 | P139: =COUNTIF($D$123:$AA$123,$P$132)*$AB$18 -> 0 | Q139: =COUNTIF($D$123:$AA$123,$Q$132)*$AB$18 -> 0 | R139: =COUNTIF($D$123:$AA$123,$R$132)*$AB$18 -> 0 | S139: =COUNTIF($D$123:$AA$123,$S$132)*$AB$18 -> 0 | T139: =COUNTIF($D$123:$AA$123,$T$132)*$AB$18 -> 0 | U139: =COUNTIF($D$123:$AA$123,$U$132)*$AB$18 -> 0 | V139: =COUNTIF($D$123:$AA$123,$V$132)*$AB$18 -> 0 | W139: =COUNTIF($D$123:$AA$123,$W$132)*$AB$18 -> 0 | X139: =COUNTIF($D$123:$AA$123,$X$132)*$AB$18 -> 0 | Y139: =COUNTIF($D$123:$AA$123,$Y$132)*$AB$18 -> 0 | Z139: =COUNTIF($D$123:$AA$123,$Z$132)*$AB$18 -> 0 | AA139: =COUNTIF($D$123:$AA$123,$AA$132)*$AB$18 -> 0 | AB139: =COUNTIF($D$123:$AA$123,$AB$132)*$AB$18 -> 0 | AC139: =COUNTIF($D$123:$AA$123,$AC$132)*$AB$18 -> 0 | AD139: =COUNTIF($D$123:$AA$123,$AD$132)*$AB$18 -> 0 | AE139: =COUNTIF($D$123:$AA$123,$AE$132)*$AB$18 -> 0 | AF139: =COUNTIF($D$123:$AA$123,$AF$132)*$AB$18 -> 0 | AG139: =COUNTIF($D$123:$AA$123,$AG$132)*$AB$18 -> 0 | AH139: =COUNTIF($D$123:$AA$123,$AH$132)*$AB$18 -> 0 | AI139: =COUNTIF($D$123:$AA$123,$AI$132)*$AB$18 -> 0 | AJ139: =COUNTIF($D$123:$AA$123,$AJ$132)*$AB$18 -> 0 | AK139: =COUNTIF($D$123:$AA$123,$AK$132)*$AB$18 -> 0 | AL139: =COUNTIF($D$123:$AA$123,$AL$132)*$AB$18 -> 0 | AM139: =COUNTIF($D$123:$AA$123,$AM$132)*$AB$18 -> 0 | AN139: =COUNTIF($D$123:$AA$123,$AN$132)*$AB$18 -> 0 | AO139: =COUNTIF($D$123:$AA$123,$AO$132)*$AB$18 -> 0 | AP139: =COUNTIF($D$123:$AA$123,$AP$132)*$AB$18 -> 0 | AQ139: =COUNTIF($D$123:$AA$123,$AQ$132)*$AB$18 -> 0 | AR139: =COUNTIF($D$123:$AA$123,$AR$132)*$AB$18 -> 0 | AS139: =COUNTIF($D$123:$AA$123,$AS$132)*$AB$18 -> 0 | AT139: 10 | AV139: 0 | AW139: 0 | AX139: 0 | AY139: 0 | AZ139: 0 | BB139: 0 | BC139: 0 | BE139: 0 | BF139: 0 | BI139: 0 | BJ139: 0 | BL139: 0 | BM139: 0 | BO139: 0 | BP139: 0
C140: 11 | D140: =COUNTIF($D$124:$AA$124,$D$132)*$AB$19 -> 0 | E140: =COUNTIF($D$124:$AA$124,$E$132)*$AB$19 -> 0 | F140: =COUNTIF($D$124:$AA$124,$F$132)*$AB$19 -> 0 | G140: =COUNTIF($D$124:$AA$124,$G$132)*$AB$19 -> 0 | H140: =COUNTIF($D$124:$AA$124,$H$132)*$AB$19 -> 0 | I140: =COUNTIF($D$124:$AA$124,$I$132)*$AB$19 -> 0 | J140: =COUNTIF($D$124:$AA$124,$J$132)*$AB$19 -> 0 | K140: =COUNTIF($D$124:$AA$124,$K$132)*$AB$19 -> 0 | L140: =COUNTIF($D$124:$AA$124,$L$132)*$AB$19 -> 0 | M140: =COUNTIF($D$124:$AA$124,$M$132)*$AB$19 -> 0 | N140: =COUNTIF($D$124:$AA$124,$N$132)*$AB$19 -> 0 | O140: =COUNTIF($D$124:$AA$124,$O$132)*$AB$19 -> 0 | P140: =COUNTIF($D$124:$AA$124,$P$132)*$AB$19 -> 0 | Q140: =COUNTIF($D$124:$AA$124,$Q$132)*$AB$19 -> 0 | R140: =COUNTIF($D$124:$AA$124,$R$132)*$AB$19 -> 0 | S140: =COUNTIF($D$124:$AA$124,$S$132)*$AB$19 -> 0 | T140: =COUNTIF($D$124:$AA$124,$T$132)*$AB$19 -> 0 | U140: =COUNTIF($D$124:$AA$124,$U$132)*$AB$19 -> 0 | V140: =COUNTIF($D$124:$AA$124,$V$132)*$AB$19 -> 0 | W140: =COUNTIF($D$124:$AA$124,$W$132)*$AB$19 -> 0 | X140: =COUNTIF($D$124:$AA$124,$X$132)*$AB$19 -> 0 | Y140: =COUNTIF($D$124:$AA$124,$Y$132)*$AB$19 -> 0 | Z140: =COUNTIF($D$124:$AA$124,$Z$132)*$AB$19 -> 0 | AA140: =COUNTIF($D$124:$AA$124,$AA$132)*$AB$19 -> 0 | AB140: =COUNTIF($D$124:$AA$124,$AB$132)*$AB$19 -> 0 | AC140: =COUNTIF($D$124:$AA$124,$AC$132)*$AB$19 -> 0 | AD140: =COUNTIF($D$124:$AA$124,$AD$132)*$AB$19 -> 0 | AE140: =COUNTIF($D$124:$AA$124,$AE$132)*$AB$19 -> 0 | AF140: =COUNTIF($D$124:$AA$124,$AF$132)*$AB$19 -> 0 | AG140: =COUNTIF($D$124:$AA$124,$AG$132)*$AB$19 -> 0 | AH140: =COUNTIF($D$124:$AA$124,$AH$132)*$AB$19 -> 0 | AI140: =COUNTIF($D$124:$AA$124,$AI$132)*$AB$19 -> 0 | AJ140: =COUNTIF($D$124:$AA$124,$AJ$132)*$AB$19 -> 0 | AK140: =COUNTIF($D$124:$AA$124,$AK$132)*$AB$19 -> 0 | AL140: =COUNTIF($D$124:$AA$124,$AL$132)*$AB$19 -> 0 | AM140: =COUNTIF($D$124:$AA$124,$AM$132)*$AB$19 -> 0 | AN140: =COUNTIF($D$124:$AA$124,$AN$132)*$AB$19 -> 0 | AO140: =COUNTIF($D$124:$AA$124,$AO$132)*$AB$19 -> 0 | AP140: =COUNTIF($D$124:$AA$124,$AP$132)*$AB$19 -> 0 | AQ140: =COUNTIF($D$124:$AA$124,$AQ$132)*$AB$19 -> 0 | AR140: =COUNTIF($D$124:$AA$124,$AR$132)*$AB$19 -> 0 | AS140: =COUNTIF($D$124:$AA$124,$AS$132)*$AB$19 -> 0 | AT140: 11 | AV140: 0 | AW140: 0 | AX140: 0 | AY140: 0 | AZ140: 0 | BB140: 0 | BC140: 0 | BE140: 0 | BF140: 0 | BI140: 0 | BJ140: 0 | BL140: 0 | BM140: 0 | BO140: 0 | BP140: 0
C141: 12 | D141: =COUNTIF($D$125:$AA$125,$D$132)*$AB$20 -> 0 | E141: =COUNTIF($D$125:$AA$125,$E$132)*$AB$20 -> 0 | F141: =COUNTIF($D$125:$AA$125,$F$132)*$AB$20 -> 0 | G141: =COUNTIF($D$125:$AA$125,$G$132)*$AB$20 -> 0 | H141: =COUNTIF($D$125:$AA$125,$H$132)*$AB$20 -> 0 | I141: =COUNTIF($D$125:$AA$125,$I$132)*$AB$20 -> 0 | J141: =COUNTIF($D$125:$AA$125,$J$132)*$AB$20 -> 0 | K141: =COUNTIF($D$125:$AA$125,$K$132)*$AB$20 -> 0 | L141: =COUNTIF($D$125:$AA$125,$L$132)*$AB$20 -> 0 | M141: =COUNTIF($D$125:$AA$125,$M$132)*$AB$20 -> 0 | N141: =COUNTIF($D$125:$AA$125,$N$132)*$AB$20 -> 0 | O141: =COUNTIF($D$125:$AA$125,$O$132)*$AB$20 -> 0 | P141: =COUNTIF($D$125:$AA$125,$P$132)*$AB$20 -> 0 | Q141: =COUNTIF($D$125:$AA$125,$Q$132)*$AB$20 -> 0 | R141: =COUNTIF($D$125:$AA$125,$R$132)*$AB$20 -> 0 | S141: =COUNTIF($D$125:$AA$125,$S$132)*$AB$20 -> 0 | T141: =COUNTIF($D$125:$AA$125,$T$132)*$AB$20 -> 0 | U141: =COUNTIF($D$125:$AA$125,$U$132)*$AB$20 -> 0 | V141: =COUNTIF($D$125:$AA$125,$V$132)*$AB$20 -> 0 | W141: =COUNTIF($D$125:$AA$125,$W$132)*$AB$20 -> 0 | X141: =COUNTIF($D$125:$AA$125,$X$132)*$AB$20 -> 0 | Y141: =COUNTIF($D$125:$AA$125,$Y$132)*$AB$20 -> 0 | Z141: =COUNTIF($D$125:$AA$125,$Z$132)*$AB$20 -> 0 | AA141: =COUNTIF($D$125:$AA$125,$AA$132)*$AB$20 -> 0 | AB141: =COUNTIF($D$125:$AA$125,$AB$132)*$AB$20 -> 0 | AC141: =COUNTIF($D$125:$AA$125,$AC$132)*$AB$20 -> 0 | AD141: =COUNTIF($D$125:$AA$125,$AD$132)*$AB$20 -> 0 | AE141: =COUNTIF($D$125:$AA$125,$AE$132)*$AB$20 -> 0 | AF141: =COUNTIF($D$125:$AA$125,$AF$132)*$AB$20 -> 0 | AG141: =COUNTIF($D$125:$AA$125,$AG$132)*$AB$20 -> 0 | AH141: =COUNTIF($D$125:$AA$125,$AH$132)*$AB$20 -> 0 | AI141: =COUNTIF($D$125:$AA$125,$AI$132)*$AB$20 -> 0 | AJ141: =COUNTIF($D$125:$AA$125,$AJ$132)*$AB$20 -> 0 | AK141: =COUNTIF($D$125:$AA$125,$AK$132)*$AB$20 -> 0 | AL141: =COUNTIF($D$125:$AA$125,$AL$132)*$AB$20 -> 0 | AM141: =COUNTIF($D$125:$AA$125,$AM$132)*$AB$20 -> 0 | AN141: =COUNTIF($D$125:$AA$125,$AN$132)*$AB$20 -> 0 | AO141: =COUNTIF($D$125:$AA$125,$AO$132)*$AB$20 -> 0 | AP141: =COUNTIF($D$125:$AA$125,$AP$132)*$AB$20 -> 0 | AQ141: =COUNTIF($D$125:$AA$125,$AQ$132)*$AB$20 -> 0 | AR141: =COUNTIF($D$125:$AA$125,$AR$132)*$AB$20 -> 0 | AS141: =COUNTIF($D$125:$AA$125,$AS$132)*$AB$20 -> 0 | AT141: 12 | AV141: 0 | AW141: 0 | AX141: 0 | AY141: 0 | AZ141: 0 | BB141: 0 | BC141: 0 | BE141: 0 | BF141: 0 | BI141: 0 | BJ141: 0 | BL141: 0 | BM141: 0 | BO141: 0 | BP141: 0
C142: 1 | D142: =COUNTIF($D$126:$AA$126,$D$132)*$AB$21 -> 0 | E142: =COUNTIF($D$126:$AA$126,$E$132)*$AB$21 -> 0 | F142: =COUNTIF($D$126:$AA$126,$F$132)*$AB$21 -> 0 | G142: =COUNTIF($D$126:$AA$126,$G$132)*$AB$21 -> 0 | H142: =COUNTIF($D$126:$AA$126,$H$132)*$AB$21 -> 0 | I142: =COUNTIF($D$126:$AA$126,$I$132)*$AB$21 -> 0 | J142: =COUNTIF($D$126:$AA$126,$J$132)*$AB$21 -> 0 | K142: =COUNTIF($D$126:$AA$126,$K$132)*$AB$21 -> 0 | L142: =COUNTIF($D$126:$AA$126,$L$132)*$AB$21 -> 0 | M142: =COUNTIF($D$126:$AA$126,$M$132)*$AB$21 -> 0 | N142: =COUNTIF($D$126:$AA$126,$N$132)*$AB$21 -> 0 | O142: =COUNTIF($D$126:$AA$126,$O$132)*$AB$21 -> 0 | P142: =COUNTIF($D$126:$AA$126,$P$132)*$AB$21 -> 0 | Q142: =COUNTIF($D$126:$AA$126,$Q$132)*$AB$21 -> 0 | R142: =COUNTIF($D$126:$AA$126,$R$132)*$AB$21 -> 0 | S142: =COUNTIF($D$126:$AA$126,$S$132)*$AB$21 -> 0 | T142: =COUNTIF($D$126:$AA$126,$T$132)*$AB$21 -> 0 | U142: =COUNTIF($D$126:$AA$126,$U$132)*$AB$21 -> 0 | V142: =COUNTIF($D$126:$AA$126,$V$132)*$AB$21 -> 0 | W142: =COUNTIF($D$126:$AA$126,$W$132)*$AB$21 -> 0 | X142: =COUNTIF($D$126:$AA$126,$X$132)*$AB$21 -> 0 | Y142: =COUNTIF($D$126:$AA$126,$Y$132)*$AB$21 -> 0 | Z142: =COUNTIF($D$126:$AA$126,$Z$132)*$AB$21 -> 0 | AA142: =COUNTIF($D$126:$AA$126,$AA$132)*$AB$21 -> 0 | AB142: =COUNTIF($D$126:$AA$126,$AB$132)*$AB$21 -> 0 | AC142: =COUNTIF($D$126:$AA$126,$AC$132)*$AB$21 -> 0 | AD142: =COUNTIF($D$126:$AA$126,$AD$132)*$AB$21 -> 0 | AE142: =COUNTIF($D$126:$AA$126,$AE$132)*$AB$21 -> 0 | AF142: =COUNTIF($D$126:$AA$126,$AF$132)*$AB$21 -> 0 | AG142: =COUNTIF($D$126:$AA$126,$AG$132)*$AB$21 -> 0 | AH142: =COUNTIF($D$126:$AA$126,$AH$132)*$AB$21 -> 0 | AI142: =COUNTIF($D$126:$AA$126,$AI$132)*$AB$21 -> 0 | AJ142: =COUNTIF($D$126:$AA$126,$AJ$132)*$AB$21 -> 0 | AK142: =COUNTIF($D$126:$AA$126,$AK$132)*$AB$21 -> 0 | AL142: =COUNTIF($D$126:$AA$126,$AL$132)*$AB$21 -> 0 | AM142: =COUNTIF($D$126:$AA$126,$AM$132)*$AB$21 -> 0 | AN142: =COUNTIF($D$126:$AA$126,$AN$132)*$AB$21 -> 0 | AO142: =COUNTIF($D$126:$AA$126,$AO$132)*$AB$21 -> 0 | AP142: =COUNTIF($D$126:$AA$126,$AP$132)*$AB$21 -> 0 | AQ142: =COUNTIF($D$126:$AA$126,$AQ$132)*$AB$21 -> 0 | AR142: =COUNTIF($D$126:$AA$126,$AR$132)*$AB$21 -> 0 | AS142: =COUNTIF($D$126:$AA$126,$AS$132)*$AB$21 -> 0 | AT142: 1 | AV142: 0 | AW142: 0 | AX142: 0 | AY142: 0 | AZ142: 0 | BB142: 0 | BC142: 0 | BE142: 0 | BF142: 0 | BI142: 0 | BJ142: 0 | BL142: 0 | BM142: 0 | BO142: 0 | BP142: 0
C143: 2 | D143: =COUNTIF($D$127:$AA$127,$D$132)*$AB$22 -> 0 | E143: =COUNTIF($D$127:$AA$127,$E$132)*$AB$22 -> 0 | F143: =COUNTIF($D$127:$AA$127,$F$132)*$AB$22 -> 0 | G143: =COUNTIF($D$127:$AA$127,$G$132)*$AB$22 -> 0 | H143: =COUNTIF($D$127:$AA$127,$H$132)*$AB$22 -> 0 | I143: =COUNTIF($D$127:$AA$127,$I$132)*$AB$22 -> 0 | J143: =COUNTIF($D$127:$AA$127,$J$132)*$AB$22 -> 0 | K143: =COUNTIF($D$127:$AA$127,$K$132)*$AB$22 -> 0 | L143: =COUNTIF($D$127:$AA$127,$L$132)*$AB$22 -> 0 | M143: =COUNTIF($D$127:$AA$127,$M$132)*$AB$22 -> 0 | N143: =COUNTIF($D$127:$AA$127,$N$132)*$AB$22 -> 0 | O143: =COUNTIF($D$127:$AA$127,$O$132)*$AB$22 -> 0 | P143: =COUNTIF($D$127:$AA$127,$P$132)*$AB$22 -> 0 | Q143: =COUNTIF($D$127:$AA$127,$Q$132)*$AB$22 -> 0 | R143: =COUNTIF($D$127:$AA$127,$R$132)*$AB$22 -> 0 | S143: =COUNTIF($D$127:$AA$127,$S$132)*$AB$22 -> 0 | T143: =COUNTIF($D$127:$AA$127,$T$132)*$AB$22 -> 0 | U143: =COUNTIF($D$127:$AA$127,$U$132)*$AB$22 -> 0 | V143: =COUNTIF($D$127:$AA$127,$V$132)*$AB$22 -> 0 | W143: =COUNTIF($D$127:$AA$127,$W$132)*$AB$22 -> 0 | X143: =COUNTIF($D$127:$AA$127,$X$132)*$AB$22 -> 0 | Y143: =COUNTIF($D$127:$AA$127,$Y$132)*$AB$22 -> 0 | Z143: =COUNTIF($D$127:$AA$127,$Z$132)*$AB$22 -> 0 | AA143: =COUNTIF($D$127:$AA$127,$AA$132)*$AB$22 -> 0 | AB143: =COUNTIF($D$127:$AA$127,$AB$132)*$AB$22 -> 0 | AC143: =COUNTIF($D$127:$AA$127,$AC$132)*$AB$22 -> 0 | AD143: =COUNTIF($D$127:$AA$127,$AD$132)*$AB$22 -> 0 | AE143: =COUNTIF($D$127:$AA$127,$AE$132)*$AB$22 -> 0 | AF143: =COUNTIF($D$127:$AA$127,$AF$132)*$AB$22 -> 0 | AG143: =COUNTIF($D$127:$AA$127,$AG$132)*$AB$22 -> 0 | AH143: =COUNTIF($D$127:$AA$127,$AH$132)*$AB$22 -> 0 | AI143: =COUNTIF($D$127:$AA$127,$AI$132)*$AB$22 -> 0 | AJ143: =COUNTIF($D$127:$AA$127,$AJ$132)*$AB$22 -> 0 | AK143: =COUNTIF($D$127:$AA$127,$AK$132)*$AB$22 -> 0 | AL143: =COUNTIF($D$127:$AA$127,$AL$132)*$AB$22 -> 0 | AM143: =COUNTIF($D$127:$AA$127,$AM$132)*$AB$22 -> 0 | AN143: =COUNTIF($D$127:$AA$127,$AN$132)*$AB$22 -> 0 | AO143: =COUNTIF($D$127:$AA$127,$AO$132)*$AB$22 -> 0 | AP143: =COUNTIF($D$127:$AA$127,$AP$132)*$AB$22 -> 0 | AQ143: =COUNTIF($D$127:$AA$127,$AQ$132)*$AB$22 -> 0 | AR143: =COUNTIF($D$127:$AA$127,$AR$132)*$AB$22 -> 0 | AS143: =COUNTIF($D$127:$AA$127,$AS$132)*$AB$22 -> 0 | AT143: 2 | AV143: 0 | AW143: 0 | AX143: 0 | AY143: 0 | AZ143: 0 | BB143: 0 | BC143: 0 | BE143: 0 | BF143: 0 | BI143: 0 | BJ143: 0 | BL143: 0 | BM143: 0 | BO143: 0 | BP143: 0
C144: 3 | D144: =COUNTIF($D$128:$AA$128,$D$132)*$AB$23 -> 0 | E144: =COUNTIF($D$128:$AA$128,$E$132)*$AB$23 -> 0 | F144: =COUNTIF($D$128:$AA$128,$F$132)*$AB$23 -> 0 | G144: =COUNTIF($D$128:$AA$128,$G$132)*$AB$23 -> 0 | H144: =COUNTIF($D$128:$AA$128,$H$132)*$AB$23 -> 0 | I144: =COUNTIF($D$128:$AA$128,$I$132)*$AB$23 -> 0 | J144: =COUNTIF($D$128:$AA$128,$J$132)*$AB$23 -> 0 | K144: =COUNTIF($D$128:$AA$128,$K$132)*$AB$23 -> 0 | L144: =COUNTIF($D$128:$AA$128,$L$132)*$AB$23 -> 0 | M144: =COUNTIF($D$128:$AA$128,$M$132)*$AB$23 -> 0 | N144: =COUNTIF($D$128:$AA$128,$N$132)*$AB$23 -> 0 | O144: =COUNTIF($D$128:$AA$128,$O$132)*$AB$23 -> 0 | P144: =COUNTIF($D$128:$AA$128,$P$132)*$AB$23 -> 0 | Q144: =COUNTIF($D$128:$AA$128,$Q$132)*$AB$23 -> 0 | R144: =COUNTIF($D$128:$AA$128,$R$132)*$AB$23 -> 0 | S144: =COUNTIF($D$128:$AA$128,$S$132)*$AB$23 -> 0 | T144: =COUNTIF($D$128:$AA$128,$T$132)*$AB$23 -> 0 | U144: =COUNTIF($D$128:$AA$128,$U$132)*$AB$23 -> 0 | V144: =COUNTIF($D$128:$AA$128,$V$132)*$AB$23 -> 0 | W144: =COUNTIF($D$128:$AA$128,$W$132)*$AB$23 -> 0 | X144: =COUNTIF($D$128:$AA$128,$X$132)*$AB$23 -> 0 | Y144: =COUNTIF($D$128:$AA$128,$Y$132)*$AB$23 -> 0 | Z144: =COUNTIF($D$128:$AA$128,$Z$132)*$AB$23 -> 0 | AA144: =COUNTIF($D$128:$AA$128,$AA$132)*$AB$23 -> 0 | AB144: =COUNTIF($D$128:$AA$128,$AB$132)*$AB$23 -> 0 | AC144: =COUNTIF($D$128:$AA$128,$AC$132)*$AB$23 -> 0 | AD144: =COUNTIF($D$128:$AA$128,$AD$132)*$AB$23 -> 0 | AE144: =COUNTIF($D$128:$AA$128,$AE$132)*$AB$23 -> 0 | AF144: =COUNTIF($D$128:$AA$128,$AF$132)*$AB$23 -> 0 | AG144: =COUNTIF($D$128:$AA$128,$AG$132)*$AB$23 -> 0 | AH144: =COUNTIF($D$128:$AA$128,$AH$132)*$AB$23 -> 0 | AI144: =COUNTIF($D$128:$AA$128,$AI$132)*$AB$23 -> 0 | AJ144: =COUNTIF($D$128:$AA$128,$AJ$132)*$AB$23 -> 0 | AK144: =COUNTIF($D$128:$AA$128,$AK$132)*$AB$23 -> 0 | AL144: =COUNTIF($D$128:$AA$128,$AL$132)*$AB$23 -> 0 | AM144: =COUNTIF($D$128:$AA$128,$AM$132)*$AB$23 -> 0 | AN144: =COUNTIF($D$128:$AA$128,$AN$132)*$AB$23 -> 0 | AO144: =COUNTIF($D$128:$AA$128,$AO$132)*$AB$23 -> 0 | AP144: =COUNTIF($D$128:$AA$128,$AP$132)*$AB$23 -> 0 | AQ144: =COUNTIF($D$128:$AA$128,$AQ$132)*$AB$23 -> 0 | AR144: =COUNTIF($D$128:$AA$128,$AR$132)*$AB$23 -> 0 | AS144: =COUNTIF($D$128:$AA$128,$AS$132)*$AB$23 -> 0 | AT144: 3 | AV144: 0 | AW144: 0 | AX144: 0 | AY144: 0 | AZ144: 0 | BB144: 0 | BC144: 0 | BE144: 0 | BF144: 0 | BI144: 0 | BJ144: 0 | BL144: 0 | BM144: 0 | BO144: 0 | BP144: 0
B145: tc | C145: 冷却運転時間 | D145: =SUM($D$133:$D$144) -> 0 | E145: =SUM($E$133:$E$144) -> 0 | F145: =SUM($F$133:$F$144) -> 0 | G145: =SUM($G$133:$G$144) -> 0 | H145: =SUM($H$133:$H$144) -> 0 | I145: =SUM($I$133:$I$144) -> 0 | J145: =SUM($J$133:$J$144) -> 0 | K145: =SUM($K$133:$K$144) -> 0 | L145: =SUM($L$133:$L$144) -> 0 | M145: =SUM($M$133:$M$144) -> 0 | N145: =SUM($N$133:$N$144) -> 0 | O145: =SUM($O$133:$O$144) -> 0 | P145: =SUM($P$133:$P$144) -> 0 | Q145: =SUM($Q$133:$Q$144) -> 0 | R145: =SUM($R$133:$R$144) -> 0 | S145: =SUM($S$133:$S$144) -> 0 | T145: =SUM($T$133:$T$144) -> 0 | U145: =SUM($U$133:$U$144) -> 0 | V145: =SUM($V$133:$V$144) -> 0 | W145: =SUM($W$133:$W$144) -> 0 | X145: =SUM($X$133:$X$144) -> 0 | Y145: =SUM($Y$133:$Y$144) -> 0 | Z145: =SUM($Z$133:$Z$144) -> 0 | AA145: =SUM($AA$133:$AA$144) -> 0 | AB145: =SUM($AB$133:$AB$144) -> 0 | AC145: =SUM($AC$133:$AC$144) -> 0 | AD145: =SUM($AD$133:$AD$144) -> 0 | AE145: =SUM($AE$133:$AE$144) -> 0 | AF145: =SUM($AF$133:$AF$144) -> 0 | AG145: =SUM($AG$133:$AG$144) -> 0 | AH145: =SUM($AH$133:$AH$144) -> 0 | AI145: =SUM($AI$133:$AI$144) -> 0 | AJ145: =SUM($AJ$133:$AJ$144) -> 0 | AK145: =SUM($AK$133:$AK$144) -> 0 | AL145: =SUM($AL$133:$AL$144) -> 0 | AM145: =SUM($AM$133:$AM$144) -> 0 | AN145: =SUM($AN$133:$AN$144) -> 0 | AO145: =SUM($AO$133:$AO$144) -> 0 | AP145: =SUM($AP$133:$AP$144) -> 0 | AQ145: =SUM($AQ$133:$AQ$144) -> 0 | AR145: =SUM($AR$133:$AR$144) -> 0 | AS145: =SUM($AS$133:$AS$144) -> 0 | AT145: 冷却運転時間 | AV145: =SUM($AV$133:$AV$144) -> 0 | AW145: =SUM($AW$133:$AW$144) -> 0 | AX145: =SUM($AX$133:$AX$144) -> 0 | AY145: =SUM($AY$133:$AY$144) -> 0 | AZ145: =SUM($AZ$133:$AZ$144) -> 0 | BA145: =SUM($BA$133:$BA$144) -> 0 | BB145: =SUM($BB$133:$BB$144) -> 0 | BC145: =SUM($BC$133:$BC$144) -> 0 | BD145: =SUM($BD$133:$BD$144) -> 0 | BE145: =SUM($BE$133:$BE$144) -> 0 | BF145: =SUM($BF$133:$BF$144) -> 0 | BH145: =SUM($BH$133:$BH$144) -> 0 | BI145: =SUM($BI$133:$BI$144) -> 0 | BJ145: =SUM($BJ$133:$BJ$144) -> 0 | BK145: =SUM($BK$133:$BK$144) -> 0 | BL145: =SUM($BL$133:$BL$144) -> 0 | BM145: =SUM($BM$133:$BM$144) -> 0 | BN145: =SUM($BN$133:$BN$144) -> 0 | BO145: =SUM($BO$133:$BO$144) -> 0 | BP145: =SUM($BP$133:$BP$144) -> 0
B146: εc | C146: 冷却時消費電力比 | D146: =$D$147/$D$148 -> 0 | E146: =$E$147/$E$148 -> 0 | F146: =$F$147/$F$148 -> 0 | G146: =$G$147/$G$148 -> 0 | H146: =$H$147/$H$148 -> 0 | I146: =$I$147/$I$148 -> 0 | J146: =$J$147/$J$148 -> 0 | K146: =$K$147/$K$148 -> 0 | L146: =$L$147/$L$148 -> 0 | M146: =$M$147/$M$148 -> 0 | N146: =$N$147/$N$148 -> 0 | O146: =$O$147/$O$148 -> 0 | P146: =$P$147/$P$148 -> 0 | Q146: =$Q$147/$Q$148 -> 0 | R146: =$R$147/$R$148 -> 0 | S146: =$S$147/$S$148 -> 0 | T146: =$T$147/$T$148 -> 0 | U146: =$U$147/$U$148 -> 0 | V146: =$V$147/$V$148 -> 0 | W146: =$W$147/$W$148 -> 0 | X146: =$X$147/$X$148 -> 0 | Y146: =$Y$147/$Y$148 -> 0 | Z146: =$Z$147/$Z$148 -> 0 | AA146: =$AA$147/$AA$148 -> 0 | AB146: =$AB$147/$AB$148 -> 0 | AC146: =$AC$147/$AC$148 -> 0 | AD146: =$AD$147/$AD$148 -> 0.08243902439 | AE146: =$AE$147/$AE$148 -> 0.1387934613 | AF146: =$AF$147/$AF$148 -> 0.1869206433 | AG146: =$AG$147/$AG$148 -> 0.2336016281 | AH146: =$AH$147/$AH$148 -> 0.2824132981 | AI146: =$AI$147/$AI$148 -> 0.3358023972 | AJ146: =$AJ$147/$AJ$148 -> 0.3957844925 | AK146: =$AK$147/$AK$148 -> 0.4641800253 | AL146: =$AL$147/$AL$148 -> 0.5426110015 | AM146: =$AM$147/$AM$148 -> 0.6322856195 | AN146: =$AN$147/$AN$148 -> 0.7335231523 | AO146: =$AO$147/$AO$148 -> 0.844961574 | AP146: =$AP$147/$AP$148 -> 0.9624861402 | AQ146: =$AQ$147/$AQ$148 -> 1.001185049 | AR146: =$AR$147/$AR$148 -> 1.022855225 | AS146: =$AS$147/$AS$148 -> 1.019181676 | AT146: 冷却時消費電力比 | AU146: εc
B147: αc | C147: 冷却空調負荷率 | D147: =IF((1/13)*(D$132-27)+1<0,0,IF((1/13)*(D$132-27)+1>1,1,(1/13)*(D$132-27)+1)) -> 0 | E147: =IF((1/13)*(E$132-27)+1<0,0,IF((1/13)*(E$132-27)+1>1,1,(1/13)*(E$132-27)+1)) -> 0 | F147: =IF((1/13)*(F$132-27)+1<0,0,IF((1/13)*(F$132-27)+1>1,1,(1/13)*(F$132-27)+1)) -> 0 | G147: 0 | H147: 0 | I147: 0 | J147: 0 | K147: 0 | L147: 0 | M147: 0 | N147: 0 | O147: 0 | P147: 0 | Q147: 0 | R147: 0 | S147: 0 | T147: 0 | U147: 0 | V147: 0 | W147: 0 | X147: 0 | Y147: 0 | Z147: 0 | AA147: 0 | AB147: 0 | AC147: 0 | AD147: 0.07692307692 | AE147: 0.1538461538 | AF147: 0.2307692308 | AG147: 0.3076923077 | AH147: 0.3846153846 | AI147: 0.4615384615 | AJ147: 0.5384615385 | AK147: 0.6153846154 | AL147: 0.6923076923 | AM147: 0.7692307692 | AN147: 0.8461538462 | AO147: 0.9230769231 | AP147: 1 | AQ147: 1 | AR147: 1 | AS147: 1 | AT147: 冷却空調負荷率 | AU147: αc
B148: βc | C148: 冷却COP比 | D148: =3.57/10000*D$149*D$149*D$149-3.08/100*D$149*D$149+0.84*D$149-6 -> -39.53456651 | E148: =3.57/10000*E$149*E$149*E$149-3.08/100*E$149*E$149+0.84*E$149-6 -> -36.0833523 | F148: =3.57/10000*F$149*F$149*F$149-3.08/100*F$149*F$149+0.84*F$149-6 -> -32.82920736 | G148: -29.7664457 | H148: -26.88938132 | I148: -24.1923282 | J148: -21.66960036 | K148: -19.3155118 | L148: -17.1243765 | M148: -15.09050847 | N148: -13.20822171 | O148: -11.47183022 | P148: -9.875648 | Q148: -8.413989043 | R148: -7.081167352 | S148: -5.871496925 | T148: -4.779291761 | U148: -3.798865861 | V148: -2.924533222 | W148: -2.150607843 | X148: -1.471403725 | Y148: -0.8812348657 | Z148: -0.3744152645 | AA148: =3.57/10000*AA$149*AA$149*AA$149-3.08/100*AA$149*AA$149+0.84*AA$149-6 -> 0.05474107965 | AB148: =3.57/10000*AB$149*AB$149*AB$149-3.08/100*AB$149*AB$149+0.84*AB$149-6 -> 0.4119201675 | AC148: =3.57/10000*AC$149*AC$149*AC$149-3.08/100*AC$149*AC$149+0.84*AC$149-6 -> 0.702808 | AD148: 0.9330905781 | AE148: 1.108453903 | AF148: 1.234583975 | AG148: 1.317166795 | AH148: 1.361888364 | AI148: 1.374434684 | AJ148: 1.360491754 | AK148: 1.325745577 | AL148: 1.275882152 | AM148: 1.216587481 | AN148: 1.153547565 | AO148: 1.092448404 | AP148: 1.038976 | AQ148: 0.9988163532 | AR148: 0.9776554647 | AS148: 0.9811793355 | AT148: 冷却COP比 | AU148: βc
B149: Tc1 | C149: 冷却水入口温度 | D149: =(18/13)*(D$132-27)+32 -> -20.61538462 | E149: =(18/13)*(E$132-27)+32 -> -19.23076923 | F149: -17.84615385 | G149: -16.46153846 | H149: -15.07692308 | I149: -13.69230769 | J149: -12.30769231 | K149: =(18/13)*(K$132-27)+32 -> -10.92307692 | L149: -9.538461538 | M149: -8.153846154 | N149: -6.769230769 | O149: -5.384615385 | P149: -4 | Q149: -2.615384615 | R149: -1.230769231 | S149: 0.1538461538 | T149: 1.538461538 | U149: 2.923076923 | V149: 4.307692308 | W149: 5.692307692 | X149: 7.076923077 | Y149: 8.461538462 | Z149: 9.846153846 | AA149: 11.23076923 | AB149: 12.61538462 | AC149: 14 | AD149: 15.38461538 | AE149: 16.76923077 | AF149: 18.15384615 | AG149: 19.53846154 | AH149: 20.92307692 | AI149: 22.30769231 | AJ149: 23.69230769 | AK149: 25.07692308 | AL149: 26.46153846 | AM149: 27.84615385 | AN149: 29.23076923 | AO149: 30.61538462 | AP149: 32 | AQ149: 33.38461538 | AR149: 34.76923077 | AS149: 36.15384615 | AT149: 冷却水入口温度 | AU149: Tc1
C150: Σ | D150: =D145*D146 -> 0 | E150: =E145*E146 -> 0 | F150: 0 | G150: 0 | H150: 0 | I150: 0 | J150: 0 | K150: 0 | L150: 0 | M150: 0 | N150: 0 | O150: 0 | P150: 0 | Q150: 0 | R150: 0 | S150: 0 | T150: 0 | U150: 0 | V150: 0 | W150: 0 | X150: 0 | Y150: 0 | Z150: 0 | AA150: 0 | AB150: 0 | AC150: 0 | AD150: 0 | AE150: 0 | AF150: 0 | AG150: 0 | AH150: 0 | AI150: 0 | AJ150: 0 | AK150: 0 | AL150: 0 | AM150: 0 | AN150: 0 | AO150: 0 | AP150: 0 | AQ150: 0 | AR150: 0 | AS150: 0 | AT150: =SUM(D150:AS150) -> 0 | AU150: Σ
C152: αc^0.6 | D152: =D147^0.6 -> 0 | E152: =E147^0.6 -> 0 | F152: 0 | G152: 0 | H152: 0 | I152: 0 | J152: 0 | K152: 0 | L152: 0 | M152: 0 | N152: 0 | O152: 0 | P152: 0 | Q152: 0 | R152: 0 | S152: 0 | T152: 0 | U152: 0 | V152: 0 | W152: 0 | X152: 0 | Y152: 0 | Z152: 0 | AA152: 0 | AB152: 0 | AC152: 0 | AD152: 0.2146021105 | AE152: 0.325275974 | AF152: 0.4148649467 | AG152: 0.4930261825 | AH152: 0.56365841 | AI152: 0.6288176726 | AJ152: 0.6897517525 | AK152: 0.7472879526 | AL152: 0.8020094661 | AM152: 0.8543463899 | AN152: 0.9046271123 | AO152: 0.9531093637 | AP152: 1 | AQ152: 1 | AR152: 1 | AS152: 1 | AT152: αc^0.6
C153: Σ | D153: =D$152*D$145 -> 0 | E153: =E$152*E$145 -> 0 | F153: 0 | G153: 0 | H153: 0 | I153: 0 | J153: 0 | K153: 0 | L153: 0 | M153: 0 | N153: 0 | O153: 0 | P153: 0 | Q153: 0 | R153: 0 | S153: 0 | T153: 0 | U153: 0 | V153: 0 | W153: 0 | X153: 0 | Y153: 0 | Z153: 0 | AA153: 0 | AB153: 0 | AC153: 0 | AD153: 0 | AE153: 0 | AF153: 0 | AG153: 0 | AH153: 0 | AI153: 0 | AJ153: 0 | AK153: 0 | AL153: 0 | AM153: 0 | AN153: 0 | AO153: 0 | AP153: 0 | AQ153: 0 | AR153: 0 | AS153: 0 | AT153: =SUM(D153:AS153) -> 0

Sheet 管理 (hidden)
B2: 管理番号 | C2: 起票日 | D2: 起票者 | E2: 区分 | F2: 状態 | G2: 内容 | H2: 担当者 | I2: 対応日 | J2: 対応内容
B3: 0 | C3: 2023-02-01 | D3: ●●● | E3: バグ／課題／要望 | F3: 発生／完了／対応なし | G3: 発生状況等 | H3: ■■■ | I3: 2023-02-05
B4: 1 | C4: 2025-01-23 | D4: hayakawa | E4: Ver.1.0 | F4: 完了 | G4: バージョン変更 | H4: hayakawa | I4: 2025-01-23 | J4: 内容変更
B5: 2
B6: 3
B7: 4
B8: 5
B9: 6
B10: 7
B11: 8
B12: 9
B13: 10
B14: 11
B15: 12
B16: 13
B17: 14
B18: 15
B19: 16
B20: 17
B21: 18
B22: 19
B23: 20
B24: 21
B25: 22
B26: 23
B27: 24
B28: 25
B29: 26
B30: 27
B31: 28
B32: 29
B33: 30
B34: 31
B35: 32
B36: 33
B37: 34
B38: 35
B39: 36
B40: 37
B41: 38
B42: 39
B43: 40

Sheet 都道府県庁所在地等一覧表 (hidden)
B2: 都道府県
C3: 都道府県名 | D3: data取得都市名 | E3: 県庁所在都市名
B4: 1 | C4: 北海道 | D4: 札幌 | E4: 札幌
B5: 2 | C5: 青森 | D5: 青森 | E5: 青森
B6: 3 | C6: 岩手 | D6: 盛岡 | E6: 盛岡
B7: 4 | C7: 宮城 | D7: 仙台 | E7: 仙台
B8: 5 | C8: 秋田 | D8: 秋田 | E8: 秋田
B9: 6 | C9: 山形 | D9: 山形 | E9: 山形
B10: 7 | C10: 福島 | D10: 福島 | E10: 福島
B11: 8 | C11: 茨城 | D11: 水戸 | E11: 水戸
B12: 9 | C12: 栃木 | D12: 宇都宮 | E12: 宇都宮
B13: 10 | C13: 群馬 | D13: 前橋 | E13: 前橋
B14: 11 | C14: 埼玉 | D14: 熊谷 | E14: さいたま
B15: 12 | C15: 千葉 | D15: 千葉 | E15: 千葉
B16: 13 | C16: 東京 | D16: 東京 | E16: 東京
B17: 14 | C17: 神奈川 | D17: 横浜 | E17: 横浜
B18: 15 | C18: 新潟 | D18: 新潟 | E18: 新潟
B19: 16 | C19: 富山 | D19: 富山 | E19: 富山
B20: 17 | C20: 石川 | D20: 金沢 | E20: 金沢
B21: 18 | C21: 福井 | D21: 福井 | E21: 福井
B22: 19 | C22: 山梨 | D22: 甲府 | E22: 甲府
B23: 20 | C23: 長野 | D23: 長野 | E23: 長野
B24: 21 | C24: 岐阜 | D24: 岐阜 | E24: 岐阜
B25: 22 | C25: 静岡 | D25: 静岡 | E25: 静岡
B26: 23 | C26: 愛知 | D26: 名古屋 | E26: 名古屋
B27: 24 | C27: 三重 | D27: 津 | E27: 津
B28: 25 | C28: 滋賀 | D28: 彦根 | E28: 大津
B29: 26 | C29: 京都 | D29: 京都 | E29: 京都
B30: 27 | C30: 大阪 | D30: 大阪 | E30: 大阪
B31: 28 | C31: 兵庫 | D31: 神戸 | E31: 神戸
B32: 29 | C32: 奈良 | D32: 奈良 | E32: 奈良
B33: 30 | C33: 和歌山 | D33: 和歌山 | E33: 和歌山
B34: 31 | C34: 鳥取 | D34: 鳥取 | E34: 鳥取
B35: 32 | C35: 島根 | D35: 松江 | E35: 松江
B36: 33 | C36: 岡山 | D36: 岡山 | E36: 岡山
B37: 34 | C37: 広島 | D37: 広島 | E37: 広島
B38: 35 | C38: 山口 | D38: 山口 | E38: 山口
B39: 36 | C39: 徳島 | D39: 徳島 | E39: 徳島
B40: 37 | C40: 香川 | D40: 高松 | E40: 高松
B41: 38 | C41: 愛媛 | D41: 松山 | E41: 松山
B42: 39 | C42: 高知 | D42: 高知 | E42: 高知
B43: 40 | C43: 福岡 | D43: 福岡 | E43: 福岡
B44: 41 | C44: 佐賀 | D44: 佐賀 | E44: 佐賀
B45: 42 | C45: 長崎 | D45: 長崎 | E45: 長崎
B46: 43 | C46: 熊本 | D46: 熊本 | E46: 熊本
B47: 44 | C47: 大分 | D47: 大分 | E47: 大分
B48: 45 | C48: 宮崎 | D48: 宮崎 | E48: 宮崎
B49: 46 | C49: 鹿児島 | D49: 鹿児島 | E49: 鹿児島
B50: 47 | C50: 沖縄 | D50: 那覇 | E50: 那覇

Sheet 札幌 (hidden)
A1: 気象データ
A2: =RIGHT(CELL("filename",A2),LEN(CELL("filename",A2))-FIND("]",CELL("filename",A2))) -> 札幌
A3: 時刻別平均外気湿球温度
A4: 時刻 | B4: 0 | C4: 1 | D4: 2 | E4: 3 | F4: 4 | G4: 5 | H4: 6 | I4: 7 | J4: 8 | K4: 9 | L4: 10 | M4: 11 | N4: 12 | O4: 13 | P4: 14 | Q4: 15 | R4: 16 | S4: 17 | T4: 18 | U4: 19 | V4: 20 | W4: 21 | X4: 22 | Y4: 23
A5: 4月 | B5: 3.1 | C5: 2.9 | D5: 2.8 | E5: 2.6 | F5: 2.5 | G5: 2.4 | H5: 2.6 | I5: 3.1 | J5: 3.9 | K5: 4.5 | L5: 4.9 | M5: 5.2 | N5: 5.5 | O5: 5.5 | P5: 5.5 | Q5: 5.3 | R5: 5.1 | S5: 4.8 | T5: 4.5 | U5: 4.3 | V5: 4.1 | W5: 3.8 | X5: 3.6 | Y5: 3.4
A6: 5月 | B6: 8.4 | C6: 8.2 | D6: 8.1 | E6: 7.9 | F6: 7.8 | G6: 7.8 | H6: 8.2 | I6: 8.8 | J6: 9.5 | K6: 10 | L6: 10.4 | M6: 10.7 | N6: 10.9 | O6: 10.9 | P6: 10.8 | Q6: 10.6 | R6: 10.4 | S6: 10.1 | T6: 9.7 | U6: 9.5 | V6: 9.3 | W6: 9.1 | X6: 8.9 | Y6: 8.7
A7: 6月 | B7: 12.9 | C7: 12.8 | D7: 12.6 | E7: 12.5 | F7: 12.4 | G7: 12.4 | H7: 12.7 | I7: 13.2 | J7: 13.8 | K7: 14.4 | L7: 14.8 | M7: 15.1 | N7: 15.2 | O7: 15.3 | P7: 15.3 | Q7: 15.1 | R7: 14.9 | S7: 14.6 | T7: 14.3 | U7: 14 | V7: 13.8 | W7: 13.6 | X7: 13.4 | Y7: 13.2
A8: 7月 | B8: 17.3 | C8: 17.1 | D8: 17 | E8: 16.9 | F8: 16.8 | G8: 16.8 | H8: 17 | I8: 17.5 | J8: 18 | K8: 18.5 | L8: 18.8 | M8: 19.1 | N8: 19.3 | O8: 19.3 | P8: 19.3 | Q8: 19.2 | R8: 19 | S8: 18.8 | T8: 18.5 | U8: 18.2 | V8: 18 | W8: 17.9 | X8: 17.7 | Y8: 17.6
A9: 8月 | B9: 18.6 | C9: 18.4 | D9: 18.3 | E9: 18.1 | F9: 18 | G9: 18 | H9: 18.1 | I9: 18.5 | J9: 19 | K9: 19.4 | L9: 19.7 | M9: 19.9 | N9: 20.1 | O9: 20.2 | P9: 20.2 | Q9: 20.1 | R9: 19.9 | S9: 19.7 | T9: 19.5 | U9: 19.3 | V9: 19.1 | W9: 18.9 | X9: 18.8 | Y9: 18.6
A10: 9月 | B10: 14.6 | C10: 14.5 | D10: 14.3 | E10: 14.1 | F10: 14 | G10: 13.9 | H10: 13.9 | I10: 14.4 | J10: 15 | K10: 15.6 | L10: 15.9 | M10: 16.1 | N10: 16.3 | O10: 16.3 | P10: 16.3 | Q10: 16.2 | R10: 16 | S10: 15.8 | T10: 15.6 | U10: 15.4 | V10: 15.2 | W10: 15 | X10: 14.8 | Y10: 14.6
A11: 10月 | B11: 8.5 | C11: 8.3 | D11: 8.1 | E11: 8 | F11: 7.8 | G11: 7.7 | H11: 7.6 | I11: 7.9 | J11: 8.7 | K11: 9.3 | L11: 9.8 | M11: 10.1 | N11: 10.3 | O11: 10.3 | P11: 10.3 | Q11: 10.2 | R11: 9.9 | S11: 9.6 | T11: 9.4 | U11: 9.2 | V11: 9 | W11: 8.8 | X11: 8.6 | Y11: 8.4
A12: 11月 | B12: 2.5 | C12: 2.4 | D12: 2.3 | E12: 2.1 | F12: 2.1 | G12: 2 | H12: 1.9 | I12: 2 | J12: 2.5 | K12: 3 | L12: 3.5 | M12: 3.8 | N12: 4 | O12: 4 | P12: 3.9 | Q12: 3.8 | R12: 3.5 | S12: 3.3 | T12: 3.1 | U12: 2.9 | V12: 2.7 | W12: 2.6 | X12: 2.5 | Y12: 2.3
A13: 12月 | B13: -3 | C13: -3.1 | D13: -3.2 | E13: -3.2 | F13: -3.3 | G13: -3.3 | H13: -3.4 | I13: -3.4 | J13: -3.2 | K13: -2.6 | L13: -2.2 | M13: -1.8 | N13: -1.6 | O13: -1.6 | P13: -1.6 | Q13: -1.8 | R13: -2 | S13: -2.2 | T13: -2.4 | U13: -2.5 | V13: -2.6 | W13: -2.8 | X13: -2.9 | Y13: -3
A14: 1月 | B14: -5.3 | C14: -5.4 | D14: -5.5 | E14: -5.6 | F14: -5.6 | G14: -5.7 | H14: -5.8 | I14: -5.8 | J14: -5.5 | K14: -4.9 | L14: -4.4 | M14: -4 | N14: -3.7 | O14: -3.6 | P14: -3.5 | Q14: -3.7 | R14: -3.9 | S14: -4.1 | T14: -4.3 | U14: -4.5 | V14: -4.7 | W14: -4.9 | X14: -5 | Y14: -5.2
A15: 2月 | B15: -4.8 | C15: -5 | D15: -5.1 | E15: -5.3 | F15: -5.4 | G15: -5.5 | H15: -5.6 | I15: -5.6 | J15: -5.1 | K15: -4.3 | L15: -3.8 | M15: -3.3 | N15: -3.1 | O15: -2.9 | P15: -2.9 | Q15: -2.9 | R15: -3.2 | S15: -3.5 | T15: -3.7 | U15: -3.8 | V15: -4 | W15: -4.2 | X15: -4.3 | Y15: -4.5
A16: 3月 | B16: -1.6 | C16: -1.7 | D16: -1.9 | E16: -2 | F16: -2.1 | G16: -2.2 | H16: -2.3 | I16: -2 | J16: -1.3 | K16: -0.7 | L16: -0.2 | M16: 0.1 | N16: 0.3 | O16: 0.3 | P16: 0.4 | Q16: 0.2 | R16: 0.1 | S16: -0.2 | T16: -0.4 | U16: -0.6 | V16: -0.8 | W16: -1 | X16: -1.1 | Y16: -1.3

Sheet 青森 (hidden)
A1: 気象データ
A2: =RIGHT(CELL("filename",A2),LEN(CELL("filename",A2))-FIND("]",CELL("filename",A2))) -> 青森
A3: 時刻別平均外気湿球温度
A4: 時刻 | B4: 0 | C4: 1 | D4: 2 | E4: 3 | F4: 4 | G4: 5 | H4: 6 | I4: 7 | J4: 8 | K4: 9 | L4: 10 | M4: 11 | N4: 12 | O4: 13 | P4: 14 | Q4: 15 | R4: 16 | S4: 17 | T4: 18 | U4: 19 | V4: 20 | W4: 21 | X4: 22 | Y4: 23
A5: 4月 | B5: 3.1 | C5: 2.9 | D5: 2.8 | E5: 2.7 | F5: 2.5 | G5: 2.4 | H5: 2.6 | I5: 3.2 | J5: 3.9 | K5: 4.5 | L5: 5 | M5: 5.3 | N5: 5.5 | O5: 5.6 | P5: 5.5 | Q5: 5.4 | R5: 5.2 | S5: 4.8 | T5: 4.5 | U5: 4.3 | V5: 4.1 | W5: 3.9 | X5: 3.6 | Y5: 3.5
A6: 5月 | B6: 8.4 | C6: 8.2 | D6: 8.1 | E6: 7.9 | F6: 7.8 | G6: 7.8 | H6: 8.2 | I6: 8.8 | J6: 9.5 | K6: 10 | L6: 10.4 | M6: 10.7 | N6: 10.9 | O6: 10.9 | P6: 10.8 | Q6: 10.6 | R6: 10.4 | S6: 10.1 | T6: 9.7 | U6: 9.5 | V6: 9.3 | W6: 9.1 | X6: 8.9 | Y6: 8.7
A7: 6月 | B7: 12.9 | C7: 12.8 | D7: 12.6 | E7: 12.5 | F7: 12.4 | G7: 12.4 | H7: 12.7 | I7: 13.2 | J7: 13.8 | K7: 14.4 | L7: 14.8 | M7: 15.1 | N7: 15.2 | O7: 15.3 | P7: 15.3 | Q7: 15.1 | R7: 14.9 | S7: 14.6 | T7: 14.3 | U7: 14 | V7: 13.8 | W7: 13.6 | X7: 13.4 | Y7: 13.2
A8: 7月 | B8: 17.3 | C8: 17.1 | D8: 17 | E8: 16.9 | F8: 16.8 | G8: 16.8 | H8: 17 | I8: 17.5 | J8: 18 | K8: 18.5 | L8: 18.8 | M8: 19.1 | N8: 19.3 | O8: 19.3 | P8: 19.3 | Q8: 19.2 | R8: 19 | S8: 18.8 | T8: 18.5 | U8: 18.2 | V8: 18 | W8: 17.9 | X8: 17.7 | Y8: 17.6
A9: 8月 | B9: 18.6 | C9: 18.4 | D9: 18.3 | E9: 18.1 | F9: 18 | G9: 18 | H9: 18.1 | I9: 18.5 | J9: 19 | K9: 19.4 | L9: 19.7 | M9: 19.9 | N9: 20.1 | O9: 20.2 | P9: 20.2 | Q9: 20.1 | R9: 19.9 | S9: 19.7 | T9: 19.5 | U9: 19.3 | V9: 19.1 | W9: 18.9 | X9: 18.8 | Y9: 18.6
A10: 9月 | B10: 14.6 | C10: 14.5 | D10: 14.3 | E10: 14.1 | F10: 14 | G10: 13.9 | H10: 13.9 | I10: 14.4 | J10: 15 | K10: 15.6 | L10: 15.9 | M10: 16.1 | N10: 16.3 | O10: 16.3 | P10: 16.3 | Q10: 16.2 | R10: 16 | S10: 15.8 | T10: 15.6 | U10: 15.4 | V10: 15.2 | W10: 15 | X10: 14.8 | Y10: 14.6
A11: 10月 | B11: 8.5 | C11: 8.3 | D11: 8.1 | E11: 8 | F11: 7.8 | G11: 7.7 | H11: 7.6 | I11: 7.9 | J11: 8.7 | K11: 9.3 | L11: 9.8 | M11: 10.1 | N11: 10.3 | O11: 10.3 | P11: 10.3 | Q11: 10.2 | R11: 9.9 | S11: 9.6 | T11: 9.4 | U11: 9.2 | V11: 9 | W11: 8.8 | X11: 8.6 | Y11: 8.4
A12: 11月 | B12: 2.5 | C12: 2.4 | D12: 2.3 | E12: 2.1 | F12: 2.1 | G12: 2 | H12: 1.9 | I12: 2 | J12: 2.5 | K12: 3 | L12: 3.5 | M12: 3.8 | N12: 4 | O12: 4 | P12: 3.9 | Q12: 3.8 | R12: 3.5 | S12: 3.3 | T12: 3.1 | U12: 2.9 | V12: 2.7 | W12: 2.6 | X12: 2.5 | Y12: 2.3
A13: 12月 | B13: -3 | C13: -3.1 | D13: -3.2 | E13: -3.2 | F13: -3.3 | G13: -3.3 | H13: -3.4 | I13: -3.4 | J13: -3.2 | K13: -2.6 | L13: -2.2 | M13: -1.8 | N13: -1.6 | O13: -1.6 | P13: -1.6 | Q13: -1.8 | R13: -2 | S13: -2.2 | T13: -2.4 | U13: -2.5 | V13: -2.6 | W13: -2.8 | X13: -2.9 | Y13: -3
A14: 1月 | B14: -5.3 | C14: -5.4 | D14: -5.5 | E14: -5.6 | F14: -5.6 | G14: -5.7 | H14: -5.8 | I14: -5.8 | J14: -5.5 | K14: -4.9 | L14: -4.4 | M14: -4 | N14: -3.7 | O14: -3.6 | P14: -3.5 | Q14: -3.7 | R14: -3.9 | S14: -4.1 | T14: -4.3 | U14: -4.5 | V14: -4.7 | W14: -4.9 | X14: -5 | Y14: -5.2
A15: 2月 | B15: -4.8 | C15: -5 | D15: -5.1 | E15: -5.3 | F15: -5.4 | G15: -5.5 | H15: -5.6 | I15: -5.6 | J15: -5.1 | K15: -4.3 | L15: -3.8 | M15: -3.3 | N15: -3.1 | O15: -2.9 | P15: -2.9 | Q15: -2.9 | R15: -3.2 | S15: -3.5 | T15: -3.7 | U15: -3.8 | V15: -4 | W15: -4.2 | X15: -4.3 | Y15: -4.5
A16: 3月 | B16: -1.6 | C16: -1.7 | D16: -1.9 | E16: -2 | F16: -2.1 | G16: -2.2 | H16: -2.3 | I16: -2 | J16: -1.3 | K16: -0.7 | L16: -0.2 | M16: 0.1 | N16: 0.3 | O16: 0.3 | P16: 0.4 | Q16: 0.2 | R16: 0.1 | S16: -0.2 | T16: -0.4 | U16: -0.6 | V16: -0.8 | W16: -1 | X16: -1.1 | Y16: -1.3

Sheet 盛岡 (hidden)
A1: 気象データ
A2: =RIGHT(CELL("filename",A2),LEN(CELL("filename",A2))-FIND("]",CELL("filename",A2))) -> 盛岡
A3: 時刻別平均外気湿球温度
A4: 時刻 | B4: 0 | C4: 1 | D4: 2 | E4: 3 | F4: 4 | G4: 5 | H4: 6 | I4: 7 | J4: 8 | K4: 9 | L4: 10 | M4: 11 | N4: 12 | O4: 13 | P4: 14 | Q4: 15 | R4: 16 | S4: 17 | T4: 18 | U4: 19 | V4: 20 | W4: 21 | X4: 22 | Y4: 23
A5: 4月 | B5: 4.2 | C5: 3.9 | D5: 3.7 | E5: 3.5 | F5: 3.3 | G5: 3.1 | H5: 3.3 | I5: 4.2 | J5: 5 | K5: 5.8 | L5: 6.4 | M5: 6.9 | N5: 7.2 | O5: 7.4 | P5: 7.5 | Q5: 7.4 | R5: 7.2 | S5: 6.9 | T5: 6.4 | U5: 6.1 | V5: 5.7 | W5: 5.3 | X5: 5 | Y5: 4.7
A6: 5月 | B6: 9.9 | C6: 9.6 | D6: 9.4 | E6: 9.1 | F6: 8.9 | G6: 8.9 | H6: 9.4 | I6: 10.1 | J6: 10.8 | K6: 11.4 | L6: 11.9 | M6: 12.3 | N6: 12.6 | O6: 12.9 | P6: 12.9 | Q6: 12.8 | R6: 12.7 | S6: 12.3 | T6: 12 | U6: 11.6 | V6: 11.3 | W6: 10.9 | X6: 10.6 | Y6: 10.3
A7: 6月 | B7: 14.6 | C7: 14.4 | D7: 14.2 | E7: 14 | F7: 13.8 | G7: 13.9 | H7: 14.3 | I7: 14.8 | J7: 15.4 | K7: 15.9 | L7: 16.3 | M7: 16.7 | N7: 16.9 | O7: 17.1 | P7: 17.2 | Q7: 17.2 | R7: 17.1 | S7: 16.8 | T7: 16.6 | U7: 16.2 | V7: 15.9 | W7: 15.6 | X7: 15.3 | Y7: 15.1
A8: 7月 | B8: 19 | C8: 18.8 | D8: 18.7 | E8: 18.5 | F8: 18.4 | G8: 18.4 | H8: 18.6 | I8: 19 | J8: 19.5 | K8: 19.9 | L8: 20.2 | M8: 20.6 | N8: 20.8 | O8: 20.9 | P8: 21 | Q8: 21.1 | R8: 20.9 | S8: 20.8 | T8: 20.5 | U8: 20.2 | V8: 20 | W8: 19.7 | X8: 19.5 | Y8: 19.3
A9: 8月 | B9: 20.2 | C9: 20 | D9: 19.8 | E9: 19.7 | F9: 19.6 | G9: 19.5 | H9: 19.6 | I9: 20 | J9: 20.5 | K9: 21 | L9: 21.3 | M9: 21.6 | N9: 21.8 | O9: 21.9 | P9: 22 | Q9: 21.9 | R9: 21.8 | S9: 21.7 | T9: 21.4 | U9: 21.1 | V9: 20.9 | W9: 20.7 | X9: 20.5 | Y9: 20.3
A10: 9月 | B10: 16.1 | C10: 15.9 | D10: 15.8 | E10: 15.6 | F10: 15.4 | G10: 15.3 | H10: 15.3 | I10: 15.8 | J10: 16.5 | K10: 17.1 | L10: 17.5 | M10: 17.8 | N10: 18 | O10: 18.1 | P10: 18.2 | Q10: 18.1 | R10: 18 | S10: 17.8 | T10: 17.5 | U10: 17.2 | V10: 16.9 | W10: 16.7 | X10: 16.4 | Y10: 16.2
A11: 10月 | B11: 9.6 | C11: 9.4 | D11: 9.2 | E11: 9 | F11: 8.8 | G11: 8.6 | H11: 8.5 | I11: 8.9 | J11: 9.8 | K11: 10.7 | L11: 11.4 | M11: 11.8 | N11: 12.1 | O11: 12.2 | P11: 12.3 | Q11: 12.2 | R11: 12 | S11: 11.6 | T11: 11.2 | U11: 10.8 | V11: 10.5 | W11: 10.2 | X11: 9.9 | Y11: 9.7
A12: 11月 | B12: 3.7 | C12: 3.5 | D12: 3.4 | E12: 3.2 | F12: 3 | G12: 2.9 | H12: 2.8 | I12: 2.9 | J12: 3.6 | K12: 4.5 | L12: 5.2 | M12: 5.7 | N12: 6.1 | O12: 6.3 | P12: 6.3 | Q12: 6.2 | R12: 5.8 | S12: 5.4 | T12: 5 | U12: 4.7 | V12: 4.4 | W12: 4.1 | X12: 3.9 | Y12: 3.7
A13: 12月 | B13: -1.2 | C13: -1.3 | D13: -1.5 | E13: -1.5 | F13: -1.7 | G13: -1.8 | H13: -1.9 | I13: -1.9 | J13: -1.6 | K13: -0.8 | L13: -0.2 | M13: 0.3 | N13: 0.7 | O13: 0.8 | P13: 0.9 | Q13: 0.7 | R13: 0.4 | S13: 0 | T13: -0.2 | U13: -0.5 | V13: -0.7 | W13: -0.8 | X13: -1 | Y13: -1.1
A14: 1月 | B14: -3.8 | C14: -3.9 | D14: -4.1 | E14: -4.2 | F14: -4.4 | G14: -4.5 | H14: -4.6 | I14: -4.7 | J14: -4.3 | K14: -3.4 | L14: -2.6 | M14: -2 | N14: -1.6 | O14: -1.4 | P14: -1.4 | Q14: -1.5 | R14: -1.8 | S14: -2.2 | T14: -2.5 | U14: -2.7 | V14: -3 | W14: -3.2 | X14: -3.4 | Y14: -3.6
A15: 2月 | B15: -3.3 | C15: -3.5 | D15: -3.7 | E15: -3.9 | F15: -4 | G15: -4.2 | H15: -4.4 | I15: -4.4 | J15: -3.7 | K15: -2.7 | L15: -1.9 | M15: -1.3 | N15: -1 | O15: -0.7 | P15: -0.6 | Q15: -0.7 | R15: -0.9 | S15: -1.3 | T15: -1.7 | U15: -2 | V15: -2.3 | W15: -2.5 | X15: -2.7 | Y15: -3
A16: 3月 | B16: -0.5 | C16: -0.7 | D16: -0.9 | E16: -1.1 | F16: -1.2 | G16: -1.4 | H16: -1.5 | I16: -1.1 | J16: -0.2 | K16: 0.6 | L16: 1.3 | M16: 1.8 | N16: 2.2 | O16: 2.4 | P16: 2.5 | Q16: 2.4 | R16: 2.1 | S16: 1.8 | T16: 1.3 | U16: 1 | V16: 0.7 | W16: 0.4 | X16: 0.1 | Y16: -0.1

Sheet 仙台 (hidden)
A1: 気象データ
A2: =RIGHT(CELL("filename",A2),LEN(CELL("filename",A2))-FIND("]",CELL("filename",A2))) -> 仙台
A3: 時刻別平均外気湿球温度
A4: 時刻 | B4: 0 | C4: 1 | D4: 2 | E4: 3 | F4: 4 | G4: 5 | H4: 6 | I4: 7 | J4: 8 | K4: 9 | L4: 10 | M4: 11 | N4: 12 | O4: 13 | P4: 14 | Q4: 15 | R4: 16 | S4: 17 | T4: 18 | U4: 19 | V4: 20 | W4: 21 | X4: 22 | Y4: 23
A5: 4月 | B5: 6.3 | C5: 6.1 | D5: 5.9 | E5: 5.6 | F5: 5.5 | G5: 5.3 | H5: 5.5 | I5: 6 | J5: 6.7 | K5: 7.4 | L5: 7.9 | M5: 8.3 | N5: 8.5 | O5: 8.5 | P5: 8.6 | Q5: 8.5 | R5: 8.3 | S5: 8 | T5: 7.7 | U5: 7.5 | V5: 7.3 | W5: 7.2 | X5: 6.9 | Y5: 6.7
A6: 5月 | B6: 11.6 | C6: 11.4 | D6: 11.2 | E6: 11 | F6: 10.8 | G6: 10.8 | H6: 11.1 | I6: 11.6 | J6: 12.2 | K6: 12.7 | L6: 13.1 | M6: 13.3 | N6: 13.4 | O6: 13.4 | P6: 13.4 | Q6: 13.3 | R6: 13.2 | S6: 13 | T6: 12.7 | U6: 12.5 | V6: 12.4 | W6: 12.2 | X6: 12.1 | Y6: 11.9
A7: 6月 | B7: 16.1 | C7: 15.9 | D7: 15.8 | E7: 15.6 | F7: 15.5 | G7: 15.5 | H7: 15.7 | I7: 16.1 | J7: 16.5 | K7: 16.8 | L7: 17.2 | M7: 17.4 | N7: 17.5 | O7: 17.5 | P7: 17.4 | Q7: 17.3 | R7: 17.2 | S7: 17.1 | T7: 16.9 | U7: 16.7 | V7: 16.6 | W7: 16.6 | X7: 16.5 | Y7: 16.4
A8: 7月 | B8: 20.2 | C8: 20.1 | D8: 20 | E8: 19.9 | F8: 19.8 | G8: 19.8 | H8: 19.9 | I8: 20.2 | J8: 20.5 | K8: 20.8 | L8: 21.2 | M8: 21.3 | N8: 21.4 | O8: 21.4 | P8: 21.4 | Q8: 21.2 | R8: 21.1 | S8: 21 | T8: 20.8 | U8: 20.7 | V8: 20.6 | W8: 20.5 | X8: 20.5 | Y8: 20.4
A9: 8月 | B9: 21.6 | C9: 21.5 | D9: 21.3 | E9: 21.2 | F9: 21.1 | G9: 21 | H9: 21.1 | I9: 21.3 | J9: 21.7 | K9: 22 | L9: 22.4 | M9: 22.6 | N9: 22.7 | O9: 22.7 | P9: 22.5 | Q9: 22.6 | R9: 22.4 | S9: 22.3 | T9: 22.1 | U9: 22 | V9: 22 | W9: 21.9 | X9: 21.8 | Y9: 21.7
A10: 9月 | B10: 18.1 | C10: 17.9 | D10: 17.8 | E10: 17.6 | F10: 17.4 | G10: 17.3 | H10: 17.3 | I10: 17.6 | J10: 18.1 | K10: 18.5 | L10: 18.8 | M10: 19 | N10: 19.2 | O10: 19.3 | P10: 19.3 | Q10: 19.2 | R10: 19.1 | S10: 19 | T10: 18.9 | U10: 18.8 | V10: 18.7 | W10: 18.5 | X10: 18.3 | Y10: 18.1
A11: 10月 | B11: 12.2 | C11: 12 | D11: 11.8 | E11: 11.6 | F11: 11.5 | G11: 11.3 | H11: 11.2 | I11: 11.5 | J11: 12.1 | K11: 12.7 | L11: 13.2 | M11: 13.6 | N11: 13.8 | O11: 13.9 | P11: 13.9 | Q11: 13.8 | R11: 13.6 | S11: 13.4 | T11: 13.2 | U11: 13 | V11: 12.9 | W11: 12.6 | X11: 12.4 | Y11: 12.2
A12: 11月 | B12: 6.4 | C12: 6.3 | D12: 6.1 | E12: 5.9 | F12: 5.8 | G12: 5.7 | H12: 5.6 | I12: 5.7 | J12: 6.3 | K12: 7 | L12: 7.6 | M12: 8 | N12: 8.3 | O12: 8.5 | P12: 8.5 | Q12: 8.4 | R12: 8.1 | S12: 7.8 | T12: 7.6 | U12: 7.4 | V12: 7.1 | W12: 6.9 | X12: 6.7 | Y12: 6.4
A13: 12月 | B13: 1.6 | C13: 1.5 | D13: 1.3 | E13: 1.2 | F13: 1.1 | G13: 1 | H13: 0.9 | I13: 0.9 | J13: 1.3 | K13: 2 | L13: 2.6 | M13: 3.1 | N13: 3.4 | O13: 3.5 | P13: 3.5 | Q13: 3.4 | R13: 3.1 | S13: 2.8 | T13: 2.6 | U13: 2.4 | V13: 2.2 | W13: 2 | X13: 1.8 | Y13: 1.6
A14: 1月 | B14: -0.8 | C14: -0.9 | D14: -1.1 | E14: -1.2 | F14: -1.3 | G14: -1.4 | H14: -1.5 | I14: -1.5 | J14: -1 | K14: -0.4 | L14: 0.2 | M14: 0.7 | N14: 1 | O14: 1.1 | P14: 1.1 | Q14: 1 | R14: 0.7 | S14: 0.4 | T14: 0.2 | U14: 0 | V14: -0.2 | W14: -0.4 | X14: -0.5 | Y14: -0.7
A15: 2月 | B15: -0.6 | C15: -0.8 | D15: -0.9 | E15: -1.1 | F15: -1.2 | G15: -1.3 | H15: -1.4 | I15: -1.3 | J15: -0.7 | K15: 0 | L15: 0.7 | M15: 1.1 | N15: 1.4 | O15: 1.6 | P15: 1.7 | Q15: 1.6 | R15: 1.3 | S15: 1 | T15: 0.7 | U15: 0.4 | V15: 0.2 | W15: 0 | X15: -0.1 | Y15: -0.3
A16: 3月 | B16: 1.9 | C16: 1.7 | D16: 1.5 | E16: 1.3 | F16: 1.1 | G16: 1 | H16: 0.9 | I16: 1.3 | J16: 2 | K16: 2.7 | L16: 3.3 | M16: 3.7 | N16: 4 | O16: 4.2 | P16: 4.2 | Q16: 4.1 | R16: 4 | S16: 3.6 | T16: 3.3 | U16: 3.1 | V16: 2.9 | W16: 2.6 | X16: 2.4 | Y16: 2.2

Sheet 秋田 (hidden)
A1: 気象データ
A2: =RIGHT(CELL("filename",A2),LEN(CELL("filename",A2))-FIND("]",CELL("filename",A2))) -> 秋田
A3: 時刻別平均外気湿球温度
A4: 時刻 | B4: 0 | C4: 1 | D4: 2 | E4: 3 | F4: 4 | G4: 5 | H4: 6 | I4: 7 | J4: 8 | K4: 9 | L4: 10 | M4: 11 | N4: 12 | O4: 13 | P4: 14 | Q4: 15 | R4: 16 | S4: 17 | T4: 18 | U4: 19 | V4: 20 | W4: 21 | X4: 22 | Y4: 23
A5: 4月 | B5: 5.7 | C5: 5.5 | D5: 5.3 | E5: 5.1 | F5: 4.9 | G5: 4.8 | H5: 4.9 | I5: 5.6 | J5: 6.4 | K5: 7.1 | L5: 7.6 | M5: 7.8 | N5: 8 | O5: 8.1 | P5: 8.1 | Q5: 8 | R5: 7.8 | S5: 7.6 | T5: 7.3 | U5: 7.1 | V5: 6.9 | W5: 6.6 | X5: 6.3 | Y5: 6.1
A6: 5月 | B6: 11.2 | C6: 10.9 | D6: 10.7 | E6: 10.6 | F6: 10.4 | G6: 10.4 | H6: 10.7 | I6: 11.3 | J6: 12 | K6: 12.5 | L6: 12.8 | M6: 13.1 | N6: 13.2 | O6: 13.2 | P6: 13.2 | Q6: 13.1 | R6: 13 | S6: 12.8 | T6: 12.6 | U6: 12.4 | V6: 12.2 | W6: 12.1 | X6: 11.8 | Y6: 11.6
A7: 6月 | B7: 15.7 | C7: 15.5 | D7: 15.3 | E7: 15.2 | F7: 15 | G7: 15 | H7: 15.3 | I7: 15.9 | J7: 16.4 | K7: 16.8 | L7: 17.1 | M7: 17.3 | N7: 17.4 | O7: 17.4 | P7: 17.4 | Q7: 17.4 | R7: 17.3 | S7: 17.2 | T7: 17 | U7: 16.8 | V7: 16.7 | W7: 16.5 | X7: 16.3 | Y7: 16.1
A8: 7月 | B8: 20.2 | C8: 20 | D8: 19.8 | E8: 19.7 | F8: 19.6 | G8: 19.6 | H8: 19.8 | I8: 20.2 | J8: 20.6 | K8: 20.9 | L8: 21.2 | M8: 21.4 | N8: 21.5 | O8: 21.5 | P8: 21.5 | Q8: 21.5 | R8: 21.5 | S8: 21.4 | T8: 21.2 | U8: 21.1 | V8: 20.9 | W8: 20.8 | X8: 20.7 | Y8: 20.5
A9: 8月 | B9: 21.3 | C9: 21.1 | D9: 20.9 | E9: 20.8 | F9: 20.7 | G9: 20.6 | H9: 20.7 | I9: 21.1 | J9: 21.6 | K9: 22 | L9: 22.3 | M9: 22.5 | N9: 22.6 | O9: 22.7 | P9: 22.7 | Q9: 22.7 | R9: 22.6 | S9: 22.5 | T9: 22.3 | U9: 22.2 | V9: 22.1 | W9: 21.9 | X9: 21.7 | Y9: 21.4
A10: 9月 | B10: 17.2 | C10: 16.9 | D10: 16.8 | E10: 16.6 | F10: 16.5 | G10: 16.4 | H10: 16.4 | I10: 16.8 | J10: 17.4 | K10: 18 | L10: 18.4 | M10: 18.6 | N10: 18.8 | O10: 18.8 | P10: 18.8 | Q10: 18.8 | R10: 18.7 | S10: 18.5 | T10: 18.3 | U10: 18.1 | V10: 17.9 | W10: 17.7 | X10: 17.4 | Y10: 17.2
A11: 10月 | B11: 11 | C11: 10.8 | D11: 10.7 | E11: 10.5 | F11: 10.4 | G11: 10.3 | H11: 10.2 | I11: 10.4 | J11: 11.1 | K11: 11.9 | L11: 12.5 | M11: 12.8 | N11: 13 | O11: 13 | P11: 13 | Q11: 12.9 | R11: 12.7 | S11: 12.5 | T11: 12.3 | U11: 12.1 | V11: 11.8 | W11: 11.5 | X11: 11.2 | Y11: 11
A12: 11月 | B12: 5.6 | C12: 5.4 | D12: 5.3 | E12: 5.2 | F12: 5.1 | G12: 5 | H12: 4.9 | I12: 5 | J12: 5.4 | K12: 6 | L12: 6.6 | M12: 7 | N12: 7.2 | O12: 7.4 | P12: 7.3 | Q12: 7.2 | R12: 7 | S12: 6.7 | T12: 6.5 | U12: 6.3 | V12: 6 | W12: 5.8 | X12: 5.6 | Y12: 5.5
A13: 12月 | B13: 0.7 | C13: 0.7 | D13: 0.6 | E13: 0.6 | F13: 0.5 | G13: 0.4 | H13: 0.4 | I13: 0.3 | J13: 0.5 | K13: 0.9 | L13: 1.3 | M13: 1.6 | N13: 1.8 | O13: 1.9 | P13: 1.9 | Q13: 1.9 | R13: 1.7 | S13: 1.5 | T13: 1.4 | U13: 1.2 | V13: 1 | W13: 0.9 | X13: 0.8 | Y13: 0.7
A14: 1月 | B14: -1.5 | C14: -1.6 | D14: -1.6 | E14: -1.7 | F14: -1.8 | G14: -1.8 | H14: -1.9 | I14: -1.9 | J14: -1.7 | K14: -1.4 | L14: -1 | M14: -0.7 | N14: -0.5 | O14: -0.4 | P14: -0.4 | Q14: -0.5 | R14: -0.7 | S14: -0.8 | T14: -0.9 | U14: -1.1 | V14: -1.2 | W14: -1.3 | X14: -1.4 | Y14: -1.5
A15: 2月 | B15: -1.3 | C15: -1.4 | D15: -1.5 | E15: -1.6 | F15: -1.7 | G15: -1.7 | H15: -1.8 | I15: -1.8 | J15: -1.5 | K15: -1 | L15: -0.5 | M15: -0.2 | N15: 0 | O15: 0.2 | P15: 0.2 | Q15: 0.1 | R15: 0 | S15: -0.2 | T15: -0.4 | U15: -0.6 | V15: -0.7 | W15: -0.9 | X15: -1 | Y15: -1.1
A16: 3月 | B16: 1.1 | C16: 1 | D16: 0.8 | E16: 0.7 | F16: 0.6 | G16: 0.5 | H16: 0.5 | I16: 0.7 | J16: 1.3 | K16: 2 | L16: 2.5 | M16: 2.9 | N16: 3.1 | O16: 3.2 | P16: 3.2 | Q16: 3.1 | R16: 3 | S16: 2.7 | T16: 2.5 | U16: 2.3 | V16: 2 | W16: 1.8 | X16: 1.6 | Y16: 1.4

Sheet 山形 (hidden)
A1: 気象データ
A2: =RIGHT(CELL("filename",A2),LEN(CELL("filename",A2))-FIND("]",CELL("filename",A2))) -> 山形
A3: 時刻別平均外気湿球温度
A4: 時刻 | B4: 0 | C4: 1 | D4: 2 | E4: 3 | F4: 4 | G4: 5 | H4: 6 | I4: 7 | J4: 8 | K4: 9 | L4: 10 | M4: 11 | N4: 12 | O4: 13 | P4: 14 | Q4: 15 | R4: 16 | S4: 17 | T4: 18 | U4: 19 | V4: 20 | W4: 21 | X4: 22 | Y4: 23
A5: 4月 | B5: 5.3 | C5: 5.1 | D5: 4.8 | E5: 4.6 | F5: 4.4 | G5: 4.2 | H5: 4.4 | I5: 5.1 | J5: 5.8 | K5: 6.6 | L5: 7.2 | M5: 7.8 | N5: 8.1 | O5: 8.3 | P5: 8.4 | Q5: 8.4 | R5: 8.2 | S5: 7.9 | T5: 7.4 | U5: 7 | V5: 6.7 | W5: 6.4 | X5: 6 | Y5: 5.7
A6: 5月 | B6: 10.9 | C6: 10.7 | D6: 10.5 | E6: 10.3 | F6: 10.1 | G6: 10 | H6: 10.3 | I6: 10.9 | J6: 11.6 | K6: 12.2 | L6: 12.7 | M6: 13.1 | N6: 13.4 | O6: 13.7 | P6: 13.7 | Q6: 13.6 | R6: 13.5 | S6: 13.2 | T6: 12.9 | U6: 12.4 | V6: 12.1 | W6: 11.8 | X6: 11.5 | Y6: 11.3
A7: 6月 | B7: 15.6 | C7: 15.4 | D7: 15.3 | E7: 15.1 | F7: 14.9 | G7: 14.9 | H7: 15.3 | I7: 15.7 | J7: 16.2 | K7: 16.7 | L7: 17.1 | M7: 17.4 | N7: 17.6 | O7: 17.8 | P7: 17.9 | Q7: 17.9 | R7: 17.9 | S7: 17.6 | T7: 17.4 | U7: 17 | V7: 16.8 | W7: 16.5 | X7: 16.3 | Y7: 16
A8: 7月 | B8: 19.9 | C8: 19.8 | D8: 19.7 | E8: 19.5 | F8: 19.4 | G8: 19.4 | H8: 19.6 | I8: 20 | J8: 20.4 | K8: 20.8 | L8: 21.2 | M8: 21.5 | N8: 21.7 | O8: 21.8 | P8: 21.9 | Q8: 21.9 | R8: 21.8 | S8: 21.6 | T8: 21.4 | U8: 21 | V8: 20.8 | W8: 20.6 | X8: 20.4 | Y8: 20.2
A9: 8月 | B9: 20.9 | C9: 20.7 | D9: 20.6 | E9: 20.5 | F9: 20.3 | G9: 20.2 | H9: 20.4 | I9: 20.8 | J9: 21.3 | K9: 21.7 | L9: 22.1 | M9: 22.3 | N9: 22.5 | O9: 22.5 | P9: 22.6 | Q9: 22.6 | R9: 22.5 | S9: 22.4 | T9: 22.1 | U9: 21.9 | V9: 21.6 | W9: 21.4 | X9: 21.2 | Y9: 21
A10: 9月 | B10: 17.1 | C10: 16.9 | D10: 16.7 | E10: 16.6 | F10: 16.4 | G10: 16.3 | H10: 16.3 | I10: 16.7 | J10: 17.2 | K10: 17.8 | L10: 18.2 | M10: 18.5 | N10: 18.7 | O10: 18.8 | P10: 18.9 | Q10: 18.9 | R10: 18.8 | S10: 18.5 | T10: 18.2 | U10: 17.9 | V10: 17.7 | W10: 17.5 | X10: 17.3 | Y10: 17.1
A11: 10月 | B11: 11 | C11: 10.8 | D11: 10.6 | E11: 10.4 | F11: 10.3 | G11: 10.1 | H11: 10 | I11: 10.4 | J11: 11 | K11: 11.7 | L11: 12.3 | M11: 12.7 | N11: 13 | O11: 13.2 | P11: 13.2 | Q11: 13.2 | R11: 13 | S11: 12.7 | T11: 12.3 | U11: 12 | V11: 11.7 | W11: 11.4 | X11: 11.2 | Y11: 11
A12: 11月 | B12: 5.2 | C12: 5.1 | D12: 4.9 | E12: 4.8 | F12: 4.6 | G12: 4.5 | H12: 4.4 | I12: 4.5 | J12: 5.1 | K12: 5.8 | L12: 6.5 | M12: 7 | N12: 7.4 | O12: 7.6 | P12: 7.6 | Q12: 7.6 | R12: 7.3 | S12: 6.8 | T12: 6.5 | U12: 6.2 | V12: 5.9 | W12: 5.7 | X12: 5.4 | Y12: 5.3
A13: 12月 | B13: 0.7 | C13: 0.5 | D13: 0.4 | E13: 0.3 | F13: 0.2 | G13: 0.1 | H13: 0 | I13: 0 | J13: 0.4 | K13: 1 | L13: 1.6 | M13: 2 | N13: 2.3 | O13: 2.5 | P13: 2.6 | Q13: 2.4 | R13: 2.1 | S13: 1.8 | T13: 1.5 | U13: 1.3 | V13: 1.1 | W13: 1 | X13: 0.8 | Y13: 0.7
A14: 1月 | B14: -1.7 | C14: -1.9 | D14: -2 | E14: -2.1 | F14: -2.2 | G14: -2.3 | H14: -2.4 | I14: -2.4 | J14: -2.1 | K14: -1.5 | L14: -0.9 | M14: -0.4 | N14: -0.1 | O14: 0.1 | P14: 0.1 | Q14: 0 | R14: -0.2 | S14: -0.5 | T14: -0.8 | U14: -1 | V14: -1.2 | W14: -1.3 | X14: -1.5 | Y14: -1.6
A15: 2月 | B15: -1.7 | C15: -1.8 | D15: -2 | E15: -2.1 | F15: -2.3 | G15: -2.4 | H15: -2.5 | I15: -2.5 | J15: -1.9 | K15: -1.2 | L15: -0.5 | M15: 0 | N15: 0.3 | O15: 0.5 | P15: 0.6 | Q15: 0.6 | R15: 0.4 | S15: 0 | T15: -0.3 | U15: -0.6 | V15: -0.8 | W15: -1 | X15: -1.2 | Y15: -1.4
A16: 3月 | B16: 0.8 | C16: 0.6 | D16: 0.4 | E16: 0.2 | F16: 0 | G16: -0.1 | H16: -0.2 | I16: 0.2 | J16: 0.9 | K16: 1.7 | L16: 2.3 | M16: 2.8 | N16: 3.2 | O16: 3.5 | P16: 3.6 | Q16: 3.6 | R16: 3.4 | S16: 3 | T16: 2.5 | U16: 2.2 | V16: 1.9 | W16: 1.6 | X16: 1.4 | Y16: 1.1

Sheet 福島 (hidden)
A1: 気象データ
A2: =RIGHT(CELL("filename",A2),LEN(CELL("filename",A2))-FIND("]",CELL("filename",A2))) -> 福島
A3: 時刻別平均外気湿球温度
A4: 時刻 | B4: 0 | C4: 1 | D4: 2 | E4: 3 | F4: 4 | G4: 5 | H4: 6 | I4: 7 | J4: 8 | K4: 9 | L4: 10 | M4: 11 | N4: 12 | O4: 13 | P4: 14 | Q4: 15 | R4: 16 | S4: 17 | T4: 18 | U4: 19 | V4: 20 | W4: 21 | X4: 22 | Y4: 23
A5: 4月 | B5: 6.5 | C5: 6.3 | D5: 6 | E5: 5.8 | F5: 5.6 | G5: 5.4 | H5: 5.5 | I5: 6.1 | J5: 6.9 | K5: 7.7 | L5: 8.3 | M5: 8.7 | N5: 9 | O5: 9.2 | P5: 9.3 | Q5: 9.2 | R5: 9 | S5: 8.7 | T5: 8.3 | U5: 7.9 | V5: 7.6 | W5: 7.4 | X5: 7.2 | Y5: 6.9
A6: 5月 | B6: 11.8 | C6: 11.6 | D6: 11.4 | E6: 11.2 | F6: 11 | G6: 10.9 | H6: 11.2 | I6: 11.7 | J6: 12.4 | K6: 13 | L6: 13.5 | M6: 13.8 | N6: 14 | O6: 14.1 | P6: 14.3 | Q6: 14.2 | R6: 14 | S6: 13.8 | T6: 13.4 | U6: 13.1 | V6: 12.8 | W6: 12.6 | X6: 12.4 | Y6: 12.2
A7: 6月 | B7: 16.3 | C7: 16.1 | D7: 16 | E7: 15.8 | F7: 15.6 | G7: 15.6 | H7: 15.8 | I7: 16.2 | J7: 16.7 | K7: 17.1 | L7: 17.5 | M7: 17.8 | N7: 18 | O7: 18.1 | P7: 18.2 | Q7: 18.3 | R7: 18.2 | S7: 18 | T7: 17.8 | U7: 17.4 | V7: 17.2 | W7: 17 | X7: 16.8 | Y7: 16.6
A8: 7月 | B8: 20.4 | C8: 20.3 | D8: 20.2 | E8: 20.1 | F8: 20 | G8: 19.9 | H8: 20 | I8: 20.4 | J8: 20.7 | K8: 21.1 | L8: 21.4 | M8: 21.7 | N8: 21.8 | O8: 22.1 | P8: 22.1 | Q8: 22.2 | R8: 22.1 | S8: 21.9 | T8: 21.6 | U8: 21.4 | V8: 21.1 | W8: 20.9 | X8: 20.8 | Y8: 20.6
A9: 8月 | B9: 21.6 | C9: 21.4 | D9: 21.3 | E9: 21.2 | F9: 21.1 | G9: 21 | H9: 21 | I9: 21.3 | J9: 21.7 | K9: 22.1 | L9: 22.4 | M9: 22.7 | N9: 22.8 | O9: 22.8 | P9: 22.9 | Q9: 23 | R9: 23 | S9: 22.8 | T9: 22.6 | U9: 22.3 | V9: 22.1 | W9: 21.9 | X9: 21.8 | Y9: 21.7
A10: 9月 | B10: 18 | C10: 17.9 | D10: 17.7 | E10: 17.5 | F10: 17.4 | G10: 17.3 | H10: 17.2 | I10: 17.5 | J10: 17.9 | K10: 18.4 | L10: 18.8 | M10: 19.1 | N10: 19.3 | O10: 19.4 | P10: 19.4 | Q10: 19.4 | R10: 19.3 | S10: 19.2 | T10: 19 | U10: 18.8 | V10: 18.6 | W10: 18.4 | X10: 18.2 | Y10: 18
A11: 10月 | B11: 12.2 | C11: 12 | D11: 11.8 | E11: 11.6 | F11: 11.4 | G11: 11.3 | H11: 11.2 | I11: 11.4 | J11: 12 | K11: 12.6 | L11: 13.2 | M11: 13.6 | N11: 13.9 | O11: 14.1 | P11: 14.1 | Q11: 14.1 | R11: 13.9 | S11: 13.6 | T11: 13.4 | U11: 13.1 | V11: 12.9 | W11: 12.7 | X11: 12.4 | Y11: 12.2
A12: 11月 | B12: 6.3 | C12: 6.1 | D12: 5.9 | E12: 5.7 | F12: 5.5 | G12: 5.4 | H12: 5.2 | I12: 5.3 | J12: 5.8 | K12: 6.6 | L12: 7.3 | M12: 8 | N12: 8.4 | O12: 8.6 | P12: 8.7 | Q12: 8.6 | R12: 8.3 | S12: 8 | T12: 7.7 | U12: 7.4 | V12: 7.1 | W12: 6.9 | X12: 6.6 | Y12: 6.4
A13: 12月 | B13: 1.6 | C13: 1.5 | D13: 1.3 | E13: 1.2 | F13: 1 | G13: 0.9 | H13: 0.8 | I13: 0.7 | J13: 1 | K13: 1.7 | L13: 2.4 | M13: 3 | N13: 3.4 | O13: 3.7 | P13: 3.7 | Q13: 3.6 | R13: 3.3 | S13: 3 | T13: 2.7 | U13: 2.5 | V13: 2.3 | W13: 2.1 | X13: 1.9 | Y13: 1.7
A14: 1月 | B14: -0.8 | C14: -1 | D14: -1.1 | E14: -1.3 | F14: -1.4 | G14: -1.5 | H14: -1.6 | I14: -1.6 | J14: -1.3 | K14: -0.6 | L14: 0.1 | M14: 0.6 | N14: 1.1 | O14: 1.3 | P14: 1.4 | Q14: 1.2 | R14: 0.9 | S14: 0.6 | T14: 0.3 | U14: 0.1 | V14: -0.1 | W14: -0.3 | X14: -0.5 | Y14: -0.7
A15: 2月 | B15: -0.5 | C15: -0.7 | D15: -0.9 | E15: -1.1 | F15: -1.2 | G15: -1.3 | H15: -1.4 | I15: -1.4 | J15: -0.9 | K15: -0.1 | L15: 0.6 | M15: 1.2 | N15: 1.7 | O15: 1.9 | P15: 2 | Q15: 1.9 | R15: 1.7 | S15: 1.2 | T15: 0.9 | U15: 0.7 | V15: 0.4 | W15: 0.2 | X15: 0 | Y15: -0.2
A16: 3月 | B16: 1.9 | C16: 1.7 | D16: 1.5 | E16: 1.3 | F16: 1.1 | G16: 1 | H16: 0.9 | I16: 1.2 | J16: 1.9 | K16: 2.7 | L16: 3.5 | M16: 4 | N16: 4.4 | O16: 4.7 | P16: 4.8 | Q16: 4.7 | R16: 4.5 | S16: 4 | T16: 3.6 | U16: 3.3 | V16: 3 | W16: 2.8 | X16: 2.5 | Y16: 2.3

Sheet 水戸 (hidden)
A1: 気象データ
A2: =RIGHT(CELL("filename",A2),LEN(CELL("filename",A2))-FIND("]",CELL("filename",A2))) -> 水戸
A3: 時刻別平均外気湿球温度
A4: 時刻 | B4: 0 | C4: 1 | D4: 2 | E4: 3 | F4: 4 | G4: 5 | H4: 6 | I4: 7 | J4: 8 | K4: 9 | L4: 10 | M4: 11 | N4: 12 | O4: 13 | P4: 14 | Q4: 15 | R4: 16 | S4: 17 | T4: 18 | U4: 19 | V4: 20 | W4: 21 | X4: 22 | Y4: 23
A5: 4月 | B5: 8.2 | C5: 7.9 | D5: 7.6 | E5: 7.4 | F5: 7.1 | G5: 6.9 | H5: 7 | I5: 7.8 | J5: 8.9 | K5: 9.7 | L5: 10.2 | M5: 10.5 | N5: 10.8 | O5: 11 | P5: 10.9 | Q5: 10.8 | R5: 10.6 | S5: 10.3 | T5: 10.1 | U5: 9.8 | V5: 9.6 | W5: 9.4 | X5: 9.1 | Y5: 8.7
A6: 5月 | B6: 13.4 | C6: 13.1 | D6: 12.9 | E6: 12.7 | F6: 12.5 | G6: 12.4 | H6: 12.7 | I6: 13.4 | J6: 14.1 | K6: 14.6 | L6: 14.9 | M6: 15.2 | N6: 15.2 | O6: 15.3 | P6: 15.3 | Q6: 15.2 | R6: 15 | S6: 14.8 | T6: 14.5 | U6: 14.3 | V6: 14.2 | W6: 14.1 | X6: 13.9 | Y6: 13.7
A7: 6月 | B7: 17.4 | C7: 17.2 | D7: 17.1 | E7: 16.9 | F7: 16.8 | G7: 16.7 | H7: 17 | I7: 17.5 | J7: 18 | K7: 18.3 | L7: 18.6 | M7: 18.8 | N7: 18.9 | O7: 18.9 | P7: 18.9 | Q7: 18.7 | R7: 18.5 | S7: 18.4 | T7: 18.2 | U7: 18 | V7: 17.8 | W7: 17.8 | X7: 17.7 | Y7: 17.6
A8: 7月 | B8: 21.1 | C8: 21 | D8: 20.9 | E8: 20.9 | F8: 20.8 | G8: 20.7 | H8: 21 | I8: 21.4 | J8: 21.8 | K8: 22.2 | L8: 22.5 | M8: 22.6 | N8: 22.8 | O8: 22.8 | P8: 22.7 | Q8: 22.5 | R8: 22.3 | S8: 22.1 | T8: 21.9 | U8: 21.6 | V8: 21.5 | W8: 21.4 | X8: 21.4 | Y8: 21.3
A9: 8月 | B9: 22.4 | C9: 22.3 | D9: 22.2 | E9: 22.1 | F9: 22 | G9: 21.9 | H9: 22 | I9: 22.5 | J9: 23 | K9: 23.3 | L9: 23.5 | M9: 23.7 | N9: 23.9 | O9: 23.9 | P9: 23.8 | Q9: 23.7 | R9: 23.5 | S9: 23.3 | T9: 23 | U9: 22.9 | V9: 22.8 | W9: 22.7 | X9: 22.6 | Y9: 22.5
A10: 9月 | B10: 19.1 | C10: 18.9 | D10: 18.8 | E10: 18.7 | F10: 18.5 | G10: 18.4 | H10: 18.4 | I10: 18.9 | J10: 19.6 | K10: 20 | L10: 20.3 | M10: 20.5 | N10: 20.6 | O10: 20.7 | P10: 20.6 | Q10: 20.5 | R10: 20.3 | S10: 20.1 | T10: 19.9 | U10: 19.8 | V10: 19.7 | W10: 19.6 | X10: 19.4 | Y10: 19.2
A11: 10月 | B11: 13.5 | C11: 13.3 | D11: 13.1 | E11: 12.9 | F11: 12.7 | G11: 12.6 | H11: 12.5 | I11: 12.9 | J11: 13.8 | K11: 14.6 | L11: 15.1 | M11: 15.4 | N11: 15.5 | O11: 15.6 | P11: 15.6 | Q11: 15.5 | R11: 15.3 | S11: 15 | T11: 14.8 | U11: 14.6 | V11: 14.3 | W11: 14 | X11: 13.7 | Y11: 13.5
A12: 11月 | B12: 7.5 | C12: 7.2 | D12: 7 | E12: 6.8 | F12: 6.6 | G12: 6.4 | H12: 6.2 | I12: 6.4 | J12: 7.4 | K12: 8.7 | L12: 9.7 | M12: 10.3 | N12: 10.5 | O12: 10.7 | P12: 10.6 | Q12: 10.5 | R12: 10.3 | S12: 9.9 | T12: 9.5 | U12: 9.1 | V12: 8.6 | W12: 8.2 | X12: 7.9 | Y12: 7.5
A13: 12月 | B13: 1.9 | C13: 1.6 | D13: 1.4 | E13: 1.2 | F13: 1.1 | G13: 0.9 | H13: 0.8 | I13: 0.7 | J13: 1.5 | K13: 2.9 | L13: 4.2 | M13: 5.1 | N13: 5.5 | O13: 5.7 | P13: 5.8 | Q13: 5.6 | R13: 5.2 | S13: 4.7 | T13: 4.2 | U13: 3.7 | V13: 3.2 | W13: 2.7 | X13: 2.3 | Y13: 2
A14: 1月 | B14: -0.6 | C14: -0.8 | D14: -1.1 | E14: -1.3 | F14: -1.5 | G14: -1.7 | H14: -1.8 | I14: -1.9 | J14: -1.1 | K14: 0.3 | L14: 1.7 | M14: 2.5 | N14: 3 | O14: 3.3 | P14: 3.4 | Q14: 3.2 | R14: 2.9 | S14: 2.4 | T14: 1.8 | U14: 1.3 | V14: 0.8 | W14: 0.4 | X14: 0 | Y14: -0.3
A15: 2月 | B15: 0 | C15: -0.2 | D15: -0.5 | E15: -0.7 | F15: -0.9 | G15: -1.1 | H15: -1.2 | I15: -1.2 | J15: -0.2 | K15: 1.2 | L15: 2.4 | M15: 3.1 | N15: 3.5 | O15: 3.8 | P15: 3.9 | Q15: 3.8 | R15: 3.5 | S15: 3.1 | T15: 2.7 | U15: 2.2 | V15: 1.8 | W15: 1.3 | X15: 0.9 | Y15: 0.5
A16: 3月 | B16: 3.4 | C16: 3.2 | D16: 2.9 | E16: 2.6 | F16: 2.4 | G16: 2.2 | H16: 2 | I16: 2.5 | J16: 3.7 | K16: 4.8 | L16: 5.5 | M16: 6 | N16: 6.3 | O16: 6.6 | P16: 6.6 | Q16: 6.6 | R16: 6.4 | S16: 6 | T16: 5.7 | U16: 5.4 | V16: 5.1 | W16: 4.7 | X16: 4.3 | Y16: 3.9

Sheet 宇都宮 (hidden)
A1: 気象データ
A2: =RIGHT(CELL("filename",A2),LEN(CELL("filename",A2))-FIND("]",CELL("filename",A2))) -> 宇都宮
A3: 時刻別平均外気湿球温度
A4: 時刻 | B4: 0 | C4: 1 | D4: 2 | E4: 3 | F4: 4 | G4: 5 | H4: 6 | I4: 7 | J4: 8 | K4: 9 | L4: 10 | M4: 11 | N4: 12 | O4: 13 | P4: 14 | Q4: 15 | R4: 16 | S4: 17 | T4: 18 | U4: 19 | V4: 20 | W4: 21 | X4: 22 | Y4: 23
A5: 4月 | B5: 8 | C5: 7.7 | D5: 7.5 | E5: 7.2 | F5: 6.9 | G5: 6.7 | H5: 6.8 | I5: 7.5 | J5: 8.3 | K5: 9.1 | L5: 9.7 | M5: 10.2 | N5: 10.5 | O5: 10.7 | P5: 10.8 | Q5: 10.8 | R5: 10.6 | S5: 10.3 | T5: 9.9 | U5: 9.5 | V5: 9.2 | W5: 9 | X5: 8.7 | Y5: 8.5
A6: 5月 | B6: 13.2 | C6: 13 | D6: 12.8 | E6: 12.6 | F6: 12.4 | G6: 12.3 | H6: 12.6 | I6: 13.1 | J6: 13.7 | K6: 14.2 | L6: 14.7 | M6: 15.1 | N6: 15.3 | O6: 15.4 | P6: 15.5 | Q6: 15.4 | R6: 15.3 | S6: 15.1 | T6: 14.7 | U6: 14.4 | V6: 14.1 | W6: 13.9 | X6: 13.7 | Y6: 13.6
A7: 6月 | B7: 17.4 | C7: 17.2 | D7: 17.1 | E7: 17 | F7: 16.8 | G7: 16.8 | H7: 17 | I7: 17.4 | J7: 17.8 | K7: 18.2 | L7: 18.6 | M7: 18.9 | N7: 19.1 | O7: 19.2 | P7: 19.2 | Q7: 19.2 | R7: 19.1 | S7: 19 | T7: 18.8 | U7: 18.5 | V7: 18.2 | W7: 18 | X7: 17.8 | Y7: 17.7
A8: 7月 | B8: 21.2 | C8: 21.1 | D8: 21 | E8: 21 | F8: 20.8 | G8: 20.7 | H8: 20.9 | I8: 21.2 | J8: 21.6 | K8: 22 | L8: 22.4 | M8: 22.6 | N8: 22.9 | O8: 23 | P8: 23 | Q8: 23.1 | R8: 22.9 | S8: 22.8 | T8: 22.4 | U8: 22.2 | V8: 21.9 | W8: 21.8 | X8: 21.6 | Y8: 21.4
A9: 8月 | B9: 22.3 | C9: 22.2 | D9: 22.1 | E9: 22 | F9: 21.9 | G9: 21.8 | H9: 21.9 | I9: 22.2 | J9: 22.6 | K9: 23 | L9: 23.3 | M9: 23.6 | N9: 23.8 | O9: 23.9 | P9: 23.9 | Q9: 23.9 | R9: 23.7 | S9: 23.5 | T9: 23.3 | U9: 23 | V9: 22.8 | W9: 22.6 | X9: 22.5 | Y9: 22.4
A10: 9月 | B10: 18.9 | C10: 18.8 | D10: 18.6 | E10: 18.5 | F10: 18.3 | G10: 18.2 | H10: 18.2 | I10: 18.5 | J10: 19 | K10: 19.4 | L10: 19.8 | M10: 20.1 | N10: 20.3 | O10: 20.4 | P10: 20.4 | Q10: 20.4 | R10: 20.2 | S10: 20.1 | T10: 19.8 | U10: 19.6 | V10: 19.3 | W10: 19.2 | X10: 19 | Y10: 18.9
A11: 10月 | B11: 13.2 | C11: 13 | D11: 12.8 | E11: 12.6 | F11: 12.4 | G11: 12.2 | H11: 12.1 | I11: 12.5 | J11: 13.2 | K11: 13.9 | L11: 14.4 | M11: 14.8 | N11: 15 | O11: 15.2 | P11: 15.2 | Q11: 15.1 | R11: 14.9 | S11: 14.6 | T11: 14.3 | U11: 14.1 | V11: 13.9 | W11: 13.7 | X11: 13.5 | Y11: 13.2
A12: 11月 | B12: 7.1 | C12: 6.8 | D12: 6.6 | E12: 6.3 | F12: 6.1 | G12: 5.9 | H12: 5.7 | I12: 5.9 | J12: 7 | K12: 8 | L12: 8.8 | M12: 9.4 | N12: 9.8 | O12: 10 | P12: 10 | Q12: 9.8 | R12: 9.5 | S12: 9.1 | T12: 8.8 | U12: 8.5 | V12: 8.1 | W12: 7.8 | X12: 7.5 | Y12: 7.2
A13: 12月 | B13: 1.6 | C13: 1.3 | D13: 1 | E13: 0.8 | F13: 0.6 | G13: 0.4 | H13: 0.2 | I13: 0.2 | J13: 1.1 | K13: 2.6 | L13: 3.6 | M13: 4.3 | N13: 4.8 | O13: 5 | P13: 5.1 | Q13: 4.9 | R13: 4.6 | S13: 4 | T13: 3.5 | U13: 3.1 | V13: 2.7 | W13: 2.3 | X13: 2 | Y13: 1.7
A14: 1月 | B14: -1 | C14: -1.3 | D14: -1.5 | E14: -1.8 | F14: -2.1 | G14: -2.3 | H14: -2.5 | I14: -2.5 | J14: -1.6 | K14: -0.1 | L14: 1 | M14: 1.7 | N14: 2.3 | O14: 2.6 | P14: 2.7 | Q14: 2.6 | R14: 2.2 | S14: 1.6 | T14: 1.2 | U14: 0.7 | V14: 0.3 | W14: -0.1 | X14: -0.4 | Y14: -0.7
A15: 2月 | B15: -0.3 | C15: -0.6 | D15: -0.8 | E15: -1.1 | F15: -1.3 | G15: -1.5 | H15: -1.7 | I15: -1.6 | J15: -0.5 | K15: 0.8 | L15: 1.7 | M15: 2.4 | N15: 2.9 | O15: 3.2 | P15: 3.4 | Q15: 3.4 | R15: 3.1 | S15: 2.6 | T15: 2 | U15: 1.6 | V15: 1.3 | W15: 0.9 | X15: 0.5 | Y15: 0.2
A16: 3月 | B16: 3.1 | C16: 2.8 | D16: 2.5 | E16: 2.2 | F16: 2 | G16: 1.8 | H16: 1.6 | I16: 2.1 | J16: 3.2 | K16: 4.1 | L16: 4.9 | M16: 5.5 | N16: 5.9 | O16: 6.2 | P16: 6.3 | Q16: 6.3 | R16: 6.1 | S16: 5.7 | T16: 5.2 | U16: 4.8 | V16: 4.5 | W16: 4.2 | X16: 3.9 | Y16: 3.5

Sheet 前橋 (hidden)
A1: 気象データ
A2: =RIGHT(CELL("filename",A2),LEN(CELL("filename",A2))-FIND("]",CELL("filename",A2))) -> 前橋
A3: 時刻別平均外気湿球温度
A4: 時刻 | B4: 0 | C4: 1 | D4: 2 | E4: 3 | F4: 4 | G4: 5 | H4: 6 | I4: 7 | J4: 8 | K4: 9 | L4: 10 | M4: 11 | N4: 12 | O4: 13 | P4: 14 | Q4: 15 | R4: 16 | S4: 17 | T4: 18 | U4: 19 | V4: 20 | W4: 21 | X4: 22 | Y4: 23
A5: 4月 | B5: 7.6 | C5: 7.2 | D5: 7 | E5: 6.7 | F5: 6.5 | G5: 6.2 | H5: 6.3 | I5: 7 | J5: 8 | K5: 8.7 | L5: 9.4 | M5: 9.9 | N5: 10.2 | O5: 10.4 | P5: 10.5 | Q5: 10.5 | R5: 10.3 | S5: 10 | T5: 9.7 | U5: 9.3 | V5: 9.1 | W5: 8.8 | X5: 8.5 | Y5: 8.1
A6: 5月 | B6: 12.8 | C6: 12.5 | D6: 12.2 | E6: 11.9 | F6: 11.7 | G6: 11.6 | H6: 11.8 | I6: 12.5 | J6: 13.2 | K6: 13.8 | L6: 14.3 | M6: 14.7 | N6: 14.9 | O6: 15.1 | P6: 15.2 | Q6: 15.2 | R6: 15 | S6: 14.9 | T6: 14.6 | U6: 14.3 | V6: 14 | W6: 13.8 | X6: 13.5 | Y6: 13.2
A7: 6月 | B7: 17.3 | C7: 17.1 | D7: 16.9 | E7: 16.7 | F7: 16.5 | G7: 16.4 | H7: 16.6 | I7: 17 | J7: 17.5 | K7: 17.9 | L7: 18.3 | M7: 18.6 | N7: 18.8 | O7: 18.9 | P7: 19.1 | Q7: 18.9 | R7: 19 | S7: 18.8 | T7: 18.7 | U7: 18.5 | V7: 18.3 | W7: 18.1 | X7: 17.9 | Y7: 17.7
A8: 7月 | B8: 21.3 | C8: 21.2 | D8: 21 | E8: 20.9 | F8: 20.7 | G8: 20.6 | H8: 20.7 | I8: 21.1 | J8: 21.5 | K8: 21.9 | L8: 22.2 | M8: 22.4 | N8: 22.6 | O8: 22.8 | P8: 22.8 | Q8: 22.9 | R8: 22.8 | S8: 22.8 | T8: 22.6 | U8: 22.4 | V8: 22.2 | W8: 22 | X8: 21.8 | Y8: 21.6
A9: 8月 | B9: 22.2 | C9: 22 | D9: 21.9 | E9: 21.7 | F9: 21.6 | G9: 21.5 | H9: 21.5 | I9: 21.9 | J9: 22.3 | K9: 22.7 | L9: 23.1 | M9: 23.4 | N9: 23.5 | O9: 23.6 | P9: 23.7 | Q9: 23.6 | R9: 23.5 | S9: 23.4 | T9: 23.2 | U9: 23 | V9: 22.9 | W9: 22.7 | X9: 22.5 | Y9: 22.3
A10: 9月 | B10: 18.7 | C10: 18.5 | D10: 18.4 | E10: 18.2 | F10: 18.1 | G10: 17.9 | H10: 17.9 | I10: 18.2 | J10: 18.7 | K10: 19.1 | L10: 19.5 | M10: 19.8 | N10: 20 | O10: 20.1 | P10: 20.1 | Q10: 20.1 | R10: 19.9 | S10: 19.8 | T10: 19.6 | U10: 19.5 | V10: 19.3 | W10: 19.1 | X10: 18.9 | Y10: 18.7
A11: 10月 | B11: 12.8 | C11: 12.7 | D11: 12.5 | E11: 12.3 | F11: 12.1 | G11: 12 | H11: 11.8 | I11: 12.1 | J11: 12.8 | K11: 13.5 | L11: 14 | M11: 14.4 | N11: 14.6 | O11: 14.7 | P11: 14.7 | Q11: 14.7 | R11: 14.4 | S11: 14.2 | T11: 14 | U11: 13.8 | V11: 13.5 | W11: 13.3 | X11: 13.1 | Y11: 12.9
A12: 11月 | B12: 6.8 | C12: 6.6 | D12: 6.4 | E12: 6.2 | F12: 6.1 | G12: 5.9 | H12: 5.7 | I12: 5.8 | J12: 6.7 | K12: 7.7 | L12: 8.5 | M12: 9 | N12: 9.4 | O12: 9.6 | P12: 9.6 | Q12: 9.4 | R12: 9.1 | S12: 8.6 | T12: 8.3 | U12: 8 | V12: 7.7 | W12: 7.4 | X12: 7.2 | Y12: 6.9
A13: 12月 | B13: 1.9 | C13: 1.7 | D13: 1.5 | E13: 1.4 | F13: 1.2 | G13: 1.1 | H13: 0.9 | I13: 0.9 | J13: 1.7 | K13: 2.8 | L13: 3.7 | M13: 4.3 | N13: 4.7 | O13: 4.9 | P13: 4.9 | Q13: 4.7 | R13: 4.2 | S13: 3.7 | T13: 3.3 | U13: 3 | V13: 2.7 | W13: 2.4 | X13: 2.2 | Y13: 1.9
A14: 1月 | B14: -0.5 | C14: -0.7 | D14: -0.9 | E14: -1.1 | F14: -1.2 | G14: -1.4 | H14: -1.5 | I14: -1.6 | J14: -0.9 | K14: 0.3 | L14: 1.3 | M14: 2 | N14: 2.4 | O14: 2.6 | P14: 2.6 | Q14: 2.5 | R14: 2.1 | S14: 1.5 | T14: 1.1 | U14: 0.7 | V14: 0.4 | W14: 0.2 | X14: -0.1 | Y14: -0.3
A15: 2月 | B15: -0.1 | C15: -0.3 | D15: -0.5 | E15: -0.7 | F15: -0.8 | G15: -1 | H15: -1.2 | I15: -1.1 | J15: -0.2 | K15: 0.9 | L15: 1.8 | M15: 2.4 | N15: 2.9 | O15: 3.1 | P15: 3.2 | Q15: 3.1 | R15: 2.8 | S15: 2.3 | T15: 1.8 | U15: 1.4 | V15: 1.1 | W15: 0.8 | X15: 0.6 | Y15: 0.3
A16: 3月 | B16: 2.9 | C16: 2.6 | D16: 2.4 | E16: 2.2 | F16: 2 | G16: 1.8 | H16: 1.7 | I16: 2.1 | J16: 3 | K16: 3.9 | L16: 4.6 | M16: 5.2 | N16: 5.6 | O16: 5.8 | P16: 5.9 | Q16: 5.9 | R16: 5.7 | S16: 5.3 | T16: 4.9 | U16: 4.5 | V16: 4.2 | W16: 3.9 | X16: 3.6 | Y16: 3.3

Sheet 熊谷 (hidden)
A1: 気象データ
A2: =RIGHT(CELL("filename",A2),LEN(CELL("filename",A2))-FIND("]",CELL("filename",A2))) -> 熊谷
A3: 時刻別平均外気湿球温度
A4: 時刻 | B4: 0 | C4: 1 | D4: 2 | E4: 3 | F4: 4 | G4: 5 | H4: 6 | I4: 7 | J4: 8 | K4: 9 | L4: 10 | M4: 11 | N4: 12 | O4: 13 | P4: 14 | Q4: 15 | R4: 16 | S4: 17 | T4: 18 | U4: 19 | V4: 20 | W4: 21 | X4: 22 | Y4: 23
A5: 4月 | B5: 8.5 | C5: 8.3 | D5: 8 | E5: 7.7 | F5: 7.5 | G5: 7.2 | H5: 7.3 | I5: 8 | J5: 8.6 | K5: 9.3 | L5: 9.9 | M5: 10.4 | N5: 10.8 | O5: 11.1 | P5: 11.2 | Q5: 11.3 | R5: 11.2 | S5: 10.9 | T5: 10.6 | U5: 10.2 | V5: 9.9 | W5: 9.6 | X5: 9.3 | Y5: 9
A6: 5月 | B6: 13.7 | C6: 13.4 | D6: 13.2 | E6: 13 | F6: 12.8 | G6: 12.6 | H6: 12.9 | I6: 13.4 | J6: 13.9 | K6: 14.4 | L6: 14.8 | M6: 15.2 | N6: 15.5 | O6: 15.6 | P6: 15.8 | Q6: 15.7 | R6: 15.7 | S6: 15.5 | T6: 15.2 | U6: 14.9 | V6: 14.7 | W6: 14.4 | X6: 14.2 | Y6: 14
A7: 6月 | B7: 18 | C7: 17.8 | D7: 17.7 | E7: 17.5 | F7: 17.4 | G7: 17.3 | H7: 17.5 | I7: 17.8 | J7: 18.1 | K7: 18.4 | L7: 18.7 | M7: 19 | N7: 19.3 | O7: 19.4 | P7: 19.5 | Q7: 19.5 | R7: 19.5 | S7: 19.4 | T7: 19.2 | U7: 19 | V7: 18.8 | W7: 18.6 | X7: 18.5 | Y7: 18.3
A8: 7月 | B8: 21.9 | C8: 21.7 | D8: 21.7 | E8: 21.6 | F8: 21.5 | G8: 21.4 | H8: 21.6 | I8: 21.8 | J8: 22.1 | K8: 22.4 | L8: 22.7 | M8: 22.9 | N8: 23.2 | O8: 23.2 | P8: 23.3 | Q8: 23.4 | R8: 23.3 | S8: 23.2 | T8: 23.1 | U8: 22.8 | V8: 22.5 | W8: 22.4 | X8: 22.2 | Y8: 22.1
A9: 8月 | B9: 22.9 | C9: 22.8 | D9: 22.7 | E9: 22.6 | F9: 22.5 | G9: 22.4 | H9: 22.5 | I9: 22.7 | J9: 23 | K9: 23.3 | L9: 23.6 | M9: 23.8 | N9: 24 | O9: 24.1 | P9: 24 | Q9: 24 | R9: 24.1 | S9: 24 | T9: 23.8 | U9: 23.5 | V9: 23.3 | W9: 23.2 | X9: 23 | Y9: 23
A10: 9月 | B10: 19.5 | C10: 19.4 | D10: 19.2 | E10: 19.1 | F10: 19 | G10: 18.8 | H10: 18.8 | I10: 19.1 | J10: 19.4 | K10: 19.8 | L10: 20 | M10: 20.3 | N10: 20.5 | O10: 20.6 | P10: 20.6 | Q10: 20.6 | R10: 20.5 | S10: 20.5 | T10: 20.3 | U10: 20.1 | V10: 19.9 | W10: 19.8 | X10: 19.6 | Y10: 19.5
A11: 10月 | B11: 13.8 | C11: 13.5 | D11: 13.4 | E11: 13.2 | F11: 13 | G11: 12.9 | H11: 12.7 | I11: 13 | J11: 13.6 | K11: 14.1 | L11: 14.6 | M11: 14.9 | N11: 15.1 | O11: 15.3 | P11: 15.3 | Q11: 15.3 | R11: 15.2 | S11: 15 | T11: 14.8 | U11: 14.6 | V11: 14.4 | W11: 14.1 | X11: 13.9 | Y11: 13.7
A12: 11月 | B12: 7.7 | C12: 7.4 | D12: 7.2 | E12: 6.9 | F12: 6.7 | G12: 6.5 | H12: 6.4 | I12: 6.5 | J12: 7.4 | K12: 8.3 | L12: 9 | M12: 9.5 | N12: 9.8 | O12: 10.1 | P12: 10.2 | Q12: 10.1 | R12: 9.8 | S12: 9.3 | T12: 9 | U12: 8.7 | V12: 8.5 | W12: 8.2 | X12: 8 | Y12: 7.7
A13: 12月 | B13: 2.3 | C13: 2.1 | D13: 1.9 | E13: 1.7 | F13: 1.5 | G13: 1.3 | H13: 1.2 | I13: 1.1 | J13: 2 | K13: 3.1 | L13: 4 | M13: 4.7 | N13: 5.1 | O13: 5.4 | P13: 5.5 | Q13: 5.3 | R13: 4.9 | S13: 4.3 | T13: 3.8 | U13: 3.5 | V13: 3.2 | W13: 2.9 | X13: 2.6 | Y13: 2.4
A14: 1月 | B14: -0.1 | C14: -0.4 | D14: -0.6 | E14: -0.8 | F14: -1 | G14: -1.1 | H14: -1.3 | I14: -1.4 | J14: -0.6 | K14: 0.6 | L14: 1.6 | M14: 2.4 | N14: 2.8 | O14: 3.1 | P14: 3.3 | Q14: 3.1 | R14: 2.7 | S14: 2.1 | T14: 1.5 | U14: 1.2 | V14: 0.9 | W14: 0.6 | X14: 0.3 | Y14: 0.1
A15: 2月 | B15: 0.5 | C15: 0.2 | D15: 0 | E15: -0.2 | F15: -0.4 | G15: -0.6 | H15: -0.8 | I15: -0.7 | J15: 0.2 | K15: 1.3 | L15: 2.2 | M15: 2.8 | N15: 3.3 | O15: 3.7 | P15: 3.8 | Q15: 3.8 | R15: 3.6 | S15: 3.1 | T15: 2.5 | U15: 2.1 | V15: 1.8 | W15: 1.5 | X15: 1.2 | Y15: 0.9
A16: 3月 | B16: 3.8 | C16: 3.5 | D16: 3.2 | E16: 2.9 | F16: 2.7 | G16: 2.5 | H16: 2.4 | I16: 2.8 | J16: 3.6 | K16: 4.4 | L16: 5.1 | M16: 5.7 | N16: 6.2 | O16: 6.5 | P16: 6.7 | Q16: 6.8 | R16: 6.6 | S16: 6.3 | T16: 5.8 | U16: 5.5 | V16: 5.1 | W16: 4.8 | X16: 4.5 | Y16: 4.2

Sheet 千葉 (hidden)
A1: 気象データ
A2: =RIGHT(CELL("filename",A2),LEN(CELL("filename",A2))-FIND("]",CELL("filename",A2))) -> 千葉
A3: 時刻別平均外気湿球温度
A4: 時刻 | B4: 0 | C4: 1 | D4: 2 | E4: 3 | F4: 4 | G4: 5 | H4: 6 | I4: 7 | J4: 8 | K4: 9 | L4: 10 | M4: 11 | N4: 12 | O4: 13 | P4: 14 | Q4: 15 | R4: 16 | S4: 17 | T4: 18 | U4: 19 | V4: 20 | W4: 21 | X4: 22 | Y4: 23
A5: 4月 | B5: 10.3 | C5: 10.2 | D5: 10 | E5: 9.8 | F5: 9.6 | G5: 9.5 | H5: 9.5 | I5: 9.8 | J5: 10.3 | K5: 10.8 | L5: 11.1 | M5: 11.4 | N5: 11.6 | O5: 11.8 | P5: 11.9 | Q5: 11.9 | R5: 11.9 | S5: 11.6 | T5: 11.4 | U5: 11.2 | V5: 11.1 | W5: 10.9 | X5: 10.8 | Y5: 10.6
A6: 5月 | B6: 14.9 | C6: 14.8 | D6: 14.7 | E6: 14.6 | F6: 14.5 | G6: 14.4 | H6: 14.5 | I6: 14.9 | J6: 15.2 | K6: 15.5 | L6: 15.7 | M6: 15.9 | N6: 16.1 | O6: 16.1 | P6: 16.2 | Q6: 16.2 | R6: 16.1 | S6: 15.9 | T6: 15.7 | U6: 15.5 | V6: 15.4 | W6: 15.4 | X6: 15.2 | Y6: 15.1
A7: 6月 | B7: 18.5 | C7: 18.4 | D7: 18.3 | E7: 18.3 | F7: 18.2 | G7: 18.1 | H7: 18.3 | I7: 18.5 | J7: 18.8 | K7: 19.1 | L7: 19.3 | M7: 19.4 | N7: 19.5 | O7: 19.6 | P7: 19.7 | Q7: 19.7 | R7: 19.7 | S7: 19.5 | T7: 19.3 | U7: 19.1 | V7: 19 | W7: 18.9 | X7: 18.8 | Y7: 18.7
A8: 7月 | B8: 22.3 | C8: 22.2 | D8: 22.1 | E8: 22.1 | F8: 22 | G8: 22 | H8: 22.1 | I8: 22.4 | J8: 22.6 | K8: 22.9 | L8: 23.1 | M8: 23.3 | N8: 23.4 | O8: 23.5 | P8: 23.6 | Q8: 23.5 | R8: 23.4 | S8: 23.2 | T8: 22.9 | U8: 22.8 | V8: 22.6 | W8: 22.5 | X8: 22.5 | Y8: 22.4
A9: 8月 | B9: 23.5 | C9: 23.4 | D9: 23.3 | E9: 23.3 | F9: 23.2 | G9: 23.2 | H9: 23.2 | I9: 23.5 | J9: 23.8 | K9: 24 | L9: 24.1 | M9: 24.2 | N9: 24.3 | O9: 24.4 | P9: 24.5 | Q9: 24.4 | R9: 24.3 | S9: 24.1 | T9: 23.9 | U9: 23.7 | V9: 23.6 | W9: 23.6 | X9: 23.5 | Y9: 23.5
A10: 9月 | B10: 20.4 | C10: 20.3 | D10: 20.2 | E10: 20.1 | F10: 20 | G10: 19.9 | H10: 19.9 | I10: 20.1 | J10: 20.5 | K10: 20.7 | L10: 20.9 | M10: 21.1 | N10: 21.2 | O10: 21.2 | P10: 21.2 | Q10: 21.2 | R10: 21.1 | S10: 21 | T10: 20.8 | U10: 20.7 | V10: 20.6 | W10: 20.6 | X10: 20.5 | Y10: 20.4
A11: 10月 | B11: 15.2 | C11: 15 | D11: 14.9 | E11: 14.7 | F11: 14.5 | G11: 14.3 | H11: 14.2 | I11: 14.4 | J11: 14.9 | K11: 15.4 | L11: 15.7 | M11: 16 | N11: 16.1 | O11: 16.2 | P11: 16.2 | Q11: 16.2 | R11: 16.1 | S11: 16 | T11: 15.8 | U11: 15.7 | V11: 15.5 | W11: 15.4 | X11: 15.3 | Y11: 15.2
A12: 11月 | B12: 9.8 | C12: 9.5 | D12: 9.3 | E12: 9 | F12: 8.8 | G12: 8.6 | H12: 8.4 | I12: 8.5 | J12: 8.9 | K12: 9.6 | L12: 10.2 | M12: 10.7 | N12: 11 | O12: 11.2 | P12: 11.3 | Q12: 11.4 | R12: 11.2 | S12: 11.1 | T12: 10.9 | U12: 10.8 | V12: 10.6 | W12: 10.3 | X12: 10.1 | Y12: 9.9
A13: 12月 | B13: 4.5 | C13: 4.3 | D13: 4 | E13: 3.8 | F13: 3.5 | G13: 3.3 | H13: 3.2 | I13: 3.2 | J13: 3.7 | K13: 4.4 | L13: 5.1 | M13: 5.7 | N13: 6.1 | O13: 6.3 | P13: 6.5 | Q13: 6.5 | R13: 6.3 | S13: 6.1 | T13: 5.8 | U13: 5.5 | V13: 5.3 | W13: 5 | X13: 4.8 | Y13: 4.6
A14: 1月 | B14: 1.9 | C14: 1.6 | D14: 1.4 | E14: 1.2 | F14: 1 | G14: 0.8 | H14: 0.7 | I14: 0.6 | J14: 1 | K14: 1.8 | L14: 2.6 | M14: 3.1 | N14: 3.6 | O14: 3.8 | P14: 4 | Q14: 4.1 | R14: 3.9 | S14: 3.6 | T14: 3.3 | U14: 3.1 | V14: 2.8 | W14: 2.5 | X14: 2.3 | Y14: 2.1
A15: 2月 | B15: 2.6 | C15: 2.3 | D15: 2.1 | E15: 1.9 | F15: 1.6 | G15: 1.4 | H15: 1.3 | I15: 1.3 | J15: 1.8 | K15: 2.5 | L15: 3.2 | M15: 3.7 | N15: 4.1 | O15: 4.4 | P15: 4.6 | Q15: 4.7 | R15: 4.6 | S15: 4.4 | T15: 4.1 | U15: 3.9 | V15: 3.6 | W15: 3.4 | X15: 3.2 | Y15: 2.9
A16: 3月 | B16: 5.9 | C16: 5.6 | D16: 5.4 | E16: 5.1 | F16: 4.9 | G16: 4.7 | H16: 4.5 | I16: 4.7 | J16: 5.3 | K16: 5.9 | L16: 6.4 | M16: 6.8 | N16: 7.1 | O16: 7.4 | P16: 7.5 | Q16: 7.6 | R16: 7.6 | S16: 7.4 | T16: 7.2 | U16: 7 | V16: 6.8 | W16: 6.6 | X16: 6.3 | Y16: 6.2

Sheet 東京 (hidden)
A1: 気象データ
A2: =RIGHT(CELL("filename",A2),LEN(CELL("filename",A2))-FIND("]",CELL("filename",A2))) -> 東京
A3: 時刻別平均外気湿球温度
A4: 時刻 | B4: 0 | C4: 1 | D4: 2 | E4: 3 | F4: 4 | G4: 5 | H4: 6 | I4: 7 | J4: 8 | K4: 9 | L4: 10 | M4: 11 | N4: 12 | O4: 13 | P4: 14 | Q4: 15 | R4: 16 | S4: 17 | T4: 18 | U4: 19 | V4: 20 | W4: 21 | X4: 22 | Y4: 23
A5: 4月 | B5: 10 | C5: 9.8 | D5: 9.6 | E5: 9.3 | F5: 9.2 | G5: 8.9 | H5: 9 | I5: 9.3 | J5: 9.7 | K5: 10.2 | L5: 10.6 | M5: 11 | N5: 11.3 | O5: 11.5 | P5: 11.6 | Q5: 11.5 | R5: 11.5 | S5: 11.4 | T5: 11.2 | U5: 11 | V5: 10.8 | W5: 10.7 | X5: 10.5 | Y5: 10.3
A6: 5月 | B6: 14.6 | C6: 14.5 | D6: 14.3 | E6: 14.2 | F6: 14.1 | G6: 14 | H6: 14.1 | I6: 14.4 | J6: 14.7 | K6: 15 | L6: 15.3 | M6: 15.6 | N6: 15.8 | O6: 15.9 | P6: 15.9 | Q6: 15.9 | R6: 15.8 | S6: 15.7 | T6: 15.6 | U6: 15.4 | V6: 15.3 | W6: 15.1 | X6: 15 | Y6: 14.9
A7: 6月 | B7: 18.4 | C7: 18.3 | D7: 18.2 | E7: 18.1 | F7: 18 | G7: 18 | H7: 18.1 | I7: 18.3 | J7: 18.5 | K7: 18.8 | L7: 19 | M7: 19.2 | N7: 19.4 | O7: 19.5 | P7: 19.5 | Q7: 19.5 | R7: 19.5 | S7: 19.4 | T7: 19.2 | U7: 19.1 | V7: 18.9 | W7: 18.8 | X7: 18.7 | Y7: 18.7
A8: 7月 | B8: 22.1 | C8: 22.1 | D8: 22 | E8: 21.9 | F8: 21.9 | G8: 21.8 | H8: 22 | I8: 22.2 | J8: 22.4 | K8: 22.6 | L8: 22.9 | M8: 23.1 | N8: 23.2 | O8: 23.3 | P8: 23.3 | Q8: 23.3 | R8: 23.2 | S8: 23.1 | T8: 22.9 | U8: 22.7 | V8: 22.6 | W8: 22.5 | X8: 22.4 | Y8: 22.3
A9: 8月 | B9: 23.3 | C9: 23.2 | D9: 23.1 | E9: 23.1 | F9: 23 | G9: 22.9 | H9: 23 | I9: 23.2 | J9: 23.4 | K9: 23.5 | L9: 23.8 | M9: 24 | N9: 24.1 | O9: 24.1 | P9: 24.2 | Q9: 24.1 | R9: 24 | S9: 24 | T9: 23.8 | U9: 23.6 | V9: 23.5 | W9: 23.5 | X9: 23.4 | Y9: 23.3
A10: 9月 | B10: 20.1 | C10: 20 | D10: 19.9 | E10: 19.8 | F10: 19.7 | G10: 19.6 | H10: 19.6 | I10: 19.7 | J10: 19.9 | K10: 20.2 | L10: 20.4 | M10: 20.5 | N10: 20.7 | O10: 20.8 | P10: 20.8 | Q10: 20.8 | R10: 20.8 | S10: 20.7 | T10: 20.6 | U10: 20.5 | V10: 20.4 | W10: 20.3 | X10: 20.2 | Y10: 20.1
A11: 10月 | B11: 14.9 | C11: 14.7 | D11: 14.5 | E11: 14.3 | F11: 14.1 | G11: 14 | H11: 13.8 | I11: 14 | J11: 14.3 | K11: 14.6 | L11: 15 | M11: 15.3 | N11: 15.6 | O11: 15.7 | P11: 15.7 | Q11: 15.7 | R11: 15.7 | S11: 15.5 | T11: 15.5 | U11: 15.4 | V11: 15.2 | W11: 15.1 | X11: 15 | Y11: 14.9
A12: 11月 | B12: 9.3 | C12: 9.1 | D12: 8.9 | E12: 8.6 | F12: 8.4 | G12: 8.2 | H12: 8.1 | I12: 8.2 | J12: 8.5 | K12: 9 | L12: 9.5 | M12: 10 | N12: 10.4 | O12: 10.6 | P12: 10.7 | Q12: 10.8 | R12: 10.7 | S12: 10.5 | T12: 10.4 | U12: 10.3 | V12: 10.1 | W12: 9.9 | X12: 9.6 | Y12: 9.4
A13: 12月 | B13: 4.1 | C13: 3.9 | D13: 3.6 | E13: 3.4 | F13: 3.2 | G13: 3.1 | H13: 3.1 | I13: 3 | J13: 3.3 | K13: 4 | L13: 4.6 | M13: 5.1 | N13: 5.6 | O13: 5.9 | P13: 6 | Q13: 6 | R13: 5.8 | S13: 5.5 | T13: 5.3 | U13: 5.1 | V13: 4.9 | W13: 4.7 | X13: 4.5 | Y13: 4.2
A14: 1月 | B14: 1.6 | C14: 1.3 | D14: 1.1 | E14: 0.9 | F14: 0.7 | G14: 0.5 | H14: 0.4 | I14: 0.4 | J14: 0.8 | K14: 1.4 | L14: 2.1 | M14: 2.7 | N14: 3.1 | O14: 3.5 | P14: 3.6 | Q14: 3.6 | R14: 3.5 | S14: 3.2 | T14: 2.9 | U14: 2.7 | V14: 2.5 | W14: 2.3 | X14: 2.1 | Y14: 1.8
A15: 2月 | B15: 2.3 | C15: 2 | D15: 1.7 | E15: 1.5 | F15: 1.2 | G15: 1.1 | H15: 1 | I15: 1 | J15: 1.4 | K15: 2 | L15: 2.6 | M15: 3.2 | N15: 3.7 | O15: 4 | P15: 4.3 | Q15: 4.3 | R15: 4.3 | S15: 4 | T15: 3.8 | U15: 3.6 | V15: 3.4 | W15: 3.2 | X15: 2.9 | Y15: 2.7
A16: 3月 | B16: 5.5 | C16: 5.2 | D16: 5 | E16: 4.7 | F16: 4.4 | G16: 4.3 | H16: 4.1 | I16: 4.3 | J16: 4.7 | K16: 5.3 | L16: 5.8 | M16: 6.3 | N16: 6.8 | O16: 7.1 | P16: 7.2 | Q16: 7.3 | R16: 7.3 | S16: 7.1 | T16: 6.9 | U16: 6.7 | V16: 6.6 | W16: 6.4 | X16: 6.1 | Y16: 5.8

Sheet 横浜 (hidden)
A1: 気象データ
A2: =RIGHT(CELL("filename",A2),LEN(CELL("filename",A2))-FIND("]",CELL("filename",A2))) -> 横浜
A3: 時刻別平均外気湿球温度
A4: 時刻 | B4: 0 | C4: 1 | D4: 2 | E4: 3 | F4: 4 | G4: 5 | H4: 6 | I4: 7 | J4: 8 | K4: 9 | L4: 10 | M4: 11 | N4: 12 | O4: 13 | P4: 14 | Q4: 15 | R4: 16 | S4: 17 | T4: 18 | U4: 19 | V4: 20 | W4: 21 | X4: 22 | Y4: 23
A5: 4月 | B5: 10.2 | C5: 10 | D5: 9.8 | E5: 9.6 | F5: 9.4 | G5: 9.3 | H5: 9.3 | I5: 9.5 | J5: 10 | K5: 10.6 | L5: 11 | M5: 11.4 | N5: 11.6 | O5: 11.7 | P5: 11.9 | Q5: 11.8 | R5: 11.8 | S5: 11.6 | T5: 11.4 | U5: 11.2 | V5: 11.1 | W5: 10.9 | X5: 10.7 | Y5: 10.6
A6: 5月 | B6: 14.7 | C6: 14.6 | D6: 14.4 | E6: 14.3 | F6: 14.2 | G6: 14.1 | H6: 14.2 | I6: 14.5 | J6: 14.9 | K6: 15.3 | L6: 15.6 | M6: 15.8 | N6: 15.9 | O6: 16.1 | P6: 16.1 | Q6: 16.1 | R6: 16 | S6: 15.8 | T6: 15.6 | U6: 15.5 | V6: 15.3 | W6: 15.2 | X6: 15 | Y6: 14.9
A7: 6月 | B7: 18.4 | C7: 18.3 | D7: 18.2 | E7: 18.1 | F7: 18 | G7: 18 | H7: 18.1 | I7: 18.3 | J7: 18.6 | K7: 18.9 | L7: 19.1 | M7: 19.3 | N7: 19.4 | O7: 19.5 | P7: 19.6 | Q7: 19.6 | R7: 19.5 | S7: 19.3 | T7: 19.2 | U7: 19 | V7: 18.9 | W7: 18.8 | X7: 18.7 | Y7: 18.6
A8: 7月 | B8: 22.1 | C8: 22 | D8: 22 | E8: 21.9 | F8: 21.9 | G8: 21.8 | H8: 22 | I8: 22.2 | J8: 22.5 | K8: 22.7 | L8: 23 | M8: 23.1 | N8: 23.2 | O8: 23.3 | P8: 23.4 | Q8: 23.4 | R8: 23.2 | S8: 23 | T8: 22.8 | U8: 22.6 | V8: 22.5 | W8: 22.4 | X8: 22.3 | Y8: 22.3
A9: 8月 | B9: 23.3 | C9: 23.3 | D9: 23.2 | E9: 23.1 | F9: 23.1 | G9: 23 | H9: 23.1 | I9: 23.2 | J9: 23.5 | K9: 23.7 | L9: 24 | M9: 24.1 | N9: 24.3 | O9: 24.3 | P9: 24.3 | Q9: 24.3 | R9: 24.2 | S9: 24 | T9: 23.7 | U9: 23.6 | V9: 23.6 | W9: 23.5 | X9: 23.4 | Y9: 23.4
A10: 9月 | B10: 20.3 | C10: 20.2 | D10: 20 | E10: 19.9 | F10: 19.8 | G10: 19.7 | H10: 19.7 | I10: 19.8 | J10: 20.1 | K10: 20.4 | L10: 20.6 | M10: 20.8 | N10: 21 | O10: 21.1 | P10: 21.1 | Q10: 21.1 | R10: 21 | S10: 20.9 | T10: 20.7 | U10: 20.6 | V10: 20.5 | W10: 20.4 | X10: 20.4 | Y10: 20.2
A11: 10月 | B11: 15 | C11: 14.9 | D11: 14.7 | E11: 14.5 | F11: 14.3 | G11: 14.2 | H11: 14.1 | I11: 14.1 | J11: 14.5 | K11: 14.9 | L11: 15.3 | M11: 15.6 | N11: 15.9 | O11: 16.1 | P11: 16.1 | Q11: 16.1 | R11: 15.9 | S11: 15.8 | T11: 15.6 | U11: 15.5 | V11: 15.4 | W11: 15.3 | X11: 15.2 | Y11: 15.1
A12: 11月 | B12: 9.7 | C12: 9.4 | D12: 9.2 | E12: 9 | F12: 8.8 | G12: 8.6 | H12: 8.5 | I12: 8.5 | J12: 8.8 | K12: 9.4 | L12: 9.9 | M12: 10.4 | N12: 10.8 | O12: 11.1 | P12: 11.2 | Q12: 11.2 | R12: 11 | S12: 10.8 | T12: 10.7 | U12: 10.5 | V12: 10.4 | W12: 10.2 | X12: 10 | Y12: 9.7
A13: 12月 | B13: 4.5 | C13: 4.2 | D13: 4 | E13: 3.8 | F13: 3.7 | G13: 3.5 | H13: 3.5 | I13: 3.4 | J13: 3.8 | K13: 4.4 | L13: 5.1 | M13: 5.7 | N13: 6.1 | O13: 6.4 | P13: 6.6 | Q13: 6.5 | R13: 6.3 | S13: 5.9 | T13: 5.7 | U13: 5.5 | V13: 5.3 | W13: 5.1 | X13: 4.8 | Y13: 4.6
A14: 1月 | B14: 1.9 | C14: 1.7 | D14: 1.4 | E14: 1.2 | F14: 1 | G14: 0.9 | H14: 0.8 | I14: 0.7 | J14: 1.1 | K14: 1.8 | L14: 2.5 | M14: 3.1 | N14: 3.6 | O14: 4 | P14: 4.1 | Q14: 4.1 | R14: 3.9 | S14: 3.6 | T14: 3.3 | U14: 3.1 | V14: 2.9 | W14: 2.7 | X14: 2.4 | Y14: 2.1
A15: 2月 | B15: 2.6 | C15: 2.3 | D15: 2.1 | E15: 1.8 | F15: 1.6 | G15: 1.5 | H15: 1.3 | I15: 1.3 | J15: 1.7 | K15: 2.3 | L15: 3 | M15: 3.6 | N15: 4.1 | O15: 4.4 | P15: 4.7 | Q15: 4.7 | R15: 4.6 | S15: 4.4 | T15: 4.1 | U15: 3.9 | V15: 3.7 | W15: 3.5 | X15: 3.3 | Y15: 3
A16: 3月 | B16: 5.9 | C16: 5.6 | D16: 5.3 | E16: 5.1 | F16: 4.8 | G16: 4.6 | H16: 4.5 | I16: 4.6 | J16: 5 | K16: 5.6 | L16: 6.2 | M16: 6.7 | N16: 7.1 | O16: 7.4 | P16: 7.6 | Q16: 7.7 | R16: 7.6 | S16: 7.4 | T16: 7.2 | U16: 7 | V16: 6.8 | W16: 6.7 | X16: 6.4 | Y16: 6.2

Sheet 新潟 (hidden)
A1: 気象データ
A2: =RIGHT(CELL("filename",A2),LEN(CELL("filename",A2))-FIND("]",CELL("filename",A2))) -> 新潟
A3: 時刻別平均外気湿球温度
A4: 時刻 | B4: 0 | C4: 1 | D4: 2 | E4: 3 | F4: 4 | G4: 5 | H4: 6 | I4: 7 | J4: 8 | K4: 9 | L4: 10 | M4: 11 | N4: 12 | O4: 13 | P4: 14 | Q4: 15 | R4: 16 | S4: 17 | T4: 18 | U4: 19 | V4: 20 | W4: 21 | X4: 22 | Y4: 23
A5: 4月 | B5: 7.4 | C5: 7.1 | D5: 6.9 | E5: 6.8 | F5: 6.6 | G5: 6.4 | H5: 6.6 | I5: 7.2 | J5: 7.9 | K5: 8.6 | L5: 9 | M5: 9.3 | N5: 9.5 | O5: 9.5 | P5: 9.4 | Q5: 9.3 | R5: 9.1 | S5: 8.8 | T5: 8.5 | U5: 8.4 | V5: 8.3 | W5: 8.1 | X5: 8 | Y5: 7.8
A6: 5月 | B6: 12.7 | C6: 12.6 | D6: 12.4 | E6: 12.2 | F6: 12.1 | G6: 12 | H6: 12.2 | I6: 12.7 | J6: 13.2 | K6: 13.7 | L6: 14.1 | M6: 14.4 | N6: 14.4 | O6: 14.4 | P6: 14.3 | Q6: 14.1 | R6: 14 | S6: 13.7 | T6: 13.5 | U6: 13.3 | V6: 13.2 | W6: 13.2 | X6: 13.1 | Y6: 13
A7: 6月 | B7: 17.2 | C7: 17.1 | D7: 17 | E7: 16.8 | F7: 16.7 | G7: 16.7 | H7: 16.9 | I7: 17.3 | J7: 17.7 | K7: 18 | L7: 18.3 | M7: 18.5 | N7: 18.6 | O7: 18.5 | P7: 18.6 | Q7: 18.5 | R7: 18.3 | S7: 18.1 | T7: 17.9 | U7: 17.8 | V7: 17.6 | W7: 17.6 | X7: 17.5 | Y7: 17.4
A8: 7月 | B8: 21.5 | C8: 21.4 | D8: 21.2 | E8: 21.1 | F8: 21 | G8: 21 | H8: 21.1 | I8: 21.5 | J8: 21.8 | K8: 22.1 | L8: 22.4 | M8: 22.6 | N8: 22.6 | O8: 22.7 | P8: 22.6 | Q8: 22.6 | R8: 22.5 | S8: 22.3 | T8: 22.1 | U8: 22 | V8: 21.9 | W8: 21.8 | X8: 21.7 | Y8: 21.7
A9: 8月 | B9: 22.6 | C9: 22.5 | D9: 22.3 | E9: 22.2 | F9: 22.1 | G9: 21.9 | H9: 22 | I9: 22.4 | J9: 22.8 | K9: 23.1 | L9: 23.3 | M9: 23.6 | N9: 23.7 | O9: 23.8 | P9: 23.7 | Q9: 23.7 | R9: 23.6 | S9: 23.5 | T9: 23.3 | U9: 23.2 | V9: 23.1 | W9: 23 | X9: 22.9 | Y9: 22.8
A10: 9月 | B10: 18.8 | C10: 18.7 | D10: 18.5 | E10: 18.4 | F10: 18.3 | G10: 18.2 | H10: 18.2 | I10: 18.5 | J10: 19 | K10: 19.4 | L10: 19.7 | M10: 19.9 | N10: 20 | O10: 20.1 | P10: 20.1 | Q10: 20 | R10: 19.9 | S10: 19.7 | T10: 19.5 | U10: 19.4 | V10: 19.3 | W10: 19.1 | X10: 19 | Y10: 18.9
A11: 10月 | B11: 13.2 | C11: 13 | D11: 12.9 | E11: 12.7 | F11: 12.6 | G11: 12.5 | H11: 12.4 | I11: 12.6 | J11: 13.2 | K11: 13.8 | L11: 14.2 | M11: 14.5 | N11: 14.6 | O11: 14.6 | P11: 14.6 | Q11: 14.5 | R11: 14.3 | S11: 14.1 | T11: 14 | U11: 13.9 | V11: 13.7 | W11: 13.5 | X11: 13.3 | Y11: 13.1
A12: 11月 | B12: 7.9 | C12: 7.7 | D12: 7.6 | E12: 7.4 | F12: 7.3 | G12: 7.2 | H12: 7.1 | I12: 7.2 | J12: 7.6 | K12: 8.2 | L12: 8.8 | M12: 9.1 | N12: 9.3 | O12: 9.4 | P12: 9.4 | Q12: 9.3 | R12: 9.1 | S12: 8.8 | T12: 8.7 | U12: 8.5 | V12: 8.4 | W12: 8.2 | X12: 8 | Y12: 7.8
A13: 12月 | B13: 3.3 | C13: 3.1 | D13: 3.1 | E13: 3 | F13: 2.9 | G13: 2.8 | H13: 2.8 | I13: 2.7 | J13: 2.9 | K13: 3.3 | L13: 3.8 | M13: 4.1 | N13: 4.3 | O13: 4.4 | P13: 4.4 | Q13: 4.4 | R13: 4.2 | S13: 4 | T13: 3.9 | U13: 3.8 | V13: 3.6 | W13: 3.5 | X13: 3.4 | Y13: 3.2
A14: 1月 | B14: 0.8 | C14: 0.7 | D14: 0.7 | E14: 0.6 | F14: 0.5 | G14: 0.5 | H14: 0.5 | I14: 0.5 | J14: 0.6 | K14: 0.9 | L14: 1.3 | M14: 1.6 | N14: 1.8 | O14: 1.9 | P14: 1.9 | Q14: 1.8 | R14: 1.7 | S14: 1.5 | T14: 1.4 | U14: 1.3 | V14: 1.1 | W14: 1 | X14: 0.9 | Y14: 0.8
A15: 2月 | B15: 0.7 | C15: 0.6 | D15: 0.5 | E15: 0.4 | F15: 0.3 | G15: 0.3 | H15: 0.2 | I15: 0.2 | J15: 0.6 | K15: 1 | L15: 1.5 | M15: 1.8 | N15: 2.1 | O15: 2.3 | P15: 2.3 | Q15: 2.3 | R15: 2.1 | S15: 1.8 | T15: 1.7 | U15: 1.5 | V15: 1.4 | W15: 1.2 | X15: 1.1 | Y15: 0.9
A16: 3月 | B16: 3 | C16: 2.8 | D16: 2.7 | E16: 2.5 | F16: 2.4 | G16: 2.3 | H16: 2.2 | I16: 2.5 | J16: 3.1 | K16: 3.8 | L16: 4.3 | M16: 4.7 | N16: 4.9 | O16: 5 | P16: 5 | Q16: 4.9 | R16: 4.7 | S16: 4.5 | T16: 4.2 | U16: 4.1 | V16: 3.9 | W16: 3.7 | X16: 3.5 | Y16: 3.3

Sheet 富山 (hidden)
A1: 気象データ
A2: =RIGHT(CELL("filename",A2),LEN(CELL("filename",A2))-FIND("]",CELL("filename",A2))) -> 富山
A3: 時刻別平均外気湿球温度
A4: 時刻 | B4: 0 | C4: 1 | D4: 2 | E4: 3 | F4: 4 | G4: 5 | H4: 6 | I4: 7 | J4: 8 | K4: 9 | L4: 10 | M4: 11 | N4: 12 | O4: 13 | P4: 14 | Q4: 15 | R4: 16 | S4: 17 | T4: 18 | U4: 19 | V4: 20 | W4: 21 | X4: 22 | Y4: 23
A5: 4月 | B5: 8 | C5: 7.8 | D5: 7.6 | E5: 7.4 | F5: 7.3 | G5: 7.1 | H5: 7.3 | I5: 8 | J5: 8.9 | K5: 9.5 | L5: 10 | M5: 10.2 | N5: 10.5 | O5: 10.6 | P5: 10.5 | Q5: 10.3 | R5: 10.1 | S5: 9.8 | T5: 9.5 | U5: 9.2 | V5: 9.1 | W5: 8.9 | X5: 8.7 | Y5: 8.4
A6: 5月 | B6: 13.2 | C6: 13 | D6: 12.8 | E6: 12.6 | F6: 12.5 | G6: 12.4 | H6: 12.8 | I6: 13.4 | J6: 14.1 | K6: 14.5 | L6: 14.9 | M6: 15.1 | N6: 15.2 | O6: 15.3 | P6: 15.2 | Q6: 15.1 | R6: 14.9 | S6: 14.6 | T6: 14.3 | U6: 14 | V6: 13.9 | W6: 13.9 | X6: 13.7 | Y6: 13.5
A7: 6月 | B7: 17.9 | C7: 17.8 | D7: 17.6 | E7: 17.4 | F7: 17.3 | G7: 17.2 | H7: 17.6 | I7: 18.1 | J7: 18.5 | K7: 18.8 | L7: 19.1 | M7: 19.4 | N7: 19.5 | O7: 19.5 | P7: 19.5 | Q7: 19.4 | R7: 19.2 | S7: 19 | T7: 18.8 | U7: 18.6 | V7: 18.5 | W7: 18.5 | X7: 18.4 | Y7: 18.3
A8: 7月 | B8: 22.2 | C8: 22 | D8: 21.9 | E8: 21.7 | F8: 21.6 | G8: 21.5 | H8: 21.7 | I8: 22.1 | J8: 22.5 | K8: 22.9 | L8: 23.2 | M8: 23.4 | N8: 23.6 | O8: 23.6 | P8: 23.6 | Q8: 23.5 | R8: 23.4 | S8: 23.2 | T8: 23 | U8: 22.8 | V8: 22.7 | W8: 22.6 | X8: 22.5 | Y8: 22.4
A9: 8月 | B9: 23.1 | C9: 22.9 | D9: 22.7 | E9: 22.6 | F9: 22.4 | G9: 22.2 | H9: 22.3 | I9: 22.8 | J9: 23.3 | K9: 23.8 | L9: 24.1 | M9: 24.3 | N9: 24.5 | O9: 24.5 | P9: 24.5 | Q9: 24.4 | R9: 24.3 | S9: 24.2 | T9: 24 | U9: 23.8 | V9: 23.7 | W9: 23.6 | X9: 23.5 | Y9: 23.3
A10: 9月 | B10: 19.4 | C10: 19.2 | D10: 19 | E10: 18.9 | F10: 18.7 | G10: 18.6 | H10: 18.6 | I10: 19.1 | J10: 19.7 | K10: 20.1 | L10: 20.5 | M10: 20.7 | N10: 20.8 | O10: 20.8 | P10: 20.8 | Q10: 20.7 | R10: 20.6 | S10: 20.3 | T10: 20.1 | U10: 20.1 | V10: 20 | W10: 19.9 | X10: 19.7 | Y10: 19.5
A11: 10月 | B11: 13.8 | C11: 13.6 | D11: 13.4 | E11: 13.3 | F11: 13.1 | G11: 13 | H11: 12.9 | I11: 13.3 | J11: 14.1 | K11: 14.7 | L11: 15.1 | M11: 15.4 | N11: 15.6 | O11: 15.7 | P11: 15.6 | Q11: 15.5 | R11: 15.3 | S11: 15 | T11: 14.9 | U11: 14.7 | V11: 14.5 | W11: 14.2 | X11: 14 | Y11: 13.8
A12: 11月 | B12: 8.4 | C12: 8.2 | D12: 8 | E12: 7.9 | F12: 7.8 | G12: 7.7 | H12: 7.6 | I12: 7.7 | J12: 8.4 | K12: 9.2 | L12: 9.7 | M12: 10.1 | N12: 10.3 | O12: 10.4 | P12: 10.5 | Q12: 10.3 | R12: 10.1 | S12: 9.8 | T12: 9.6 | U12: 9.4 | V12: 9.1 | W12: 8.8 | X12: 8.6 | Y12: 8.4
A13: 12月 | B13: 3.7 | C13: 3.6 | D13: 3.5 | E13: 3.4 | F13: 3.4 | G13: 3.3 | H13: 3.3 | I13: 3.2 | J13: 3.5 | K13: 4.1 | L13: 4.7 | M13: 5.1 | N13: 5.3 | O13: 5.4 | P13: 5.4 | Q13: 5.3 | R13: 5.1 | S13: 4.8 | T13: 4.6 | U13: 4.4 | V13: 4.2 | W13: 4 | X13: 3.8 | Y13: 3.6
A14: 1月 | B14: 1.2 | C14: 1 | D14: 0.9 | E14: 0.9 | F14: 0.8 | G14: 0.7 | H14: 0.7 | I14: 0.7 | J14: 0.9 | K14: 1.4 | L14: 2 | M14: 2.4 | N14: 2.7 | O14: 2.8 | P14: 2.8 | Q14: 2.8 | R14: 2.6 | S14: 2.3 | T14: 2.1 | U14: 2 | V14: 1.8 | W14: 1.6 | X14: 1.4 | Y14: 1.3
A15: 2月 | B15: 1.1 | C15: 1 | D15: 0.9 | E15: 0.8 | F15: 0.7 | G15: 0.6 | H15: 0.5 | I15: 0.5 | J15: 1 | K15: 1.7 | L15: 2.3 | M15: 2.7 | N15: 3.1 | O15: 3.2 | P15: 3.3 | Q15: 3.3 | R15: 3.1 | S15: 2.8 | T15: 2.5 | U15: 2.3 | V15: 2.1 | W15: 1.8 | X15: 1.6 | Y15: 1.4
A16: 3月 | B16: 3.7 | C16: 3.6 | D16: 3.4 | E16: 3.3 | F16: 3.1 | G16: 3 | H16: 2.9 | I16: 3.2 | J16: 4 | K16: 4.8 | L16: 5.3 | M16: 5.8 | N16: 6 | O16: 6.2 | P16: 6.2 | Q16: 6.1 | R16: 5.9 | S16: 5.6 | T16: 5.2 | U16: 5 | V16: 4.8 | W16: 4.5 | X16: 4.2 | Y16: 4

Sheet 金沢 (hidden)
A1: 気象データ
A2: =RIGHT(CELL("filename",A2),LEN(CELL("filename",A2))-FIND("]",CELL("filename",A2))) -> 金沢
A3: 時刻別平均外気湿球温度
A4: 時刻 | B4: 0 | C4: 1 | D4: 2 | E4: 3 | F4: 4 | G4: 5 | H4: 6 | I4: 7 | J4: 8 | K4: 9 | L4: 10 | M4: 11 | N4: 12 | O4: 13 | P4: 14 | Q4: 15 | R4: 16 | S4: 17 | T4: 18 | U4: 19 | V4: 20 | W4: 21 | X4: 22 | Y4: 23
A5: 4月 | B5: 8.1 | C5: 7.9 | D5: 7.7 | E5: 7.5 | F5: 7.4 | G5: 7.3 | H5: 7.3 | I5: 7.8 | J5: 8.7 | K5: 9.3 | L5: 9.8 | M5: 10.1 | N5: 10.3 | O5: 10.4 | P5: 10.3 | Q5: 10.2 | R5: 10.1 | S5: 9.8 | T5: 9.5 | U5: 9.3 | V5: 9.2 | W5: 9 | X5: 8.7 | Y5: 8.4
A6: 5月 | B6: 13.1 | C6: 12.9 | D6: 12.7 | E6: 12.5 | F6: 12.3 | G6: 12.2 | H6: 12.4 | I6: 13 | J6: 13.7 | K6: 14.2 | L6: 14.6 | M6: 14.8 | N6: 14.9 | O6: 15 | P6: 14.9 | Q6: 14.8 | R6: 14.6 | S6: 14.4 | T6: 14.2 | U6: 14 | V6: 13.9 | W6: 13.8 | X6: 13.6 | Y6: 13.4
A7: 6月 | B7: 17.7 | C7: 17.5 | D7: 17.4 | E7: 17.2 | F7: 17.1 | G7: 17 | H7: 17.2 | I7: 17.6 | J7: 18.1 | K7: 18.5 | L7: 18.7 | M7: 19 | N7: 19.1 | O7: 19.1 | P7: 19.1 | Q7: 19 | R7: 18.9 | S7: 18.7 | T7: 18.6 | U7: 18.4 | V7: 18.3 | W7: 18.2 | X7: 18.1 | Y7: 18
A8: 7月 | B8: 22 | C8: 21.8 | D8: 21.7 | E8: 21.6 | F8: 21.4 | G8: 21.3 | H8: 21.4 | I8: 21.7 | J8: 22.2 | K8: 22.5 | L8: 22.8 | M8: 23 | N8: 23.1 | O8: 23.1 | P8: 23.1 | Q8: 23 | R8: 22.9 | S8: 22.8 | T8: 22.7 | U8: 22.5 | V8: 22.4 | W8: 22.4 | X8: 22.3 | Y8: 22.2
A9: 8月 | B9: 23 | C9: 22.8 | D9: 22.6 | E9: 22.4 | F9: 22.2 | G9: 22.1 | H9: 22.1 | I9: 22.4 | J9: 23 | K9: 23.4 | L9: 23.7 | M9: 23.9 | N9: 24 | O9: 24.1 | P9: 24.1 | Q9: 24 | R9: 23.9 | S9: 23.8 | T9: 23.7 | U9: 23.5 | V9: 23.5 | W9: 23.4 | X9: 23.2 | Y9: 23.1
A10: 9月 | B10: 19.2 | C10: 19.1 | D10: 18.9 | E10: 18.8 | F10: 18.7 | G10: 18.5 | H10: 18.5 | I10: 18.7 | J10: 19.3 | K10: 19.8 | L10: 20 | M10: 20.3 | N10: 20.4 | O10: 20.5 | P10: 20.5 | Q10: 20.4 | R10: 20.3 | S10: 20.2 | T10: 20 | U10: 19.9 | V10: 19.7 | W10: 19.6 | X10: 19.4 | Y10: 19.3
A11: 10月 | B11: 13.7 | C11: 13.5 | D11: 13.3 | E11: 13.2 | F11: 13.1 | G11: 13 | H11: 12.9 | I11: 13.1 | J11: 13.7 | K11: 14.4 | L11: 14.8 | M11: 15.1 | N11: 15.2 | O11: 15.3 | P11: 15.3 | Q11: 15.2 | R11: 15 | S11: 14.8 | T11: 14.7 | U11: 14.5 | V11: 14.3 | W11: 14 | X11: 13.8 | Y11: 13.7
A12: 11月 | B12: 8.4 | C12: 8.3 | D12: 8.2 | E12: 8.1 | F12: 8 | G12: 7.9 | H12: 7.9 | I12: 7.9 | J12: 8.4 | K12: 9 | L12: 9.6 | M12: 10 | N12: 10.1 | O12: 10.2 | P12: 10.2 | Q12: 10.1 | R12: 10 | S12: 9.8 | T12: 9.6 | U12: 9.4 | V12: 9.1 | W12: 8.9 | X12: 8.7 | Y12: 8.5
A13: 12月 | B13: 3.9 | C13: 3.8 | D13: 3.8 | E13: 3.7 | F13: 3.7 | G13: 3.6 | H13: 3.6 | I13: 3.6 | J13: 3.8 | K13: 4.3 | L13: 4.7 | M13: 5 | N13: 5.2 | O13: 5.3 | P13: 5.3 | Q13: 5.2 | R13: 5.1 | S13: 4.9 | T13: 4.7 | U13: 4.5 | V13: 4.3 | W13: 4.1 | X13: 4 | Y13: 3.9
A14: 1月 | B14: 1.6 | C14: 1.5 | D14: 1.5 | E14: 1.4 | F14: 1.4 | G14: 1.3 | H14: 1.3 | I14: 1.3 | J14: 1.4 | K14: 1.8 | L14: 2.3 | M14: 2.6 | N14: 2.8 | O14: 2.9 | P14: 2.9 | Q14: 2.9 | R14: 2.8 | S14: 2.6 | T14: 2.4 | U14: 2.3 | V14: 2.1 | W14: 1.9 | X14: 1.8 | Y14: 1.7
A15: 2月 | B15: 1.5 | C15: 1.4 | D15: 1.3 | E15: 1.2 | F15: 1.1 | G15: 1.1 | H15: 1 | I15: 1 | J15: 1.4 | K15: 2 | L15: 2.5 | M15: 2.9 | N15: 3.2 | O15: 3.3 | P15: 3.3 | Q15: 3.3 | R15: 3.2 | S15: 3 | T15: 2.7 | U15: 2.5 | V15: 2.3 | W15: 2.1 | X15: 1.9 | Y15: 1.8
A16: 3月 | B16: 3.8 | C16: 3.6 | D16: 3.5 | E16: 3.3 | F16: 3.2 | G16: 3.1 | H16: 3 | I16: 3.2 | J16: 3.9 | K16: 4.7 | L16: 5.2 | M16: 5.6 | N16: 5.9 | O16: 6 | P16: 6 | Q16: 5.9 | R16: 5.8 | S16: 5.5 | T16: 5.2 | U16: 5 | V16: 4.8 | W16: 4.5 | X16: 4.3 | Y16: 4.1

Sheet 福井 (hidden)
A1: 気象データ
A2: =RIGHT(CELL("filename",A2),LEN(CELL("filename",A2))-FIND("]",CELL("filename",A2))) -> 福井
A3: 時刻別平均外気湿球温度
A4: 時刻 | B4: 0 | C4: 1 | D4: 2 | E4: 3 | F4: 4 | G4: 5 | H4: 6 | I4: 7 | J4: 8 | K4: 9 | L4: 10 | M4: 11 | N4: 12 | O4: 13 | P4: 14 | Q4: 15 | R4: 16 | S4: 17 | T4: 18 | U4: 19 | V4: 20 | W4: 21 | X4: 22 | Y4: 23
A5: 4月 | B5: 8 | C5: 7.8 | D5: 7.6 | E5: 7.4 | F5: 7.3 | G5: 7.1 | H5: 7.3 | I5: 8 | J5: 8.9 | K5: 9.5 | L5: 10 | M5: 10.2 | N5: 10.5 | O5: 10.6 | P5: 10.5 | Q5: 10.3 | R5: 10.1 | S5: 9.8 | T5: 9.5 | U5: 9.2 | V5: 9.1 | W5: 8.9 | X5: 8.7 | Y5: 8.4
A6: 5月 | B6: 13.2 | C6: 13 | D6: 12.8 | E6: 12.6 | F6: 12.5 | G6: 12.4 | H6: 12.8 | I6: 13.4 | J6: 14.1 | K6: 14.5 | L6: 14.9 | M6: 15.1 | N6: 15.2 | O6: 15.3 | P6: 15.2 | Q6: 15.1 | R6: 14.9 | S6: 14.6 | T6: 14.3 | U6: 14 | V6: 13.9 | W6: 13.9 | X6: 13.7 | Y6: 13.5
A7: 6月 | B7: 17.9 | C7: 17.8 | D7: 17.6 | E7: 17.4 | F7: 17.3 | G7: 17.2 | H7: 17.6 | I7: 18.1 | J7: 18.5 | K7: 18.8 | L7: 19.1 | M7: 19.4 | N7: 19.5 | O7: 19.5 | P7: 19.5 | Q7: 19.4 | R7: 19.2 | S7: 19 | T7: 18.8 | U7: 18.6 | V7: 18.5 | W7: 18.5 | X7: 18.4 | Y7: 18.3
A8: 7月 | B8: 22.2 | C8: 22 | D8: 21.9 | E8: 21.7 | F8: 21.6 | G8: 21.5 | H8: 21.7 | I8: 22.1 | J8: 22.5 | K8: 22.9 | L8: 23.2 | M8: 23.4 | N8: 23.6 | O8: 23.6 | P8: 23.6 | Q8: 23.5 | R8: 23.4 | S8: 23.2 | T8: 23 | U8: 22.8 | V8: 22.7 | W8: 22.6 | X8: 22.5 | Y8: 22.4
A9: 8月 | B9: 23.1 | C9: 22.9 | D9: 22.7 | E9: 22.6 | F9: 22.4 | G9: 22.2 | H9: 22.3 | I9: 22.8 | J9: 23.3 | K9: 23.8 | L9: 24.1 | M9: 24.3 | N9: 24.5 | O9: 24.5 | P9: 24.5 | Q9: 24.4 | R9: 24.3 | S9: 24.2 | T9: 24 | U9: 23.8 | V9: 23.7 | W9: 23.6 | X9: 23.5 | Y9: 23.3
A10: 9月 | B10: 19.4 | C10: 19.2 | D10: 19 | E10: 18.9 | F10: 18.7 | G10: 18.6 | H10: 18.6 | I10: 19.1 | J10: 19.7 | K10: 20.1 | L10: 20.5 | M10: 20.7 | N10: 20.8 | O10: 20.8 | P10: 20.8 | Q10: 20.7 | R10: 20.6 | S10: 20.3 | T10: 20.1 | U10: 20.1 | V10: 20 | W10: 19.9 | X10: 19.7 | Y10: 19.5
A11: 10月 | B11: 13.8 | C11: 13.6 | D11: 13.4 | E11: 13.3 | F11: 13.1 | G11: 13 | H11: 12.9 | I11: 13.3 | J11: 14.1 | K11: 14.7 | L11: 15.1 | M11: 15.4 | N11: 15.6 | O11: 15.7 | P11: 15.6 | Q11: 15.5 | R11: 15.3 | S11: 15 | T11: 14.9 | U11: 14.7 | V11: 14.5 | W11: 14.2 | X11: 14 | Y11: 13.8
A12: 11月 | B12: 8.4 | C12: 8.2 | D12: 8 | E12: 7.9 | F12: 7.8 | G12: 7.7 | H12: 7.6 | I12: 7.7 | J12: 8.4 | K12: 9.2 | L12: 9.7 | M12: 10.1 | N12: 10.3 | O12: 10.4 | P12: 10.5 | Q12: 10.3 | R12: 10.1 | S12: 9.8 | T12: 9.6 | U12: 9.4 | V12: 9.1 | W12: 8.8 | X12: 8.6 | Y12: 8.4
A13: 12月 | B13: 3.7 | C13: 3.6 | D13: 3.5 | E13: 3.4 | F13: 3.4 | G13: 3.3 | H13: 3.3 | I13: 3.2 | J13: 3.5 | K13: 4.1 | L13: 4.7 | M13: 5.1 | N13: 5.3 | O13: 5.4 | P13: 5.4 | Q13: 5.3 | R13: 5.1 | S13: 4.8 | T13: 4.6 | U13: 4.4 | V13: 4.2 | W13: 4 | X13: 3.8 | Y13: 3.6
A14: 1月 | B14: 1.2 | C14: 1 | D14: 0.9 | E14: 0.9 | F14: 0.8 | G14: 0.7 | H14: 0.7 | I14: 0.7 | J14: 0.9 | K14: 1.4 | L14: 2 | M14: 2.4 | N14: 2.7 | O14: 2.8 | P14: 2.8 | Q14: 2.8 | R14: 2.6 | S14: 2.3 | T14: 2.1 | U14: 2 | V14: 1.8 | W14: 1.6 | X14: 1.4 | Y14: 1.3
A15: 2月 | B15: 1.1 | C15: 1 | D15: 0.9 | E15: 0.8 | F15: 0.7 | G15: 0.6 | H15: 0.5 | I15: 0.5 | J15: 1 | K15: 1.7 | L15: 2.3 | M15: 2.7 | N15: 3.1 | O15: 3.2 | P15: 3.3 | Q15: 3.3 | R15: 3.1 | S15: 2.8 | T15: 2.5 | U15: 2.3 | V15: 2.1 | W15: 1.8 | X15: 1.6 | Y15: 1.4
A16: 3月 | B16: 3.7 | C16: 3.6 | D16: 3.4 | E16: 3.3 | F16: 3.1 | G16: 3 | H16: 2.9 | I16: 3.2 | J16: 4 | K16: 4.8 | L16: 5.3 | M16: 5.8 | N16: 6 | O16: 6.2 | P16: 6.2 | Q16: 6.1 | R16: 5.9 | S16: 5.6 | T16: 5.2 | U16: 5 | V16: 4.8 | W16: 4.5 | X16: 4.2 | Y16: 4

Sheet 甲府 (hidden)
A1: 気象データ
A2: =RIGHT(CELL("filename",A2),LEN(CELL("filename",A2))-FIND("]",CELL("filename",A2))) -> 甲府
A3: 時刻別平均外気湿球温度
A4: 時刻 | B4: 0 | C4: 1 | D4: 2 | E4: 3 | F4: 4 | G4: 5 | H4: 6 | I4: 7 | J4: 8 | K4: 9 | L4: 10 | M4: 11 | N4: 12 | O4: 13 | P4: 14 | Q4: 15 | R4: 16 | S4: 17 | T4: 18 | U4: 19 | V4: 20 | W4: 21 | X4: 22 | Y4: 23
A5: 4月 | B5: 8.4 | C5: 8.1 | D5: 7.8 | E5: 7.5 | F5: 7.3 | G5: 7 | H5: 7.1 | I5: 7.7 | J5: 8.3 | K5: 9 | L5: 9.6 | M5: 10.1 | N5: 10.5 | O5: 10.9 | P5: 11.2 | Q5: 11.4 | R5: 11.2 | S5: 11 | T5: 10.5 | U5: 10.1 | V5: 9.7 | W5: 9.5 | X5: 9.2 | Y5: 8.9
A6: 5月 | B6: 13.3 | C6: 13.1 | D6: 12.8 | E6: 12.6 | F6: 12.4 | G6: 12.2 | H6: 12.5 | I6: 12.9 | J6: 13.4 | K6: 13.9 | L6: 14.4 | M6: 14.7 | N6: 14.9 | O6: 15.3 | P6: 15.5 | Q6: 15.7 | R6: 15.6 | S6: 15.4 | T6: 15 | U6: 14.6 | V6: 14.3 | W6: 14.1 | X6: 13.9 | Y6: 13.6
A7: 6月 | B7: 17.6 | C7: 17.4 | D7: 17.3 | E7: 17.1 | F7: 17 | G7: 16.9 | H7: 17.1 | I7: 17.3 | J7: 17.7 | K7: 18 | L7: 18.3 | M7: 18.5 | N7: 18.7 | O7: 18.9 | P7: 19.2 | Q7: 19.2 | R7: 19.2 | S7: 19.1 | T7: 18.9 | U7: 18.6 | V7: 18.4 | W7: 18.2 | X7: 18.1 | Y7: 17.9
A8: 7月 | B8: 21.5 | C8: 21.4 | D8: 21.3 | E8: 21.2 | F8: 21 | G8: 21 | H8: 21 | I8: 21.3 | J8: 21.5 | K8: 21.8 | L8: 22.1 | M8: 22.3 | N8: 22.4 | O8: 22.6 | P8: 22.6 | Q8: 22.9 | R8: 22.9 | S8: 22.8 | T8: 22.5 | U8: 22.3 | V8: 22.1 | W8: 22 | X8: 21.8 | Y8: 21.7
A9: 8月 | B9: 22.3 | C9: 22.2 | D9: 22.1 | E9: 21.9 | F9: 21.8 | G9: 21.7 | H9: 21.7 | I9: 21.9 | J9: 22.2 | K9: 22.5 | L9: 22.8 | M9: 23 | N9: 23.1 | O9: 23.2 | P9: 23.4 | Q9: 23.5 | R9: 23.6 | S9: 23.4 | T9: 23.2 | U9: 23 | V9: 22.8 | W9: 22.7 | X9: 22.6 | Y9: 22.4
A10: 9月 | B10: 19 | C10: 18.8 | D10: 18.7 | E10: 18.5 | F10: 18.4 | G10: 18.2 | H10: 18.2 | I10: 18.4 | J10: 18.7 | K10: 19.1 | L10: 19.4 | M10: 19.7 | N10: 19.9 | O10: 20 | P10: 20 | Q10: 20.2 | R10: 20.3 | S10: 20.1 | T10: 19.8 | U10: 19.6 | V10: 19.5 | W10: 19.3 | X10: 19.1 | Y10: 19
A11: 10月 | B11: 13.3 | C11: 13.1 | D11: 13 | E11: 12.8 | F11: 12.6 | G11: 12.4 | H11: 12.2 | I11: 12.5 | J11: 12.9 | K11: 13.5 | L11: 13.9 | M11: 14.3 | N11: 14.7 | O11: 14.9 | P11: 15 | Q11: 15.1 | R11: 15.1 | S11: 14.9 | T11: 14.6 | U11: 14.3 | V11: 14 | W11: 13.8 | X11: 13.6 | Y11: 13.3
A12: 11月 | B12: 7.1 | C12: 6.9 | D12: 6.6 | E12: 6.3 | F12: 6.1 | G12: 5.8 | H12: 5.6 | I12: 5.7 | J12: 6.5 | K12: 7.2 | L12: 7.9 | M12: 8.6 | N12: 9.1 | O12: 9.5 | P12: 9.7 | Q12: 9.7 | R12: 9.6 | S12: 9.3 | T12: 8.9 | U12: 8.5 | V12: 8.1 | W12: 7.8 | X12: 7.5 | Y12: 7.2
A13: 12月 | B13: 1.5 | C13: 1.2 | D13: 0.9 | E13: 0.7 | F13: 0.4 | G13: 0.2 | H13: 0 | I13: -0.1 | J13: 0.6 | K13: 1.6 | L13: 2.5 | M13: 3.3 | N13: 4 | O13: 4.5 | P13: 4.7 | Q13: 4.7 | R13: 4.4 | S13: 3.9 | T13: 3.5 | U13: 3 | V13: 2.6 | W13: 2.2 | X13: 1.9 | Y13: 1.6
A14: 1月 | B14: -0.9 | C14: -1.2 | D14: -1.5 | E14: -1.8 | F14: -2.1 | G14: -2.3 | H14: -2.6 | I14: -2.8 | J14: -2 | K14: -1 | L14: 0 | M14: 0.8 | N14: 1.5 | O14: 2.1 | P14: 2.4 | Q14: 2.5 | R14: 2.3 | S14: 1.8 | T14: 1.3 | U14: 0.9 | V14: 0.4 | W14: 0 | X14: -0.3 | Y14: -0.6
A15: 2月 | B15: 0.2 | C15: -0.1 | D15: -0.4 | E15: -0.7 | F15: -1 | G15: -1.2 | H15: -1.4 | I15: -1.4 | J15: -0.6 | K15: 0.3 | L15: 1.1 | M15: 2 | N15: 2.7 | O15: 3.2 | P15: 3.6 | Q15: 3.8 | R15: 3.7 | S15: 3.2 | T15: 2.7 | U15: 2.3 | V15: 1.8 | W15: 1.4 | X15: 1 | Y15: 0.7
A16: 3月 | B16: 3.7 | C16: 3.4 | D16: 3.1 | E16: 2.8 | F16: 2.5 | G16: 2.3 | H16: 2 | I16: 2.4 | J16: 3.2 | K16: 3.9 | L16: 4.7 | M16: 5.4 | N16: 6 | O16: 6.5 | P16: 6.8 | Q16: 7.1 | R16: 7 | S16: 6.6 | T16: 6.1 | U16: 5.6 | V16: 5.3 | W16: 4.9 | X16: 4.5 | Y16: 4.1

Sheet 長野 (hidden)
A1: 気象データ
A2: =RIGHT(CELL("filename",A2),LEN(CELL("filename",A2))-FIND("]",CELL("filename",A2))) -> 長野
A3: 時刻別平均外気湿球温度
A4: 時刻 | B4: 0 | C4: 1 | D4: 2 | E4: 3 | F4: 4 | G4: 5 | H4: 6 | I4: 7 | J4: 8 | K4: 9 | L4: 10 | M4: 11 | N4: 12 | O4: 13 | P4: 14 | Q4: 15 | R4: 16 | S4: 17 | T4: 18 | U4: 19 | V4: 20 | W4: 21 | X4: 22 | Y4: 23
A5: 4月 | B5: 5.6 | C5: 5.3 | D5: 5 | E5: 4.8 | F5: 4.6 | G5: 4.4 | H5: 4.5 | I5: 5.2 | J5: 6.1 | K5: 7 | L5: 7.7 | M5: 8.3 | N5: 8.7 | O5: 8.9 | P5: 9.1 | Q5: 8.9 | R5: 8.6 | S5: 8.2 | T5: 7.6 | U5: 7.2 | V5: 6.8 | W5: 6.5 | X5: 6.2 | Y5: 6
A6: 5月 | B6: 11 | C6: 10.8 | D6: 10.6 | E6: 10.4 | F6: 10.2 | G6: 10 | H6: 10.3 | I6: 11 | J6: 11.7 | K6: 12.4 | L6: 13 | M6: 13.4 | N6: 13.7 | O6: 13.9 | P6: 14 | Q6: 14 | R6: 13.7 | S6: 13.3 | T6: 12.9 | U6: 12.4 | V6: 12.1 | W6: 11.8 | X6: 11.5 | Y6: 11.3
A7: 6月 | B7: 15.7 | C7: 15.6 | D7: 15.4 | E7: 15.3 | F7: 15.1 | G7: 15 | H7: 15.3 | I7: 15.7 | J7: 16.3 | K7: 16.8 | L7: 17.2 | M7: 17.5 | N7: 17.8 | O7: 18 | P7: 18.1 | Q7: 18.1 | R7: 18 | S7: 17.7 | T7: 17.3 | U7: 17 | V7: 16.7 | W7: 16.5 | X7: 16.2 | Y7: 16.1
A8: 7月 | B8: 20.1 | C8: 19.9 | D8: 19.8 | E8: 19.7 | F8: 19.6 | G8: 19.5 | H8: 19.7 | I8: 20 | J8: 20.5 | K8: 20.9 | L8: 21.2 | M8: 21.5 | N8: 21.7 | O8: 22 | P8: 22.2 | Q8: 22.2 | R8: 22 | S8: 21.8 | T8: 21.4 | U8: 21.1 | V8: 20.8 | W8: 20.6 | X8: 20.4 | Y8: 20.3
A9: 8月 | B9: 21 | C9: 20.8 | D9: 20.7 | E9: 20.6 | F9: 20.4 | G9: 20.3 | H9: 20.3 | I9: 20.7 | J9: 21.1 | K9: 21.6 | L9: 21.9 | M9: 22.1 | N9: 22.4 | O9: 22.5 | P9: 22.7 | Q9: 22.8 | R9: 22.7 | S9: 22.4 | T9: 22 | U9: 21.7 | V9: 21.5 | W9: 21.3 | X9: 21.2 | Y9: 21
A10: 9月 | B10: 17.2 | C10: 17 | D10: 16.9 | E10: 16.7 | F10: 16.6 | G10: 16.5 | H10: 16.5 | I10: 16.8 | J10: 17.2 | K10: 17.7 | L10: 18.2 | M10: 18.5 | N10: 18.7 | O10: 18.8 | P10: 19 | Q10: 19 | R10: 18.8 | S10: 18.4 | T10: 18.1 | U10: 17.8 | V10: 17.6 | W10: 17.5 | X10: 17.3 | Y10: 17.1
A11: 10月 | B11: 11.2 | C11: 11 | D11: 10.9 | E11: 10.7 | F11: 10.5 | G11: 10.4 | H11: 10.2 | I11: 10.5 | J11: 11.2 | K11: 11.8 | L11: 12.4 | M11: 12.9 | N11: 13.2 | O11: 13.4 | P11: 13.5 | Q11: 13.4 | R11: 13.2 | S11: 12.7 | T11: 12.3 | U11: 12.1 | V11: 11.8 | W11: 11.6 | X11: 11.4 | Y11: 11.2
A12: 11月 | B12: 5.2 | C12: 5 | D12: 4.7 | E12: 4.5 | F12: 4.3 | G12: 4.1 | H12: 4 | I12: 4 | J12: 4.7 | K12: 5.6 | L12: 6.4 | M12: 7.1 | N12: 7.6 | O12: 8 | P12: 8.1 | Q12: 8 | R12: 7.7 | S12: 7.1 | T12: 6.7 | U12: 6.4 | V12: 6.1 | W12: 5.8 | X12: 5.5 | Y12: 5.3
A13: 12月 | B13: 0.2 | C13: 0 | D13: -0.2 | E13: -0.3 | F13: -0.5 | G13: -0.7 | H13: -0.8 | I13: -0.9 | J13: -0.4 | K13: 0.3 | L13: 1.1 | M13: 1.8 | N13: 2.3 | O13: 2.7 | P13: 2.9 | Q13: 2.8 | R13: 2.5 | S13: 1.9 | T13: 1.6 | U13: 1.3 | V13: 1 | W13: 0.7 | X13: 0.5 | Y13: 0.3
A14: 1月 | B14: -2.3 | C14: -2.5 | D14: -2.7 | E14: -2.9 | F14: -3.1 | G14: -3.2 | H14: -3.4 | I14: -3.5 | J14: -3.1 | K14: -2.4 | L14: -1.6 | M14: -0.9 | N14: -0.4 | O14: 0.1 | P14: 0.3 | Q14: 0.3 | R14: 0 | S14: -0.4 | T14: -0.8 | U14: -1.1 | V14: -1.4 | W14: -1.6 | X14: -1.9 | Y14: -2.1
A15: 2月 | B15: -2 | C15: -2.2 | D15: -2.4 | E15: -2.7 | F15: -2.8 | G15: -3 | H15: -3.2 | I15: -3.2 | J15: -2.6 | K15: -1.7 | L15: -0.9 | M15: -0.1 | N15: 0.5 | O15: 0.9 | P15: 1.1 | Q15: 1.1 | R15: 0.8 | S15: 0.3 | T15: -0.2 | U15: -0.5 | V15: -0.8 | W15: -1.1 | X15: -1.4 | Y15: -1.6
A16: 3月 | B16: 0.9 | C16: 0.7 | D16: 0.5 | E16: 0.3 | F16: 0.1 | G16: -0.1 | H16: -0.3 | I16: 0.1 | J16: 0.9 | K16: 1.7 | L16: 2.6 | M16: 3.3 | N16: 3.9 | O16: 4.2 | P16: 4.3 | Q16: 4.2 | R16: 3.9 | S16: 3.4 | T16: 2.8 | U16: 2.4 | V16: 2 | W16: 1.7 | X16: 1.5 | Y16: 1.2

Sheet 岐阜 (hidden)
A1: 気象データ
A2: =RIGHT(CELL("filename",A2),LEN(CELL("filename",A2))-FIND("]",CELL("filename",A2))) -> 岐阜
A3: 時刻別平均外気湿球温度
A4: 時刻 | B4: 0 | C4: 1 | D4: 2 | E4: 3 | F4: 4 | G4: 5 | H4: 6 | I4: 7 | J4: 8 | K4: 9 | L4: 10 | M4: 11 | N4: 12 | O4: 13 | P4: 14 | Q4: 15 | R4: 16 | S4: 17 | T4: 18 | U4: 19 | V4: 20 | W4: 21 | X4: 22 | Y4: 23
A5: 4月 | B5: 9.3 | C5: 9 | D5: 8.8 | E5: 8.6 | F5: 8.4 | G5: 8.2 | H5: 8.2 | I5: 8.6 | J5: 9.2 | K5: 9.8 | L5: 10.4 | M5: 10.9 | N5: 11.4 | O5: 11.6 | P5: 11.7 | Q5: 11.6 | R5: 11.5 | S5: 11.1 | T5: 10.7 | U5: 10.5 | V5: 10.3 | W5: 10.1 | X5: 9.9 | Y5: 9.7
A6: 5月 | B6: 14.1 | C6: 13.9 | D6: 13.7 | E6: 13.5 | F6: 13.4 | G6: 13.2 | H6: 13.4 | I6: 13.7 | J6: 14.2 | K6: 14.7 | L6: 15.2 | M6: 15.5 | N6: 15.8 | O6: 15.9 | P6: 16.1 | Q6: 16 | R6: 15.8 | S6: 15.6 | T6: 15.2 | U6: 14.9 | V6: 14.8 | W6: 14.6 | X6: 14.5 | Y6: 14.4
A7: 6月 | B7: 18.4 | C7: 18.3 | D7: 18.2 | E7: 18.1 | F7: 17.9 | G7: 17.8 | H7: 18 | I7: 18.2 | J7: 18.6 | K7: 18.9 | L7: 19.3 | M7: 19.5 | N7: 19.8 | O7: 19.9 | P7: 20 | Q7: 20 | R7: 19.8 | S7: 19.6 | T7: 19.4 | U7: 19.1 | V7: 19 | W7: 18.9 | X7: 18.8 | Y7: 18.7
A8: 7月 | B8: 22.5 | C8: 22.4 | D8: 22.3 | E8: 22.2 | F8: 22.2 | G8: 22.1 | H8: 22.2 | I8: 22.4 | J8: 22.7 | K8: 22.9 | L8: 23.2 | M8: 23.4 | N8: 23.6 | O8: 23.7 | P8: 23.7 | Q8: 23.8 | R8: 23.7 | S8: 23.4 | T8: 23.3 | U8: 23.1 | V8: 23 | W8: 22.9 | X8: 22.8 | Y8: 22.7
A9: 8月 | B9: 23.3 | C9: 23.2 | D9: 23.1 | E9: 23 | F9: 22.9 | G9: 22.8 | H9: 22.8 | I9: 23 | J9: 23.3 | K9: 23.6 | L9: 23.8 | M9: 24.1 | N9: 24.2 | O9: 24.4 | P9: 24.3 | Q9: 24.3 | R9: 24.2 | S9: 24 | T9: 23.8 | U9: 23.6 | V9: 23.6 | W9: 23.5 | X9: 23.4 | Y9: 23.3
A10: 9月 | B10: 20 | C10: 19.9 | D10: 19.8 | E10: 19.6 | F10: 19.5 | G10: 19.4 | H10: 19.3 | I10: 19.5 | J10: 19.8 | K10: 20.2 | L10: 20.5 | M10: 20.8 | N10: 21 | O10: 21.1 | P10: 21 | Q10: 21.1 | R10: 21 | S10: 20.8 | T10: 20.6 | U10: 20.4 | V10: 20.3 | W10: 20.2 | X10: 20.1 | Y10: 20
A11: 10月 | B11: 14.4 | C11: 14.2 | D11: 14 | E11: 13.9 | F11: 13.7 | G11: 13.5 | H11: 13.4 | I11: 13.7 | J11: 14.2 | K11: 14.6 | L11: 15.1 | M11: 15.5 | N11: 15.7 | O11: 15.9 | P11: 15.9 | Q11: 15.8 | R11: 15.7 | S11: 15.4 | T11: 15.2 | U11: 15 | V11: 14.9 | W11: 14.7 | X11: 14.5 | Y11: 14.3
A12: 11月 | B12: 8.7 | C12: 8.6 | D12: 8.3 | E12: 8.1 | F12: 7.9 | G12: 7.8 | H12: 7.6 | I12: 7.7 | J12: 8.4 | K12: 9 | L12: 9.6 | M12: 10.1 | N12: 10.5 | O12: 10.7 | P12: 10.8 | Q12: 10.7 | R12: 10.5 | S12: 10.1 | T12: 9.9 | U12: 9.7 | V12: 9.4 | W12: 9.2 | X12: 9 | Y12: 8.8
A13: 12月 | B13: 3.9 | C13: 3.7 | D13: 3.5 | E13: 3.3 | F13: 3.2 | G13: 3 | H13: 2.9 | I13: 2.8 | J13: 3.4 | K13: 4.1 | L13: 4.8 | M13: 5.4 | N13: 5.7 | O13: 6 | P13: 6.1 | Q13: 5.9 | R13: 5.7 | S13: 5.3 | T13: 5 | U13: 4.8 | V13: 4.6 | W13: 4.4 | X13: 4.1 | Y13: 3.9
A14: 1月 | B14: 1.5 | C14: 1.3 | D14: 1.1 | E14: 0.9 | F14: 0.7 | G14: 0.5 | H14: 0.4 | I14: 0.3 | J14: 0.8 | K14: 1.6 | L14: 2.4 | M14: 3 | N14: 3.4 | O14: 3.7 | P14: 3.8 | Q14: 3.7 | R14: 3.5 | S14: 3.1 | T14: 2.8 | U14: 2.5 | V14: 2.3 | W14: 2.1 | X14: 1.9 | Y14: 1.7
A15: 2月 | B15: 1.8 | C15: 1.5 | D15: 1.3 | E15: 1.2 | F15: 1 | G15: 0.8 | H15: 0.7 | I15: 0.7 | J15: 1.3 | K15: 2.1 | L15: 2.8 | M15: 3.5 | N15: 4 | O15: 4.3 | P15: 4.4 | Q15: 4.3 | R15: 4.1 | S15: 3.7 | T15: 3.3 | U15: 3 | V15: 2.8 | W15: 2.6 | X15: 2.3 | Y15: 2.1
A16: 3月 | B16: 4.6 | C16: 4.4 | D16: 4.2 | E16: 3.9 | F16: 3.7 | G16: 3.5 | H16: 3.4 | I16: 3.7 | J16: 4.3 | K16: 5 | L16: 5.7 | M16: 6.3 | N16: 6.8 | O16: 7.1 | P16: 7.2 | Q16: 7.2 | R16: 7 | S16: 6.6 | T16: 6.2 | U16: 5.9 | V16: 5.7 | W16: 5.4 | X16: 5.2 | Y16: 5

Sheet 静岡 (hidden)
A1: 気象データ
A2: =RIGHT(CELL("filename",A2),LEN(CELL("filename",A2))-FIND("]",CELL("filename",A2))) -> 静岡
A3: 時刻別平均外気湿球温度
A4: 時刻 | B4: 0 | C4: 1 | D4: 2 | E4: 3 | F4: 4 | G4: 5 | H4: 6 | I4: 7 | J4: 8 | K4: 9 | L4: 10 | M4: 11 | N4: 12 | O4: 13 | P4: 14 | Q4: 15 | R4: 16 | S4: 17 | T4: 18 | U4: 19 | V4: 20 | W4: 21 | X4: 22 | Y4: 23
A5: 4月 | B5: 10.5 | C5: 10.3 | D5: 10.1 | E5: 9.9 | F5: 9.7 | G5: 9.5 | H5: 9.6 | I5: 10.3 | J5: 11 | K5: 11.6 | L5: 12 | M5: 12.3 | N5: 12.5 | O5: 12.7 | P5: 12.7 | Q5: 12.6 | R5: 12.5 | S5: 12.3 | T5: 12.1 | U5: 11.9 | V5: 11.7 | W5: 11.5 | X5: 11.2 | Y5: 11
A6: 5月 | B6: 15.1 | C6: 14.9 | D6: 14.7 | E6: 14.4 | F6: 14.2 | G6: 14.1 | H6: 14.4 | I6: 14.9 | J6: 15.5 | K6: 16 | L6: 16.3 | M6: 16.5 | N6: 16.6 | O6: 16.7 | P6: 16.7 | Q6: 16.7 | R6: 16.6 | S6: 16.5 | T6: 16.3 | U6: 16.2 | V6: 16 | W6: 15.9 | X6: 15.7 | Y6: 15.5
A7: 6月 | B7: 19 | C7: 18.9 | D7: 18.7 | E7: 18.5 | F7: 18.4 | G7: 18.3 | H7: 18.5 | I7: 18.9 | J7: 19.3 | K7: 19.6 | L7: 19.8 | M7: 20 | N7: 20.1 | O7: 20.1 | P7: 20.1 | Q7: 20.2 | R7: 20.1 | S7: 20 | T7: 19.9 | U7: 19.8 | V7: 19.7 | W7: 19.6 | X7: 19.5 | Y7: 19.3
A8: 7月 | B8: 22.8 | C8: 22.7 | D8: 22.5 | E8: 22.4 | F8: 22.3 | G8: 22.2 | H8: 22.3 | I8: 22.6 | J8: 23 | K8: 23.3 | L8: 23.5 | M8: 23.7 | N8: 23.8 | O8: 23.8 | P8: 23.8 | Q8: 23.8 | R8: 23.7 | S8: 23.6 | T8: 23.5 | U8: 23.4 | V8: 23.3 | W8: 23.2 | X8: 23.1 | Y8: 23
A9: 8月 | B9: 23.7 | C9: 23.5 | D9: 23.4 | E9: 23.2 | F9: 23.1 | G9: 23 | H9: 23 | I9: 23.4 | J9: 23.8 | K9: 24.2 | L9: 24.3 | M9: 24.5 | N9: 24.6 | O9: 24.7 | P9: 24.8 | Q9: 24.7 | R9: 24.6 | S9: 24.5 | T9: 24.4 | U9: 24.3 | V9: 24.2 | W9: 24.1 | X9: 24 | Y9: 23.8
A10: 9月 | B10: 20.7 | C10: 20.5 | D10: 20.4 | E10: 20.2 | F10: 20 | G10: 19.9 | H10: 19.9 | I10: 20.2 | J10: 20.7 | K10: 21.1 | L10: 21.3 | M10: 21.5 | N10: 21.6 | O10: 21.7 | P10: 21.7 | Q10: 21.7 | R10: 21.7 | S10: 21.5 | T10: 21.5 | U10: 21.4 | V10: 21.3 | W10: 21.1 | X10: 21 | Y10: 20.7
A11: 10月 | B11: 15.5 | C11: 15.4 | D11: 15.2 | E11: 15 | F11: 14.9 | G11: 14.7 | H11: 14.6 | I11: 14.9 | J11: 15.5 | K11: 16.1 | L11: 16.4 | M11: 16.7 | N11: 16.9 | O11: 17 | P11: 17 | Q11: 17 | R11: 16.9 | S11: 16.7 | T11: 16.6 | U11: 16.4 | V11: 16.2 | W11: 16 | X11: 15.8 | Y11: 15.6
A12: 11月 | B12: 10.2 | C12: 10 | D12: 9.8 | E12: 9.6 | F12: 9.4 | G12: 9.3 | H12: 9.1 | I12: 9.2 | J12: 10 | K12: 10.8 | L12: 11.5 | M12: 11.9 | N12: 12.2 | O12: 12.4 | P12: 12.4 | Q12: 12.4 | R12: 12.2 | S12: 11.9 | T12: 11.6 | U12: 11.4 | V12: 11.1 | W12: 10.8 | X12: 10.6 | Y12: 10.3
A13: 12月 | B13: 5 | C13: 4.8 | D13: 4.6 | E13: 4.4 | F13: 4.2 | G13: 4.1 | H13: 3.9 | I13: 3.9 | J13: 4.6 | K13: 5.7 | L13: 6.5 | M13: 7.1 | N13: 7.5 | O13: 7.7 | P13: 7.7 | Q13: 7.6 | R13: 7.3 | S13: 6.8 | T13: 6.5 | U13: 6.2 | V13: 5.9 | W13: 5.6 | X13: 5.3 | Y13: 5.1
A14: 1月 | B14: 2.5 | C14: 2.3 | D14: 2.1 | E14: 1.9 | F14: 1.7 | G14: 1.5 | H14: 1.3 | I14: 1.2 | J14: 1.9 | K14: 3.1 | L14: 4.1 | M14: 4.7 | N14: 5.1 | O14: 5.4 | P14: 5.5 | Q14: 5.4 | R14: 5.1 | S14: 4.7 | T14: 4.2 | U14: 3.9 | V14: 3.6 | W14: 3.3 | X14: 3 | Y14: 2.8
A15: 2月 | B15: 3.2 | C15: 3 | D15: 2.8 | E15: 2.6 | F15: 2.4 | G15: 2.2 | H15: 2.1 | I15: 2.1 | J15: 3 | K15: 4 | L15: 4.8 | M15: 5.4 | N15: 5.8 | O15: 6 | P15: 6.1 | Q15: 6.1 | R15: 5.9 | S15: 5.5 | T15: 5.2 | U15: 4.8 | V15: 4.5 | W15: 4.2 | X15: 3.9 | Y15: 3.6
A16: 3月 | B16: 6.4 | C16: 6.2 | D16: 5.9 | E16: 5.7 | F16: 5.5 | G16: 5.3 | H16: 5.2 | I16: 5.6 | J16: 6.5 | K16: 7.3 | L16: 7.9 | M16: 8.3 | N16: 8.6 | O16: 8.8 | P16: 8.9 | Q16: 8.8 | R16: 8.6 | S16: 8.4 | T16: 8.1 | U16: 7.9 | V16: 7.6 | W16: 7.3 | X16: 7.1 | Y16: 6.8

Sheet 名古屋 (hidden)
A1: 気象データ
A2: =RIGHT(CELL("filename",A2),LEN(CELL("filename",A2))-FIND("]",CELL("filename",A2))) -> 名古屋
A3: 時刻別平均外気湿球温度
A4: 時刻 | B4: 0 | C4: 1 | D4: 2 | E4: 3 | F4: 4 | G4: 5 | H4: 6 | I4: 7 | J4: 8 | K4: 9 | L4: 10 | M4: 11 | N4: 12 | O4: 13 | P4: 14 | Q4: 15 | R4: 16 | S4: 17 | T4: 18 | U4: 19 | V4: 20 | W4: 21 | X4: 22 | Y4: 23
A5: 4月 | B5: 9.4 | C5: 9.1 | D5: 8.9 | E5: 8.7 | F5: 8.6 | G5: 8.4 | H5: 8.4 | I5: 8.9 | J5: 9.5 | K5: 10.1 | L5: 10.7 | M5: 11.1 | N5: 11.4 | O5: 11.6 | P5: 11.7 | Q5: 11.6 | R5: 11.4 | S5: 11.1 | T5: 10.8 | U5: 10.6 | V5: 10.4 | W5: 10.1 | X5: 10 | Y5: 9.7
A6: 5月 | B6: 14.1 | C6: 14 | D6: 13.8 | E6: 13.7 | F6: 13.5 | G6: 13.3 | H6: 13.6 | I6: 14 | J6: 14.5 | K6: 15 | L6: 15.3 | M6: 15.6 | N6: 15.9 | O6: 16 | P6: 16 | Q6: 15.9 | R6: 15.7 | S6: 15.5 | T6: 15.3 | U6: 15 | V6: 14.9 | W6: 14.8 | X6: 14.6 | Y6: 14.4
A7: 6月 | B7: 18.4 | C7: 18.3 | D7: 18.2 | E7: 18.1 | F7: 18 | G7: 17.9 | H7: 18.1 | I7: 18.4 | J7: 18.8 | K7: 19.1 | L7: 19.3 | M7: 19.6 | N7: 19.8 | O7: 19.9 | P7: 19.9 | Q7: 19.9 | R7: 19.7 | S7: 19.5 | T7: 19.3 | U7: 19.1 | V7: 19 | W7: 18.9 | X7: 18.8 | Y7: 18.7
A8: 7月 | B8: 22.4 | C8: 22.3 | D8: 22.2 | E8: 22.1 | F8: 22.1 | G8: 22 | H8: 22.1 | I8: 22.4 | J8: 22.7 | K8: 23 | L8: 23.3 | M8: 23.4 | N8: 23.6 | O8: 23.6 | P8: 23.7 | Q8: 23.6 | R8: 23.5 | S8: 23.4 | T8: 23.1 | U8: 23 | V8: 22.9 | W8: 22.8 | X8: 22.7 | Y8: 22.6
A9: 8月 | B9: 23.2 | C9: 23.1 | D9: 23 | E9: 22.9 | F9: 22.8 | G9: 22.7 | H9: 22.8 | I9: 23.1 | J9: 23.4 | K9: 23.7 | L9: 23.9 | M9: 24 | N9: 24.2 | O9: 24.2 | P9: 24.2 | Q9: 24.1 | R9: 24.1 | S9: 23.9 | T9: 23.7 | U9: 23.6 | V9: 23.5 | W9: 23.4 | X9: 23.3 | Y9: 23.3
A10: 9月 | B10: 20.1 | C10: 20 | D10: 19.8 | E10: 19.7 | F10: 19.6 | G10: 19.5 | H10: 19.4 | I10: 19.7 | J10: 20 | K10: 20.4 | L10: 20.7 | M10: 20.8 | N10: 21 | O10: 21.1 | P10: 21.1 | Q10: 21 | R10: 20.9 | S10: 20.7 | T10: 20.5 | U10: 20.5 | V10: 20.4 | W10: 20.3 | X10: 20.2 | Y10: 20
A11: 10月 | B11: 14.5 | C11: 14.4 | D11: 14.2 | E11: 14 | F11: 13.9 | G11: 13.7 | H11: 13.6 | I11: 13.8 | J11: 14.3 | K11: 14.8 | L11: 15.3 | M11: 15.6 | N11: 15.9 | O11: 15.9 | P11: 15.9 | Q11: 15.8 | R11: 15.7 | S11: 15.4 | T11: 15.2 | U11: 15.1 | V11: 14.9 | W11: 14.8 | X11: 14.6 | Y11: 14.5
A12: 11月 | B12: 8.8 | C12: 8.6 | D12: 8.4 | E12: 8.3 | F12: 8.1 | G12: 7.9 | H12: 7.7 | I12: 7.8 | J12: 8.4 | K12: 9.1 | L12: 9.7 | M12: 10.2 | N12: 10.6 | O12: 10.7 | P12: 10.8 | Q12: 10.7 | R12: 10.4 | S12: 10.1 | T12: 9.9 | U12: 9.6 | V12: 9.4 | W12: 9.3 | X12: 9.1 | Y12: 8.9
A13: 12月 | B13: 3.9 | C13: 3.7 | D13: 3.5 | E13: 3.4 | F13: 3.2 | G13: 3.1 | H13: 2.9 | I13: 2.8 | J13: 3.3 | K13: 4.1 | L13: 4.8 | M13: 5.4 | N13: 5.7 | O13: 6 | P13: 6 | Q13: 5.9 | R13: 5.6 | S13: 5.2 | T13: 5 | U13: 4.8 | V13: 4.6 | W13: 4.3 | X13: 4.1 | Y13: 3.9
A14: 1月 | B14: 1.5 | C14: 1.3 | D14: 1.1 | E14: 0.9 | F14: 0.7 | G14: 0.6 | H14: 0.4 | I14: 0.3 | J14: 0.8 | K14: 1.6 | L14: 2.4 | M14: 3 | N14: 3.5 | O14: 3.7 | P14: 3.8 | Q14: 3.7 | R14: 3.4 | S14: 3 | T14: 2.7 | U14: 2.5 | V14: 2.3 | W14: 2.1 | X14: 1.9 | Y14: 1.7
A15: 2月 | B15: 1.8 | C15: 1.6 | D15: 1.4 | E15: 1.2 | F15: 1 | G15: 0.8 | H15: 0.7 | I15: 0.6 | J15: 1.3 | K15: 2.1 | L15: 2.9 | M15: 3.6 | N15: 4 | O15: 4.3 | P15: 4.5 | Q15: 4.4 | R15: 4.1 | S15: 3.7 | T15: 3.3 | U15: 3.1 | V15: 2.8 | W15: 2.6 | X15: 2.4 | Y15: 2.2
A16: 3月 | B16: 4.8 | C16: 4.6 | D16: 4.3 | E16: 4.1 | F16: 3.9 | G16: 3.7 | H16: 3.5 | I16: 3.8 | J16: 4.5 | K16: 5.2 | L16: 5.9 | M16: 6.5 | N16: 6.9 | O16: 7.2 | P16: 7.4 | Q16: 7.3 | R16: 7.1 | S16: 6.7 | T16: 6.3 | U16: 6 | V16: 5.8 | W16: 5.6 | X16: 5.3 | Y16: 5.1

Sheet 津 (hidden)
A1: 気象データ
A2: =RIGHT(CELL("filename",A2),LEN(CELL("filename",A2))-FIND("]",CELL("filename",A2))) -> 津
A3: 時刻別平均外気湿球温度
A4: 時刻 | B4: 0 | C4: 1 | D4: 2 | E4: 3 | F4: 4 | G4: 5 | H4: 6 | I4: 7 | J4: 8 | K4: 9 | L4: 10 | M4: 11 | N4: 12 | O4: 13 | P4: 14 | Q4: 15 | R4: 16 | S4: 17 | T4: 18 | U4: 19 | V4: 20 | W4: 21 | X4: 22 | Y4: 23
A5: 4月 | B5: 9.5 | C5: 9.4 | D5: 9.2 | E5: 9 | F5: 8.9 | G5: 8.8 | H5: 8.8 | I5: 9.3 | J5: 9.9 | K5: 10.3 | L5: 10.6 | M5: 11 | N5: 11.2 | O5: 11.5 | P5: 11.7 | Q5: 11.8 | R5: 11.7 | S5: 11.5 | T5: 11.2 | U5: 10.9 | V5: 10.7 | W5: 10.5 | X5: 10.2 | Y5: 9.9
A6: 5月 | B6: 14.5 | C6: 14.3 | D6: 14.2 | E6: 14 | F6: 13.9 | G6: 13.8 | H6: 13.9 | I6: 14.4 | J6: 14.8 | K6: 15.2 | L6: 15.5 | M6: 15.8 | N6: 16 | O6: 16.1 | P6: 16.3 | Q6: 16.3 | R6: 16.3 | S6: 16.1 | T6: 15.8 | U6: 15.6 | V6: 15.4 | W6: 15.2 | X6: 15 | Y6: 14.8
A7: 6月 | B7: 18.6 | C7: 18.5 | D7: 18.4 | E7: 18.3 | F7: 18.2 | G7: 18.1 | H7: 18.3 | I7: 18.6 | J7: 18.9 | K7: 19.2 | L7: 19.5 | M7: 19.7 | N7: 19.8 | O7: 20 | P7: 20.1 | Q7: 20.2 | R7: 20.2 | S7: 20.1 | T7: 19.9 | U7: 19.6 | V7: 19.4 | W7: 19.3 | X7: 19.1 | Y7: 19
A8: 7月 | B8: 22.7 | C8: 22.6 | D8: 22.5 | E8: 22.4 | F8: 22.3 | G8: 22.3 | H8: 22.4 | I8: 22.6 | J8: 22.9 | K8: 23.2 | L8: 23.4 | M8: 23.6 | N8: 23.7 | O8: 23.9 | P8: 23.8 | Q8: 24 | R8: 23.9 | S8: 23.8 | T8: 23.7 | U8: 23.4 | V8: 23.3 | W8: 23.1 | X8: 23 | Y8: 22.9
A9: 8月 | B9: 23.5 | C9: 23.4 | D9: 23.3 | E9: 23.2 | F9: 23.1 | G9: 23 | H9: 23.1 | I9: 23.3 | J9: 23.7 | K9: 24 | L9: 24.2 | M9: 24.4 | N9: 24.5 | O9: 24.6 | P9: 24.7 | Q9: 24.7 | R9: 24.6 | S9: 24.6 | T9: 24.3 | U9: 24.1 | V9: 23.9 | W9: 23.8 | X9: 23.7 | Y9: 23.5
A10: 9月 | B10: 20.2 | C10: 20.1 | D10: 20 | E10: 19.9 | F10: 19.8 | G10: 19.7 | H10: 19.7 | I10: 19.9 | J10: 20.3 | K10: 20.6 | L10: 20.9 | M10: 21.1 | N10: 21.2 | O10: 21.2 | P10: 21.3 | Q10: 21.3 | R10: 21.3 | S10: 21.2 | T10: 21 | U10: 20.8 | V10: 20.6 | W10: 20.5 | X10: 20.3 | Y10: 20.2
A11: 10月 | B11: 14.7 | C11: 14.6 | D11: 14.4 | E11: 14.3 | F11: 14.2 | G11: 14.1 | H11: 14.1 | I11: 14.2 | J11: 14.8 | K11: 15.2 | L11: 15.5 | M11: 15.8 | N11: 15.9 | O11: 16 | P11: 16.1 | Q11: 16.1 | R11: 16 | S11: 15.8 | T11: 15.6 | U11: 15.4 | V11: 15.2 | W11: 15 | X11: 14.8 | Y11: 14.6
A12: 11月 | B12: 9.2 | C12: 9 | D12: 8.9 | E12: 8.8 | F12: 8.7 | G12: 8.5 | H12: 8.4 | I12: 8.5 | J12: 9.1 | K12: 9.8 | L12: 10.2 | M12: 10.6 | N12: 10.8 | O12: 11 | P12: 11 | Q12: 11 | R12: 10.8 | S12: 10.5 | T12: 10.3 | U12: 10.1 | V12: 9.8 | W12: 9.6 | X12: 9.4 | Y12: 9.2
A13: 12月 | B13: 4.4 | C13: 4.2 | D13: 4.1 | E13: 4 | F13: 3.9 | G13: 3.8 | H13: 3.7 | I13: 3.7 | J13: 4.2 | K13: 5 | L13: 5.6 | M13: 6 | N13: 6.2 | O13: 6.3 | P13: 6.4 | Q13: 6.3 | R13: 6 | S13: 5.7 | T13: 5.5 | U13: 5.2 | V13: 4.9 | W13: 4.7 | X13: 4.5 | Y13: 4.3
A14: 1月 | B14: 2.1 | C14: 1.9 | D14: 1.8 | E14: 1.7 | F14: 1.6 | G14: 1.5 | H14: 1.4 | I14: 1.4 | J14: 1.8 | K14: 2.5 | L14: 3.2 | M14: 3.6 | N14: 3.9 | O14: 4 | P14: 4.1 | Q14: 4 | R14: 3.9 | S14: 3.5 | T14: 3.3 | U14: 3 | V14: 2.8 | W14: 2.5 | X14: 2.4 | Y14: 2.2
A15: 2月 | B15: 2.2 | C15: 2.1 | D15: 2 | E15: 1.8 | F15: 1.7 | G15: 1.6 | H15: 1.6 | I15: 1.6 | J15: 2.1 | K15: 2.9 | L15: 3.5 | M15: 3.9 | N15: 4.2 | O15: 4.3 | P15: 4.4 | Q15: 4.5 | R15: 4.3 | S15: 4 | T15: 3.7 | U15: 3.4 | V15: 3.2 | W15: 3 | X15: 2.7 | Y15: 2.5
A16: 3月 | B16: 5 | C16: 4.8 | D16: 4.6 | E16: 4.5 | F16: 4.3 | G16: 4.2 | H16: 4.1 | I16: 4.3 | J16: 5 | K16: 5.6 | L16: 6.1 | M16: 6.4 | N16: 6.7 | O16: 6.9 | P16: 7.1 | Q16: 7.2 | R16: 7.1 | S16: 6.9 | T16: 6.6 | U16: 6.3 | V16: 6 | W16: 5.8 | X16: 5.5 | Y16: 5.3

Sheet 彦根 (hidden)
A1: 気象データ
A2: =RIGHT(CELL("filename",A2),LEN(CELL("filename",A2))-FIND("]",CELL("filename",A2))) -> 彦根
A3: 時刻別平均外気湿球温度
A4: 時刻 | B4: 0 | C4: 1 | D4: 2 | E4: 3 | F4: 4 | G4: 5 | H4: 6 | I4: 7 | J4: 8 | K4: 9 | L4: 10 | M4: 11 | N4: 12 | O4: 13 | P4: 14 | Q4: 15 | R4: 16 | S4: 17 | T4: 18 | U4: 19 | V4: 20 | W4: 21 | X4: 22 | Y4: 23
A5: 4月 | B5: 8.7 | C5: 8.5 | D5: 8.3 | E5: 8.1 | F5: 7.9 | G5: 7.8 | H5: 7.8 | I5: 8.4 | J5: 9.1 | K5: 9.5 | L5: 9.9 | M5: 10.2 | N5: 10.5 | O5: 10.8 | P5: 10.9 | Q5: 10.9 | R5: 10.8 | S5: 10.6 | T5: 10.3 | U5: 10 | V5: 9.8 | W5: 9.6 | X5: 9.4 | Y5: 9.1
A6: 5月 | B6: 13.5 | C6: 13.4 | D6: 13.2 | E6: 13 | F6: 12.8 | G6: 12.7 | H6: 13 | I6: 13.6 | J6: 14.1 | K6: 14.5 | L6: 14.8 | M6: 15.1 | N6: 15.3 | O6: 15.5 | P6: 15.6 | Q6: 15.5 | R6: 15.4 | S6: 15.2 | T6: 14.9 | U6: 14.6 | V6: 14.4 | W6: 14.3 | X6: 14 | Y6: 13.8
A7: 6月 | B7: 18 | C7: 17.9 | D7: 17.7 | E7: 17.6 | F7: 17.5 | G7: 17.4 | H7: 17.7 | I7: 18.1 | J7: 18.5 | K7: 18.8 | L7: 19 | M7: 19.3 | N7: 19.5 | O7: 19.7 | P7: 19.7 | Q7: 19.7 | R7: 19.6 | S7: 19.5 | T7: 19.2 | U7: 19 | V7: 18.8 | W7: 18.6 | X7: 18.5 | Y7: 18.3
A8: 7月 | B8: 22.2 | C8: 22.1 | D8: 22 | E8: 21.9 | F8: 21.8 | G8: 21.7 | H8: 21.9 | I8: 22.3 | J8: 22.7 | K8: 23 | L8: 23.2 | M8: 23.4 | N8: 23.6 | O8: 23.8 | P8: 23.9 | Q8: 23.8 | R8: 23.7 | S8: 23.5 | T8: 23.3 | U8: 23.1 | V8: 22.9 | W8: 22.8 | X8: 22.6 | Y8: 22.5
A9: 8月 | B9: 23 | C9: 22.9 | D9: 22.8 | E9: 22.7 | F9: 22.5 | G9: 22.5 | H9: 22.5 | I9: 22.9 | J9: 23.4 | K9: 23.8 | L9: 24 | M9: 24.2 | N9: 24.4 | O9: 24.5 | P9: 24.6 | Q9: 24.5 | R9: 24.4 | S9: 24.2 | T9: 24 | U9: 23.8 | V9: 23.6 | W9: 23.4 | X9: 23.3 | Y9: 23.1
A10: 9月 | B10: 19.8 | C10: 19.6 | D10: 19.5 | E10: 19.4 | F10: 19.3 | G10: 19.1 | H10: 19.1 | I10: 19.5 | J10: 20 | K10: 20.4 | L10: 20.6 | M10: 20.8 | N10: 21 | O10: 21 | P10: 21.1 | Q10: 21.1 | R10: 21 | S10: 20.8 | T10: 20.5 | U10: 20.3 | V10: 20.2 | W10: 20.1 | X10: 19.9 | Y10: 19.7
A11: 10月 | B11: 14.2 | C11: 14.1 | D11: 13.9 | E11: 13.8 | F11: 13.6 | G11: 13.5 | H11: 13.4 | I11: 13.7 | J11: 14.4 | K11: 15 | L11: 15.4 | M11: 15.6 | N11: 15.8 | O11: 15.9 | P11: 15.9 | Q11: 15.9 | R11: 15.8 | S11: 15.6 | T11: 15.4 | U11: 15.2 | V11: 14.9 | W11: 14.6 | X11: 14.4 | Y11: 14.2
A12: 11月 | B12: 8.7 | C12: 8.5 | D12: 8.4 | E12: 8.2 | F12: 8 | G12: 7.9 | H12: 7.8 | I12: 7.9 | J12: 8.5 | K12: 9.4 | L12: 9.9 | M12: 10.3 | N12: 10.6 | O12: 10.7 | P12: 10.8 | Q12: 10.8 | R12: 10.6 | S12: 10.4 | T12: 10.1 | U12: 9.8 | V12: 9.5 | W12: 9.3 | X12: 9 | Y12: 8.8
A13: 12月 | B13: 4.1 | C13: 3.9 | D13: 3.7 | E13: 3.7 | F13: 3.5 | G13: 3.4 | H13: 3.4 | I13: 3.3 | J13: 3.6 | K13: 4.3 | L13: 4.9 | M13: 5.4 | N13: 5.6 | O13: 5.8 | P13: 5.9 | Q13: 5.9 | R13: 5.7 | S13: 5.5 | T13: 5.2 | U13: 4.9 | V13: 4.7 | W13: 4.4 | X13: 4.2 | Y13: 4
A14: 1月 | B14: 1.7 | C14: 1.5 | D14: 1.4 | E14: 1.3 | F14: 1.1 | G14: 1 | H14: 1 | I14: 0.9 | J14: 1.1 | K14: 1.8 | L14: 2.4 | M14: 2.8 | N14: 3.1 | O14: 3.3 | P14: 3.5 | Q14: 3.5 | R14: 3.3 | S14: 3.1 | T14: 2.9 | U14: 2.7 | V14: 2.5 | W14: 2.2 | X14: 2 | Y14: 1.8
A15: 2月 | B15: 1.9 | C15: 1.7 | D15: 1.5 | E15: 1.4 | F15: 1.3 | G15: 1.2 | H15: 1.1 | I15: 1.1 | J15: 1.5 | K15: 2.2 | L15: 2.7 | M15: 3.2 | N15: 3.5 | O15: 3.7 | P15: 3.8 | Q15: 3.8 | R15: 3.7 | S15: 3.5 | T15: 3.2 | U15: 3.1 | V15: 2.8 | W15: 2.6 | X15: 2.4 | Y15: 2.2
A16: 3月 | B16: 4.4 | C16: 4.2 | D16: 4 | E16: 3.8 | F16: 3.7 | G16: 3.5 | H16: 3.4 | I16: 3.6 | J16: 4.4 | K16: 5 | L16: 5.4 | M16: 5.8 | N16: 6.1 | O16: 6.3 | P16: 6.5 | Q16: 6.6 | R16: 6.5 | S16: 6.3 | T16: 5.9 | U16: 5.7 | V16: 5.5 | W16: 5.2 | X16: 5 | Y16: 4.8

Sheet 京都 (hidden)
A1: 気象データ
A2: =RIGHT(CELL("filename",A2),LEN(CELL("filename",A2))-FIND("]",CELL("filename",A2))) -> 京都
A3: 時刻別平均外気湿球温度
A4: 時刻 | B4: 0 | C4: 1 | D4: 2 | E4: 3 | F4: 4 | G4: 5 | H4: 6 | I4: 7 | J4: 8 | K4: 9 | L4: 10 | M4: 11 | N4: 12 | O4: 13 | P4: 14 | Q4: 15 | R4: 16 | S4: 17 | T4: 18 | U4: 19 | V4: 20 | W4: 21 | X4: 22 | Y4: 23
A5: 4月 | B5: 8.9 | C5: 8.7 | D5: 8.5 | E5: 8.4 | F5: 8.2 | G5: 8.1 | H5: 8.1 | I5: 8.5 | J5: 9.2 | K5: 9.9 | L5: 10.5 | M5: 11 | N5: 11.2 | O5: 11.4 | P5: 11.5 | Q5: 11.4 | R5: 11.3 | S5: 11 | T5: 10.7 | U5: 10.4 | V5: 10.1 | W5: 9.8 | X5: 9.6 | Y5: 9.3
A6: 5月 | B6: 13.5 | C6: 13.3 | D6: 13.2 | E6: 13.1 | F6: 12.9 | G6: 12.8 | H6: 13 | I6: 13.6 | J6: 14.2 | K6: 14.7 | L6: 15.1 | M6: 15.5 | N6: 15.7 | O6: 15.8 | P6: 15.8 | Q6: 15.8 | R6: 15.7 | S6: 15.5 | T6: 15.1 | U6: 14.8 | V6: 14.5 | W6: 14.3 | X6: 14.1 | Y6: 13.8
A7: 6月 | B7: 17.9 | C7: 17.7 | D7: 17.6 | E7: 17.5 | F7: 17.4 | G7: 17.3 | H7: 17.5 | I7: 17.9 | J7: 18.3 | K7: 18.8 | L7: 19.1 | M7: 19.4 | N7: 19.6 | O7: 19.7 | P7: 19.7 | Q7: 19.7 | R7: 19.6 | S7: 19.5 | T7: 19.2 | U7: 19 | V7: 18.8 | W7: 18.6 | X7: 18.4 | Y7: 18.3
A8: 7月 | B8: 22.2 | C8: 22.1 | D8: 22 | E8: 21.9 | F8: 21.8 | G8: 21.7 | H8: 21.8 | I8: 22.1 | J8: 22.5 | K8: 22.8 | L8: 23.1 | M8: 23.2 | N8: 23.4 | O8: 23.5 | P8: 23.5 | Q8: 23.4 | R8: 23.4 | S8: 23.3 | T8: 23.1 | U8: 23 | V8: 22.8 | W8: 22.7 | X8: 22.5 | Y8: 22.4
A9: 8月 | B9: 22.8 | C9: 22.7 | D9: 22.6 | E9: 22.5 | F9: 22.4 | G9: 22.3 | H9: 22.3 | I9: 22.7 | J9: 23.1 | K9: 23.4 | L9: 23.7 | M9: 23.8 | N9: 24 | O9: 23.9 | P9: 23.9 | Q9: 23.9 | R9: 23.8 | S9: 23.8 | T9: 23.6 | U9: 23.4 | V9: 23.3 | W9: 23.1 | X9: 23 | Y9: 22.9
A10: 9月 | B10: 19.5 | C10: 19.4 | D10: 19.3 | E10: 19.2 | F10: 19.1 | G10: 19 | H10: 19 | I10: 19.2 | J10: 19.7 | K10: 20.1 | L10: 20.4 | M10: 20.6 | N10: 20.7 | O10: 20.7 | P10: 20.6 | Q10: 20.7 | R10: 20.5 | S10: 20.4 | T10: 20.2 | U10: 20 | V10: 19.9 | W10: 19.7 | X10: 19.6 | Y10: 19.5
A11: 10月 | B11: 14.1 | C11: 14 | D11: 13.8 | E11: 13.7 | F11: 13.5 | G11: 13.5 | H11: 13.4 | I11: 13.5 | J11: 14.1 | K11: 14.7 | L11: 15.3 | M11: 15.6 | N11: 15.8 | O11: 15.8 | P11: 15.8 | Q11: 15.7 | R11: 15.6 | S11: 15.3 | T11: 15.1 | U11: 14.9 | V11: 14.6 | W11: 14.4 | X11: 14.2 | Y11: 14.1
A12: 11月 | B12: 8.8 | C12: 8.6 | D12: 8.4 | E12: 8.3 | F12: 8.1 | G12: 8 | H12: 7.9 | I12: 7.9 | J12: 8.4 | K12: 9.2 | L12: 9.9 | M12: 10.4 | N12: 10.8 | O12: 10.9 | P12: 10.9 | Q12: 10.9 | R12: 10.6 | S12: 10.4 | T12: 10.1 | U12: 9.8 | V12: 9.5 | W12: 9.3 | X12: 9.1 | Y12: 8.9
A13: 12月 | B13: 4 | C13: 3.9 | D13: 3.7 | E13: 3.6 | F13: 3.4 | G13: 3.3 | H13: 3.2 | I13: 3.1 | J13: 3.5 | K13: 4.2 | L13: 4.9 | M13: 5.5 | N13: 5.9 | O13: 6.2 | P13: 6.2 | Q13: 6.2 | R13: 5.9 | S13: 5.6 | T13: 5.3 | U13: 5 | V13: 4.7 | W13: 4.5 | X13: 4.3 | Y13: 4.1
A14: 1月 | B14: 1.8 | C14: 1.6 | D14: 1.5 | E14: 1.4 | F14: 1.2 | G14: 1.1 | H14: 1 | I14: 0.9 | J14: 1.2 | K14: 1.9 | L14: 2.6 | M14: 3.2 | N14: 3.7 | O14: 3.9 | P14: 4 | Q14: 4 | R14: 3.7 | S14: 3.4 | T14: 3.1 | U14: 2.9 | V14: 2.6 | W14: 2.4 | X14: 2.2 | Y14: 2
A15: 2月 | B15: 2.1 | C15: 1.9 | D15: 1.7 | E15: 1.6 | F15: 1.5 | G15: 1.4 | H15: 1.3 | I15: 1.2 | J15: 1.7 | K15: 2.4 | L15: 3.2 | M15: 3.7 | N15: 4.2 | O15: 4.4 | P15: 4.5 | Q15: 4.5 | R15: 4.3 | S15: 4 | T15: 3.6 | U15: 3.3 | V15: 3 | W15: 2.8 | X15: 2.6 | Y15: 2.4
A16: 3月 | B16: 4.7 | C16: 4.5 | D16: 4.3 | E16: 4.1 | F16: 3.9 | G16: 3.8 | H16: 3.7 | I16: 3.9 | J16: 4.5 | K16: 5.2 | L16: 5.9 | M16: 6.5 | N16: 7 | O16: 7.2 | P16: 7.3 | Q16: 7.3 | R16: 7.1 | S16: 6.7 | T16: 6.3 | U16: 6 | V16: 5.7 | W16: 5.4 | X16: 5.2 | Y16: 4.9

Sheet 大阪 (hidden)
A1: 気象データ
A2: =RIGHT(CELL("filename",A2),LEN(CELL("filename",A2))-FIND("]",CELL("filename",A2))) -> 大阪
A3: 時刻別平均外気湿球温度
A4: 時刻 | B4: 0 | C4: 1 | D4: 2 | E4: 3 | F4: 4 | G4: 5 | H4: 6 | I4: 7 | J4: 8 | K4: 9 | L4: 10 | M4: 11 | N4: 12 | O4: 13 | P4: 14 | Q4: 15 | R4: 16 | S4: 17 | T4: 18 | U4: 19 | V4: 20 | W4: 21 | X4: 22 | Y4: 23
A5: 4月 | B5: 10.1 | C5: 9.9 | D5: 9.7 | E5: 9.5 | F5: 9.4 | G5: 9.2 | H5: 9.2 | I5: 9.5 | J5: 10 | K5: 10.6 | L5: 11.1 | M5: 11.4 | N5: 11.6 | O5: 11.8 | P5: 11.8 | Q5: 11.8 | R5: 11.6 | S5: 11.4 | T5: 11.2 | U5: 11 | V5: 10.9 | W5: 10.7 | X5: 10.6 | Y5: 10.4
A6: 5月 | B6: 14.7 | C6: 14.5 | D6: 14.4 | E6: 14.2 | F6: 14.1 | G6: 14 | H6: 14.1 | I6: 14.5 | J6: 14.9 | K6: 15.3 | L6: 15.6 | M6: 15.8 | N6: 16 | O6: 16.1 | P6: 16.1 | Q6: 16.1 | R6: 15.9 | S6: 15.8 | T6: 15.6 | U6: 15.4 | V6: 15.4 | W6: 15.2 | X6: 15.1 | Y6: 14.9
A7: 6月 | B7: 18.9 | C7: 18.8 | D7: 18.6 | E7: 18.5 | F7: 18.4 | G7: 18.3 | H7: 18.5 | I7: 18.7 | J7: 19 | K7: 19.3 | L7: 19.6 | M7: 19.8 | N7: 19.9 | O7: 20 | P7: 20 | Q7: 20 | R7: 19.9 | S7: 19.7 | T7: 19.6 | U7: 19.5 | V7: 19.4 | W7: 19.4 | X7: 19.2 | Y7: 19.1
A8: 7月 | B8: 22.9 | C8: 22.8 | D8: 22.7 | E8: 22.7 | F8: 22.6 | G8: 22.5 | H8: 22.6 | I8: 22.8 | J8: 23.1 | K8: 23.3 | L8: 23.5 | M8: 23.6 | N8: 23.7 | O8: 23.7 | P8: 23.7 | Q8: 23.6 | R8: 23.6 | S8: 23.5 | T8: 23.4 | U8: 23.4 | V8: 23.3 | W8: 23.2 | X8: 23.2 | Y8: 23.1
A9: 8月 | B9: 23.6 | C9: 23.5 | D9: 23.4 | E9: 23.3 | F9: 23.2 | G9: 23.2 | H9: 23.2 | I9: 23.4 | J9: 23.7 | K9: 23.9 | L9: 24.1 | M9: 24.2 | N9: 24.3 | O9: 24.4 | P9: 24.3 | Q9: 24.2 | R9: 24 | S9: 24 | T9: 24 | U9: 23.9 | V9: 23.9 | W9: 23.8 | X9: 23.7 | Y9: 23.6
A10: 9月 | B10: 20.2 | C10: 20.1 | D10: 20 | E10: 19.9 | F10: 19.9 | G10: 19.8 | H10: 19.8 | I10: 20 | J10: 20.3 | K10: 20.6 | L10: 20.8 | M10: 20.9 | N10: 21.1 | O10: 21.1 | P10: 21.1 | Q10: 21 | R10: 21 | S10: 20.8 | T10: 20.6 | U10: 20.5 | V10: 20.4 | W10: 20.3 | X10: 20.2 | Y10: 20.1
A11: 10月 | B11: 14.9 | C11: 14.8 | D11: 14.7 | E11: 14.6 | F11: 14.5 | G11: 14.4 | H11: 14.3 | I11: 14.5 | J11: 14.9 | K11: 15.4 | L11: 15.7 | M11: 16 | N11: 16.1 | O11: 16.2 | P11: 16.2 | Q11: 16.1 | R11: 15.9 | S11: 15.7 | T11: 15.6 | U11: 15.4 | V11: 15.3 | W11: 15.2 | X11: 15 | Y11: 14.9
A12: 11月 | B12: 9.8 | C12: 9.6 | D12: 9.5 | E12: 9.3 | F12: 9.2 | G12: 9.1 | H12: 9 | I12: 9 | J12: 9.5 | K12: 10 | L12: 10.6 | M12: 10.9 | N12: 11.2 | O12: 11.3 | P12: 11.4 | Q12: 11.3 | R12: 11.1 | S12: 10.8 | T12: 10.7 | U12: 10.5 | V12: 10.3 | W12: 10.1 | X12: 10 | Y12: 9.8
A13: 12月 | B13: 5.1 | C13: 4.9 | D13: 4.8 | E13: 4.6 | F13: 4.5 | G13: 4.4 | H13: 4.3 | I13: 4.3 | J13: 4.5 | K13: 5.2 | L13: 5.8 | M13: 6.2 | N13: 6.5 | O13: 6.6 | P13: 6.6 | Q13: 6.6 | R13: 6.4 | S13: 6.1 | T13: 6 | U13: 5.8 | V13: 5.6 | W13: 5.4 | X13: 5.2 | Y13: 5
A14: 1月 | B14: 2.7 | C14: 2.5 | D14: 2.4 | E14: 2.3 | F14: 2.2 | G14: 2.1 | H14: 2 | I14: 1.9 | J14: 2.2 | K14: 2.8 | L14: 3.4 | M14: 3.9 | N14: 4.1 | O14: 4.3 | P14: 4.4 | Q14: 4.4 | R14: 4.2 | S14: 3.9 | T14: 3.7 | U14: 3.5 | V14: 3.4 | W14: 3.2 | X14: 3 | Y14: 2.8
A15: 2月 | B15: 2.9 | C15: 2.8 | D15: 2.6 | E15: 2.5 | F15: 2.4 | G15: 2.3 | H15: 2.2 | I15: 2.2 | J15: 2.6 | K15: 3.2 | L15: 3.8 | M15: 4.3 | N15: 4.6 | O15: 4.8 | P15: 4.9 | Q15: 4.9 | R15: 4.8 | S15: 4.4 | T15: 4.2 | U15: 4 | V15: 3.8 | W15: 3.6 | X15: 3.4 | Y15: 3.2
A16: 3月 | B16: 5.6 | C16: 5.5 | D16: 5.3 | E16: 5.1 | F16: 5 | G16: 4.8 | H16: 4.7 | I16: 4.8 | J16: 5.4 | K16: 5.9 | L16: 6.5 | M16: 7 | N16: 7.3 | O16: 7.5 | P16: 7.6 | Q16: 7.6 | R16: 7.5 | S16: 7.2 | T16: 6.9 | U16: 6.7 | V16: 6.5 | W16: 6.3 | X16: 6.1 | Y16: 5.9

Sheet 神戸 (hidden)
A1: 気象データ
A2: =RIGHT(CELL("filename",A2),LEN(CELL("filename",A2))-FIND("]",CELL("filename",A2))) -> 神戸
A3: 時刻別平均外気湿球温度
A4: 時刻 | B4: 0 | C4: 1 | D4: 2 | E4: 3 | F4: 4 | G4: 5 | H4: 6 | I4: 7 | J4: 8 | K4: 9 | L4: 10 | M4: 11 | N4: 12 | O4: 13 | P4: 14 | Q4: 15 | R4: 16 | S4: 17 | T4: 18 | U4: 19 | V4: 20 | W4: 21 | X4: 22 | Y4: 23
A5: 4月 | B5: 10.2 | C5: 10 | D5: 9.9 | E5: 9.7 | F5: 9.5 | G5: 9.4 | H5: 9.4 | I5: 9.8 | J5: 10.3 | K5: 10.7 | L5: 11.1 | M5: 11.4 | N5: 11.6 | O5: 11.8 | P5: 11.8 | Q5: 11.8 | R5: 11.7 | S5: 11.6 | T5: 11.4 | U5: 11.1 | V5: 10.9 | W5: 10.8 | X5: 10.7 | Y5: 10.5
A6: 5月 | B6: 14.8 | C6: 14.6 | D6: 14.5 | E6: 14.4 | F6: 14.3 | G6: 14.1 | H6: 14.3 | I6: 14.8 | J6: 15.1 | K6: 15.4 | L6: 15.7 | M6: 16 | N6: 16.1 | O6: 16.2 | P6: 16.3 | Q6: 16.2 | R6: 16.1 | S6: 16 | T6: 15.9 | U6: 15.7 | V6: 15.5 | W6: 15.3 | X6: 15.2 | Y6: 15
A7: 6月 | B7: 19 | C7: 18.9 | D7: 18.8 | E7: 18.7 | F7: 18.6 | G7: 18.5 | H7: 18.7 | I7: 19 | J7: 19.3 | K7: 19.5 | L7: 19.8 | M7: 19.9 | N7: 20 | O7: 20.1 | P7: 20.1 | Q7: 20.1 | R7: 20 | S7: 19.9 | T7: 19.8 | U7: 19.7 | V7: 19.6 | W7: 19.5 | X7: 19.4 | Y7: 19.3
A8: 7月 | B8: 23.2 | C8: 23.1 | D8: 23 | E8: 22.9 | F8: 22.9 | G8: 22.8 | H8: 22.9 | I8: 23.1 | J8: 23.4 | K8: 23.6 | L8: 23.7 | M8: 23.8 | N8: 23.9 | O8: 24 | P8: 24.1 | Q8: 24 | R8: 24 | S8: 23.8 | T8: 23.8 | U8: 23.6 | V8: 23.5 | W8: 23.5 | X8: 23.4 | Y8: 23.3
A9: 8月 | B9: 23.9 | C9: 23.8 | D9: 23.7 | E9: 23.6 | F9: 23.6 | G9: 23.5 | H9: 23.5 | I9: 23.7 | J9: 24 | K9: 24.2 | L9: 24.4 | M9: 24.5 | N9: 24.6 | O9: 24.6 | P9: 24.7 | Q9: 24.7 | R9: 24.6 | S9: 24.5 | T9: 24.4 | U9: 24.3 | V9: 24.2 | W9: 24.1 | X9: 24.1 | Y9: 24
A10: 9月 | B10: 20.4 | C10: 20.3 | D10: 20.3 | E10: 20.2 | F10: 20.1 | G10: 20 | H10: 20 | I10: 20.3 | J10: 20.6 | K10: 20.9 | L10: 21.1 | M10: 21.3 | N10: 21.4 | O10: 21.4 | P10: 21.4 | Q10: 21.4 | R10: 21.3 | S10: 21.2 | T10: 21 | U10: 20.8 | V10: 20.6 | W10: 20.5 | X10: 20.4 | Y10: 20.3
A11: 10月 | B11: 15 | C11: 14.9 | D11: 14.8 | E11: 14.7 | F11: 14.6 | G11: 14.5 | H11: 14.5 | I11: 14.7 | J11: 15.2 | K11: 15.6 | L11: 15.9 | M11: 16.2 | N11: 16.3 | O11: 16.4 | P11: 16.4 | Q11: 16.3 | R11: 16.2 | S11: 16 | T11: 15.7 | U11: 15.5 | V11: 15.3 | W11: 15.2 | X11: 15 | Y11: 14.9
A12: 11月 | B12: 9.8 | C12: 9.7 | D12: 9.6 | E12: 9.5 | F12: 9.4 | G12: 9.3 | H12: 9.2 | I12: 9.3 | J12: 9.9 | K12: 10.4 | L12: 10.8 | M12: 11.1 | N12: 11.4 | O12: 11.5 | P12: 11.5 | Q12: 11.4 | R12: 11.2 | S12: 10.9 | T12: 10.6 | U12: 10.4 | V12: 10.2 | W12: 10.1 | X12: 10 | Y12: 9.8
A13: 12月 | B13: 5 | C13: 4.9 | D13: 4.8 | E13: 4.7 | F13: 4.6 | G13: 4.5 | H13: 4.5 | I13: 4.4 | J13: 4.8 | K13: 5.4 | L13: 5.9 | M13: 6.3 | N13: 6.5 | O13: 6.6 | P13: 6.7 | Q13: 6.6 | R13: 6.4 | S13: 6.1 | T13: 5.7 | U13: 5.5 | V13: 5.3 | W13: 5.2 | X13: 5 | Y13: 4.9
A14: 1月 | B14: 2.6 | C14: 2.4 | D14: 2.4 | E14: 2.2 | F14: 2.1 | G14: 2.1 | H14: 2 | I14: 2 | J14: 2.3 | K14: 3 | L14: 3.5 | M14: 3.9 | N14: 4.1 | O14: 4.3 | P14: 4.4 | Q14: 4.4 | R14: 4.2 | S14: 3.9 | T14: 3.6 | U14: 3.3 | V14: 3.1 | W14: 3 | X14: 2.8 | Y14: 2.7
A15: 2月 | B15: 2.9 | C15: 2.8 | D15: 2.6 | E15: 2.5 | F15: 2.4 | G15: 2.4 | H15: 2.3 | I15: 2.3 | J15: 2.8 | K15: 3.4 | L15: 3.9 | M15: 4.3 | N15: 4.5 | O15: 4.8 | P15: 4.9 | Q15: 4.9 | R15: 4.8 | S15: 4.5 | T15: 4.2 | U15: 3.8 | V15: 3.6 | W15: 3.5 | X15: 3.3 | Y15: 3.2
A16: 3月 | B16: 5.7 | C16: 5.6 | D16: 5.4 | E16: 5.3 | F16: 5.1 | G16: 5 | H16: 4.9 | I16: 5.1 | J16: 5.7 | K16: 6.2 | L16: 6.6 | M16: 7 | N16: 7.3 | O16: 7.5 | P16: 7.6 | Q16: 7.6 | R16: 7.5 | S16: 7.3 | T16: 7 | U16: 6.7 | V16: 6.5 | W16: 6.3 | X16: 6.1 | Y16: 5.9

Sheet 奈良 (hidden)
A1: 気象データ
A2: =RIGHT(CELL("filename",A2),LEN(CELL("filename",A2))-FIND("]",CELL("filename",A2))) -> 奈良
A3: 時刻別平均外気湿球温度
A4: 時刻 | B4: 0 | C4: 1 | D4: 2 | E4: 3 | F4: 4 | G4: 5 | H4: 6 | I4: 7 | J4: 8 | K4: 9 | L4: 10 | M4: 11 | N4: 12 | O4: 13 | P4: 14 | Q4: 15 | R4: 16 | S4: 17 | T4: 18 | U4: 19 | V4: 20 | W4: 21 | X4: 22 | Y4: 23
A5: 4月 | B5: 8.5 | C5: 8.3 | D5: 8.1 | E5: 7.9 | F5: 7.7 | G5: 7.6 | H5: 7.6 | I5: 8.5 | J5: 9.4 | K5: 10.2 | L5: 10.8 | M5: 11.3 | N5: 11.5 | O5: 11.7 | P5: 11.7 | Q5: 11.7 | R5: 11.4 | S5: 11 | T5: 10.6 | U5: 10.2 | V5: 9.8 | W5: 9.5 | X5: 9.2 | Y5: 9
A6: 5月 | B6: 13.4 | C6: 13.2 | D6: 13 | E6: 12.8 | F6: 12.7 | G6: 12.6 | H6: 13 | I6: 13.8 | J6: 14.5 | K6: 15.1 | L6: 15.5 | M6: 15.9 | N6: 16 | O6: 16.1 | P6: 16.2 | Q6: 16.1 | R6: 15.8 | S6: 15.5 | T6: 15.2 | U6: 14.9 | V6: 14.5 | W6: 14.2 | X6: 13.9 | Y6: 13.7
A7: 6月 | B7: 17.9 | C7: 17.7 | D7: 17.6 | E7: 17.5 | F7: 17.4 | G7: 17.3 | H7: 17.6 | I7: 18.2 | J7: 18.8 | K7: 19.2 | L7: 19.6 | M7: 19.8 | N7: 19.9 | O7: 20 | P7: 20 | Q7: 20 | R7: 19.8 | S7: 19.6 | T7: 19.3 | U7: 19.1 | V7: 18.8 | W7: 18.6 | X7: 18.3 | Y7: 18.2
A8: 7月 | B8: 22 | C8: 21.9 | D8: 21.8 | E8: 21.7 | F8: 21.6 | G8: 21.5 | H8: 21.8 | I8: 22.3 | J8: 22.7 | K8: 23.2 | L8: 23.5 | M8: 23.7 | N8: 23.8 | O8: 23.9 | P8: 23.8 | Q8: 23.7 | R8: 23.6 | S8: 23.4 | T8: 23.2 | U8: 22.9 | V8: 22.7 | W8: 22.5 | X8: 22.4 | Y8: 22.2
A9: 8月 | B9: 22.6 | C9: 22.5 | D9: 22.4 | E9: 22.3 | F9: 22.2 | G9: 22.1 | H9: 22.2 | I9: 22.8 | J9: 23.3 | K9: 23.8 | L9: 24.1 | M9: 24.3 | N9: 24.3 | O9: 24.3 | P9: 24.2 | Q9: 24.3 | R9: 24 | S9: 23.8 | T9: 23.6 | U9: 23.3 | V9: 23.1 | W9: 23 | X9: 22.8 | Y9: 22.7
A10: 9月 | B10: 19.3 | C10: 19.2 | D10: 19.1 | E10: 19 | F10: 18.9 | G10: 18.8 | H10: 18.8 | I10: 19.3 | J10: 20 | K10: 20.5 | L10: 20.9 | M10: 21.1 | N10: 21.2 | O10: 21.2 | P10: 21.2 | Q10: 21 | R10: 20.8 | S10: 20.7 | T10: 20.3 | U10: 20 | V10: 19.8 | W10: 19.6 | X10: 19.5 | Y10: 19.3
A11: 10月 | B11: 13.8 | C11: 13.6 | D11: 13.5 | E11: 13.4 | F11: 13.3 | G11: 13.1 | H11: 13 | I11: 13.4 | J11: 14.3 | K11: 15 | L11: 15.6 | M11: 16 | N11: 16.2 | O11: 16.3 | P11: 16.2 | Q11: 16 | R11: 15.8 | S11: 15.4 | T11: 15 | U11: 14.7 | V11: 14.4 | W11: 14.1 | X11: 13.9 | Y11: 13.7
A12: 11月 | B12: 8.3 | C12: 8.2 | D12: 8 | E12: 7.8 | F12: 7.6 | G12: 7.5 | H12: 7.4 | I12: 7.4 | J12: 8.4 | K12: 9.4 | L12: 10.1 | M12: 10.7 | N12: 11 | O12: 11.1 | P12: 11.1 | Q12: 11 | R12: 10.7 | S12: 10.2 | T12: 9.8 | U12: 9.4 | V12: 9.1 | W12: 8.9 | X12: 8.6 | Y12: 8.4
A13: 12月 | B13: 3.4 | C13: 3.3 | D13: 3.1 | E13: 3 | F13: 2.9 | G13: 2.8 | H13: 2.7 | I13: 2.6 | J13: 3.2 | K13: 4.2 | L13: 5.1 | M13: 5.7 | N13: 6.1 | O13: 6.2 | P13: 6.2 | Q13: 6.1 | R13: 5.8 | S13: 5.3 | T13: 4.9 | U13: 4.5 | V13: 4.1 | W13: 3.9 | X13: 3.6 | Y13: 3.4
A14: 1月 | B14: 1.2 | C14: 1 | D14: 0.9 | E14: 0.8 | F14: 0.6 | G14: 0.5 | H14: 0.5 | I14: 0.4 | J14: 0.8 | K14: 1.9 | L14: 2.7 | M14: 3.3 | N14: 3.7 | O14: 3.9 | P14: 4 | Q14: 3.9 | R14: 3.6 | S14: 3.2 | T14: 2.7 | U14: 2.3 | V14: 2 | W14: 1.7 | X14: 1.5 | Y14: 1.3
A15: 2月 | B15: 1.3 | C15: 1.2 | D15: 1 | E15: 0.9 | F15: 0.8 | G15: 0.7 | H15: 0.6 | I15: 0.6 | J15: 1.4 | K15: 2.4 | L15: 3.2 | M15: 3.8 | N15: 4.2 | O15: 4.4 | P15: 4.5 | Q15: 4.5 | R15: 4.3 | S15: 3.8 | T15: 3.3 | U15: 2.9 | V15: 2.5 | W15: 2.2 | X15: 1.9 | Y15: 1.7
A16: 3月 | B16: 4.1 | C16: 3.9 | D16: 3.7 | E16: 3.6 | F16: 3.4 | G16: 3.3 | H16: 3.1 | I16: 3.5 | J16: 4.5 | K16: 5.4 | L16: 6.2 | M16: 6.8 | N16: 7.2 | O16: 7.4 | P16: 7.4 | Q16: 7.4 | R16: 7.1 | S16: 6.8 | T16: 6.3 | U16: 5.8 | V16: 5.4 | W16: 5 | X16: 4.7 | Y16: 4.4

Sheet 和歌山 (hidden)
A1: 気象データ
A2: =RIGHT(CELL("filename",A2),LEN(CELL("filename",A2))-FIND("]",CELL("filename",A2))) -> 和歌山
A3: 時刻別平均外気湿球温度
A4: 時刻 | B4: 0 | C4: 1 | D4: 2 | E4: 3 | F4: 4 | G4: 5 | H4: 6 | I4: 7 | J4: 8 | K4: 9 | L4: 10 | M4: 11 | N4: 12 | O4: 13 | P4: 14 | Q4: 15 | R4: 16 | S4: 17 | T4: 18 | U4: 19 | V4: 20 | W4: 21 | X4: 22 | Y4: 23
A5: 4月 | B5: 10.2 | C5: 10 | D5: 9.8 | E5: 9.6 | F5: 9.3 | G5: 9.1 | H5: 9 | I5: 9.3 | J5: 10 | K5: 10.7 | L5: 11.3 | M5: 11.7 | N5: 11.9 | O5: 11.9 | P5: 12.1 | Q5: 12.1 | R5: 12 | S5: 11.9 | T5: 11.7 | U5: 11.6 | V5: 11.4 | W5: 11.3 | X5: 11 | Y5: 10.7
A6: 5月 | B6: 14.9 | C6: 14.6 | D6: 14.4 | E6: 14.2 | F6: 14 | G6: 13.8 | H6: 13.8 | I6: 14.2 | J6: 14.9 | K6: 15.4 | L6: 15.9 | M6: 16.1 | N6: 16.2 | O6: 16.3 | P6: 16.4 | Q6: 16.4 | R6: 16.3 | S6: 16.3 | T6: 16.2 | U6: 16 | V6: 15.8 | W6: 15.7 | X6: 15.5 | Y6: 15.3
A7: 6月 | B7: 19.2 | C7: 19 | D7: 18.8 | E7: 18.7 | F7: 18.5 | G7: 18.4 | H7: 18.4 | I7: 18.7 | J7: 19.1 | K7: 19.4 | L7: 19.7 | M7: 20 | N7: 20 | O7: 20.1 | P7: 20.1 | Q7: 20.1 | R7: 20.1 | S7: 20.1 | T7: 20 | U7: 19.9 | V7: 19.8 | W7: 19.7 | X7: 19.6 | Y7: 19.5
A8: 7月 | B8: 23 | C8: 23 | D8: 22.8 | E8: 22.7 | F8: 22.6 | G8: 22.4 | H8: 22.5 | I8: 22.7 | J8: 23.1 | K8: 23.4 | L8: 23.7 | M8: 23.8 | N8: 23.9 | O8: 23.9 | P8: 24 | Q8: 23.9 | R8: 23.9 | S8: 23.8 | T8: 23.7 | U8: 23.6 | V8: 23.5 | W8: 23.4 | X8: 23.3 | Y8: 23.2
A9: 8月 | B9: 23.7 | C9: 23.6 | D9: 23.4 | E9: 23.3 | F9: 23.1 | G9: 23 | H9: 22.9 | I9: 23.1 | J9: 23.5 | K9: 24 | L9: 24.3 | M9: 24.5 | N9: 24.6 | O9: 24.6 | P9: 24.6 | Q9: 24.5 | R9: 24.5 | S9: 24.4 | T9: 24.4 | U9: 24.3 | V9: 24.1 | W9: 24 | X9: 23.9 | Y9: 23.8
A10: 9月 | B10: 20.4 | C10: 20.2 | D10: 20.1 | E10: 20 | F10: 19.8 | G10: 19.7 | H10: 19.6 | I10: 19.7 | J10: 20.1 | K10: 20.6 | L10: 20.9 | M10: 21.2 | N10: 21.3 | O10: 21.3 | P10: 21.3 | Q10: 21.2 | R10: 21.2 | S10: 21.1 | T10: 21.1 | U10: 21 | V10: 20.9 | W10: 20.8 | X10: 20.5 | Y10: 20.4
A11: 10月 | B11: 15 | C11: 14.8 | D11: 14.6 | E11: 14.5 | F11: 14.3 | G11: 14.2 | H11: 14.1 | I11: 14.1 | J11: 14.7 | K11: 15.3 | L11: 15.8 | M11: 16.1 | N11: 16.3 | O11: 16.4 | P11: 16.4 | Q11: 16.4 | R11: 16.2 | S11: 16.1 | T11: 16 | U11: 15.9 | V11: 15.7 | W11: 15.4 | X11: 15.2 | Y11: 15
A12: 11月 | B12: 9.8 | C12: 9.6 | D12: 9.4 | E12: 9.3 | F12: 9.1 | G12: 9 | H12: 8.9 | I12: 8.8 | J12: 9.3 | K12: 10 | L12: 10.7 | M12: 11.2 | N12: 11.5 | O12: 11.6 | P12: 11.7 | Q12: 11.6 | R12: 11.5 | S12: 11.2 | T12: 11.1 | U12: 10.9 | V12: 10.6 | W12: 10.3 | X12: 10.1 | Y12: 9.9
A13: 12月 | B13: 5 | C13: 4.8 | D13: 4.6 | E13: 4.5 | F13: 4.4 | G13: 4.3 | H13: 4.2 | I13: 4.2 | J13: 4.4 | K13: 5.1 | L13: 5.8 | M13: 6.4 | N13: 6.7 | O13: 6.8 | P13: 6.9 | Q13: 6.8 | R13: 6.6 | S13: 6.4 | T13: 6.2 | U13: 6 | V13: 5.7 | W13: 5.4 | X13: 5.2 | Y13: 5
A14: 1月 | B14: 2.6 | C14: 2.5 | D14: 2.3 | E14: 2.2 | F14: 2.1 | G14: 2 | H14: 1.9 | I14: 1.9 | J14: 2.1 | K14: 2.7 | L14: 3.4 | M14: 4 | N14: 4.3 | O14: 4.4 | P14: 4.5 | Q14: 4.5 | R14: 4.4 | S14: 4.2 | T14: 4 | U14: 3.8 | V14: 3.6 | W14: 3.3 | X14: 3 | Y14: 2.8
A15: 2月 | B15: 3 | C15: 2.8 | D15: 2.6 | E15: 2.5 | F15: 2.3 | G15: 2.2 | H15: 2.1 | I15: 2.1 | J15: 2.5 | K15: 3.2 | L15: 4 | M15: 4.4 | N15: 4.8 | O15: 5 | P15: 5.1 | Q15: 5.1 | R15: 5 | S15: 4.8 | T15: 4.5 | U15: 4.3 | V15: 4.1 | W15: 3.8 | X15: 3.5 | Y15: 3.3
A16: 3月 | B16: 5.8 | C16: 5.6 | D16: 5.4 | E16: 5.2 | F16: 5 | G16: 4.9 | H16: 4.7 | I16: 4.8 | J16: 5.4 | K16: 6.2 | L16: 6.8 | M16: 7.3 | N16: 7.6 | O16: 7.8 | P16: 7.9 | Q16: 7.9 | R16: 7.8 | S16: 7.6 | T16: 7.4 | U16: 7.2 | V16: 7 | W16: 6.7 | X16: 6.4 | Y16: 6.1

Sheet 鳥取 (hidden)
A1: 気象データ
A2: =RIGHT(CELL("filename",A2),LEN(CELL("filename",A2))-FIND("]",CELL("filename",A2))) -> 鳥取
A3: 時刻別平均外気湿球温度
A4: 時刻 | B4: 0 | C4: 1 | D4: 2 | E4: 3 | F4: 4 | G4: 5 | H4: 6 | I4: 7 | J4: 8 | K4: 9 | L4: 10 | M4: 11 | N4: 12 | O4: 13 | P4: 14 | Q4: 15 | R4: 16 | S4: 17 | T4: 18 | U4: 19 | V4: 20 | W4: 21 | X4: 22 | Y4: 23
A5: 4月 | B5: 8.5 | C5: 8.2 | D5: 8 | E5: 7.8 | F5: 7.6 | G5: 7.5 | H5: 7.5 | I5: 8.1 | J5: 9.2 | K5: 10.1 | L5: 10.6 | M5: 11 | N5: 11.2 | O5: 11.3 | P5: 11.3 | Q5: 11.2 | R5: 11.1 | S5: 10.9 | T5: 10.6 | U5: 10.3 | V5: 10 | W5: 9.6 | X5: 9.2 | Y5: 8.9
A6: 5月 | B6: 13.2 | C6: 13 | D6: 12.8 | E6: 12.6 | F6: 12.4 | G6: 12.3 | H6: 12.5 | I6: 13.2 | J6: 14.1 | K6: 14.8 | L6: 15.1 | M6: 15.3 | N6: 15.5 | O6: 15.5 | P6: 15.6 | Q6: 15.5 | R6: 15.4 | S6: 15.2 | T6: 14.9 | U6: 14.8 | V6: 14.5 | W6: 14.2 | X6: 13.8 | Y6: 13.6
A7: 6月 | B7: 17.8 | C7: 17.6 | D7: 17.5 | E7: 17.3 | F7: 17.2 | G7: 17.1 | H7: 17.2 | I7: 17.8 | J7: 18.4 | K7: 18.9 | L7: 19.2 | M7: 19.5 | N7: 19.6 | O7: 19.6 | P7: 19.7 | Q7: 19.6 | R7: 19.4 | S7: 19.3 | T7: 19.1 | U7: 19 | V7: 18.8 | W7: 18.6 | X7: 18.4 | Y7: 18.2
A8: 7月 | B8: 22.1 | C8: 21.9 | D8: 21.8 | E8: 21.7 | F8: 21.6 | G8: 21.5 | H8: 21.6 | I8: 22 | J8: 22.5 | K8: 23 | L8: 23.2 | M8: 23.4 | N8: 23.6 | O8: 23.5 | P8: 23.6 | Q8: 23.6 | R8: 23.5 | S8: 23.4 | T8: 23.2 | U8: 23 | V8: 22.9 | W8: 22.7 | X8: 22.5 | Y8: 22.3
A9: 8月 | B9: 22.9 | C9: 22.7 | D9: 22.5 | E9: 22.4 | F9: 22.2 | G9: 22.1 | H9: 22.1 | I9: 22.5 | J9: 23.1 | K9: 23.6 | L9: 23.9 | M9: 24.1 | N9: 24.3 | O9: 24.3 | P9: 24.3 | Q9: 24.3 | R9: 24.2 | S9: 24 | T9: 24 | U9: 23.8 | V9: 23.7 | W9: 23.4 | X9: 23.2 | Y9: 23
A10: 9月 | B10: 19.3 | C10: 19.1 | D10: 19 | E10: 18.8 | F10: 18.7 | G10: 18.6 | H10: 18.5 | I10: 18.8 | J10: 19.5 | K10: 20.1 | L10: 20.5 | M10: 20.8 | N10: 21 | O10: 21 | P10: 21 | Q10: 20.9 | R10: 20.8 | S10: 20.6 | T10: 20.5 | U10: 20.3 | V10: 20.1 | W10: 19.8 | X10: 19.6 | Y10: 19.3
A11: 10月 | B11: 13.7 | C11: 13.5 | D11: 13.4 | E11: 13.2 | F11: 13.1 | G11: 13 | H11: 12.8 | I11: 13 | J11: 13.8 | K11: 14.7 | L11: 15.4 | M11: 15.7 | N11: 15.8 | O11: 16 | P11: 16 | Q11: 15.9 | R11: 15.7 | S11: 15.5 | T11: 15.4 | U11: 15 | V11: 14.6 | W11: 14.3 | X11: 14 | Y11: 13.8
A12: 11月 | B12: 8.7 | C12: 8.5 | D12: 8.4 | E12: 8.3 | F12: 8.2 | G12: 8.1 | H12: 8 | I12: 8 | J12: 8.7 | K12: 9.6 | L12: 10.4 | M12: 10.8 | N12: 10.9 | O12: 11 | P12: 11 | Q12: 10.9 | R12: 10.8 | S12: 10.5 | T12: 10.2 | U12: 9.8 | V12: 9.5 | W12: 9.2 | X12: 8.9 | Y12: 8.7
A13: 12月 | B13: 4.2 | C13: 4 | D13: 4 | E13: 3.9 | F13: 3.8 | G13: 3.7 | H13: 3.7 | I13: 3.6 | J13: 3.9 | K13: 4.5 | L13: 5.3 | M13: 5.8 | N13: 6 | O13: 6.1 | P13: 6.1 | Q13: 6.1 | R13: 5.9 | S13: 5.6 | T13: 5.3 | U13: 5 | V13: 4.7 | W13: 4.5 | X13: 4.3 | Y13: 4.1
A14: 1月 | B14: 1.8 | C14: 1.7 | D14: 1.6 | E14: 1.6 | F14: 1.5 | G14: 1.5 | H14: 1.4 | I14: 1.4 | J14: 1.6 | K14: 2.2 | L14: 2.9 | M14: 3.4 | N14: 3.7 | O14: 3.8 | P14: 3.9 | Q14: 3.8 | R14: 3.7 | S14: 3.4 | T14: 3.1 | U14: 2.7 | V14: 2.5 | W14: 2.3 | X14: 2.1 | Y14: 1.9
A15: 2月 | B15: 1.9 | C15: 1.8 | D15: 1.7 | E15: 1.6 | F15: 1.5 | G15: 1.5 | H15: 1.4 | I15: 1.4 | J15: 1.8 | K15: 2.5 | L15: 3.3 | M15: 3.8 | N15: 4.1 | O15: 4.3 | P15: 4.4 | Q15: 4.4 | R15: 4.2 | S15: 4 | T15: 3.6 | U15: 3.2 | V15: 2.9 | W15: 2.6 | X15: 2.4 | Y15: 2.2
A16: 3月 | B16: 4.3 | C16: 4.1 | D16: 4 | E16: 3.8 | F16: 3.7 | G16: 3.6 | H16: 3.5 | I16: 3.7 | J16: 4.5 | K16: 5.5 | L16: 6.2 | M16: 6.7 | N16: 6.9 | O16: 7.1 | P16: 7.2 | Q16: 7.1 | R16: 7 | S16: 6.7 | T16: 6.4 | U16: 6.1 | V16: 5.6 | W16: 5.2 | X16: 4.9 | Y16: 4.6

Sheet 松江 (hidden)
A1: 気象データ
A2: =RIGHT(CELL("filename",A2),LEN(CELL("filename",A2))-FIND("]",CELL("filename",A2))) -> 松江
A3: 時刻別平均外気湿球温度
A4: 時刻 | B4: 0 | C4: 1 | D4: 2 | E4: 3 | F4: 4 | G4: 5 | H4: 6 | I4: 7 | J4: 8 | K4: 9 | L4: 10 | M4: 11 | N4: 12 | O4: 13 | P4: 14 | Q4: 15 | R4: 16 | S4: 17 | T4: 18 | U4: 19 | V4: 20 | W4: 21 | X4: 22 | Y4: 23
A5: 4月 | B5: 9 | C5: 8.8 | D5: 8.6 | E5: 8.5 | F5: 8.3 | G5: 8.2 | H5: 8.2 | I5: 8.9 | J5: 9.8 | K5: 10.5 | L5: 11 | M5: 11.4 | N5: 11.5 | O5: 11.7 | P5: 11.6 | Q5: 11.4 | R5: 11.2 | S5: 10.8 | T5: 10.6 | U5: 10.3 | V5: 10.1 | W5: 9.9 | X5: 9.6 | Y5: 9.4
A6: 5月 | B6: 13.8 | C6: 13.6 | D6: 13.4 | E6: 13.3 | F6: 13.2 | G6: 13.1 | H6: 13.3 | I6: 14.1 | J6: 14.7 | K6: 15.2 | L6: 15.6 | M6: 15.8 | N6: 15.9 | O6: 15.9 | P6: 15.9 | Q6: 15.7 | R6: 15.5 | S6: 15.2 | T6: 15 | U6: 14.7 | V6: 14.6 | W6: 14.4 | X6: 14.2 | Y6: 14
A7: 6月 | B7: 18.2 | C7: 18.1 | D7: 17.9 | E7: 17.8 | F7: 17.7 | G7: 17.6 | H7: 17.9 | I7: 18.4 | J7: 18.8 | K7: 19.2 | L7: 19.5 | M7: 19.7 | N7: 19.9 | O7: 20 | P7: 19.9 | Q7: 19.8 | R7: 19.6 | S7: 19.3 | T7: 19.1 | U7: 18.9 | V7: 18.8 | W7: 18.7 | X7: 18.6 | Y7: 18.5
A8: 7月 | B8: 22.4 | C8: 22.3 | D8: 22.2 | E8: 22.2 | F8: 22 | G8: 22 | H8: 22.1 | I8: 22.5 | J8: 22.9 | K8: 23.3 | L8: 23.5 | M8: 23.7 | N8: 23.8 | O8: 23.9 | P8: 23.8 | Q8: 23.8 | R8: 23.6 | S8: 23.4 | T8: 23.2 | U8: 23 | V8: 22.8 | W8: 22.8 | X8: 22.7 | Y8: 22.6
A9: 8月 | B9: 23.3 | C9: 23.2 | D9: 23.1 | E9: 23 | F9: 22.9 | G9: 22.8 | H9: 22.9 | I9: 23.3 | J9: 23.8 | K9: 24.1 | L9: 24.3 | M9: 24.5 | N9: 24.6 | O9: 24.6 | P9: 24.6 | Q9: 24.6 | R9: 24.4 | S9: 24.2 | T9: 24 | U9: 23.8 | V9: 23.7 | W9: 23.6 | X9: 23.5 | Y9: 23.4
A10: 9月 | B10: 19.7 | C10: 19.6 | D10: 19.5 | E10: 19.3 | F10: 19.2 | G10: 19.1 | H10: 19.1 | I10: 19.5 | J10: 20.1 | K10: 20.5 | L10: 20.8 | M10: 20.9 | N10: 21 | O10: 21 | P10: 21 | Q10: 20.8 | R10: 20.7 | S10: 20.5 | T10: 20.3 | U10: 20.2 | V10: 20.1 | W10: 20 | X10: 19.9 | Y10: 19.7
A11: 10月 | B11: 14.2 | C11: 14 | D11: 13.8 | E11: 13.7 | F11: 13.6 | G11: 13.4 | H11: 13.3 | I11: 13.6 | J11: 14.4 | K11: 15.2 | L11: 15.7 | M11: 15.9 | N11: 16 | O11: 15.9 | P11: 15.9 | Q11: 15.8 | R11: 15.6 | S11: 15.3 | T11: 15.1 | U11: 14.9 | V11: 14.7 | W11: 14.5 | X11: 14.3 | Y11: 14.2
A12: 11月 | B12: 9 | C12: 8.9 | D12: 8.7 | E12: 8.6 | F12: 8.5 | G12: 8.4 | H12: 8.3 | I12: 8.3 | J12: 9 | K12: 9.8 | L12: 10.5 | M12: 10.9 | N12: 11.1 | O12: 11.1 | P12: 11.1 | Q12: 10.9 | R12: 10.7 | S12: 10.4 | T12: 10.2 | U12: 9.9 | V12: 9.6 | W12: 9.4 | X12: 9.2 | Y12: 9
A13: 12月 | B13: 4.5 | C13: 4.4 | D13: 4.3 | E13: 4.2 | F13: 4.1 | G13: 4.1 | H13: 3.9 | I13: 3.9 | J13: 4.2 | K13: 4.9 | L13: 5.5 | M13: 6 | N13: 6.3 | O13: 6.4 | P13: 6.3 | Q13: 6.2 | R13: 5.9 | S13: 5.6 | T13: 5.4 | U13: 5.2 | V13: 5 | W13: 4.8 | X13: 4.6 | Y13: 4.5
A14: 1月 | B14: 2.2 | C14: 2.2 | D14: 2.1 | E14: 2 | F14: 1.9 | G14: 1.9 | H14: 1.8 | I14: 1.8 | J14: 1.9 | K14: 2.6 | L14: 3.3 | M14: 3.7 | N14: 3.9 | O14: 4.1 | P14: 4 | Q14: 3.9 | R14: 3.7 | S14: 3.4 | T14: 3.2 | U14: 3 | V14: 2.8 | W14: 2.6 | X14: 2.5 | Y14: 2.3
A15: 2月 | B15: 2.4 | C15: 2.2 | D15: 2.1 | E15: 2 | F15: 1.9 | G15: 1.8 | H15: 1.8 | I15: 1.7 | J15: 2.2 | K15: 3 | L15: 3.7 | M15: 4.2 | N15: 4.5 | O15: 4.6 | P15: 4.6 | Q15: 4.5 | R15: 4.3 | S15: 4 | T15: 3.7 | U15: 3.5 | V15: 3.2 | W15: 3 | X15: 2.8 | Y15: 2.7
A16: 3月 | B16: 4.8 | C16: 4.6 | D16: 4.5 | E16: 4.3 | F16: 4.2 | G16: 4.1 | H16: 4 | I16: 4.2 | J16: 5.1 | K16: 6 | L16: 6.6 | M16: 7 | N16: 7.3 | O16: 7.4 | P16: 7.4 | Q16: 7.2 | R16: 7 | S16: 6.7 | T16: 6.4 | U16: 6.1 | V16: 5.9 | W16: 5.6 | X16: 5.3 | Y16: 5.1

Sheet 岡山 (hidden)
A1: 気象データ
A2: =RIGHT(CELL("filename",A2),LEN(CELL("filename",A2))-FIND("]",CELL("filename",A2))) -> 岡山
A3: 時刻別平均外気湿球温度
A4: 時刻 | B4: 0 | C4: 1 | D4: 2 | E4: 3 | F4: 4 | G4: 5 | H4: 6 | I4: 7 | J4: 8 | K4: 9 | L4: 10 | M4: 11 | N4: 12 | O4: 13 | P4: 14 | Q4: 15 | R4: 16 | S4: 17 | T4: 18 | U4: 19 | V4: 20 | W4: 21 | X4: 22 | Y4: 23
A5: 4月 | B5: 9.5 | C5: 9.2 | D5: 9 | E5: 8.7 | F5: 8.5 | G5: 8.3 | H5: 8.2 | I5: 8.5 | J5: 9.2 | K5: 10.2 | L5: 10.8 | M5: 11.2 | N5: 11.5 | O5: 11.7 | P5: 11.8 | Q5: 11.8 | R5: 11.7 | S5: 11.5 | T5: 11.2 | U5: 10.9 | V5: 10.7 | W5: 10.4 | X5: 10.1 | Y5: 9.9
A6: 5月 | B6: 14.3 | C6: 14.1 | D6: 13.9 | E6: 13.7 | F6: 13.5 | G6: 13.4 | H6: 13.4 | I6: 13.8 | J6: 14.5 | K6: 15.1 | L6: 15.6 | M6: 15.8 | N6: 16 | O6: 16.2 | P6: 16.2 | Q6: 16.2 | R6: 16.1 | S6: 15.8 | T6: 15.6 | U6: 15.4 | V6: 15.2 | W6: 15 | X6: 14.8 | Y6: 14.6
A7: 6月 | B7: 18.7 | C7: 18.6 | D7: 18.4 | E7: 18.3 | F7: 18.2 | G7: 18.1 | H7: 18.1 | I7: 18.5 | J7: 18.9 | K7: 19.3 | L7: 19.6 | M7: 19.8 | N7: 20 | O7: 20 | P7: 20.1 | Q7: 20 | R7: 19.9 | S7: 19.8 | T7: 19.7 | U7: 19.6 | V7: 19.4 | W7: 19.3 | X7: 19.2 | Y7: 19
A8: 7月 | B8: 22.9 | C8: 22.8 | D8: 22.7 | E8: 22.6 | F8: 22.5 | G8: 22.4 | H8: 22.5 | I8: 22.7 | J8: 23.1 | K8: 23.4 | L8: 23.6 | M8: 23.8 | N8: 23.9 | O8: 24 | P8: 24 | Q8: 24 | R8: 23.9 | S8: 23.8 | T8: 23.7 | U8: 23.5 | V8: 23.4 | W8: 23.3 | X8: 23.2 | Y8: 23.1
A9: 8月 | B9: 23.6 | C9: 23.5 | D9: 23.4 | E9: 23.3 | F9: 23.2 | G9: 23.1 | H9: 23.1 | I9: 23.3 | J9: 23.7 | K9: 24 | L9: 24.2 | M9: 24.4 | N9: 24.5 | O9: 24.5 | P9: 24.5 | Q9: 24.4 | R9: 24.3 | S9: 24.2 | T9: 24.1 | U9: 24.1 | V9: 24 | W9: 23.9 | X9: 23.8 | Y9: 23.7
A10: 9月 | B10: 20 | C10: 19.9 | D10: 19.8 | E10: 19.7 | F10: 19.5 | G10: 19.4 | H10: 19.3 | I10: 19.4 | J10: 19.9 | K10: 20.4 | L10: 20.7 | M10: 20.9 | N10: 20.9 | O10: 21 | P10: 21 | Q10: 21 | R10: 21 | S10: 20.9 | T10: 20.8 | U10: 20.6 | V10: 20.5 | W10: 20.3 | X10: 20.2 | Y10: 20
A11: 10月 | B11: 14.5 | C11: 14.3 | D11: 14.1 | E11: 13.9 | F11: 13.7 | G11: 13.6 | H11: 13.4 | I11: 13.4 | J11: 14 | K11: 14.8 | L11: 15.4 | M11: 15.7 | N11: 15.9 | O11: 15.8 | P11: 15.9 | Q11: 16 | R11: 15.9 | S11: 15.8 | T11: 15.6 | U11: 15.4 | V11: 15.2 | W11: 14.9 | X11: 14.7 | Y11: 14.5
A12: 11月 | B12: 8.9 | C12: 8.7 | D12: 8.5 | E12: 8.3 | F12: 8.1 | G12: 8 | H12: 7.8 | I12: 7.7 | J12: 8.2 | K12: 9.1 | L12: 10 | M12: 10.6 | N12: 10.9 | O12: 10.9 | P12: 11 | Q12: 11 | R12: 10.9 | S12: 10.7 | T12: 10.4 | U12: 10.1 | V12: 9.8 | W12: 9.5 | X12: 9.3 | Y12: 9
A13: 12月 | B13: 4 | C13: 3.8 | D13: 3.6 | E13: 3.4 | F13: 3.2 | G13: 3 | H13: 2.9 | I13: 2.8 | J13: 3 | K13: 4 | L13: 5 | M13: 5.7 | N13: 6.1 | O13: 6.2 | P13: 6.2 | Q13: 6.3 | R13: 6.1 | S13: 5.8 | T13: 5.5 | U13: 5.2 | V13: 4.9 | W13: 4.6 | X13: 4.3 | Y13: 4.1
A14: 1月 | B14: 1.7 | C14: 1.5 | D14: 1.3 | E14: 1.1 | F14: 0.9 | G14: 0.8 | H14: 0.7 | I14: 0.6 | J14: 0.8 | K14: 1.8 | L14: 2.8 | M14: 3.6 | N14: 4 | O14: 4.1 | P14: 4.2 | Q14: 4.2 | R14: 4.1 | S14: 3.8 | T14: 3.4 | U14: 3.1 | V14: 2.8 | W14: 2.5 | X14: 2.2 | Y14: 1.9
A15: 2月 | B15: 2.2 | C15: 1.9 | D15: 1.7 | E15: 1.5 | F15: 1.3 | G15: 1.2 | H15: 1 | I15: 1 | J15: 1.4 | K15: 2.4 | L15: 3.4 | M15: 4.1 | N15: 4.5 | O15: 4.7 | P15: 4.8 | Q15: 4.9 | R15: 4.8 | S15: 4.5 | T15: 4.1 | U15: 3.8 | V15: 3.5 | W15: 3.2 | X15: 2.8 | Y15: 2.5
A16: 3月 | B16: 5 | C16: 4.8 | D16: 4.5 | E16: 4.3 | F16: 4.1 | G16: 3.9 | H16: 3.7 | I16: 3.8 | J16: 4.4 | K16: 5.4 | L16: 6.3 | M16: 6.9 | N16: 7.2 | O16: 7.4 | P16: 7.6 | Q16: 7.6 | R16: 7.5 | S16: 7.2 | T16: 6.9 | U16: 6.5 | V16: 6.2 | W16: 5.9 | X16: 5.7 | Y16: 5.4

Sheet 広島 (hidden)
A1: 気象データ
A2: =RIGHT(CELL("filename",A2),LEN(CELL("filename",A2))-FIND("]",CELL("filename",A2))) -> 広島
A3: 時刻別平均外気湿球温度
A4: 時刻 | B4: 0 | C4: 1 | D4: 2 | E4: 3 | F4: 4 | G4: 5 | H4: 6 | I4: 7 | J4: 8 | K4: 9 | L4: 10 | M4: 11 | N4: 12 | O4: 13 | P4: 14 | Q4: 15 | R4: 16 | S4: 17 | T4: 18 | U4: 19 | V4: 20 | W4: 21 | X4: 22 | Y4: 23
A5: 4月 | B5: 9.8 | C5: 9.5 | D5: 9.3 | E5: 9 | F5: 8.8 | G5: 8.6 | H5: 8.4 | I5: 8.6 | J5: 9.2 | K5: 10 | L5: 10.8 | M5: 11.2 | N5: 11.6 | O5: 11.8 | P5: 12 | Q5: 12 | R5: 11.9 | S5: 11.7 | T5: 11.4 | U5: 11.2 | V5: 11 | W5: 10.8 | X5: 10.6 | Y5: 10.3
A6: 5月 | B6: 14.5 | C6: 14.2 | D6: 14 | E6: 13.7 | F6: 13.5 | G6: 13.4 | H6: 13.3 | I6: 13.6 | J6: 14.2 | K6: 14.9 | L6: 15.3 | M6: 15.7 | N6: 15.9 | O6: 16.1 | P6: 16.2 | Q6: 16.1 | R6: 16.1 | S6: 15.9 | T6: 15.7 | U6: 15.4 | V6: 15.3 | W6: 15.2 | X6: 15 | Y6: 14.8
A7: 6月 | B7: 18.8 | C7: 18.6 | D7: 18.5 | E7: 18.3 | F7: 18.2 | G7: 18.1 | H7: 18 | I7: 18.3 | J7: 18.7 | K7: 19.1 | L7: 19.4 | M7: 19.7 | N7: 19.9 | O7: 20 | P7: 20.1 | Q7: 20.1 | R7: 20 | S7: 19.8 | T7: 19.7 | U7: 19.6 | V7: 19.5 | W7: 19.4 | X7: 19.3 | Y7: 19.2
A8: 7月 | B8: 22.9 | C8: 22.8 | D8: 22.7 | E8: 22.6 | F8: 22.5 | G8: 22.4 | H8: 22.4 | I8: 22.6 | J8: 22.9 | K8: 23.1 | L8: 23.3 | M8: 23.5 | N8: 23.7 | O8: 23.8 | P8: 23.9 | Q8: 23.9 | R8: 23.8 | S8: 23.7 | T8: 23.6 | U8: 23.4 | V8: 23.3 | W8: 23.3 | X8: 23.2 | Y8: 23.1
A9: 8月 | B9: 23.7 | C9: 23.5 | D9: 23.4 | E9: 23.3 | F9: 23.2 | G9: 23 | H9: 23 | I9: 23.1 | J9: 23.4 | K9: 23.7 | L9: 24 | M9: 24.1 | N9: 24.2 | O9: 24.4 | P9: 24.4 | Q9: 24.4 | R9: 24.2 | S9: 24.3 | T9: 24.1 | U9: 24.1 | V9: 24 | W9: 23.9 | X9: 23.8 | Y9: 23.7
A10: 9月 | B10: 20 | C10: 19.8 | D10: 19.7 | E10: 19.6 | F10: 19.4 | G10: 19.3 | H10: 19.1 | I10: 19.2 | J10: 19.5 | K10: 20 | L10: 20.4 | M10: 20.7 | N10: 20.8 | O10: 20.9 | P10: 20.9 | Q10: 20.9 | R10: 20.9 | S10: 20.9 | T10: 20.7 | U10: 20.6 | V10: 20.5 | W10: 20.4 | X10: 20.2 | Y10: 20
A11: 10月 | B11: 14.4 | C11: 14.2 | D11: 14 | E11: 13.8 | F11: 13.6 | G11: 13.5 | H11: 13.3 | I11: 13.3 | J11: 13.7 | K11: 14.3 | L11: 15.1 | M11: 15.5 | N11: 15.8 | O11: 15.9 | P11: 16 | Q11: 15.9 | R11: 15.9 | S11: 15.8 | T11: 15.6 | U11: 15.4 | V11: 15.2 | W11: 14.9 | X11: 14.7 | Y11: 14.5
A12: 11月 | B12: 9.2 | C12: 8.9 | D12: 8.7 | E12: 8.5 | F12: 8.4 | G12: 8.2 | H12: 8.1 | I12: 8 | J12: 8.3 | K12: 8.9 | L12: 9.8 | M12: 10.4 | N12: 10.8 | O12: 11 | P12: 11.1 | Q12: 11.1 | R12: 11 | S12: 10.8 | T12: 10.6 | U12: 10.3 | V12: 10 | W12: 9.7 | X12: 9.5 | Y12: 9.2
A13: 12月 | B13: 4.4 | C13: 4.2 | D13: 4 | E13: 3.8 | F13: 3.7 | G13: 3.5 | H13: 3.4 | I13: 3.4 | J13: 3.5 | K13: 4 | L13: 4.8 | M13: 5.6 | N13: 6.1 | O13: 6.3 | P13: 6.5 | Q13: 6.4 | R13: 6.2 | S13: 6 | T13: 5.7 | U13: 5.5 | V13: 5.2 | W13: 5 | X13: 4.7 | Y13: 4.5
A14: 1月 | B14: 2.2 | C14: 2 | D14: 1.8 | E14: 1.7 | F14: 1.5 | G14: 1.4 | H14: 1.3 | I14: 1.3 | J14: 1.4 | K14: 2 | L14: 2.7 | M14: 3.5 | N14: 4.1 | O14: 4.3 | P14: 4.4 | Q14: 4.4 | R14: 4.2 | S14: 3.9 | T14: 3.7 | U14: 3.4 | V14: 3.2 | W14: 2.9 | X14: 2.7 | Y14: 2.4
A15: 2月 | B15: 2.7 | C15: 2.5 | D15: 2.3 | E15: 2.2 | F15: 2 | G15: 1.8 | H15: 1.7 | I15: 1.7 | J15: 1.9 | K15: 2.6 | L15: 3.4 | M15: 4.2 | N15: 4.6 | O15: 4.9 | P15: 5.1 | Q15: 5.1 | R15: 5 | S15: 4.7 | T15: 4.4 | U15: 4.2 | V15: 3.9 | W15: 3.7 | X15: 3.4 | Y15: 3.1
A16: 3月 | B16: 5.6 | C16: 5.3 | D16: 5 | E16: 4.8 | F16: 4.6 | G16: 4.4 | H16: 4.2 | I16: 4.2 | J16: 4.6 | K16: 5.4 | L16: 6.3 | M16: 7 | N16: 7.4 | O16: 7.7 | P16: 7.8 | Q16: 7.9 | R16: 7.8 | S16: 7.5 | T16: 7.2 | U16: 7 | V16: 6.8 | W16: 6.5 | X16: 6.2 | Y16: 5.9

Sheet 山口 (hidden)
A1: 気象データ
A2: =RIGHT(CELL("filename",A2),LEN(CELL("filename",A2))-FIND("]",CELL("filename",A2))) -> 山口
A3: 時刻別平均外気湿球温度
A4: 時刻 | B4: 0 | C4: 1 | D4: 2 | E4: 3 | F4: 4 | G4: 5 | H4: 6 | I4: 7 | J4: 8 | K4: 9 | L4: 10 | M4: 11 | N4: 12 | O4: 13 | P4: 14 | Q4: 15 | R4: 16 | S4: 17 | T4: 18 | U4: 19 | V4: 20 | W4: 21 | X4: 22 | Y4: 23
A5: 4月 | B5: 9.4 | C5: 9.2 | D5: 8.9 | E5: 8.7 | F5: 8.5 | G5: 8.3 | H5: 8.2 | I5: 8.6 | J5: 9.5 | K5: 10.6 | L5: 11.4 | M5: 11.9 | N5: 12.2 | O5: 12.4 | P5: 12.4 | Q5: 12.3 | R5: 12.1 | S5: 11.8 | T5: 11.4 | U5: 11 | V5: 10.8 | W5: 10.5 | X5: 10.2 | Y5: 9.9
A6: 5月 | B6: 14 | C6: 13.8 | D6: 13.6 | E6: 13.4 | F6: 13.2 | G6: 13 | H6: 13.1 | I6: 13.6 | J6: 14.4 | K6: 15.3 | L6: 15.8 | M6: 16.1 | N6: 16.4 | O6: 16.5 | P6: 16.4 | Q6: 16.3 | R6: 16.1 | S6: 15.8 | T6: 15.5 | U6: 15.2 | V6: 15 | W6: 14.7 | X6: 14.5 | Y6: 14.3
A7: 6月 | B7: 18.5 | C7: 18.4 | D7: 18.2 | E7: 18.1 | F7: 18 | G7: 17.9 | H7: 18 | I7: 18.3 | J7: 18.9 | K7: 19.4 | L7: 19.7 | M7: 20 | N7: 20.3 | O7: 20.4 | P7: 20.4 | Q7: 20.4 | R7: 20.2 | S7: 20 | T7: 19.8 | U7: 19.5 | V7: 19.3 | W7: 19.1 | X7: 19 | Y7: 18.8
A8: 7月 | B8: 22.6 | C8: 22.5 | D8: 22.4 | E8: 22.3 | F8: 22.2 | G8: 22.1 | H8: 22.1 | I8: 22.4 | J8: 22.9 | K8: 23.3 | L8: 23.6 | M8: 23.8 | N8: 23.9 | O8: 24.1 | P8: 24.1 | Q8: 24.1 | R8: 24 | S8: 23.8 | T8: 23.6 | U8: 23.4 | V8: 23.2 | W8: 23 | X8: 22.9 | Y8: 22.8
A9: 8月 | B9: 23.3 | C9: 23.2 | D9: 23.1 | E9: 23 | F9: 22.9 | G9: 22.8 | H9: 22.7 | I9: 23 | J9: 23.5 | K9: 23.9 | L9: 24.2 | M9: 24.4 | N9: 24.6 | O9: 24.7 | P9: 24.7 | Q9: 24.6 | R9: 24.4 | S9: 24.3 | T9: 24.1 | U9: 23.9 | V9: 23.8 | W9: 23.6 | X9: 23.5 | Y9: 23.4
A10: 9月 | B10: 19.8 | C10: 19.6 | D10: 19.5 | E10: 19.3 | F10: 19.2 | G10: 19.1 | H10: 18.9 | I10: 19.2 | J10: 19.7 | K10: 20.3 | L10: 20.7 | M10: 20.9 | N10: 21 | O10: 21.2 | P10: 21.3 | Q10: 21.3 | R10: 21.2 | S10: 21 | T10: 20.7 | U10: 20.5 | V10: 20.3 | W10: 20.2 | X10: 20 | Y10: 19.8
A11: 10月 | B11: 14.1 | C11: 13.8 | D11: 13.6 | E11: 13.4 | F11: 13.2 | G11: 13 | H11: 12.9 | I11: 12.9 | J11: 13.7 | K11: 14.6 | L11: 15.4 | M11: 15.9 | N11: 16.1 | O11: 16.2 | P11: 16.3 | Q11: 16.2 | R11: 16.1 | S11: 15.8 | T11: 15.5 | U11: 15.3 | V11: 15 | W11: 14.7 | X11: 14.4 | Y11: 14.1
A12: 11月 | B12: 8.7 | C12: 8.4 | D12: 8.2 | E12: 8 | F12: 7.9 | G12: 7.7 | H12: 7.6 | I12: 7.5 | J12: 8.1 | K12: 9.1 | L12: 10.3 | M12: 11.1 | N12: 11.4 | O12: 11.5 | P12: 11.5 | Q12: 11.5 | R12: 11.3 | S12: 11 | T12: 10.6 | U12: 10.2 | V12: 9.8 | W12: 9.4 | X12: 9.1 | Y12: 8.8
A13: 12月 | B13: 3.9 | C13: 3.6 | D13: 3.5 | E13: 3.2 | F13: 3.1 | G13: 2.9 | H13: 2.8 | I13: 2.7 | J13: 2.9 | K13: 3.8 | L13: 4.9 | M13: 5.9 | N13: 6.5 | O13: 6.7 | P13: 6.7 | Q13: 6.6 | R13: 6.4 | S13: 6 | T13: 5.6 | U13: 5.2 | V13: 4.8 | W13: 4.5 | X13: 4.2 | Y13: 4
A14: 1月 | B14: 1.7 | C14: 1.5 | D14: 1.3 | E14: 1.2 | F14: 1.1 | G14: 1 | H14: 0.9 | I14: 0.9 | J14: 1 | K14: 1.8 | L14: 2.9 | M14: 3.9 | N14: 4.4 | O14: 4.5 | P14: 4.7 | Q14: 4.6 | R14: 4.4 | S14: 4 | T14: 3.6 | U14: 3.2 | V14: 2.8 | W14: 2.5 | X14: 2.2 | Y14: 1.9
A15: 2月 | B15: 2.4 | C15: 2.2 | D15: 2 | E15: 1.8 | F15: 1.6 | G15: 1.5 | H15: 1.4 | I15: 1.3 | J15: 1.7 | K15: 2.6 | L15: 3.7 | M15: 4.6 | N15: 5.1 | O15: 5.3 | P15: 5.4 | Q15: 5.4 | R15: 5.2 | S15: 4.9 | T15: 4.5 | U15: 4.1 | V15: 3.7 | W15: 3.4 | X15: 3.1 | Y15: 2.8
A16: 3月 | B16: 5.3 | C16: 5 | D16: 4.8 | E16: 4.5 | F16: 4.3 | G16: 4.2 | H16: 4 | I16: 4 | J16: 4.8 | K16: 5.9 | L16: 7 | M16: 7.7 | N16: 8 | O16: 8.2 | P16: 8.2 | Q16: 8.2 | R16: 8 | S16: 7.7 | T16: 7.3 | U16: 6.9 | V16: 6.6 | W16: 6.3 | X16: 5.9 | Y16: 5.7

Sheet 徳島 (hidden)
A1: 気象データ
A2: =RIGHT(CELL("filename",A2),LEN(CELL("filename",A2))-FIND("]",CELL("filename",A2))) -> 徳島
A3: 時刻別平均外気湿球温度
A4: 時刻 | B4: 0 | C4: 1 | D4: 2 | E4: 3 | F4: 4 | G4: 5 | H4: 6 | I4: 7 | J4: 8 | K4: 9 | L4: 10 | M4: 11 | N4: 12 | O4: 13 | P4: 14 | Q4: 15 | R4: 16 | S4: 17 | T4: 18 | U4: 19 | V4: 20 | W4: 21 | X4: 22 | Y4: 23
A5: 4月 | B5: 10.3 | C5: 10.1 | D5: 9.8 | E5: 9.6 | F5: 9.4 | G5: 9.2 | H5: 9.1 | I5: 9.5 | J5: 10.1 | K5: 10.8 | L5: 11.3 | M5: 11.7 | N5: 12 | O5: 12.2 | P5: 12.3 | Q5: 12.3 | R5: 12.2 | S5: 12.1 | T5: 11.9 | U5: 11.7 | V5: 11.5 | W5: 11.3 | X5: 11 | Y5: 10.7
A6: 5月 | B6: 15 | C6: 14.8 | D6: 14.5 | E6: 14.3 | F6: 14.1 | G6: 14 | H6: 14 | I6: 14.5 | J6: 15 | K6: 15.6 | L6: 16 | M6: 16.3 | N6: 16.5 | O6: 16.6 | P6: 16.6 | Q6: 16.5 | R6: 16.5 | S6: 16.3 | T6: 16.2 | U6: 16 | V6: 15.9 | W6: 15.8 | X6: 15.6 | Y6: 15.4
A7: 6月 | B7: 19.2 | C7: 19 | D7: 18.9 | E7: 18.7 | F7: 18.6 | G7: 18.5 | H7: 18.6 | I7: 18.9 | J7: 19.3 | K7: 19.7 | L7: 19.9 | M7: 20.1 | N7: 20.3 | O7: 20.3 | P7: 20.3 | Q7: 20.3 | R7: 20.2 | S7: 20.2 | T7: 20.1 | U7: 19.9 | V7: 19.8 | W7: 19.8 | X7: 19.7 | Y7: 19.5
A8: 7月 | B8: 23.2 | C8: 23.1 | D8: 22.9 | E8: 22.8 | F8: 22.7 | G8: 22.5 | H8: 22.6 | I8: 22.8 | J8: 23.1 | K8: 23.6 | L8: 23.9 | M8: 24.1 | N8: 24.2 | O8: 24.3 | P8: 24.2 | Q8: 24.2 | R8: 24.1 | S8: 24 | T8: 23.9 | U8: 23.7 | V8: 23.7 | W8: 23.6 | X8: 23.5 | Y8: 23.4
A9: 8月 | B9: 23.8 | C9: 23.7 | D9: 23.6 | E9: 23.4 | F9: 23.3 | G9: 23.1 | H9: 23.1 | I9: 23.4 | J9: 23.7 | K9: 24.2 | L9: 24.6 | M9: 24.8 | N9: 24.9 | O9: 25 | P9: 24.9 | Q9: 24.8 | R9: 24.6 | S9: 24.6 | T9: 24.4 | U9: 24.3 | V9: 24.2 | W9: 24.2 | X9: 24.1 | Y9: 23.9
A10: 9月 | B10: 20.6 | C10: 20.5 | D10: 20.4 | E10: 20.3 | F10: 20.1 | G10: 20 | H10: 20 | I10: 20.1 | J10: 20.5 | K10: 20.9 | L10: 21.3 | M10: 21.5 | N10: 21.6 | O10: 21.6 | P10: 21.6 | Q10: 21.5 | R10: 21.4 | S10: 21.2 | T10: 21.1 | U10: 21.1 | V10: 21 | W10: 20.9 | X10: 20.7 | Y10: 20.6
A11: 10月 | B11: 15.3 | C11: 15.1 | D11: 15 | E11: 14.8 | F11: 14.7 | G11: 14.6 | H11: 14.5 | I11: 14.6 | J11: 15.1 | K11: 15.6 | L11: 16.1 | M11: 16.4 | N11: 16.6 | O11: 16.7 | P11: 16.7 | Q11: 16.6 | R11: 16.4 | S11: 16.2 | T11: 16.1 | U11: 16 | V11: 15.8 | W11: 15.6 | X11: 15.4 | Y11: 15.2
A12: 11月 | B12: 9.9 | C12: 9.8 | D12: 9.6 | E12: 9.4 | F12: 9.3 | G12: 9.2 | H12: 9.1 | I12: 9.1 | J12: 9.5 | K12: 10.2 | L12: 10.8 | M12: 11.3 | N12: 11.6 | O12: 11.8 | P12: 11.8 | Q12: 11.7 | R12: 11.5 | S12: 11.3 | T12: 11.1 | U12: 10.9 | V12: 10.7 | W12: 10.4 | X12: 10.2 | Y12: 10
A13: 12月 | B13: 5 | C13: 4.8 | D13: 4.7 | E13: 4.6 | F13: 4.5 | G13: 4.4 | H13: 4.3 | I13: 4.3 | J13: 4.5 | K13: 5.2 | L13: 5.9 | M13: 6.4 | N13: 6.7 | O13: 6.9 | P13: 6.9 | Q13: 6.8 | R13: 6.6 | S13: 6.4 | T13: 6.1 | U13: 5.9 | V13: 5.6 | W13: 5.3 | X13: 5.2 | Y13: 4.9
A14: 1月 | B14: 2.6 | C14: 2.4 | D14: 2.3 | E14: 2.2 | F14: 2.1 | G14: 2.1 | H14: 2 | I14: 1.9 | J14: 2.2 | K14: 2.8 | L14: 3.5 | M14: 4 | N14: 4.4 | O14: 4.6 | P14: 4.7 | Q14: 4.7 | R14: 4.5 | S14: 4.2 | T14: 3.9 | U14: 3.7 | V14: 3.5 | W14: 3.2 | X14: 3 | Y14: 2.8
A15: 2月 | B15: 3 | C15: 2.8 | D15: 2.7 | E15: 2.5 | F15: 2.4 | G15: 2.3 | H15: 2.2 | I15: 2.2 | J15: 2.6 | K15: 3.4 | L15: 4 | M15: 4.5 | N15: 4.9 | O15: 5.1 | P15: 5.3 | Q15: 5.3 | R15: 5.1 | S15: 4.8 | T15: 4.5 | U15: 4.3 | V15: 4.1 | W15: 3.8 | X15: 3.5 | Y15: 3.3
A16: 3月 | B16: 5.9 | C16: 5.7 | D16: 5.5 | E16: 5.3 | F16: 5.1 | G16: 5 | H16: 4.9 | I16: 5 | J16: 5.6 | K16: 6.3 | L16: 6.9 | M16: 7.4 | N16: 7.7 | O16: 7.9 | P16: 8 | Q16: 8.1 | R16: 7.9 | S16: 7.7 | T16: 7.5 | U16: 7.3 | V16: 7 | W16: 6.8 | X16: 6.5 | Y16: 6.2

Sheet 高松 (hidden)
A1: 気象データ
A2: =RIGHT(CELL("filename",A2),LEN(CELL("filename",A2))-FIND("]",CELL("filename",A2))) -> 高松
A3: 時刻別平均外気湿球温度
A4: 時刻 | B4: 0 | C4: 1 | D4: 2 | E4: 3 | F4: 4 | G4: 5 | H4: 6 | I4: 7 | J4: 8 | K4: 9 | L4: 10 | M4: 11 | N4: 12 | O4: 13 | P4: 14 | Q4: 15 | R4: 16 | S4: 17 | T4: 18 | U4: 19 | V4: 20 | W4: 21 | X4: 22 | Y4: 23
A5: 4月 | B5: 9.8 | C5: 9.5 | D5: 9.3 | E5: 9.1 | F5: 8.9 | G5: 8.7 | H5: 8.7 | I5: 9.2 | J5: 10.1 | K5: 10.7 | L5: 11.1 | M5: 11.4 | N5: 11.6 | O5: 11.6 | P5: 11.8 | Q5: 11.8 | R5: 11.8 | S5: 11.6 | T5: 11.3 | U5: 11.1 | V5: 10.8 | W5: 10.6 | X5: 10.4 | Y5: 10.1
A6: 5月 | B6: 14.5 | C6: 14.3 | D6: 14.1 | E6: 14 | F6: 13.8 | G6: 13.6 | H6: 13.8 | I6: 14.4 | J6: 15 | K6: 15.5 | L6: 15.8 | M6: 16 | N6: 16 | O6: 16.1 | P6: 16.1 | Q6: 16.1 | R6: 16.1 | S6: 15.9 | T6: 15.7 | U6: 15.5 | V6: 15.3 | W6: 15.2 | X6: 15 | Y6: 14.8
A7: 6月 | B7: 19 | C7: 18.8 | D7: 18.7 | E7: 18.6 | F7: 18.5 | G7: 18.4 | H7: 18.5 | I7: 18.9 | J7: 19.2 | K7: 19.5 | L7: 19.8 | M7: 19.9 | N7: 20.1 | O7: 20.1 | P7: 20.1 | Q7: 20 | R7: 20 | S7: 20 | T7: 19.9 | U7: 19.7 | V7: 19.6 | W7: 19.5 | X7: 19.4 | Y7: 19.3
A8: 7月 | B8: 23.1 | C8: 22.9 | D8: 22.8 | E8: 22.8 | F8: 22.7 | G8: 22.6 | H8: 22.7 | I8: 23 | J8: 23.3 | K8: 23.6 | L8: 23.8 | M8: 23.9 | N8: 24 | O8: 24 | P8: 24 | Q8: 24 | R8: 24 | S8: 23.9 | T8: 23.7 | U8: 23.6 | V8: 23.5 | W8: 23.4 | X8: 23.4 | Y8: 23.3
A9: 8月 | B9: 23.8 | C9: 23.7 | D9: 23.6 | E9: 23.4 | F9: 23.4 | G9: 23.2 | H9: 23.2 | I9: 23.6 | J9: 24 | K9: 24.3 | L9: 24.5 | M9: 24.7 | N9: 24.7 | O9: 24.7 | P9: 24.5 | Q9: 24.4 | R9: 24.4 | S9: 24.3 | T9: 24.2 | U9: 24.2 | V9: 24.1 | W9: 24.1 | X9: 24 | Y9: 23.9
A10: 9月 | B10: 20.5 | C10: 20.3 | D10: 20.2 | E10: 20.1 | F10: 20 | G10: 19.9 | H10: 19.9 | I10: 20.2 | J10: 20.7 | K10: 21.1 | L10: 21.3 | M10: 21.4 | N10: 21.4 | O10: 21.4 | P10: 21.4 | Q10: 21.3 | R10: 21.2 | S10: 21.1 | T10: 21 | U10: 20.9 | V10: 20.9 | W10: 20.8 | X10: 20.6 | Y10: 20.5
A11: 10月 | B11: 14.9 | C11: 14.8 | D11: 14.6 | E11: 14.5 | F11: 14.4 | G11: 14.3 | H11: 14.2 | I11: 14.4 | J11: 15.1 | K11: 15.9 | L11: 16.2 | M11: 16.4 | N11: 16.5 | O11: 16.5 | P11: 16.4 | Q11: 16.3 | R11: 16.1 | S11: 16 | T11: 15.8 | U11: 15.7 | V11: 15.6 | W11: 15.3 | X11: 15.1 | Y11: 14.9
A12: 11月 | B12: 9.5 | C12: 9.3 | D12: 9.1 | E12: 8.9 | F12: 8.8 | G12: 8.7 | H12: 8.6 | I12: 8.6 | J12: 9.3 | K12: 10.3 | L12: 11.1 | M12: 11.4 | N12: 11.6 | O12: 11.6 | P12: 11.6 | Q12: 11.5 | R12: 11.3 | S12: 11 | T12: 10.8 | U12: 10.5 | V12: 10.3 | W12: 10 | X12: 9.8 | Y12: 9.5
A13: 12月 | B13: 4.6 | C13: 4.4 | D13: 4.3 | E13: 4.2 | F13: 4.1 | G13: 3.9 | H13: 3.8 | I13: 3.8 | J13: 4.2 | K13: 5.2 | L13: 6.1 | M13: 6.5 | N13: 6.7 | O13: 6.8 | P13: 6.8 | Q13: 6.7 | R13: 6.4 | S13: 6.1 | T13: 5.8 | U13: 5.5 | V13: 5.3 | W13: 5.1 | X13: 4.8 | Y13: 4.6
A14: 1月 | B14: 2.3 | C14: 2.1 | D14: 2 | E14: 1.9 | F14: 1.8 | G14: 1.7 | H14: 1.6 | I14: 1.6 | J14: 1.9 | K14: 2.8 | L14: 3.6 | M14: 4.1 | N14: 4.3 | O14: 4.5 | P14: 4.5 | Q14: 4.4 | R14: 4.3 | S14: 4 | T14: 3.7 | U14: 3.4 | V14: 3.1 | W14: 2.9 | X14: 2.7 | Y14: 2.5
A15: 2月 | B15: 2.6 | C15: 2.4 | D15: 2.3 | E15: 2.1 | F15: 2 | G15: 1.9 | H15: 1.8 | I15: 1.7 | J15: 2.3 | K15: 3.3 | L15: 4 | M15: 4.5 | N15: 4.8 | O15: 4.9 | P15: 5 | Q15: 5 | R15: 4.9 | S15: 4.6 | T15: 4.2 | U15: 3.9 | V15: 3.7 | W15: 3.4 | X15: 3.2 | Y15: 2.9
A16: 3月 | B16: 5.4 | C16: 5.2 | D16: 5 | E16: 4.8 | F16: 4.6 | G16: 4.5 | H16: 4.4 | I16: 4.5 | J16: 5.4 | K16: 6.2 | L16: 6.8 | M16: 7.1 | N16: 7.4 | O16: 7.6 | P16: 7.7 | Q16: 7.7 | R16: 7.6 | S16: 7.4 | T16: 7 | U16: 6.7 | V16: 6.5 | W16: 6.2 | X16: 5.9 | Y16: 5.7

Sheet 松山 (hidden)
A1: 気象データ
A2: =RIGHT(CELL("filename",A2),LEN(CELL("filename",A2))-FIND("]",CELL("filename",A2))) -> 松山
A3: 時刻別平均外気湿球温度
A4: 時刻 | B4: 0 | C4: 1 | D4: 2 | E4: 3 | F4: 4 | G4: 5 | H4: 6 | I4: 7 | J4: 8 | K4: 9 | L4: 10 | M4: 11 | N4: 12 | O4: 13 | P4: 14 | Q4: 15 | R4: 16 | S4: 17 | T4: 18 | U4: 19 | V4: 20 | W4: 21 | X4: 22 | Y4: 23
A5: 4月 | B5: 9.9 | C5: 9.6 | D5: 9.5 | E5: 9.3 | F5: 9.1 | G5: 9 | H5: 9 | I5: 9.4 | J5: 10.3 | K5: 11 | L5: 11.5 | M5: 11.8 | N5: 12 | O5: 12.1 | P5: 12.1 | Q5: 12.1 | R5: 12 | S5: 11.8 | T5: 11.5 | U5: 11.3 | V5: 11.1 | W5: 10.8 | X5: 10.5 | Y5: 10.3
A6: 5月 | B6: 14.1 | C6: 13.9 | D6: 13.8 | E6: 13.7 | F6: 13.5 | G6: 13.4 | H6: 13.5 | I6: 14.1 | J6: 14.9 | K6: 15.4 | L6: 15.8 | M6: 16.1 | N6: 16.2 | O6: 16.2 | P6: 16.2 | Q6: 16.2 | R6: 15.9 | S6: 15.8 | T6: 15.6 | U6: 15.4 | V6: 15.3 | W6: 15 | X6: 14.7 | Y6: 14.4
A7: 6月 | B7: 18.6 | C7: 18.4 | D7: 18.3 | E7: 18.2 | F7: 18.1 | G7: 18 | H7: 18.1 | I7: 18.6 | J7: 19.1 | K7: 19.5 | L7: 19.8 | M7: 20 | N7: 20.1 | O7: 20.2 | P7: 20.2 | Q7: 20.1 | R7: 20 | S7: 19.9 | T7: 19.7 | U7: 19.6 | V7: 19.5 | W7: 19.3 | X7: 19.1 | Y7: 18.9
A8: 7月 | B8: 22.6 | C8: 22.5 | D8: 22.3 | E8: 22.2 | F8: 22.1 | G8: 22 | H8: 22.1 | I8: 22.4 | J8: 22.9 | K8: 23.2 | L8: 23.5 | M8: 23.6 | N8: 23.7 | O8: 23.8 | P8: 23.8 | Q8: 23.7 | R8: 23.6 | S8: 23.5 | T8: 23.4 | U8: 23.2 | V8: 23.2 | W8: 23.1 | X8: 23 | Y8: 22.8
A9: 8月 | B9: 23.2 | C9: 23 | D9: 22.9 | E9: 22.7 | F9: 22.6 | G9: 22.5 | H9: 22.5 | I9: 22.8 | J9: 23.4 | K9: 23.9 | L9: 24.2 | M9: 24.3 | N9: 24.5 | O9: 24.5 | P9: 24.5 | Q9: 24.4 | R9: 24.3 | S9: 24.1 | T9: 24 | U9: 23.9 | V9: 23.8 | W9: 23.7 | X9: 23.5 | Y9: 23.3
A10: 9月 | B10: 20 | C10: 19.9 | D10: 19.8 | E10: 19.7 | F10: 19.6 | G10: 19.5 | H10: 19.4 | I10: 19.7 | J10: 20.3 | K10: 20.8 | L10: 21.1 | M10: 21.3 | N10: 21.5 | O10: 21.6 | P10: 21.5 | Q10: 21.5 | R10: 21.3 | S10: 21.2 | T10: 21 | U10: 20.9 | V10: 20.7 | W10: 20.4 | X10: 20.2 | Y10: 20
A11: 10月 | B11: 14.7 | C11: 14.5 | D11: 14.4 | E11: 14.3 | F11: 14.2 | G11: 14.1 | H11: 14 | I11: 14.2 | J11: 14.9 | K11: 15.7 | L11: 16.1 | M11: 16.4 | N11: 16.5 | O11: 16.7 | P11: 16.7 | Q11: 16.6 | R11: 16.4 | S11: 16.2 | T11: 16 | U11: 15.7 | V11: 15.3 | W11: 15 | X11: 14.8 | Y11: 14.6
A12: 11月 | B12: 9.6 | C12: 9.4 | D12: 9.3 | E12: 9.2 | F12: 9.1 | G12: 9.1 | H12: 9 | I12: 9 | J12: 9.6 | K12: 10.5 | L12: 11.2 | M12: 11.5 | N12: 11.7 | O12: 11.8 | P12: 11.9 | Q12: 11.8 | R12: 11.6 | S12: 11.4 | T12: 11 | U12: 10.7 | V12: 10.3 | W12: 10 | X12: 9.8 | Y12: 9.6
A13: 12月 | B13: 4.9 | C13: 4.8 | D13: 4.7 | E13: 4.5 | F13: 4.5 | G13: 4.4 | H13: 4.3 | I13: 4.2 | J13: 4.5 | K13: 5.4 | L13: 6.2 | M13: 6.5 | N13: 6.8 | O13: 6.9 | P13: 7 | Q13: 6.9 | R13: 6.7 | S13: 6.5 | T13: 6.1 | U13: 5.8 | V13: 5.5 | W13: 5.2 | X13: 5 | Y13: 4.9
A14: 1月 | B14: 2.6 | C14: 2.5 | D14: 2.3 | E14: 2.3 | F14: 2.2 | G14: 2.1 | H14: 2 | I14: 2 | J14: 2.2 | K14: 3 | L14: 3.9 | M14: 4.3 | N14: 4.6 | O14: 4.8 | P14: 4.9 | Q14: 4.8 | R14: 4.7 | S14: 4.4 | T14: 4.1 | U14: 3.7 | V14: 3.4 | W14: 3.1 | X14: 2.9 | Y14: 2.7
A15: 2月 | B15: 3.1 | C15: 2.9 | D15: 2.8 | E15: 2.7 | F15: 2.6 | G15: 2.5 | H15: 2.4 | I15: 2.3 | J15: 2.8 | K15: 3.7 | L15: 4.5 | M15: 4.9 | N15: 5.2 | O15: 5.4 | P15: 5.5 | Q15: 5.5 | R15: 5.4 | S15: 5.1 | T15: 4.9 | U15: 4.5 | V15: 4.1 | W15: 3.8 | X15: 3.6 | Y15: 3.4
A16: 3月 | B16: 5.8 | C16: 5.6 | D16: 5.5 | E16: 5.3 | F16: 5.2 | G16: 5.1 | H16: 5 | I16: 5.1 | J16: 5.8 | K16: 6.7 | L16: 7.3 | M16: 7.7 | N16: 8 | O16: 8.1 | P16: 8.2 | Q16: 8.1 | R16: 8 | S16: 7.8 | T16: 7.5 | U16: 7.3 | V16: 6.9 | W16: 6.6 | X16: 6.3 | Y16: 6

Sheet 高知 (hidden)
A1: 気象データ
A2: =RIGHT(CELL("filename",A2),LEN(CELL("filename",A2))-FIND("]",CELL("filename",A2))) -> 高知
A3: 時刻別平均外気湿球温度
A4: 時刻 | B4: 0 | C4: 1 | D4: 2 | E4: 3 | F4: 4 | G4: 5 | H4: 6 | I4: 7 | J4: 8 | K4: 9 | L4: 10 | M4: 11 | N4: 12 | O4: 13 | P4: 14 | Q4: 15 | R4: 16 | S4: 17 | T4: 18 | U4: 19 | V4: 20 | W4: 21 | X4: 22 | Y4: 23
A5: 4月 | B5: 11 | C5: 10.7 | D5: 10.5 | E5: 10.2 | F5: 10 | G5: 9.8 | H5: 9.7 | I5: 10.1 | J5: 10.9 | K5: 11.6 | L5: 12.2 | M5: 12.7 | N5: 13 | O5: 13.2 | P5: 13.4 | Q5: 13.4 | R5: 13.4 | S5: 13.2 | T5: 13 | U5: 12.7 | V5: 12.4 | W5: 12.1 | X5: 11.8 | Y5: 11.5
A6: 5月 | B6: 15.6 | C6: 15.4 | D6: 15.1 | E6: 14.8 | F6: 14.6 | G6: 14.4 | H6: 14.4 | I6: 14.9 | J6: 15.6 | K6: 16.2 | L6: 16.6 | M6: 16.9 | N6: 17.2 | O6: 17.3 | P6: 17.5 | Q6: 17.5 | R6: 17.5 | S6: 17.5 | T6: 17.3 | U6: 17.1 | V6: 16.9 | W6: 16.7 | X6: 16.4 | Y6: 16.1
A7: 6月 | B7: 19.7 | C7: 19.5 | D7: 19.3 | E7: 19.1 | F7: 19 | G7: 18.8 | H7: 18.9 | I7: 19.3 | J7: 19.7 | K7: 20.2 | L7: 20.5 | M7: 20.7 | N7: 20.8 | O7: 20.9 | P7: 21 | Q7: 21.1 | R7: 21 | S7: 20.9 | T7: 20.9 | U7: 20.8 | V7: 20.7 | W7: 20.5 | X7: 20.4 | Y7: 20.2
A8: 7月 | B8: 23.6 | C8: 23.4 | D8: 23.3 | E8: 23.1 | F8: 22.9 | G8: 22.8 | H8: 22.8 | I8: 23.1 | J8: 23.6 | K8: 23.9 | L8: 24.2 | M8: 24.3 | N8: 24.4 | O8: 24.5 | P8: 24.6 | Q8: 24.6 | R8: 24.6 | S8: 24.5 | T8: 24.4 | U8: 24.3 | V8: 24.3 | W8: 24.2 | X8: 24.1 | Y8: 23.9
A9: 8月 | B9: 24.2 | C9: 24 | D9: 23.8 | E9: 23.6 | F9: 23.4 | G9: 23.3 | H9: 23.2 | I9: 23.5 | J9: 23.9 | K9: 24.3 | L9: 24.6 | M9: 24.7 | N9: 24.9 | O9: 25 | P9: 25.1 | Q9: 25.1 | R9: 25 | S9: 25 | T9: 24.9 | U9: 24.8 | V9: 24.8 | W9: 24.7 | X9: 24.5 | Y9: 24.3
A10: 9月 | B10: 21 | C10: 20.8 | D10: 20.6 | E10: 20.5 | F10: 20.3 | G10: 20.2 | H10: 20.1 | I10: 20.3 | J10: 20.8 | K10: 21.3 | L10: 21.6 | M10: 21.8 | N10: 22 | O10: 22.1 | P10: 22.2 | Q10: 22.2 | R10: 22.1 | S10: 22 | T10: 21.9 | U10: 21.8 | V10: 21.6 | W10: 21.4 | X10: 21.2 | Y10: 21
A11: 10月 | B11: 15.5 | C11: 15.3 | D11: 15.1 | E11: 14.9 | F11: 14.8 | G11: 14.6 | H11: 14.4 | I11: 14.6 | J11: 15.3 | K11: 16 | L11: 16.5 | M11: 16.8 | N11: 17 | O11: 17.2 | P11: 17.2 | Q11: 17.2 | R11: 17.1 | S11: 16.9 | T11: 16.7 | U11: 16.5 | V11: 16.3 | W11: 16 | X11: 15.8 | Y11: 15.6
A12: 11月 | B12: 10.1 | C12: 9.9 | D12: 9.7 | E12: 9.5 | F12: 9.3 | G12: 9.2 | H12: 9 | I12: 9 | J12: 9.7 | K12: 10.6 | L12: 11.4 | M12: 12 | N12: 12.3 | O12: 12.4 | P12: 12.5 | Q12: 12.5 | R12: 12.3 | S12: 12 | T12: 11.6 | U12: 11.3 | V12: 11 | W12: 10.7 | X12: 10.5 | Y12: 10.2
A13: 12月 | B13: 4.9 | C13: 4.6 | D13: 4.4 | E13: 4.2 | F13: 4 | G13: 3.9 | H13: 3.7 | I13: 3.6 | J13: 4.1 | K13: 5.2 | L13: 6.3 | M13: 7 | N13: 7.4 | O13: 7.6 | P13: 7.7 | Q13: 7.6 | R13: 7.4 | S13: 7 | T13: 6.5 | U13: 6.2 | V13: 5.8 | W13: 5.5 | X13: 5.2 | Y13: 4.9
A14: 1月 | B14: 2.6 | C14: 2.4 | D14: 2.1 | E14: 1.9 | F14: 1.8 | G14: 1.6 | H14: 1.5 | I14: 1.4 | J14: 1.8 | K14: 2.9 | L14: 4 | M14: 4.8 | N14: 5.2 | O14: 5.6 | P14: 5.8 | Q14: 5.7 | R14: 5.5 | S14: 5.1 | T14: 4.6 | U14: 4.1 | V14: 3.8 | W14: 3.5 | X14: 3.2 | Y14: 2.9
A15: 2月 | B15: 3.6 | C15: 3.4 | D15: 3.2 | E15: 3 | F15: 2.8 | G15: 2.6 | H15: 2.5 | I15: 2.4 | J15: 3 | K15: 4.1 | L15: 5 | M15: 5.6 | N15: 6.1 | O15: 6.5 | P15: 6.7 | Q15: 6.7 | R15: 6.5 | S15: 6.2 | T15: 5.7 | U15: 5.3 | V15: 5 | W15: 4.6 | X15: 4.3 | Y15: 4
A16: 3月 | B16: 6.8 | C16: 6.5 | D16: 6.3 | E16: 6.1 | F16: 5.8 | G16: 5.7 | H16: 5.5 | I16: 5.6 | J16: 6.4 | K16: 7.2 | L16: 7.9 | M16: 8.5 | N16: 8.9 | O16: 9.2 | P16: 9.3 | Q16: 9.4 | R16: 9.3 | S16: 9.1 | T16: 8.8 | U16: 8.4 | V16: 8.1 | W16: 7.8 | X16: 7.5 | Y16: 7.1

Sheet 福岡 (hidden)
A1: 気象データ
A2: =RIGHT(CELL("filename",A2),LEN(CELL("filename",A2))-FIND("]",CELL("filename",A2))) -> 福岡
A3: 時刻別平均外気湿球温度
A4: 時刻 | B4: 0 | C4: 1 | D4: 2 | E4: 3 | F4: 4 | G4: 5 | H4: 6 | I4: 7 | J4: 8 | K4: 9 | L4: 10 | M4: 11 | N4: 12 | O4: 13 | P4: 14 | Q4: 15 | R4: 16 | S4: 17 | T4: 18 | U4: 19 | V4: 20 | W4: 21 | X4: 22 | Y4: 23
A5: 4月 | B5: 10.9 | C5: 10.7 | D5: 10.5 | E5: 10.4 | F5: 10.2 | G5: 10.1 | H5: 10 | I5: 10.3 | J5: 10.9 | K5: 11.5 | L5: 12 | M5: 12.4 | N5: 12.6 | O5: 12.8 | P5: 12.9 | Q5: 12.8 | R5: 12.6 | S5: 12.4 | T5: 12.1 | U5: 11.9 | V5: 11.8 | W5: 11.6 | X5: 11.4 | Y5: 11.2
A6: 5月 | B6: 15.2 | C6: 15 | D6: 14.8 | E6: 14.7 | F6: 14.5 | G6: 14.4 | H6: 14.5 | I6: 14.8 | J6: 15.4 | K6: 15.9 | L6: 16.2 | M6: 16.5 | N6: 16.8 | O6: 16.9 | P6: 17 | Q6: 16.9 | R6: 16.7 | S6: 16.6 | T6: 16.3 | U6: 16.1 | V6: 15.9 | W6: 15.8 | X6: 15.6 | Y6: 15.4
A7: 6月 | B7: 19.4 | C7: 19.3 | D7: 19.2 | E7: 19.1 | F7: 19 | G7: 18.9 | H7: 18.9 | I7: 19.2 | J7: 19.6 | K7: 19.9 | L7: 20.2 | M7: 20.5 | N7: 20.7 | O7: 20.8 | P7: 20.8 | Q7: 20.8 | R7: 20.6 | S7: 20.5 | T7: 20.3 | U7: 20.1 | V7: 20 | W7: 19.9 | X7: 19.8 | Y7: 19.7
A8: 7月 | B8: 23.3 | C8: 23.2 | D8: 23.1 | E8: 23 | F8: 22.9 | G8: 22.9 | H8: 22.9 | I8: 23.1 | J8: 23.4 | K8: 23.6 | L8: 23.9 | M8: 24.1 | N8: 24.3 | O8: 24.4 | P8: 24.5 | Q8: 24.4 | R8: 24.3 | S8: 24.2 | T8: 24 | U8: 23.9 | V8: 23.7 | W8: 23.6 | X8: 23.5 | Y8: 23.5
A9: 8月 | B9: 23.9 | C9: 23.8 | D9: 23.7 | E9: 23.6 | F9: 23.5 | G9: 23.4 | H9: 23.4 | I9: 23.6 | J9: 23.9 | K9: 24.2 | L9: 24.4 | M9: 24.7 | N9: 24.9 | O9: 25 | P9: 25.1 | Q9: 25.1 | R9: 25 | S9: 24.8 | T9: 24.7 | U9: 24.5 | V9: 24.4 | W9: 24.3 | X9: 24.2 | Y9: 24
A10: 9月 | B10: 20.7 | C10: 20.5 | D10: 20.4 | E10: 20.3 | F10: 20.2 | G10: 20.1 | H10: 20 | I10: 20.2 | J10: 20.6 | K10: 21 | L10: 21.3 | M10: 21.5 | N10: 21.8 | O10: 21.9 | P10: 22 | Q10: 21.9 | R10: 21.8 | S10: 21.6 | T10: 21.4 | U10: 21.2 | V10: 21.1 | W10: 21 | X10: 20.8 | Y10: 20.7
A11: 10月 | B11: 15.3 | C11: 15.2 | D11: 15 | E11: 14.9 | F11: 14.8 | G11: 14.7 | H11: 14.6 | I11: 14.6 | J11: 15.2 | K11: 15.7 | L11: 16.1 | M11: 16.4 | N11: 16.7 | O11: 16.9 | P11: 16.9 | Q11: 16.9 | R11: 16.7 | S11: 16.5 | T11: 16.2 | U11: 16.1 | V11: 15.9 | W11: 15.7 | X11: 15.5 | Y11: 15.3
A12: 11月 | B12: 10.3 | C12: 10.1 | D12: 10 | E12: 9.9 | F12: 9.8 | G12: 9.7 | H12: 9.6 | I12: 9.6 | J12: 9.9 | K12: 10.6 | L12: 11.2 | M12: 11.6 | N12: 11.8 | O12: 11.9 | P12: 12 | Q12: 11.9 | R12: 11.7 | S12: 11.5 | T12: 11.3 | U12: 11.1 | V12: 10.9 | W12: 10.7 | X12: 10.5 | Y12: 10.3
A13: 12月 | B13: 5.5 | C13: 5.4 | D13: 5.3 | E13: 5.1 | F13: 5 | G13: 4.9 | H13: 4.9 | I13: 4.9 | J13: 5 | K13: 5.5 | L13: 6.1 | M13: 6.6 | N13: 6.8 | O13: 7 | P13: 7 | Q13: 7 | R13: 6.8 | S13: 6.6 | T13: 6.4 | U13: 6.2 | V13: 6.1 | W13: 5.9 | X13: 5.7 | Y13: 5.5
A14: 1月 | B14: 3.5 | C14: 3.4 | D14: 3.3 | E14: 3.2 | F14: 3.1 | G14: 3.1 | H14: 3 | I14: 3 | J14: 3.1 | K14: 3.5 | L14: 4.1 | M14: 4.6 | N14: 4.9 | O14: 5 | P14: 5.1 | Q14: 5.1 | R14: 5 | S14: 4.7 | T14: 4.5 | U14: 4.4 | V14: 4.2 | W14: 4 | X14: 3.9 | Y14: 3.7
A15: 2月 | B15: 4.3 | C15: 4.1 | D15: 4 | E15: 3.9 | F15: 3.8 | G15: 3.7 | H15: 3.6 | I15: 3.6 | J15: 3.8 | K15: 4.3 | L15: 4.9 | M15: 5.4 | N15: 5.7 | O15: 5.9 | P15: 6.1 | Q15: 6 | R15: 5.9 | S15: 5.6 | T15: 5.4 | U15: 5.2 | V15: 5 | W15: 4.8 | X15: 4.7 | Y15: 4.5
A16: 3月 | B16: 7 | C16: 6.8 | D16: 6.6 | E16: 6.4 | F16: 6.3 | G16: 6.2 | H16: 6.1 | I16: 6.2 | J16: 6.6 | K16: 7.3 | L16: 7.9 | M16: 8.3 | N16: 8.6 | O16: 8.8 | P16: 8.9 | Q16: 8.9 | R16: 8.7 | S16: 8.5 | T16: 8.2 | U16: 8 | V16: 7.8 | W16: 7.6 | X16: 7.4 | Y16: 7.2

Sheet 佐賀 (hidden)
A1: 気象データ
A2: =RIGHT(CELL("filename",A2),LEN(CELL("filename",A2))-FIND("]",CELL("filename",A2))) -> 佐賀
A3: 時刻別平均外気湿球温度
A4: 時刻 | B4: 0 | C4: 1 | D4: 2 | E4: 3 | F4: 4 | G4: 5 | H4: 6 | I4: 7 | J4: 8 | K4: 9 | L4: 10 | M4: 11 | N4: 12 | O4: 13 | P4: 14 | Q4: 15 | R4: 16 | S4: 17 | T4: 18 | U4: 19 | V4: 20 | W4: 21 | X4: 22 | Y4: 23
A5: 4月 | B5: 10.5 | C5: 10.3 | D5: 10 | E5: 9.9 | F5: 9.7 | G5: 9.5 | H5: 9.5 | I5: 9.8 | J5: 10.6 | K5: 11.4 | L5: 12 | M5: 12.4 | N5: 12.7 | O5: 12.9 | P5: 13 | Q5: 13 | R5: 12.8 | S5: 12.7 | T5: 12.4 | U5: 12.1 | V5: 11.8 | W5: 11.5 | X5: 11.3 | Y5: 11
A6: 5月 | B6: 15 | C6: 14.8 | D6: 14.6 | E6: 14.4 | F6: 14.2 | G6: 14.1 | H6: 14.1 | I6: 14.6 | J6: 15.4 | K6: 15.9 | L6: 16.3 | M6: 16.6 | N6: 16.8 | O6: 17 | P6: 17 | Q6: 17 | R6: 16.9 | S6: 16.7 | T6: 16.5 | U6: 16.3 | V6: 16 | W6: 15.8 | X6: 15.5 | Y6: 15.3
A7: 6月 | B7: 19.4 | C7: 19.3 | D7: 19.2 | E7: 19 | F7: 18.9 | G7: 18.8 | H7: 18.9 | I7: 19.2 | J7: 19.6 | K7: 20 | L7: 20.3 | M7: 20.5 | N7: 20.6 | O7: 20.7 | P7: 20.8 | Q7: 20.7 | R7: 20.7 | S7: 20.7 | T7: 20.6 | U7: 20.4 | V7: 20.2 | W7: 20.1 | X7: 19.9 | Y7: 19.8
A8: 7月 | B8: 23.4 | C8: 23.3 | D8: 23.2 | E8: 23.1 | F8: 23 | G8: 22.9 | H8: 22.9 | I8: 23.2 | J8: 23.5 | K8: 23.8 | L8: 24.1 | M8: 24.2 | N8: 24.4 | O8: 24.4 | P8: 24.5 | Q8: 24.4 | R8: 24.4 | S8: 24.4 | T8: 24.3 | U8: 24.1 | V8: 23.9 | W8: 23.8 | X8: 23.7 | Y8: 23.6
A9: 8月 | B9: 23.8 | C9: 23.7 | D9: 23.5 | E9: 23.4 | F9: 23.3 | G9: 23.2 | H9: 23.2 | I9: 23.5 | J9: 23.9 | K9: 24.3 | L9: 24.6 | M9: 24.7 | N9: 24.8 | O9: 24.9 | P9: 24.9 | Q9: 24.8 | R9: 24.8 | S9: 24.8 | T9: 24.6 | U9: 24.4 | V9: 24.3 | W9: 24.2 | X9: 24 | Y9: 23.9
A10: 9月 | B10: 20.3 | C10: 20.1 | D10: 20 | E10: 19.9 | F10: 19.7 | G10: 19.6 | H10: 19.6 | I10: 19.8 | J10: 20.4 | K10: 20.9 | L10: 21.3 | M10: 21.5 | N10: 21.6 | O10: 21.7 | P10: 21.7 | Q10: 21.7 | R10: 21.6 | S10: 21.5 | T10: 21.2 | U10: 21 | V10: 20.8 | W10: 20.6 | X10: 20.5 | Y10: 20.3
A11: 10月 | B11: 14.8 | C11: 14.6 | D11: 14.4 | E11: 14.2 | F11: 14.1 | G11: 14 | H11: 13.9 | I11: 13.9 | J11: 14.6 | K11: 15.5 | L11: 16.1 | M11: 16.4 | N11: 16.5 | O11: 16.6 | P11: 16.6 | Q11: 16.6 | R11: 16.4 | S11: 16.3 | T11: 16.1 | U11: 15.8 | V11: 15.5 | W11: 15.3 | X11: 15.1 | Y11: 14.8
A12: 11月 | B12: 9.7 | C12: 9.5 | D12: 9.3 | E12: 9.1 | F12: 9 | G12: 8.9 | H12: 8.8 | I12: 8.7 | J12: 9.2 | K12: 10.1 | L12: 10.9 | M12: 11.4 | N12: 11.7 | O12: 11.9 | P12: 11.9 | Q12: 11.9 | R12: 11.7 | S12: 11.5 | T12: 11.2 | U12: 10.9 | V12: 10.6 | W12: 10.3 | X12: 10 | Y12: 9.7
A13: 12月 | B13: 4.8 | C13: 4.6 | D13: 4.4 | E13: 4.2 | F13: 4.1 | G13: 4 | H13: 3.9 | I13: 3.8 | J13: 4 | K13: 4.8 | L13: 5.6 | M13: 6.3 | N13: 6.7 | O13: 6.9 | P13: 7 | Q13: 7 | R13: 6.8 | S13: 6.5 | T13: 6.3 | U13: 6 | V13: 5.6 | W13: 5.3 | X13: 5.1 | Y13: 4.8
A14: 1月 | B14: 2.7 | C14: 2.5 | D14: 2.4 | E14: 2.3 | F14: 2.2 | G14: 2.1 | H14: 2 | I14: 1.9 | J14: 2.1 | K14: 2.8 | L14: 3.6 | M14: 4.3 | N14: 4.8 | O14: 5.1 | P14: 5.2 | Q14: 5.2 | R14: 5.1 | S14: 4.8 | T14: 4.4 | U14: 4.1 | V14: 3.8 | W14: 3.5 | X14: 3.2 | Y14: 3
A15: 2月 | B15: 3.6 | C15: 3.4 | D15: 3.2 | E15: 3.1 | F15: 2.9 | G15: 2.8 | H15: 2.8 | I15: 2.7 | J15: 3 | K15: 3.8 | L15: 4.6 | M15: 5.3 | N15: 5.7 | O15: 6 | P15: 6.1 | Q15: 6.2 | R15: 6.1 | S15: 5.8 | T15: 5.4 | U15: 5.1 | V15: 4.8 | W15: 4.5 | X15: 4.2 | Y15: 4
A16: 3月 | B16: 6.5 | C16: 6.3 | D16: 6.1 | E16: 5.9 | F16: 5.7 | G16: 5.5 | H16: 5.4 | I16: 5.5 | J16: 6.1 | K16: 7 | L16: 7.7 | M16: 8.2 | N16: 8.6 | O16: 8.8 | P16: 9 | Q16: 9 | R16: 8.9 | S16: 8.6 | T16: 8.3 | U16: 8 | V16: 7.8 | W16: 7.4 | X16: 7.2 | Y16: 6.9

Sheet 長崎 (hidden)
A1: 気象データ
A2: =RIGHT(CELL("filename",A2),LEN(CELL("filename",A2))-FIND("]",CELL("filename",A2))) -> 長崎
A3: 時刻別平均外気湿球温度
A4: 時刻 | B4: 0 | C4: 1 | D4: 2 | E4: 3 | F4: 4 | G4: 5 | H4: 6 | I4: 7 | J4: 8 | K4: 9 | L4: 10 | M4: 11 | N4: 12 | O4: 13 | P4: 14 | Q4: 15 | R4: 16 | S4: 17 | T4: 18 | U4: 19 | V4: 20 | W4: 21 | X4: 22 | Y4: 23
A5: 4月 | B5: 11.4 | C5: 11.3 | D5: 11.1 | E5: 11 | F5: 10.9 | G5: 10.8 | H5: 10.7 | I5: 11 | J5: 11.5 | K5: 12.1 | L5: 12.4 | M5: 12.7 | N5: 13 | O5: 13.2 | P5: 13.3 | Q5: 13.2 | R5: 13.1 | S5: 13 | T5: 12.7 | U5: 12.4 | V5: 12.3 | W5: 12.1 | X5: 11.9 | Y5: 11.7
A6: 5月 | B6: 15.7 | C6: 15.5 | D6: 15.4 | E6: 15.3 | F6: 15.2 | G6: 15.1 | H6: 15.1 | I6: 15.4 | J6: 16 | K6: 16.4 | L6: 16.7 | M6: 16.9 | N6: 17.1 | O6: 17.3 | P6: 17.4 | Q6: 17.3 | R6: 17.2 | S6: 17 | T6: 16.8 | U6: 16.6 | V6: 16.4 | W6: 16.3 | X6: 16.1 | Y6: 15.9
A7: 6月 | B7: 19.9 | C7: 19.8 | D7: 19.7 | E7: 19.6 | F7: 19.5 | G7: 19.5 | H7: 19.5 | I7: 19.7 | J7: 20.1 | K7: 20.3 | L7: 20.5 | M7: 20.8 | N7: 20.9 | O7: 21 | P7: 21.1 | Q7: 21 | R7: 21 | S7: 20.9 | T7: 20.8 | U7: 20.6 | V7: 20.5 | W7: 20.4 | X7: 20.3 | Y7: 20.2
A8: 7月 | B8: 23.8 | C8: 23.7 | D8: 23.7 | E8: 23.6 | F8: 23.6 | G8: 23.5 | H8: 23.5 | I8: 23.7 | J8: 23.9 | K8: 24.2 | L8: 24.3 | M8: 24.4 | N8: 24.6 | O8: 24.7 | P8: 24.7 | Q8: 24.8 | R8: 24.7 | S8: 24.6 | T8: 24.4 | U8: 24.3 | V8: 24.1 | W8: 24.1 | X8: 24 | Y8: 23.9
A9: 8月 | B9: 24.3 | C9: 24.2 | D9: 24.2 | E9: 24.1 | F9: 24 | G9: 24 | H9: 24 | I9: 24.2 | J9: 24.4 | K9: 24.6 | L9: 24.8 | M9: 25 | N9: 25.1 | O9: 25.2 | P9: 25.3 | Q9: 25.3 | R9: 25.2 | S9: 25.1 | T9: 24.9 | U9: 24.7 | V9: 24.7 | W9: 24.5 | X9: 24.5 | Y9: 24.4
A10: 9月 | B10: 21 | C10: 20.9 | D10: 20.8 | E10: 20.7 | F10: 20.6 | G10: 20.5 | H10: 20.4 | I10: 20.6 | J10: 20.9 | K10: 21.3 | L10: 21.5 | M10: 21.7 | N10: 21.8 | O10: 22 | P10: 22 | Q10: 22.1 | R10: 22 | S10: 21.9 | T10: 21.7 | U10: 21.5 | V10: 21.3 | W10: 21.2 | X10: 21.1 | Y10: 21
A11: 10月 | B11: 15.7 | C11: 15.5 | D11: 15.4 | E11: 15.3 | F11: 15.2 | G11: 15.1 | H11: 15 | I11: 15.1 | J11: 15.5 | K11: 16.1 | L11: 16.5 | M11: 16.7 | N11: 16.8 | O11: 17 | P11: 17.1 | Q11: 17.1 | R11: 17 | S11: 16.8 | T11: 16.6 | U11: 16.4 | V11: 16.2 | W11: 16 | X11: 15.8 | Y11: 15.7
A12: 11月 | B12: 10.8 | C12: 10.7 | D12: 10.6 | E12: 10.5 | F12: 10.5 | G12: 10.4 | H12: 10.4 | I12: 10.3 | J12: 10.7 | K12: 11.3 | L12: 11.8 | M12: 12.1 | N12: 12.3 | O12: 12.4 | P12: 12.4 | Q12: 12.4 | R12: 12.3 | S12: 12.1 | T12: 11.7 | U12: 11.5 | V12: 11.3 | W12: 11.1 | X12: 10.9 | Y12: 10.8
A13: 12月 | B13: 6.1 | C13: 6 | D13: 5.9 | E13: 5.8 | F13: 5.7 | G13: 5.7 | H13: 5.6 | I13: 5.6 | J13: 5.7 | K13: 6.2 | L13: 6.9 | M13: 7.2 | N13: 7.4 | O13: 7.6 | P13: 7.6 | Q13: 7.6 | R13: 7.5 | S13: 7.2 | T13: 6.9 | U13: 6.7 | V13: 6.4 | W13: 6.3 | X13: 6.1 | Y13: 6
A14: 1月 | B14: 3.9 | C14: 3.8 | D14: 3.8 | E14: 3.8 | F14: 3.7 | G14: 3.6 | H14: 3.6 | I14: 3.6 | J14: 3.7 | K14: 4.1 | L14: 4.8 | M14: 5.2 | N14: 5.4 | O14: 5.6 | P14: 5.7 | Q14: 5.7 | R14: 5.5 | S14: 5.3 | T14: 5 | U14: 4.7 | V14: 4.5 | W14: 4.4 | X14: 4.2 | Y14: 4.1
A15: 2月 | B15: 4.7 | C15: 4.6 | D15: 4.5 | E15: 4.4 | F15: 4.3 | G15: 4.3 | H15: 4.2 | I15: 4.2 | J15: 4.4 | K15: 5 | L15: 5.6 | M15: 5.9 | N15: 6.2 | O15: 6.4 | P15: 6.5 | Q15: 6.6 | R15: 6.5 | S15: 6.3 | T15: 5.9 | U15: 5.7 | V15: 5.5 | W15: 5.3 | X15: 5.1 | Y15: 4.9
A16: 3月 | B16: 7.4 | C16: 7.3 | D16: 7.2 | E16: 7.1 | F16: 7 | G16: 6.9 | H16: 6.8 | I16: 6.8 | J16: 7.3 | K16: 7.9 | L16: 8.4 | M16: 8.8 | N16: 9 | O16: 9.2 | P16: 9.3 | Q16: 9.3 | R16: 9.2 | S16: 9 | T16: 8.7 | U16: 8.5 | V16: 8.2 | W16: 8.1 | X16: 7.9 | Y16: 7.7

Sheet 熊本 (hidden)
A1: 気象データ
A2: =RIGHT(CELL("filename",A2),LEN(CELL("filename",A2))-FIND("]",CELL("filename",A2))) -> 熊本
A3: 時刻別平均外気湿球温度
A4: 時刻 | B4: 0 | C4: 1 | D4: 2 | E4: 3 | F4: 4 | G4: 5 | H4: 6 | I4: 7 | J4: 8 | K4: 9 | L4: 10 | M4: 11 | N4: 12 | O4: 13 | P4: 14 | Q4: 15 | R4: 16 | S4: 17 | T4: 18 | U4: 19 | V4: 20 | W4: 21 | X4: 22 | Y4: 23
A5: 4月 | B5: 11.2 | C5: 10.9 | D5: 10.7 | E5: 10.4 | F5: 10.2 | G5: 10 | H5: 9.8 | I5: 10.2 | J5: 11 | K5: 11.8 | L5: 12.4 | M5: 12.8 | N5: 13.2 | O5: 13.3 | P5: 13.4 | Q5: 13.4 | R5: 13.3 | S5: 13.1 | T5: 12.8 | U5: 12.5 | V5: 12.3 | W5: 12.1 | X5: 11.9 | Y5: 11.6
A6: 5月 | B6: 15.7 | C6: 15.5 | D6: 15.3 | E6: 15.1 | F6: 14.8 | G6: 14.7 | H6: 14.6 | I6: 15.1 | J6: 15.8 | K6: 16.3 | L6: 16.7 | M6: 17 | N6: 17.2 | O6: 17.4 | P6: 17.4 | Q6: 17.4 | R6: 17.3 | S6: 17.1 | T6: 17 | U6: 16.7 | V6: 16.5 | W6: 16.3 | X6: 16.1 | Y6: 15.9
A7: 6月 | B7: 19.9 | C7: 19.8 | D7: 19.7 | E7: 19.5 | F7: 19.4 | G7: 19.3 | H7: 19.3 | I7: 19.6 | J7: 20 | K7: 20.3 | L7: 20.6 | M7: 20.8 | N7: 21 | O7: 21.1 | P7: 21.2 | Q7: 21 | R7: 21 | S7: 20.9 | T7: 20.8 | U7: 20.6 | V7: 20.5 | W7: 20.4 | X7: 20.3 | Y7: 20.2
A8: 7月 | B8: 23.6 | C8: 23.5 | D8: 23.4 | E8: 23.3 | F8: 23.2 | G8: 23.1 | H8: 23.1 | I8: 23.3 | J8: 23.7 | K8: 24 | L8: 24.2 | M8: 24.4 | N8: 24.6 | O8: 24.6 | P8: 24.6 | Q8: 24.6 | R8: 24.5 | S8: 24.4 | T8: 24.4 | U8: 24.2 | V8: 24.1 | W8: 24 | X8: 23.8 | Y8: 23.8
A9: 8月 | B9: 24 | C9: 23.8 | D9: 23.7 | E9: 23.5 | F9: 23.4 | G9: 23.3 | H9: 23.3 | I9: 23.5 | J9: 23.9 | K9: 24.3 | L9: 24.5 | M9: 24.7 | N9: 24.8 | O9: 24.9 | P9: 24.9 | Q9: 24.9 | R9: 24.8 | S9: 24.6 | T9: 24.6 | U9: 24.4 | V9: 24.3 | W9: 24.2 | X9: 24.1 | Y9: 24
A10: 9月 | B10: 20.7 | C10: 20.6 | D10: 20.4 | E10: 20.3 | F10: 20.1 | G10: 20 | H10: 19.9 | I10: 20.1 | J10: 20.6 | K10: 21.1 | L10: 21.5 | M10: 21.7 | N10: 21.8 | O10: 22 | P10: 22 | Q10: 22 | R10: 21.9 | S10: 21.8 | T10: 21.5 | U10: 21.3 | V10: 21.1 | W10: 21 | X10: 20.8 | Y10: 20.7
A11: 10月 | B11: 15.2 | C11: 15 | D11: 14.8 | E11: 14.6 | F11: 14.4 | G11: 14.3 | H11: 14.1 | I11: 14.2 | J11: 14.9 | K11: 15.8 | L11: 16.3 | M11: 16.7 | N11: 16.9 | O11: 17.1 | P11: 17.2 | Q11: 17.2 | R11: 17 | S11: 16.8 | T11: 16.4 | U11: 16.1 | V11: 15.9 | W11: 15.6 | X11: 15.4 | Y11: 15.2
A12: 11月 | B12: 10 | C12: 9.7 | D12: 9.5 | E12: 9.3 | F12: 9.1 | G12: 8.9 | H12: 8.8 | I12: 8.7 | J12: 9.3 | K12: 10.3 | L12: 11.2 | M12: 11.8 | N12: 12.1 | O12: 12.3 | P12: 12.5 | Q12: 12.4 | R12: 12.3 | S12: 12 | T12: 11.6 | U12: 11.3 | V12: 10.9 | W12: 10.7 | X12: 10.4 | Y12: 10.1
A13: 12月 | B13: 4.8 | C13: 4.6 | D13: 4.4 | E13: 4.1 | F13: 3.9 | G13: 3.7 | H13: 3.6 | I13: 3.5 | J13: 3.8 | K13: 4.7 | L13: 5.8 | M13: 6.6 | N13: 7 | O13: 7.3 | P13: 7.4 | Q13: 7.4 | R13: 7.3 | S13: 6.9 | T13: 6.5 | U13: 6.1 | V13: 5.8 | W13: 5.5 | X13: 5.2 | Y13: 4.9
A14: 1月 | B14: 2.9 | C14: 2.6 | D14: 2.4 | E14: 2.2 | F14: 2 | G14: 1.9 | H14: 1.7 | I14: 1.6 | J14: 1.8 | K14: 2.8 | L14: 3.8 | M14: 4.6 | N14: 5 | O14: 5.3 | P14: 5.5 | Q14: 5.6 | R14: 5.5 | S14: 5.2 | T14: 4.7 | U14: 4.4 | V14: 4 | W14: 3.7 | X14: 3.5 | Y14: 3.2
A15: 2月 | B15: 4 | C15: 3.7 | D15: 3.5 | E15: 3.2 | F15: 3 | G15: 2.9 | H15: 2.7 | I15: 2.6 | J15: 3.1 | K15: 4 | L15: 5 | M15: 5.6 | N15: 6.1 | O15: 6.4 | P15: 6.7 | Q15: 6.7 | R15: 6.6 | S15: 6.3 | T15: 5.9 | U15: 5.5 | V15: 5.2 | W15: 4.9 | X15: 4.6 | Y15: 4.3
A16: 3月 | B16: 7 | C16: 6.8 | D16: 6.5 | E16: 6.2 | F16: 6 | G16: 5.8 | H16: 5.6 | I16: 5.6 | J16: 6.4 | K16: 7.4 | L16: 8.2 | M16: 8.7 | N16: 9.1 | O16: 9.4 | P16: 9.5 | Q16: 9.5 | R16: 9.3 | S16: 9.1 | T16: 8.8 | U16: 8.4 | V16: 8.1 | W16: 7.9 | X16: 7.6 | Y16: 7.3

Sheet 大分 (hidden)
A1: 気象データ
A2: =RIGHT(CELL("filename",A2),LEN(CELL("filename",A2))-FIND("]",CELL("filename",A2))) -> 大分
A3: 時刻別平均外気湿球温度
A4: 時刻 | B4: 0 | C4: 1 | D4: 2 | E4: 3 | F4: 4 | G4: 5 | H4: 6 | I4: 7 | J4: 8 | K4: 9 | L4: 10 | M4: 11 | N4: 12 | O4: 13 | P4: 14 | Q4: 15 | R4: 16 | S4: 17 | T4: 18 | U4: 19 | V4: 20 | W4: 21 | X4: 22 | Y4: 23
A5: 4月 | B5: 10.4 | C5: 10.1 | D5: 9.8 | E5: 9.6 | F5: 9.4 | G5: 9.2 | H5: 9.1 | I5: 9.5 | J5: 10.3 | K5: 11.1 | L5: 11.6 | M5: 12 | N5: 12.3 | O5: 12.5 | P5: 12.6 | Q5: 12.5 | R5: 12.4 | S5: 12.2 | T5: 11.9 | U5: 11.7 | V5: 11.5 | W5: 11.3 | X5: 11.1 | Y5: 10.8
A6: 5月 | B6: 14.8 | C6: 14.6 | D6: 14.4 | E6: 14.2 | F6: 13.9 | G6: 13.7 | H6: 13.8 | I6: 14.2 | J6: 15 | K6: 15.6 | L6: 16 | M6: 16.3 | N6: 16.5 | O6: 16.5 | P6: 16.6 | Q6: 16.6 | R6: 16.5 | S6: 16.3 | T6: 16.1 | U6: 15.8 | V6: 15.7 | W6: 15.5 | X6: 15.3 | Y6: 15.1
A7: 6月 | B7: 19.1 | C7: 19 | D7: 18.8 | E7: 18.7 | F7: 18.5 | G7: 18.4 | H7: 18.4 | I7: 18.8 | J7: 19.2 | K7: 19.6 | L7: 19.9 | M7: 20.1 | N7: 20.3 | O7: 20.4 | P7: 20.4 | Q7: 20.4 | R7: 20.3 | S7: 20.1 | T7: 20 | U7: 19.8 | V7: 19.7 | W7: 19.6 | X7: 19.6 | Y7: 19.4
A8: 7月 | B8: 23 | C8: 22.9 | D8: 22.8 | E8: 22.7 | F8: 22.5 | G8: 22.4 | H8: 22.4 | I8: 22.7 | J8: 23.1 | K8: 23.5 | L8: 23.7 | M8: 24 | N8: 24.1 | O8: 24.2 | P8: 24.2 | Q8: 24.2 | R8: 24.1 | S8: 23.9 | T8: 23.8 | U8: 23.6 | V8: 23.5 | W8: 23.4 | X8: 23.3 | Y8: 23.3
A9: 8月 | B9: 23.7 | C9: 23.5 | D9: 23.3 | E9: 23.2 | F9: 23.1 | G9: 22.9 | H9: 22.9 | I9: 23.1 | J9: 23.6 | K9: 24.2 | L9: 24.5 | M9: 24.6 | N9: 24.8 | O9: 24.8 | P9: 24.9 | Q9: 24.7 | R9: 24.7 | S9: 24.5 | T9: 24.4 | U9: 24.2 | V9: 24.1 | W9: 24.1 | X9: 23.9 | Y9: 23.8
A10: 9月 | B10: 20.4 | C10: 20.2 | D10: 20.1 | E10: 20 | F10: 19.9 | G10: 19.8 | H10: 19.7 | I10: 19.9 | J10: 20.3 | K10: 20.9 | L10: 21.2 | M10: 21.5 | N10: 21.6 | O10: 21.7 | P10: 21.6 | Q10: 21.6 | R10: 21.5 | S10: 21.3 | T10: 21.2 | U10: 21.1 | V10: 21 | W10: 20.9 | X10: 20.7 | Y10: 20.5
A11: 10月 | B11: 15.1 | C11: 14.9 | D11: 14.7 | E11: 14.6 | F11: 14.4 | G11: 14.3 | H11: 14.2 | I11: 14.3 | J11: 14.9 | K11: 15.7 | L11: 16.3 | M11: 16.6 | N11: 16.8 | O11: 16.9 | P11: 16.9 | Q11: 16.9 | R11: 16.7 | S11: 16.5 | T11: 16.4 | U11: 16.3 | V11: 16 | W11: 15.7 | X11: 15.4 | Y11: 15.1
A12: 11月 | B12: 9.9 | C12: 9.7 | D12: 9.5 | E12: 9.3 | F12: 9.2 | G12: 9.1 | H12: 9 | I12: 9 | J12: 9.5 | K12: 10.4 | L12: 11.3 | M12: 11.8 | N12: 12 | O12: 12.2 | P12: 12.3 | Q12: 12.3 | R12: 12.1 | S12: 11.8 | T12: 11.5 | U12: 11.3 | V12: 11 | W12: 10.6 | X12: 10.3 | Y12: 10
A13: 12月 | B13: 4.9 | C13: 4.7 | D13: 4.5 | E13: 4.4 | F13: 4.2 | G13: 4.1 | H13: 4 | I13: 4 | J13: 4.2 | K13: 5.1 | L13: 6.1 | M13: 6.7 | N13: 7.1 | O13: 7.3 | P13: 7.4 | Q13: 7.4 | R13: 7.2 | S13: 6.8 | T13: 6.5 | U13: 6.2 | V13: 5.8 | W13: 5.5 | X13: 5.2 | Y13: 4.9
A14: 1月 | B14: 2.8 | C14: 2.6 | D14: 2.4 | E14: 2.3 | F14: 2.2 | G14: 2.1 | H14: 2 | I14: 2 | J14: 2.2 | K14: 3 | L14: 4 | M14: 4.7 | N14: 5 | O14: 5.2 | P14: 5.4 | Q14: 5.4 | R14: 5.2 | S14: 4.9 | T14: 4.5 | U14: 4.3 | V14: 3.9 | W14: 3.6 | X14: 3.3 | Y14: 3
A15: 2月 | B15: 3.5 | C15: 3.3 | D15: 3.2 | E15: 3 | F15: 2.9 | G15: 2.7 | H15: 2.7 | I15: 2.6 | J15: 3 | K15: 3.8 | L15: 4.7 | M15: 5.3 | N15: 5.6 | O15: 5.9 | P15: 6.1 | Q15: 6.1 | R15: 5.9 | S15: 5.7 | T15: 5.3 | U15: 5.1 | V15: 4.8 | W15: 4.5 | X15: 4.2 | Y15: 3.9
A16: 3月 | B16: 6.4 | C16: 6.2 | D16: 5.9 | E16: 5.7 | F16: 5.5 | G16: 5.3 | H16: 5.2 | I16: 5.2 | J16: 5.9 | K16: 6.8 | L16: 7.5 | M16: 8 | N16: 8.3 | O16: 8.5 | P16: 8.7 | Q16: 8.6 | R16: 8.5 | S16: 8.3 | T16: 8 | U16: 7.7 | V16: 7.5 | W16: 7.3 | X16: 7 | Y16: 6.7

Sheet 宮崎 (hidden)
A1: 気象データ
A2: =RIGHT(CELL("filename",A2),LEN(CELL("filename",A2))-FIND("]",CELL("filename",A2))) -> 宮崎
A3: 時刻別平均外気湿球温度
A4: 時刻 | B4: 0 | C4: 1 | D4: 2 | E4: 3 | F4: 4 | G4: 5 | H4: 6 | I4: 7 | J4: 8 | K4: 9 | L4: 10 | M4: 11 | N4: 12 | O4: 13 | P4: 14 | Q4: 15 | R4: 16 | S4: 17 | T4: 18 | U4: 19 | V4: 20 | W4: 21 | X4: 22 | Y4: 23
A5: 4月 | B5: 12.4 | C5: 12.1 | D5: 11.9 | E5: 11.6 | F5: 11.4 | G5: 11.2 | H5: 11.1 | I5: 11.4 | J5: 12.2 | K5: 13 | L5: 13.5 | M5: 13.9 | N5: 14.2 | O5: 14.3 | P5: 14.4 | Q5: 14.5 | R5: 14.4 | S5: 14.3 | T5: 14 | U5: 13.8 | V5: 13.6 | W5: 13.4 | X5: 13.1 | Y5: 12.8
A6: 5月 | B6: 16.6 | C6: 16.3 | D6: 16.1 | E6: 15.9 | F6: 15.7 | G6: 15.6 | H6: 15.5 | I6: 16 | J6: 16.7 | K6: 17.3 | L6: 17.6 | M6: 17.9 | N6: 18.1 | O6: 18.1 | P6: 18.2 | Q6: 18.2 | R6: 18.2 | S6: 18 | T6: 17.8 | U6: 17.7 | V6: 17.5 | W6: 17.4 | X6: 17.2 | Y6: 16.9
A7: 6月 | B7: 20.4 | C7: 20.2 | D7: 20.1 | E7: 20 | F7: 19.8 | G7: 19.7 | H7: 19.7 | I7: 20.1 | J7: 20.5 | K7: 21 | L7: 21.2 | M7: 21.4 | N7: 21.5 | O7: 21.5 | P7: 21.5 | Q7: 21.5 | R7: 21.5 | S7: 21.5 | T7: 21.4 | U7: 21.2 | V7: 21.1 | W7: 21 | X7: 20.9 | Y7: 20.7
A8: 7月 | B8: 23.8 | C8: 23.7 | D8: 23.6 | E8: 23.5 | F8: 23.3 | G8: 23.2 | H8: 23.3 | I8: 23.5 | J8: 23.9 | K8: 24.3 | L8: 24.5 | M8: 24.7 | N8: 24.9 | O8: 24.9 | P8: 24.9 | Q8: 25 | R8: 24.8 | S8: 24.7 | T8: 24.7 | U8: 24.5 | V8: 24.3 | W8: 24.3 | X8: 24.1 | Y8: 24
A9: 8月 | B9: 24.5 | C9: 24.3 | D9: 24.2 | E9: 24.1 | F9: 23.9 | G9: 23.8 | H9: 23.7 | I9: 24 | J9: 24.5 | K9: 24.9 | L9: 25.1 | M9: 25.2 | N9: 25.3 | O9: 25.4 | P9: 25.5 | Q9: 25.4 | R9: 25.4 | S9: 25.3 | T9: 25.2 | U9: 25 | V9: 25 | W9: 24.9 | X9: 24.7 | Y9: 24.6
A10: 9月 | B10: 21.8 | C10: 21.6 | D10: 21.5 | E10: 21.3 | F10: 21.2 | G10: 21 | H10: 20.9 | I10: 21.1 | J10: 21.6 | K10: 22.1 | L10: 22.4 | M10: 22.6 | N10: 22.7 | O10: 22.8 | P10: 22.9 | Q10: 22.9 | R10: 22.8 | S10: 22.7 | T10: 22.5 | U10: 22.4 | V10: 22.3 | W10: 22.2 | X10: 22 | Y10: 21.8
A11: 10月 | B11: 16.6 | C11: 16.4 | D11: 16.2 | E11: 16 | F11: 15.8 | G11: 15.7 | H11: 15.5 | I11: 15.6 | J11: 16.3 | K11: 17.1 | L11: 17.6 | M11: 17.9 | N11: 18.1 | O11: 18.2 | P11: 18.3 | Q11: 18.3 | R11: 18.2 | S11: 18 | T11: 17.8 | U11: 17.6 | V11: 17.4 | W11: 17.1 | X11: 16.9 | Y11: 16.6
A12: 11月 | B12: 11.3 | C12: 11.1 | D12: 10.9 | E12: 10.7 | F12: 10.5 | G12: 10.4 | H12: 10.2 | I12: 10.2 | J12: 10.7 | K12: 11.8 | L12: 12.7 | M12: 13.2 | N12: 13.6 | O12: 13.7 | P12: 13.8 | Q12: 13.8 | R12: 13.7 | S12: 13.4 | T12: 13.1 | U12: 12.8 | V12: 12.4 | W12: 12.1 | X12: 11.7 | Y12: 11.5
A13: 12月 | B13: 6 | C13: 5.8 | D13: 5.6 | E13: 5.4 | F13: 5.2 | G13: 5.1 | H13: 4.9 | I13: 4.8 | J13: 5.2 | K13: 6.2 | L13: 7.4 | M13: 8.1 | N13: 8.5 | O13: 8.8 | P13: 9 | Q13: 9 | R13: 8.8 | S13: 8.4 | T13: 7.9 | U13: 7.5 | V13: 7.1 | W13: 6.7 | X13: 6.4 | Y13: 6.1
A14: 1月 | B14: 4 | C14: 3.8 | D14: 3.5 | E14: 3.4 | F14: 3.2 | G14: 3.1 | H14: 3 | I14: 2.9 | J14: 3.2 | K14: 4.2 | L14: 5.3 | M14: 6.1 | N14: 6.6 | O14: 6.9 | P14: 7.1 | Q14: 7.1 | R14: 7 | S14: 6.7 | T14: 6.2 | U14: 5.7 | V14: 5.2 | W14: 4.9 | X14: 4.6 | Y14: 4.3
A15: 2月 | B15: 5.3 | C15: 5.1 | D15: 4.9 | E15: 4.7 | F15: 4.5 | G15: 4.4 | H15: 4.2 | I15: 4.1 | J15: 4.5 | K15: 5.6 | L15: 6.5 | M15: 7.2 | N15: 7.6 | O15: 7.9 | P15: 8.1 | Q15: 8.2 | R15: 8.1 | S15: 7.9 | T15: 7.5 | U15: 7.1 | V15: 6.7 | W15: 6.3 | X15: 6 | Y15: 5.7
A16: 3月 | B16: 8.3 | C16: 8 | D16: 7.8 | E16: 7.6 | F16: 7.4 | G16: 7.2 | H16: 7.1 | I16: 7.1 | J16: 7.8 | K16: 8.7 | L16: 9.4 | M16: 9.9 | N16: 10.3 | O16: 10.5 | P16: 10.7 | Q16: 10.8 | R16: 10.7 | S16: 10.5 | T16: 10.2 | U16: 9.9 | V16: 9.6 | W16: 9.3 | X16: 8.9 | Y16: 8.6

Sheet 鹿児島 (hidden)
A1: 気象データ
A2: =RIGHT(CELL("filename",A2),LEN(CELL("filename",A2))-FIND("]",CELL("filename",A2))) -> 鹿児島
A3: 時刻別平均外気湿球温度
A4: 時刻 | B4: 0 | C4: 1 | D4: 2 | E4: 3 | F4: 4 | G4: 5 | H4: 6 | I4: 7 | J4: 8 | K4: 9 | L4: 10 | M4: 11 | N4: 12 | O4: 13 | P4: 14 | Q4: 15 | R4: 16 | S4: 17 | T4: 18 | U4: 19 | V4: 20 | W4: 21 | X4: 22 | Y4: 23
A5: 4月 | B5: 12.8 | C5: 12.5 | D5: 12.4 | E5: 12.2 | F5: 12 | G5: 11.9 | H5: 11.8 | I5: 12.1 | J5: 12.8 | K5: 13.4 | L5: 13.8 | M5: 14 | N5: 14.3 | O5: 14.4 | P5: 14.6 | Q5: 14.6 | R5: 14.5 | S5: 14.3 | T5: 14.1 | U5: 13.8 | V5: 13.6 | W5: 13.5 | X5: 13.3 | Y5: 13.1
A6: 5月 | B6: 16.9 | C6: 16.7 | D6: 16.6 | E6: 16.4 | F6: 16.3 | G6: 16.2 | H6: 16.1 | I6: 16.5 | J6: 17.1 | K6: 17.5 | L6: 17.7 | M6: 17.9 | N6: 18.1 | O6: 18.2 | P6: 18.3 | Q6: 18.3 | R6: 18.3 | S6: 18.1 | T6: 17.9 | U6: 17.6 | V6: 17.4 | W6: 17.3 | X6: 17.2 | Y6: 17.1
A7: 6月 | B7: 20.8 | C7: 20.7 | D7: 20.6 | E7: 20.5 | F7: 20.4 | G7: 20.4 | H7: 20.4 | I7: 20.6 | J7: 20.9 | K7: 21.2 | L7: 21.4 | M7: 21.5 | N7: 21.6 | O7: 21.7 | P7: 21.8 | Q7: 21.8 | R7: 21.8 | S7: 21.7 | T7: 21.5 | U7: 21.4 | V7: 21.2 | W7: 21.2 | X7: 21.1 | Y7: 21.1
A8: 7月 | B8: 24.3 | C8: 24.2 | D8: 24.2 | E8: 24.1 | F8: 24 | G8: 23.9 | H8: 23.9 | I8: 24.2 | J8: 24.4 | K8: 24.6 | L8: 24.8 | M8: 25 | N8: 25.1 | O8: 25.2 | P8: 25.2 | Q8: 25.2 | R8: 25.1 | S8: 25 | T8: 24.8 | U8: 24.7 | V8: 24.6 | W8: 24.5 | X8: 24.4 | Y8: 24.4
A9: 8月 | B9: 24.7 | C9: 24.7 | D9: 24.6 | E9: 24.5 | F9: 24.4 | G9: 24.3 | H9: 24.3 | I9: 24.5 | J9: 24.8 | K9: 25 | L9: 25.2 | M9: 25.3 | N9: 25.4 | O9: 25.5 | P9: 25.5 | Q9: 25.5 | R9: 25.5 | S9: 25.4 | T9: 25.2 | U9: 25.1 | V9: 25 | W9: 24.9 | X9: 24.8 | Y9: 24.8
A10: 9月 | B10: 22.1 | C10: 22 | D10: 21.8 | E10: 21.7 | F10: 21.6 | G10: 21.6 | H10: 21.5 | I10: 21.6 | J10: 22.1 | K10: 22.4 | L10: 22.7 | M10: 22.8 | N10: 22.9 | O10: 23 | P10: 23.1 | Q10: 23 | R10: 23 | S10: 22.9 | T10: 22.7 | U10: 22.5 | V10: 22.4 | W10: 22.3 | X10: 22.2 | Y10: 22.1
A11: 10月 | B11: 17.1 | C11: 16.9 | D11: 16.7 | E11: 16.6 | F11: 16.5 | G11: 16.4 | H11: 16.3 | I11: 16.4 | J11: 17 | K11: 17.6 | L11: 17.9 | M11: 18.2 | N11: 18.4 | O11: 18.4 | P11: 18.5 | Q11: 18.4 | R11: 18.3 | S11: 18.2 | T11: 18 | U11: 17.8 | V11: 17.6 | W11: 17.4 | X11: 17.2 | Y11: 17.1
A12: 11月 | B12: 12.2 | C12: 12 | D12: 11.8 | E12: 11.7 | F12: 11.6 | G12: 11.5 | H12: 11.4 | I12: 11.4 | J12: 11.9 | K12: 12.9 | L12: 13.4 | M12: 13.7 | N12: 13.9 | O12: 14 | P12: 14 | Q12: 14 | R12: 13.8 | S12: 13.6 | T12: 13.4 | U12: 13.1 | V12: 12.9 | W12: 12.6 | X12: 12.4 | Y12: 12.2
A13: 12月 | B13: 7.2 | C13: 6.9 | D13: 6.8 | E13: 6.7 | F13: 6.6 | G13: 6.5 | H13: 6.4 | I13: 6.3 | J13: 6.6 | K13: 7.5 | L13: 8.4 | M13: 8.8 | N13: 9.1 | O13: 9.3 | P13: 9.4 | Q13: 9.3 | R13: 9.1 | S13: 8.7 | T13: 8.4 | U13: 8.2 | V13: 7.9 | W13: 7.6 | X13: 7.4 | Y13: 7.1
A14: 1月 | B14: 5 | C14: 4.9 | D14: 4.7 | E14: 4.6 | F14: 4.5 | G14: 4.4 | H14: 4.4 | I14: 4.4 | J14: 4.5 | K14: 5.4 | L14: 6.3 | M14: 6.8 | N14: 7.1 | O14: 7.4 | P14: 7.5 | Q14: 7.5 | R14: 7.3 | S14: 7 | T14: 6.7 | U14: 6.3 | V14: 6 | W14: 5.8 | X14: 5.5 | Y14: 5.3
A15: 2月 | B15: 6.2 | C15: 6 | D15: 5.8 | E15: 5.7 | F15: 5.5 | G15: 5.4 | H15: 5.4 | I15: 5.4 | J15: 5.7 | K15: 6.6 | L15: 7.3 | M15: 7.8 | N15: 8.1 | O15: 8.3 | P15: 8.5 | Q15: 8.5 | R15: 8.4 | S15: 8.1 | T15: 7.7 | U15: 7.4 | V15: 7.2 | W15: 6.9 | X15: 6.7 | Y15: 6.5
A16: 3月 | B16: 8.9 | C16: 8.7 | D16: 8.5 | E16: 8.3 | F16: 8.2 | G16: 8.1 | H16: 8 | I16: 8 | J16: 8.6 | K16: 9.4 | L16: 9.9 | M16: 10.3 | N16: 10.6 | O16: 10.8 | P16: 11 | Q16: 11 | R16: 10.9 | S16: 10.6 | T16: 10.3 | U16: 10 | V16: 9.8 | W16: 9.6 | X16: 9.4 | Y16: 9.2

Sheet 那覇 (hidden)
A1: 気象データ
A2: =RIGHT(CELL("filename",A2),LEN(CELL("filename",A2))-FIND("]",CELL("filename",A2))) -> 那覇
A3: 時刻別平均外気湿球温度
A4: 時刻 | B4: 0 | C4: 1 | D4: 2 | E4: 3 | F4: 4 | G4: 5 | H4: 6 | I4: 7 | J4: 8 | K4: 9 | L4: 10 | M4: 11 | N4: 12 | O4: 13 | P4: 14 | Q4: 15 | R4: 16 | S4: 17 | T4: 18 | U4: 19 | V4: 20 | W4: 21 | X4: 22 | Y4: 23
A5: 4月 | B5: 18 | C5: 18 | D5: 17.9 | E5: 17.9 | F5: 17.9 | G5: 17.8 | H5: 17.8 | I5: 18 | J5: 18.3 | K5: 18.5 | L5: 18.7 | M5: 18.8 | N5: 18.9 | O5: 19 | P5: 18.9 | Q5: 18.9 | R5: 18.8 | S5: 18.6 | T5: 18.5 | U5: 18.3 | V5: 18.2 | W5: 18.2 | X5: 18.2 | Y5: 18.2
A6: 5月 | B6: 21.2 | C6: 21.1 | D6: 21.1 | E6: 21.1 | F6: 21.1 | G6: 21 | H6: 21 | I6: 21.3 | J6: 21.5 | K6: 21.7 | L6: 21.8 | M6: 21.9 | N6: 22 | O6: 22 | P6: 22 | Q6: 21.9 | R6: 21.8 | S6: 21.6 | T6: 21.5 | U6: 21.4 | V6: 21.3 | W6: 21.3 | X6: 21.3 | Y6: 21.3
A7: 6月 | B7: 24.5 | C7: 24.5 | D7: 24.4 | E7: 24.4 | F7: 24.4 | G7: 24.4 | H7: 24.4 | I7: 24.6 | J7: 24.8 | K7: 24.9 | L7: 25.1 | M7: 25.1 | N7: 25.2 | O7: 25.2 | P7: 25.2 | Q7: 25.2 | R7: 25 | S7: 24.9 | T7: 24.8 | U7: 24.7 | V7: 24.6 | W7: 24.7 | X7: 24.6 | Y7: 24.6
A8: 7月 | B8: 25.6 | C8: 25.6 | D8: 25.6 | E8: 25.5 | F8: 25.5 | G8: 25.5 | H8: 25.4 | I8: 25.6 | J8: 25.8 | K8: 25.9 | L8: 26 | M8: 26.1 | N8: 26.1 | O8: 26.2 | P8: 26.1 | Q8: 26.1 | R8: 26 | S8: 25.9 | T8: 25.8 | U8: 25.7 | V8: 25.7 | W8: 25.7 | X8: 25.7 | Y8: 25.7
A9: 8月 | B9: 25.6 | C9: 25.5 | D9: 25.5 | E9: 25.4 | F9: 25.4 | G9: 25.3 | H9: 25.3 | I9: 25.5 | J9: 25.7 | K9: 25.8 | L9: 25.9 | M9: 26 | N9: 26 | O9: 26.1 | P9: 26 | Q9: 26 | R9: 25.9 | S9: 25.8 | T9: 25.7 | U9: 25.6 | V9: 25.6 | W9: 25.6 | X9: 25.6 | Y9: 25.6
A10: 9月 | B10: 24.3 | C10: 24.2 | D10: 24.2 | E10: 24.1 | F10: 24.1 | G10: 24.1 | H10: 24 | I10: 24.2 | J10: 24.4 | K10: 24.6 | L10: 24.7 | M10: 24.7 | N10: 24.8 | O10: 24.8 | P10: 24.8 | Q10: 24.7 | R10: 24.6 | S10: 24.5 | T10: 24.4 | U10: 24.3 | V10: 24.3 | W10: 24.3 | X10: 24.3 | Y10: 24.2
A11: 10月 | B11: 21.5 | C11: 21.4 | D11: 21.4 | E11: 21.3 | F11: 21.3 | G11: 21.3 | H11: 21.2 | I11: 21.3 | J11: 21.6 | K11: 21.8 | L11: 21.9 | M11: 22.1 | N11: 22.1 | O11: 22.1 | P11: 22.1 | Q11: 22 | R11: 21.9 | S11: 21.8 | T11: 21.7 | U11: 21.6 | V11: 21.6 | W11: 21.6 | X11: 21.5 | Y11: 21.5
A12: 11月 | B12: 18.4 | C12: 18.3 | D12: 18.3 | E12: 18.2 | F12: 18.2 | G12: 18.1 | H12: 18.1 | I12: 18.2 | J12: 18.4 | K12: 18.7 | L12: 18.9 | M12: 19 | N12: 19.1 | O12: 19.1 | P12: 19.1 | Q12: 19 | R12: 18.9 | S12: 18.7 | T12: 18.6 | U12: 18.5 | V12: 18.5 | W12: 18.4 | X12: 18.4 | Y12: 18.3
A13: 12月 | B13: 14.9 | C13: 14.8 | D13: 14.8 | E13: 14.7 | F13: 14.7 | G13: 14.7 | H13: 14.6 | I13: 14.6 | J13: 14.8 | K13: 15.2 | L13: 15.4 | M13: 15.6 | N13: 15.6 | O13: 15.7 | P13: 15.7 | Q13: 15.6 | R13: 15.5 | S13: 15.3 | T13: 15.2 | U13: 15.1 | V13: 15 | W13: 14.9 | X13: 14.9 | Y13: 14.8
A14: 1月 | B14: 13.2 | C14: 13.2 | D14: 13.2 | E14: 13.1 | F14: 13.1 | G14: 13 | H14: 13 | I14: 13 | J14: 13.2 | K14: 13.6 | L14: 13.8 | M14: 14 | N14: 14.1 | O14: 14.1 | P14: 14.1 | Q14: 14.1 | R14: 14 | S14: 13.8 | T14: 13.7 | U14: 13.6 | V14: 13.5 | W14: 13.4 | X14: 13.4 | Y14: 13.3
A15: 2月 | B15: 13.8 | C15: 13.8 | D15: 13.8 | E15: 13.7 | F15: 13.7 | G15: 13.6 | H15: 13.6 | I15: 13.6 | J15: 13.8 | K15: 14.2 | L15: 14.5 | M15: 14.6 | N15: 14.7 | O15: 14.8 | P15: 14.8 | Q15: 14.8 | R15: 14.7 | S15: 14.5 | T15: 14.3 | U15: 14.2 | V15: 14.2 | W15: 14.1 | X15: 14 | Y15: 14
A16: 3月 | B16: 15.4 | C16: 15.3 | D16: 15.3 | E16: 15.3 | F16: 15.2 | G16: 15.1 | H16: 15.1 | I16: 15.2 | J16: 15.5 | K16: 15.8 | L16: 16 | M16: 16.2 | N16: 16.3 | O16: 16.3 | P16: 16.3 | Q16: 16.3 | R16: 16.2 | S16: 16 | T16: 15.9 | U16: 15.7 | V16: 15.6 | W16: 15.6 | X16: 15.5 | Y16: 15.5
